Workbook

Sheet 1. Information Sheet
V1: Algoma Power Inc.
V2: Atikokan Hydro Inc.
V3: Attawapiskat Power Corp.
V4: Bluewater Power Distribution Corporation
V5: Brant County Power Inc.
V6: Brantford Power Inc.
V7: Burlington Hydro Inc.
V8: Cambridge and North Dumfries Hydro Inc.
V9: Canadian Niagara Power Inc.
V10: Centre Wellington Hydro Ltd.
V11: Chapleau Public Utilities Corporation
M12: Version | N12: 2.2 | V12: Clinton Power Corporation
V13: COLLUS Power Corporation
E14: Utility Name | F14: Hydro One Brampton Networks Inc. | V14: Cooperative Hydro Embrun Inc.
V15: E.L.K. Energy Inc.
E16: Service Territory | F16: (if applicable) | V16: Enersource Hydro Mississauga Inc.
V17: Entegrus Powerlines Inc.
E18: Assigned EB Number | F18: EB-2014-0083 | V18: ENWIN Utilities Ltd.
V19: Erie Thames Powerlines Corporation
E20: Name of Contact and Title | F20: Scott Miller | V20: Espanola Regional Hydro Distribution Corporation
V21: Essex Powerlines Corporation
E22: Phone Number | F22: 905-452-5504 | V22: Festival Hydro Inc.
V23: Fort Albany Power Corporation
E24: Email Address | F24: SMiller@hydroonebrampton.com | V24: Fort Frances Power Corporation
V25: Greater Sudbury Hydro Inc.
V26: Grimsby Power Inc.
B27: General Notes 1. Please ensure that your macros have been enabled. (Tools -> Macro -> Security) 2. Due to the time lag of deferral/variance account dispositions, this model assumes that all opening balances include previously disposed of amounts. Accordingly, all "Board Approved Dispositions" are deducted from the opening balance. 3. Please provide information in this model since the last time your balances were disposed. 4. For all Board-Approved dispositions, please ensure that the disposition amount has the same sign (e.g: debit balances are to have a positive figure and credit balance are to have a negative figure) as per the related Board decision. | V27: Guelph Hydro Electric Systems Inc.
V28: Haldimand County Hydro Inc.
B29: Notes | V29: Halton Hills Hydro Inc.
V30: Hearst Power Distribution Company Limited
C31: Pale green cells represent input cells. | V31: Horizon Utilities Corporation
V32: Hydro 2000 Inc.
C33: Pale blue cells represent drop-down lists. The applicant should select the appropriate item from the drop-down list. | V33: Hydro Hawkesbury Inc.
V34: Hydro One Brampton Networks Inc.
C35: White cells contain fixed values, automatically generated values or formulae. | V35: Hydro One Networks Inc.
V36: Hydro Ottawa Limited
V37: Innisfil Hydro Distribution Systems Limited
V38: Kashechewan Power Corporation
V39: Kenora Hydro Electric Corporation Ltd.
V40: Kingston Hydro Corporation
V41: Kitchener-Wilmot Hydro Inc.
V42: Lakefront Utilities Inc.
V43: Lakeland Power Distribution Ltd.
V44: London Hydro Inc.
V45: Midland Power Utility Corporation
V46: Milton Hydro Distribution inc.
V47: Newmarket - Tay Power Distribution Ltd.
V48: Niagara Peninsula Energy Inc.
V49: Niagara-on-the-Lake Hydro Inc.
V50: Norfolk Power Distribution Inc.
V51: North Bay Hydro Distribution Limited
V52: Northern Ontario Wires Inc.
V53: Oakville Hydro Electricity Distribution Inc.
V54: Orangeville Hydro Limited
V55: Orillia Power Distribution Corporation
V56: Oshawa PUC Networks Inc.
V57: Ottawa River Power Corporation
V58: Parry Sound Power Corporation
V59: Peterborough Distribution Incorporated
V60: PowerStream Inc.
V61: PUC Distribution Inc.
V62: Renfrew Hydro Inc.
V63: Rideau St. Lawrence Distribution Inc.
V64: Sioux Lookout Hydro Inc.
V65: St. Thomas Energy Inc.
V66: Thunder Bay Hydro Electricity Distribution Inc.
V67: Tillsonburg Hydro Inc.
V68: Toronto Hydro-Electric System Limited
V69: Veridian Connections Inc.
V70: Wasaga Distribution Inc.
V71: Waterloo North Hydro Inc.
V72: Welland Hydro-Electric System Corp.
V73: Wellington North Power Inc.
V74: West Coast Huron Energy Inc.
V75: West Perth Power Inc.
V76: Westario Power Inc.
V77: Whitby Hydro Electric Corporation
V78: Woodstock Hydro Services Inc.

Sheet 2. 2015 Continuity Schedule
E19: 2009 | O19: 2010 | Y19: 2011 | AI19: 2012 | AS19: 2013 | BF19: 2014 | BK19: Projected Interest on Dec-31-13 Balances | BN19: 2.1.7 RRR
C20: Account Descriptions | D20: Account Number | E20: Opening Principal Amounts as of Jan-1-09 | F20: Transactions Debit / (Credit) during 2009 excluding interest and adjustments 3 | G20: Board-Approved Disposition during 2009 | H20: Adjustments during 2009 - other 2 | I20: Closing Principal Balance as of Dec-31-09 | J20: Opening Interest Amounts as of Jan-1-09 | K20: Interest Jan-1 to Dec-31-09 | L20: Board-Approved Disposition during 2009 | M20: Adjustments during 2009 - other 2 | N20: Closing Interest Amounts as of Dec-31-09 | O20: Opening Principal Amounts as of Jan-1-10 | P20: Transactions Debit / (Credit) during 2010 excluding interest and adjustments 3 | Q20: Board-Approved Disposition during 2010 | R20: Adjustments during 2010 - other 2 | S20: Closing Principal Balance as of Dec-31-10 | T20: Opening Interest Amounts as of Jan-1-10 | U20: Interest Jan-1 to Dec-31-10 | V20: Board-Approved Disposition during 2010 | W20: Adjustments during 2010 - other 2 | X20: Closing Interest Amounts as of Dec-31-10 | Y20: Opening Principal Amounts as of Jan-1-11 | Z20: Transactions Debit / (Credit) during 2011 excluding interest and adjustments 3 | AA20: Board-Approved Disposition during 2011 | AB20: Adjustments during 2010 - other 2 | AC20: Closing Principal Balance as of Dec-31-11 | AD20: Opening Interest Amounts as of Jan-1-11 | AE20: Interest Jan-1 to Dec-31-11 | AF20: Board-Approved Disposition during 2011 | AG20: Adjustments during 2011 - other 2 | AH20: Closing Interest Amounts as of Dec-31-11 | AI20: Opening Principal Amounts as of Jan-1-12 | AJ20: Transactions Debit / (Credit) during 2012 excluding interest and adjustments 3 | AK20: Board-Approved Disposition during 2012 | AL20: Adjustments during 2012 - other 2 | AM20: Closing Principal Balance as of Dec-31-12 | AN20: Opening Interest Amounts as of Jan-1-12 | AO20: Interest Jan-1 to Dec-31-12 | AP20: Board-Approved Disposition during 2012 | AQ20: Adjustments during 2012 - other 2 | AR20: Closing Interest Amounts as of Dec-31-12 | AS20: Opening Principal Amounts as of Jan-1-13 | AT20: Transactions Debit / (Credit) during 2013 excluding interest and adjustments 3 | AU20: Board-Approved Disposition during 2013 | AV20: Other 2 Adjustments during Q1 2013 | AW20: Other 2 Adjustments during Q2 2013 | AX20: Other 2 Adjustments during Q3 2013 | AY20: Other 2 Adjustments during Q4 2013 | AZ20: Closing Principal Balance as of Dec-31-13 | BA20: Opening Interest Amounts as of Jan-1-13 | BB20: Interest Jan-1 to Dec-31-13 | BC20: Board-Approved Disposition during 2013 | BD20: Adjustments during 2013 - other 2 | BE20: Closing Interest Amounts as of Dec-31-13 | BF20: Principal Disposition during 2014 - instructed by Board | BG20: Interest Disposition during 2014 - instructed by Board | BH20: Closing Principal Balances as of Dec 31-13 Adjusted for Dispositions during 2014 | BI20: Closing Interest Balances as of Dec 31-13 Adjusted for Dispositions during 2014 | BJ20: Forecasted Transactions Debit / (Credit) during 2014 (excluding interest) | BK20: Projected Interest from Jan 1, 2014 to December 31, 2014 on Dec 31 -13 balance adjusted for disposition during 2014 6 | BL20: Projected Interest from January 1, 2014 to April 30, 2014 on Dec 31 -13 balance adjusted for disposition during 2014 6 | BM20: Total Claim | BN20: As of Dec 31-13 | BO20: Variance RRR vs. 2013 Balance (Principal + Interest)
BM22: Claim before Forecasted Transactions
C23: Group 1 Accounts
A24: 1 | C24: LV Variance Account | D24: 1550 | E24: 331894.41 | F24: -227532.67 | I24: =E24+F24-G24+H24 -> 104361.74 | J24: 20761.91 | K24: 3784.59 | N24: =J24+K24-L24+M24 -> 24546.5 | O24: =I24 -> 104361.74 | P24: -28602.53 | Q24: 104361.74 | R24: 0 | S24: =O24+P24-Q24+R24 -> -28602.53 | T24: =N24 -> 24546.5 | U24: 99.1 | V24: 24546.5 | W24: 0 | X24: =T24+U24-V24+W24 -> 99.1 | Y24: =S24 -> -28602.53 | Z24: 95769.03 | AA24: 0 | AB24: 0 | AC24: =Y24+Z24-AA24+AB24 -> 67166.5 | AD24: =X24 -> 99.1 | AE24: 11.51 | AF24: 0 | AG24: 0 | AH24: =AD24+AE24-AF24+AG24 -> 110.61 | AI24: =AC24 -> 67166.5 | AJ24: 129687.79 | AM24: =AI24+AJ24-AK24+SUM(AL24:AL24) -> 196854.29 | AN24: =AH24 -> 110.61 | AO24: 1934.8 | AR24: =AN24+AO24-AP24+AQ24 -> 2045.41 | AS24: =AM24 -> 196854.29 | AT24: 159066.83 | AU24: 196854.29 | AZ24: =AS24+AT24-AU24+SUM(AV24:AY24) -> 159066.83 | BA24: =AR24 -> 2045.41 | BB24: 3889.81 | BC24: =2894+2045.41 -> 4939.41 | BE24: =BA24+BB24-BC24+BD24 -> 995.81 | BH24: =AZ24-BF24 -> 159066.83 | BI24: =BE24-BG24 -> 995.81 | BK24: =BH24*1.47% -> 2338.282401 | BM24: =SUM(BH24:BL24) -> 162400.9224 | BN24: 160062.64 | BO24: =BN24-SUM(AZ24,BE24) -> 0
A25: 2 | C25: SM Entity Charge Variance | D25: 1551 | AS25: =AM25 -> 0 | AT25: =-38996.14-5091.09-378.86 -> -44466.09 | AZ25: =AS25+AT25-AU25+SUM(AV25:AY25) -> -44466.09 | BA25: 0 | BE25: =BA25+BB25-BC25+BD25 -> 0 | BH25: =AZ25-BF25 -> -44466.09 | BI25: =BE25-BG25 -> 0 | BK25: =BH25*1.47% -> -653.651523 | BM25: -45119.74152 | BN25: -44466.09 | BO25: 0
A26: 3 | C26: RSVA - Wholesale Market Service Charge | D26: 1580 | E26: -11276523.18 | F26: -996284.88 | I26: =E26+F26-G26+H26 -> -12272808.06 | J26: 486546.48 | K26: -132594.53 | N26: =J26+K26-L26+M26 -> 353951.95 | O26: =I26 -> -12272808.06 | P26: -3934481.83 | Q26: -12272808.06 | R26: 0 | S26: =O26+P26-Q26+R26 -> -3934481.83 | T26: =N26 -> 353951.95 | U26: -39415.39 | V26: 353951.95 | W26: 0 | X26: =T26+U26-V26+W26 -> -39415.39 | Y26: =S26 -> -3934481.83 | Z26: -3882936.41 | AA26: 0 | AB26: 0 | AC26: =Y26+Z26-AA26+SUM(AB26:AB26) -> -7817418.24 | AD26: =X26 -> -39415.39 | AE26: -84284.07 | AF26: 0 | AG26: 0 | AH26: =AD26+AE26-AF26+AG26 -> -123699.46 | AI26: =AC26 -> -7817418.24 | AJ26: -4935145 | AM26: -12752563.24 | AN26: -123699.46 | AO26: -148594.66 | AR26: =AN26+AO26-AP26+AQ26 -> -272294.12 | AS26: =AM26 -> -12752563.24 | AT26: -2481578.98 | AU26: -12752563.24 | AZ26: =AS26+AT26-AU26+SUM(AV26:AY26) -> -2481578.98 | BA26: =AR26 -> -272294.12 | BB26: -209914.28 | BC26: =-187463-272294.12 -> -459757.12 | BE26: =BA26+BB26-BC26+BD26 -> -22451.28 | BH26: =AZ26-BF26 -> -2481578.98 | BI26: =BE26-BG26 -> -22451.28 | BK26: =BH26*1.47% -> -36479.21101 | BM26: -2540509.471 | BN26: -2504030.26 | BO26: 0
A27: 4 | C27: RSVA - Retail Transmission Network Charge | D27: 1584 | E27: -830779.46 | F27: 652975.28 | I27: -177804.18 | J27: 335049.05 | K27: -7286.14 | N27: 327762.91 | O27: -177804.18 | P27: 1462389.39 | Q27: -177804.18 | R27: 0 | S27: 1462389.39 | T27: 327762.91 | U27: 8174.57 | V27: 327762.91 | W27: 0 | X27: 8174.57 | Y27: 1462389.39 | Z27: 1340438.63 | AA27: 0 | AB27: 0 | AC27: 2802828.02 | AD27: 8174.57 | AE27: 33031.24 | AF27: 0 | AG27: 0 | AH27: 41205.81 | AI27: 2802828.02 | AJ27: -131628.08 | AM27: 2671199.94 | AN27: 41205.81 | AO27: 40722.63 | AR27: 81928.44 | AS27: 2671199.94 | AT27: 1048861.42 | AU27: 2671199.94 | AZ27: 1048861.42 | BA27: 81928.44 | BB27: 43640.07 | BC27: =39267+81928.44 -> 121195.44 | BE27: 4373.07 | BH27: 1048861.42 | BI27: 4373.07 | BK27: 15418.26287 | BM27: 1068652.753 | BN27: 1053234.49 | BO27: 0
A28: 5 | C28: RSVA - Retail Transmission Connection Charge | D28: 1586 | E28: -1627656.01 | F28: -690772.88 | I28: -2318428.89 | J28: 227463.84 | K28: -19967.53 | N28: 207496.31 | O28: -2318428.89 | P28: 85754.14 | Q28: -2318428.89 | R28: 0 | S28: 85754.14 | T28: 207496.31 | U28: -2844.7 | V28: 207496.31 | W28: 0 | X28: -2844.7 | Y28: 85754.14 | Z28: 708666.5 | AA28: 0 | AB28: 0 | AC28: 794420.64 | AD28: -2844.7 | AE28: 5224.38 | AF28: 0 | AG28: 0 | AH28: 2379.68 | AI28: 794420.64 | AJ28: -15977.83 | AM28: 778442.81 | AN28: 2379.68 | AO28: 12855.64 | AR28: 15235.32 | AS28: 778442.81 | AT28: -300104.84 | AU28: 778442.81 | AZ28: -300104.84 | BA28: 15235.32 | BB28: 7917.27 | BC28: =11443+15235.32 -> 26678.32 | BE28: -3525.73 | BH28: -300104.84 | BI28: -3525.73 | BK28: -4411.541148 | BM28: -308042.1111 | BN28: -303630.57 | BO28: 0
A29: 6 | C29: RSVA - Power (excluding Global Adjustment) | D29: 1588 | E29: -1254314.33 | F29: 146185.52 | I29: -1108128.81 | J29: 165591.47 | K29: -13013.4 | N29: 152578.07 | O29: -1108128.81 | P29: -329879.01 | Q29: -1108128.81 | R29: 0 | S29: -329879.01 | T29: 152578.07 | U29: -2024 | V29: 152578.07 | W29: 0 | X29: -2024 | Y29: -329879.01 | Z29: -99234.31 | AA29: 0 | AB29: 0 | AC29: -429113.32 | AD29: -2024 | AE29: -4372.41 | AF29: 0 | AG29: 0 | AH29: -6396.41 | AI29: -429113.32 | AJ29: -414329.38 | AM29: -843442.7 | AN29: -6396.41 | AO29: -18709.04 | AR29: -25105.45 | AS29: -843442.7 | AT29: -1530583.91 | AU29: -843442.7 | AZ29: -1530583.91 | BA29: -25105.45 | BB29: -30854.78 | BC29: =-12399-25105.45 -> -37504.45 | BE29: -18455.78 | BH29: -1530583.91 | BI29: -18455.78 | BK29: -22499.58348 | BM29: -1571539.273 | BN29: -1549039.69 | BO29: 0
A30: 7 | C30: RSVA - Global Adjustment | D30: 1589 | E30: 1943951.37 | F30: 4556290.06 | I30: 6500241.43 | J30: -71390.18 | K30: 40605.17 | N30: -30785.01 | O30: 6500241.43 | P30: 694943.96 | Q30: 6500241.43 | R30: 0 | S30: 694943.96 | T30: -30785.01 | U30: -58.38 | V30: -30785.01 | W30: 0 | X30: -58.38 | Y30: 694943.96 | Z30: 4198490.34 | AA30: 0 | AB30: 0 | AC30: 4893434.3 | AD30: -58.38 | AE30: 22240.91 | AF30: 0 | AG30: 0 | AH30: 22182.53 | AI30: 4893434.3 | AJ30: -2946122.07 | AM30: 1947312.23 | AN30: 22182.53 | AO30: 26117.1 | AR30: 48299.63 | AS30: 1947312.23 | AT30: 3459067.38 | AU30: 1947312.23 | AZ30: 3459067.38 | BA30: 48299.63 | BB30: 67180.66 | BC30: =28625+48299.63 -> 76924.63 | BE30: 38555.66 | BH30: 3459067.38 | BI30: 38555.66 | BK30: 50848.29049 | BM30: 3548471.33 | BN30: 3497623.04 | BO30: 0
A31: 8 | C31: Recovery of Regulatory Asset Balances | D31: 1590 | E31: -371399.84 | F31: -62383.79 | I31: -433783.63 | J31: -232182.11 | K31: 62173.06 | N31: -170009.05 | O31: -433783.63 | P31: 0 | Q31: -433783.63 | R31: 0 | S31: 1.688022166e-09 | T31: -170009.05 | U31: 0 | V31: -170009.05 | W31: 0 | X31: -2.910383046e-11 | Y31: 1.688022166e-09 | Z31: 0 | AA31: 0 | AB31: 0 | AC31: 1.688022166e-09 | AD31: -2.910383046e-11 | AE31: 0 | AF31: 0 | AG31: 0 | AH31: -2.910383046e-11 | AI31: 1.688022166e-09 | AJ31: 0 | AM31: 1.688022166e-09 | AN31: -2.910383046e-11 | AR31: -2.910383046e-11 | AS31: 1.688022166e-09 | AZ31: 1.688022166e-09 | BA31: -2.910383046e-11 | BE31: -2.910383046e-11 | BH31: 1.688022166e-09 | BI31: -2.910383046e-11 | BK31: 2.481392585e-11 | BM31: 1.683732262e-09 | BO31: -1.658918336e-09
A32: 9 | C32: Disposition and Recovery/Refund of Regulatory Balances (2009)7 | D32: 1595 | E32: 0 | I32: 0 | J32: 0 | N32: 0 | O32: =I32 -> 0 | S32: 0 | T32: =N32 -> 0 | X32: 0 | Y32: =S32 -> 0 | AC32: 0 | AD32: =X32 -> 0 | AH32: 0 | AI32: =AC32 -> 0 | AM32: 0 | AN32: 0 | AR32: 0 | AS32: =AM32 -> 0 | AZ32: 0 | BA32: =AR32 -> 0 | BE32: 0 | BH32: 0 | BI32: 0 | BK32: 0 | BM32: 0 | BO32: 0
A33: 10 | C33: Disposition and Recovery/Refund of Regulatory Balances (2010)7 | D33: 1595 | E33: 0 | I33: 0 | J33: 0 | N33: 0 | O33: 0 | P33: 2782423.2 | Q33: 9706350.4 | R33: 0 | S33: -6923927.2 | T33: 0 | U33: -51627.44 | V33: -865541.68 | W33: 0 | X33: 813914.24 | Y33: -6923927.2 | Z33: 4535220.66 | AA33: 0 | AB33: 0 | AC33: -2388706.54 | AD33: 813914.24 | AE33: -69381.45 | AF33: 0 | AG33: 0 | AH33: 744532.79 | AI33: =AC33 -> -2388706.54 | AJ33: 2601535.68 | AM33: 212829.14 | AN33: 744532.79 | AO33: -874564.29 | AR33: -130031.5 | AS33: =AM33 -> 212829.14 | AU33: 212829.14 | AZ33: 0 | BA33: =AR33 -> -130031.5 | BB33: 3128 | BC33: =-130031.5+3128 -> -126903.5 | BE33: 0 | BH33: 0 | BI33: 0 | BK33: 0 | BM33: 0 | BO33: 0
A34: 11 | C34: Disposition and Recovery/Refund of Regulatory Balances (2011)7 | D34: 1595 | E34: 0 | I34: =E34+F34-G34+H34 -> 0 | J34: 0 | N34: =J34+K34-L34+M34 -> 0 | O34: =I34 -> 0 | S34: 0 | T34: =N34 -> 0 | X34: =T34+U34-V34+W34 -> 0 | Y34: =S34 -> 0 | Z34: =-772350.24-118430 -> -890780.24 | AA34: =-639502.62-118430 -> -757932.62 | AB34: 0 | AC34: -132847.62 | AD34: =X34 -> 0 | AE34: =-188094.11+1496 -> -186598.11 | AF34: =-199644.92+1496 -> -198148.92 | AG34: 0 | AH34: =AD34+AE34-AF34+AG34 -> 11550.81 | AI34: =AC34 -> -132847.62 | AJ34: 97294.12 | AK34: 98295 | AM34: -133848.5 | AN34: 11550.81 | AO34: -4437.07 | AR34: =AN34+AO34-AP34+AQ34 -> 7113.74 | AS34: =AM34 -> -133848.5 | AU34: -133848.5 | AZ34: =AS34+AT34-AU34+SUM(AV34:AY34) -> 0 | BA34: =AR34 -> 7113.74 | BB34: -1967 | BC34: =-1967+7113.74 -> 5146.74 | BE34: =BA34+BB34-BC34+BD34 -> 2.637534635e-11 | BH34: 0 | BI34: 2.637534635e-11 | BK34: 0 | BM34: 2.637534635e-11 | BO34: -2.637534635e-11
A35: 12 | C35: Disposition and Recovery/Refund of Regulatory Balances - Shared Tax Savings7 | D35: 1595 | E35: 0 | I35: =E35+F35-G35+H35 -> 0 | J35: 0 | N35: =J35+K35-L35+M35 -> 0 | O35: =I35 -> 0 | S35: =O35+P35-Q35+R35 -> 0 | T35: =N35 -> 0 | X35: =T35+U35-V35+W35 -> 0 | Y35: =S35 -> 0 | AC35: =Y35+Z35-AA35+SUM(AB35:AB35) -> 0 | AD35: =X35 -> 0 | AH35: =AD35+AE35-AF35+AG35 -> 0 | AI35: =AC35 -> 0 | AM35: 0 | AN35: 0 | AR35: =AN35+AO35-AP35+AQ35 -> 0 | AS35: =AM35 -> 0 | AT35: -86304 | AZ35: =AS35+AT35-AU35+SUM(AV35:AY35) -> -86304 | BA35: =AR35 -> 0 | BE35: =BA35+BB35-BC35+BD35 -> 0 | BH35: -86304 | BI35: 0 | BK35: -1268.6688 | BM35: -87572.6688 | BN35: -86304 | BO35: 0
C37: Group 1 Sub-Total (including Account 1589 - Global Adjustment) | E37: =SUM(E24:E35) -> -13084827.04 | F37: 3378476.64 | G37: 0 | H37: 0 | I37: -9706350.4 | J37: 931840.46 | K37: -66298.78 | L37: 0 | M37: 0 | N37: 865541.68 | O37: -9706350.4 | P37: 732547.32 | Q37: 0 | R37: 0 | S37: -8973803.08 | T37: 865541.68 | U37: -87696.24 | V37: 0 | W37: 0 | X37: 777845.44 | Y37: -8973803.08 | Z37: 6005634.2 | AA37: -757932.62 | AB37: 0 | AC37: -2210236.26 | AD37: 777845.44 | AE37: -284128 | AF37: -198148.92 | AG37: 0 | AH37: 691866.36 | AI37: -2210236.26 | AJ37: -5614684.77 | AK37: 98295 | AL37: 0 | AM37: =SUM(AM24:AM35) -> -7923216.03 | AN37: 691866.36 | AO37: =SUM(AO24:AO35) -> -964674.89 | AP37: 0 | AQ37: 0 | AR37: -272808.53 | AS37: -7923216.03 | AT37: 223957.81 | AU37: -7923216.03 | AV37: 0 | AW37: 0 | AX37: 0 | AY37: 0 | AZ37: =SUM(AZ24:AZ35) -> 223957.81 | BA37: -272808.53 | BB37: -116980.25 | BC37: -389280.53 | BD37: 0 | BE37: -508.25 | BF37: 0 | BG37: 0 | BH37: =SUM(BH24:BH35) -> 223957.81 | BI37: -508.25 | BK37: 3292.179807 | BL37: 0 | BM37: 226741.7398 | BN37: 223449.56 | BO37: =BN37-SUM(AZ37,BE37) -> -1.164153218e-09
C38: Group 1 Sub-Total (excluding Account 1589 - Global Adjustment) | E38: =E37-E39 -> -15028778.41 | F38: -1177813.42 | G38: 0 | H38: 0 | I38: -16206591.83 | J38: 1003230.64 | K38: -106903.95 | L38: =L37-L39 -> 0 | M38: =M37-M39 -> 0 | N38: =N37-N39 -> 896326.69 | O38: -16206591.83 | P38: 37603.36 | Q38: -6500241.43 | R38: 0 | S38: -9668747.04 | T38: 896326.69 | U38: -87637.86 | V38: =V37-V39 -> 30785.01 | W38: =W37-W39 -> 0 | X38: =X37-X39 -> 777903.82 | Y38: -9668747.04 | Z38: 1807143.86 | AA38: -757932.62 | AB38: 0 | AC38: -7103670.56 | AD38: 777903.82 | AE38: -306368.91 | AF38: =AF37-AF39 -> -198148.92 | AG38: 0 | AH38: 669683.83 | AI38: -7103670.56 | AJ38: -2668562.7 | AK38: 98295 | AL38: 0 | AM38: -9870528.26 | AN38: 669683.83 | AO38: -990791.99 | AP38: 0 | AQ38: 0 | AR38: -321108.16 | AS38: =AS37-AS39 -> -9870528.26 | AT38: -3235109.57 | AU38: -9870528.26 | AV38: 0 | AW38: 0 | AX38: 0 | AY38: 0 | AZ38: -3235109.57 | BA38: -321108.16 | BB38: -184160.91 | BC38: -466205.16 | BD38: 0 | BE38: -39063.91 | BF38: 0 | BG38: 0 | BH38: =BH37-BH39 -> -3235109.57 | BI38: -39063.91 | BK38: -47556.11068 | BL38: 0 | BM38: =SUM(BH38:BL38) -> -3321729.591 | BN38: =BN37-BN39 -> -3274173.48 | BO38: =BN38-SUM(AZ38,BE38) -> 0
C39: =C30 -> RSVA - Global Adjustment | D39: 1589 | E39: =E30 -> 1943951.37 | F39: 4556290.06 | G39: 0 | H39: 0 | I39: 6500241.43 | J39: -71390.18 | K39: 40605.17 | L39: =L30 -> 0 | M39: =M30 -> 0 | N39: =N30 -> -30785.01 | O39: 6500241.43 | P39: 694943.96 | Q39: 6500241.43 | R39: 0 | S39: 694943.96 | T39: -30785.01 | U39: -58.38 | V39: -30785.01 | W39: 0 | X39: -58.38 | Y39: =Y30 -> 694943.96 | Z39: 4198490.34 | AA39: 0 | AB39: 0 | AC39: 4893434.3 | AD39: -58.38 | AE39: 22240.91 | AF39: 0 | AG39: 0 | AH39: 22182.53 | AI39: =AI30 -> 4893434.3 | AJ39: -2946122.07 | AK39: 0 | AL39: 0 | AM39: 1947312.23 | AN39: 22182.53 | AO39: 26117.1 | AP39: 0 | AQ39: 0 | AR39: 48299.63 | AS39: =AS30 -> 1947312.23 | AT39: 3459067.38 | AU39: 1947312.23 | AV39: 0 | AW39: 0 | AX39: 0 | AY39: 0 | AZ39: 3459067.38 | BA39: 48299.63 | BB39: 67180.66 | BC39: 76924.63 | BD39: 0 | BE39: 38555.66 | BF39: =BF30 -> 0 | BG39: 0 | BH39: 3459067.38 | BI39: 38555.66 | BK39: 50848.29049 | BL39: 0 | BM39: =SUM(BH39:BL39) -> 3548471.33 | BN39: =BN30 -> 3497623.04 | BO39: =BN39-SUM(AZ39,BE39) -> 0
C41: Group 2 Accounts
A42: 12 | C42: Other Regulatory Assets - Sub-Account - OEB Cost Assessments | D42: 1508 | E42: =680088.18-1834257 -> -1154168.82 | I42: =E42+F42-G42+H42 -> -1154168.82 | J42: 124757.63 | K42: -552.78 | N42: =J42+K42-L42+M42 -> 124204.85 | O42: =I42 -> -1154168.82 | S42: =O42+P42-Q42+R42 -> -1154168.82 | T42: =N42 -> 124204.85 | U42: -369.52 | X42: =T42+U42-V42+W42 -> 123835.33 | Y42: =S42 -> -1154168.82 | AA42: =-(1834257-680088.18) -> -1154168.82 | AC42: =Y42+Z42-AA42+SUM(AB42:AB42) -> 0 | AD42: =X42 -> 123835.33 | AF42: 123835.33 | AH42: =AD42+AE42-AF42+AG42 -> 0 | AI42: =AC42 -> 0 | AM42: =AI42+AJ42-AK42+SUM(AL42:AL42) -> 0 | AN42: =AH42 -> 0 | AR42: =AN42+AO42-AP42+AQ42 -> 0 | AS42: =AM42 -> 0 | AZ42: =AS42+AT42-AU42+SUM(AV42:AY42) -> 0 | BA42: =AR42 -> 0 | BE42: =BA42+BB42-BC42+BD42 -> 0 | BH42: =AZ42-BF42 -> 0 | BI42: =BE42-BG42 -> 0 | BK42: =BH42*1.47% -> 0 | BM42: =SUM(BH42:BL42) -> 0 | BN42: 0 | BO42: =BN42-SUM(AZ42,BE42) -> 0
A43: 13 | C43: Other Regulatory Assets - Sub-Account - Pension Contributions | D43: 1508 | E43: =737076+500363 -> 1237439 | I43: 1237439 | J43: 0 | N43: 0 | O43: 1237439 | S43: 1237439 | T43: 0 | X43: 0 | Y43: =S43 -> 1237439 | AA43: =-(-737076-500363) -> 1237439 | AC43: 0 | AD43: 0 | AH43: 0 | AI43: 0 | AM43: 0 | AN43: 0 | AR43: 0 | AS43: 0 | AZ43: 0 | BA43: 0 | BE43: 0 | BH43: =AZ43-BF43 -> 0 | BI43: =BE43-BG43 -> 0 | BK43: 0 | BM43: 0 | BN43: 0 | BO43: 0
A44: 14 | C44: Other Regulatory Assets - Sub-Account - Deferred IFRS Transition Costs | D44: 1508 | E44: 0 | F44: 441817.34 | I44: 441817.34 | J44: 0 | K44: 131.72 | N44: 131.72 | O44: 441817.34 | P44: 325096.09 | S44: 766913.43 | T44: 131.72 | U44: 5147.15 | X44: 5278.87 | Y44: 766913.43 | Z44: =131688.32+5199.48 -> 136887.8 | AC44: 903801.23 | AD44: 5278.87 | AE44: 12071.59 | AH44: 17350.46 | AI44: 903801.23 | AJ44: =9500+3088.8 -> 12588.8 | AM44: 916390.03 | AN44: 17350.46 | AO44: 13350.78 | AR44: 30701.24 | AS44: 916390.03 | AZ44: 916390.03 | BA44: 30701.24 | BB44: 13470.96 | BE44: 44172.2 | BH44: 916390.03 | BI44: 44172.2 | BK44: 13470.93344 | BM44: 974033.1634 | BN44: =960568.46-6 -> 960562.46 | BO44: 0.2299999999
A45: 15 | C45: Other Regulatory Assets - Sub-Account - Incremental Capital Charges | D45: 1508 | E45: 0 | J45: 0 | O45: 0 | S45: =O45+P45-Q45+R45 -> 0 | T45: =N45 -> 0 | X45: =T45+U45-V45+W45 -> 0 | Y45: =S45 -> 0 | AC45: 0 | AD45: 0 | AH45: =AD45+AE45-AF45+AG45 -> 0 | AI45: 0 | AM45: 0 | AN45: 0 | AR45: 0 | AS45: 0 | AZ45: 0 | BA45: 0 | BE45: 0 | BH45: 0 | BI45: 0 | BK45: 0 | BM45: 0 | BO45: 0
A46: 16 | C46: Other Regulatory Assets - Sub-Account - Financial Assistance Payment and Recovery Variance - Ontario Clean Energy Benefit Act8 | D46: 1508 | E46: 0 | J46: 0 | AC46: 0 | AD46: 0 | AH46: =AD46+AE46-AF46+AG46 -> 0 | AI46: 0 | AM46: 0 | AN46: 0 | AR46: 0 | AS46: 0 | AZ46: =AS46+AT46-AU46+SUM(AV46:AY46) -> 0 | BA46: =AR46 -> 0 | BE46: 0 | BH46: 0 | BI46: 0 | BK46: 0 | BM46: 0 | BO46: 0
A47: 17 | C47: Other Regulatory Assets - Sub-Account - Financial Assistance Payment and Recovery Carrying Charges | D47: 1508 | E47: 0 | J47: 0 | AC47: 0 | AD47: 0 | AH47: 0 | AI47: 0 | AM47: 0 | AN47: 0 | AR47: 0 | AS47: 0 | AZ47: =AS47+AT47-AU47+SUM(AV47:AY47) -> 0 | BA47: =AR47 -> 0 | BE47: 0 | BH47: 0 | BI47: 0 | BK47: 0 | BM47: 0 | BO47: 0
A48: 18 | C48: Other Regulatory Assets - Sub-Account - Non-Regulatory Account | D48: 1508 | E48: 0 | J48: 0 | Z48: =-1006849.97+2308987+419698.04 -> 1721835.07 | AC48: 1721835.07 | AD48: 0 | AE48: =86609+30599.71+9158.71 -> 126367.42 | AH48: 126367.42 | AI48: 1721835.07 | AJ48: =-1557774.86-448041.03 -> -2005815.89 | AM48: -283980.82 | AN48: 126367.42 | AO48: =3170.95+8681.63 -> 11852.58 | AR48: 138220 | AS48: -283980.82 | AT48: 283981 | AZ48: =AS48+AT48-AU48+SUM(AV48:AY48) -> 0.1799999999 | BA48: =AR48 -> 138220 | BB48: =-138220 -> -138220 | BE48: -2.910383046e-11 | BH48: =AZ48-BF48 -> 0.1799999999 | BI48: =BE48-BG48 -> -2.910383046e-11 | BK48: 0 | BM48: 0 | BN48: 6 | BO48: 5.82
A49: 19 | C49: Other Regulatory Assets - Sub-Account - Other 4 | D49: 1508 | E49: -131867.96 | I49: -131867.96 | J49: 1 | N49: 1 | O49: -131867.96 | S49: -131867.96 | T49: 1 | X49: 1 | Y49: -131867.96 | Z49: 253531 | AA49: 121663 | AC49: 0.04000000001 | AD49: 1 | AE49: -252031 | AF49: =-(252030) -> -252030 | AH49: 0 | AI49: =AC49 -> 0.04000000001 | AM49: 0.04000000001 | AN49: 0 | AR49: =AN49+AO49-AP49+AQ49 -> 0 | AS49: 0.04000000001 | AZ49: =AS49+AT49-AU49+SUM(AV49:AY49) -> 0.04000000001 | BA49: =AR49 -> 0 | BE49: 0 | BH49: 0.04000000001 | BI49: 0 | BK49: 0.0005880000001 | BM49: =SUM(BH49:BL49) -> 0.04058800001 | BO49: =BN49-SUM(AZ49,BE49) -> -0.04000000001
A50: 20 | C50: Retail Cost Variance Account - Retail | D50: 1518 | E50: =260093.65-205328 -> 54765.65 | F50: 13502.74 | I50: 68268.39 | J50: 42705.24 | K50: 667.41 | N50: 43372.65 | O50: 68268.39 | P50: =20660.34 -> 20660.34 | S50: 88928.73 | T50: 43372.65 | U50: 610.9 | X50: 43983.55 | Y50: 88928.73 | Z50: 52544.64 | AA50: 65359.45 | AC50: =Y50+Z50-AA50+SUM(AB50:AB50) -> 76113.92 | AD50: 43983.55 | AE50: 3414.49 | AF50: 46663.55 | AH50: 734.49 | AI50: 76113.92 | AJ50: 14064.58 | AM50: 90178.5 | AN50: 734.49 | AO50: 1382.13 | AR50: 2116.62 | AS50: 90178.5 | AT50: 6747.95 | AZ50: 96926.45 | BA50: 2116.62 | BB50: 1367.31 | BE50: 3483.93 | BH50: 96926.45 | BI50: 3483.93 | BK50: 1424.818815 | BM50: 101835.1988 | BN50: 100410.19 | BO50: -0.19
A51: 21 | C51: Misc. Deferred Debits | D51: 1525 | E51: 0 | I51: 0 | J51: 0 | N51: 0 | O51: 0 | S51: 0 | T51: 0 | X51: 0 | Y51: 0 | AC51: 0 | AD51: 0 | AH51: 0 | AI51: 0 | AM51: 0 | AN51: 0 | AR51: 0 | AS51: 0 | AZ51: 0 | BA51: 0 | BE51: 0 | BH51: 0 | BI51: 0 | BK51: 0 | BM51: 0 | BN51: 0 | BO51: 0
A52: 22 | C52: Renewable Generation Connection Capital Deferral Account | D52: 1531 | I52: 0 | J52: 0 | N52: 0 | S52: 0 | T52: 0 | X52: 0 | Y52: 0 | Z52: 572061.98 | AC52: 572061.98 | AD52: 0 | AE52: 11950.53 | AH52: 11950.53 | AI52: 572061.98 | AJ52: -23975.67712 | AM52: =AI52+AJ52-AK52+SUM(AL52:AL52) -> 548086.3029 | AN52: 11950.53 | AO52: 8247.77 | AR52: 20198.3 | AS52: 548086.3029 | AT52: -548086.2971 | AZ52: 0.005751327728 | BA52: 20198.3 | BB52: -20198.2975 | BE52: 0.002497399313 | BH52: 0.005751327728 | BI52: 0.002497399313 | BK52: 8.45445176e-05 | BM52: 0.008333271559 | BN52: 0 | BO52: =BN52-SUM(AZ52,BE52) -> -0.008248727041
A53: 23 | C53: Renewable Generation Connection OM&A Deferral Account | D53: 1532 | I53: 0 | J53: 0 | N53: 0 | S53: 0 | T53: 0 | X53: 0 | Y53: 0 | Z53: 43557.93 | AC53: 43557.93 | AD53: 0 | AE53: 498.51 | AH53: 498.51 | AI53: 43557.93 | AJ53: 28035.67712 | AM53: 71593.60712 | AN53: 498.51 | AO53: 829.19 | AR53: 1327.7 | AS53: 71593.60712 | AT53: =132924.11-AS53 -> 61330.50288 | AZ53: 132924.11 | BA53: 1327.7 | BB53: =1074.62-BA53 -> -253.08 | BE53: 1074.62 | BH53: 132924.11 | BI53: 1074.62 | BK53: 1953.984417 | BM53: 135952.7144 | BN53: 133998.73 | BO53: 0
A54: 24 | C54: Renewable Generation Connection Funding Adder Deferral Account | D54: 1533 | I54: 0 | J54: 0 | N54: 0 | S54: 0 | T54: 0 | X54: 0 | Y54: 0 | Z54: -199733.18 | AC54: -199733.18 | AD54: 0 | AE54: -1106.055207 | AH54: -1106.055207 | AI54: -199733.18 | AJ54: -201041.67 | AM54: -400774.85 | AN54: -1106.055207 | AO54: -4291.690909 | AR54: -5397.746116 | AS54: -400774.85 | AT54: -198742.69 | AZ54: -599517.54 | BA54: -5397.746116 | BB54: -7221.547786 | BE54: -12619.2939 | BH54: -599517.54 | BI54: -12619.2939 | BK54: -8812.907838 | BM54: -620949.7417 | BN54: -612136.83 | BO54: 0.003902250086
A55: 25 | C55: Smart Grid Capital Deferral Account | D55: 1534 | I55: 0 | J55: 0 | N55: 0 | P55: 624313.46 | S55: 624313.46 | T55: 0 | U55: 3584.41 | X55: 3584.41 | Y55: 624313.46 | Z55: -32509.2 | AC55: 591804.26 | AD55: 3584.41 | AE55: 8817.91 | AH55: 12402.32 | AI55: 591804.26 | AJ55: -32509.2 | AM55: 559295.06 | AN55: 12402.32 | AO55: 8480.49 | AR55: 20882.81 | AS55: 559295.06 | AT55: =17008.51-32679.28 -> -15670.77 | AZ55: 543624.29 | BA55: 20882.81 | BB55: 8116.06 | BE55: 28998.87 | BH55: 543624.29 | BI55: 28998.87 | BK55: 7991.277063 | BM55: 580614.4371 | BN55: 572623.15 | BO55: -0.01000000001
A56: 26 | C56: Smart Grid OM&A Deferral Account | D56: 1535 | I56: 0 | J56: 0 | N56: 0 | P56: 16254.6 | S56: 16254.6 | T56: 0 | U56: 87.33 | X56: 87.33 | Y56: 16254.6 | Z56: 32509.2 | AC56: 48763.8 | AD56: 87.33 | AE56: 454.32 | AH56: 541.65 | AI56: 48763.8 | AJ56: 32509.2 | AM56: 81273 | AN56: 541.65 | AO56: 935.86 | AR56: 1477.51 | AS56: 81273 | AT56: 32679.28 | AZ56: 113952.28 | BA56: 1477.51 | BB56: 1414.89 | BE56: 2892.4 | BH56: 113952.28 | BI56: 2892.4 | BK56: 1675.098516 | BM56: 118519.7785 | BN56: 116844.68 | BO56: 0
A57: 27 | C57: Smart Grid Funding Adder Deferral Account | D57: 1536 | I57: 0 | J57: 0 | N57: 0 | S57: 0 | T57: 0 | X57: 0 | Y57: 0 | AC57: 0 | AD57: 0 | AH57: 0 | AI57: 0 | AM57: 0 | AN57: 0 | AR57: 0 | AS57: 0 | AZ57: 0 | BA57: 0 | BE57: 0 | BH57: 0 | BI57: 0 | BK57: 0 | BM57: 0 | BN57: 0 | BO57: 0
A58: 28 | C58: Retail Cost Variance Account - STR | D58: 1548 | E58: =49931.72-49064 -> 867.72 | F58: =241.5 -> 241.5 | I58: 1109.22 | J58: 8973.13 | K58: 16.33 | N58: 8989.46 | O58: =I58 -> 1109.22 | P58: =480.25 -> 480.25 | S58: 1589.47 | T58: 8989.46 | U58: -42.45 | X58: 8947.01 | Y58: =S58 -> 1589.47 | Z58: 4088.44 | AA58: 1098.16 | AC58: 4579.75 | AD58: 8947.01 | AE58: =-8962.55+9006.84 -> 44.29 | AF58: 9006.84 | AH58: -15.54 | AI58: 4579.75 | AJ58: =1579.5 -> 1579.5 | AM58: 6159.25 | AN58: -15.54 | AO58: 94.75 | AR58: 79.21 | AS58: 6159.25 | AT58: =372.75 -> 372.75 | AZ58: 6532 | BA58: 79.21 | BB58: 93.21 | BE58: 172.42 | BH58: 6532 | BI58: 172.42 | BK58: 96.0204 | BM58: 6800.4404 | BN58: 6704.42 | BO58: 0
A59: 29 | C59: Board-Approved CDM Variance Account | D59: 1567 | S59: =O59+P59-Q59+SUM(R59:R59) -> 0 | T59: 0 | X59: =T59+U59-V59+W59 -> 0 | Y59: 0 | AC59: 0 | AD59: 0 | AH59: =AD59+AE59-AF59+AG59 -> 0 | AI59: 0 | AM59: 0 | AN59: 0 | AR59: =AN59+AO59-AP59+AQ59 -> 0 | AS59: 0 | AZ59: =AS59+AT59-AU59+SUM(AV59:AY59) -> 0 | BA59: =AR59 -> 0 | BE59: =BA59+BB59-BC59+BD59 -> 0 | BH59: 0 | BI59: 0 | BK59: 0 | BM59: 0 | BN59: 0 | BO59: 0
A60: 30 | C60: Extra-Ordinary Event Costs | D60: 1572 | E60: 0 | I60: 0 | J60: 0 | N60: 0 | O60: =I60 -> 0 | S60: 0 | T60: =N60 -> 0 | X60: 0 | Y60: 0 | AC60: 0 | AD60: 0 | AH60: 0 | AI60: =AC60 -> 0 | AM60: 0 | AN60: 0 | AR60: =AN60+AO60-AP60+AQ60 -> 0 | AS60: =AM60 -> 0 | AZ60: =AS60+AT60-AU60+SUM(AV60:AY60) -> 0 | BA60: =AR60 -> 0 | BE60: =BA60+BB60-BC60+BD60 -> 0 | BH60: 0 | BI60: 0 | BK60: 0 | BM60: 0 | BN60: 0 | BO60: 0
A61: 31 | C61: Deferred Rate Impact Amounts | D61: 1574 | E61: 0 | I61: 0 | J61: 0 | N61: 0 | O61: =I61 -> 0 | S61: 0 | T61: =N61 -> 0 | X61: 0 | Y61: 0 | AC61: 0 | AD61: 0 | AH61: 0 | AI61: =AC61 -> 0 | AM61: 0 | AN61: 0 | AR61: =AN61+AO61-AP61+AQ61 -> 0 | AS61: =AM61 -> 0 | AZ61: 0 | BA61: 0 | BE61: =BA61+BB61-BC61+BD61 -> 0 | BH61: 0 | BI61: 0 | BK61: 0 | BM61: 0 | BN61: 0 | BO61: 0
A62: 32 | C62: RSVA - One-time | D62: 1582 | E62: =2331596.93-1346124.45 -> 985472.48 | I62: 985472.48 | J62: 360515.69 | K62: 11209.74 | N62: 371725.43 | O62: =I62 -> 985472.48 | S62: 985472.48 | T62: =N62 -> 371725.43 | U62: 7859.1 | X62: 379584.53 | Y62: 985472.48 | Z62: 59714.38 | AA62: 1045186.86 | AC62: 2.328306437e-10 | AD62: 379584.53 | AE62: =-379584.53+317780.14 -> -61804.39 | AF62: 317780.14 | AH62: -5.820766091e-11 | AI62: =AC62 -> 2.328306437e-10 | AM62: 2.328306437e-10 | AN62: -5.820766091e-11 | AR62: =AN62+AO62-AP62+AQ62 -> -5.820766091e-11 | AS62: =AM62 -> 2.328306437e-10 | AZ62: 2.328306437e-10 | BA62: -5.820766091e-11 | BE62: =BA62+BB62-BC62+BD62 -> -5.820766091e-11 | BH62: 2.328306437e-10 | BI62: -5.820766091e-11 | BK62: 3.422610462e-12 | BM62: 1.780455932e-10 | BN62: 0 | BO62: =BN62-SUM(AZ62,BE62) -> -1.746229827e-10
A63: 33 | C63: Other Deferred Credits | D63: 2425 | E63: 0 | I63: 0 | J63: 0 | N63: 0 | O63: =I63 -> 0 | S63: 0 | T63: =N63 -> 0 | X63: 0 | Y63: 0 | AC63: 0 | AD63: 0 | AH63: 0 | AI63: =AC63 -> 0 | AM63: 0 | AN63: 0 | AR63: =AN63+AO63-AP63+AQ63 -> 0 | AS63: =AM63 -> 0 | AZ63: 0 | BA63: 0 | BE63: =BA63+BB63-BC63+BD63 -> 0 | BH63: 0 | BI63: 0 | BK63: 0 | BM63: 0 | BN63: 0 | BO63: 0
C65: Group 2 Sub-Total | E65: =SUM(E42:E63) -> 992508.07 | F65: 455561.58 | G65: 0 | H65: 0 | I65: 1448069.65 | J65: 536952.69 | K65: 11472.42 | L65: =SUM(L42:L63) -> 0 | M65: =SUM(M42:M63) -> 0 | N65: 548425.11 | O65: 1448069.65 | P65: 986804.74 | Q65: 0 | R65: 0 | S65: 2434874.39 | T65: 548425.11 | U65: 16876.92 | V65: 0 | W65: 0 | X65: 565302.03 | Y65: =SUM(Y42:Y63) -> 2434874.39 | Z65: 2644488.06 | AA65: 1316577.65 | AB65: 0 | AC65: 3762784.8 | AD65: 565302.03 | AE65: -151322.3852 | AF65: 245255.86 | AG65: 0 | AH65: 168723.7848 | AI65: =SUM(AI42:AI63) -> 3762784.8 | AJ65: -2174564.68 | AK65: 0 | AL65: 0 | AM65: 1588220.12 | AN65: 168723.7848 | AO65: 40881.85909 | AP65: 0 | AQ65: 0 | AR65: 209605.6439 | AS65: =SUM(AS42:AS63) -> 1588220.12 | AT65: -377388.2742 | AU65: 0 | AV65: 0 | AW65: 0 | AX65: 0 | AY65: 0 | AZ65: 1210831.846 | BA65: 209605.6439 | BB65: -141430.4953 | BC65: 0 | BD65: 0 | BE65: 68175.1486 | BF65: =SUM(BF42:BF63) -> 0 | BG65: 0 | BH65: =SUM(BH42:BH63) -> 1210831.846 | BI65: 68175.1486 | BJ65: 0 | BK65: 17799.22549 | BL65: 0 | BM65: =SUM(BH65:BL65) -> 1296806.22 | BN65: 1279012.8 | BO65: =BN65-SUM(AZ65,BE65) -> 5.805653523
A67: 34 | C67: Deferred Payments in Lieu of Taxes | D67: 1562 | E67: =39040000-39099714-6081885.54 -> -6141599.54 | F67: 5297214 | I67: =E67+F67-G67+H67 -> -844385.54 | J67: -1825574.2 | K67: -20420.01 | N67: =J67+K67-L67+M67 -> -1845994.21 | O67: =I67 -> -844385.54 | S67: =O67+P67-Q67+R67 -> -844385.54 | T67: =N67 -> -1845994.21 | U67: -6733.98 | X67: =T67+U67-V67+W67 -> -1852728.19 | Y67: =S67 -> -844385.54 | Z67: -2767795.23 | AC67: =Y67+Z67-AA67+SUM(AB67:AB67) -> -3612180.77 | AD67: =X67 -> -1852728.19 | AE67: 1789479.85 | AH67: =AD67+AE67-AF67+AG67 -> -63248.34 | AI67: =AC67 -> -3612180.77 | AK67: -3612180.77 | AM67: =AI67+AJ67-AK67+SUM(AL67:AL67) -> 3.259629011e-09 | AN67: =AH67 -> -63248.34 | AP67: -63248.34 | AR67: =AN67+AO67-AP67+AQ67 -> 1.455191523e-10 | AS67: =AM67 -> 3.259629011e-09 | AZ67: =AS67+AT67-AU67+SUM(AV67:AY67) -> 3.259629011e-09 | BA67: =AR67 -> 1.455191523e-10 | BE67: =BA67+BB67-BC67+BD67 -> 1.455191523e-10 | BH67: =AZ67-BF67 -> 3.259629011e-09 | BI67: =BE67-BG67 -> 1.455191523e-10 | BK67: =BH67*1.47% -> 4.791654646e-11 | BM67: =SUM(BH67:BL67) -> 3.45306471e-09 | BN67: 0 | BO67: =BN67-SUM(AZ67,BE67) -> -3.405148163e-09
A68: 35 | C68: PILs and Tax Variance for 2006 and Subsequent Years (excludes sub-account and contra account below) | D68: 1592 | E68: =-309872-16320-232453 -> -558645 | I68: =E68+F68-G68+H68 -> -558645 | J68: -37668.23 | K68: -6354.63 | N68: =J68+K68-L68+M68 -> -44022.86 | O68: =I68 -> -558645 | S68: =O68+P68-Q68+R68 -> -558645 | T68: =N68 -> -44022.86 | U68: -4458.05 | X68: =T68+U68-V68+W68 -> -48480.91 | Y68: =S68 -> -558645 | AA68: -558645 | AC68: =Y68+Z68-AA68+SUM(AB68:AB68) -> 0 | AD68: =X68 -> -48480.91 | AE68: =45559.15-47107 -> -1547.85 | AF68: -47107 | AH68: =AD68+AE68-AF68+AG68 -> -2921.76 | AI68: =AC68 -> 0 | AM68: =AI68+AJ68-AK68+SUM(AL68:AL68) -> 0 | AN68: =AH68 -> -2921.76 | AO68: =2921.76-3344.74+422.98+2921.76 -> 2921.76 | AR68: =AN68+AO68-AP68+AQ68 -> -1.364242053e-12 | AS68: =AM68 -> 0 | AZ68: =AS68+AT68-AU68+SUM(AV68:AY68) -> 0 | BA68: =AR68 -> -1.364242053e-12 | BB68: =-419.4+419.4 -> 0 | BE68: =BA68+BB68-BC68+BD68 -> -1.364242053e-12 | BH68: =AZ68-BF68 -> 0 | BI68: =BE68-BG68 -> -1.364242053e-12 | BK68: =BH68*1.47% -> 0 | BM68: =SUM(BH68:BL68) -> -1.364242053e-12 | BN68: 0 | BO68: =BN68-SUM(AZ68,BE68) -> 1.364242053e-12
A69: 36 | C69: PILs and Tax Variance for 2006 and Subsequent Years - Sub-Account HST/OVAT Input Tax Credits (ITCs) | D69: 1592 | E69: 0 | I69: =E69+F69-G69+H69 -> 0 | J69: 0 | N69: =J69+K69-L69+M69 -> 0 | O69: =I69 -> 0 | P69: =-28532.24 -> -28532.24 | S69: =O69+P69-Q69+R69 -> -28532.24 | T69: =N69 -> 0 | U69: =+P69*0.01 -> -285.3224 | X69: =T69+U69-V69+W69 -> -285.3224 | Y69: =S69 -> -28532.24 | AC69: =Y69+Z69-AA69+SUM(AB69:AB69) -> -28532.24 | AH69: =AD69+AE69-AF69+AG69 -> 0 | AI69: =AC69 -> -28532.24 | AM69: =AI69+AJ69-AK69+SUM(AL69:AL69) -> -28532.24 | AN69: =AH69 -> 0 | AO69: =-2921.76-422.98 -> -3344.74 | AR69: =AN69+AO69-AP69+AQ69 -> -3344.74 | AS69: =AM69 -> -28532.24 | AZ69: =AS69+AT69-AU69+SUM(AV69:AY69) -> -28532.24 | BA69: =AR69 -> -3344.74 | BB69: -419.4 | BE69: =BA69+BB69-BC69+BD69 -> -3764.14 | BH69: -28532.24 | BI69: -3764.14 | BK69: =BH69*1.47% -> -419.423928 | BM69: =SUM(BH69:BL69) -> -32715.80393 | BN69: -32296.38 | BO69: =BN69-SUM(AZ69,BE69) -> 0
C71: Total of Group 1 and Group 2 Accounts (including 1562 and 1592) | E71: =+E65+E37+E67+E68+E69 -> -18792563.51 | F71: 9131252.22 | G71: 0 | H71: 0 | I71: -9661311.29 | J71: =+J65+J37+J67+J68+J69 -> -394449.28 | K71: =+K65+K37+K67+K68+K69 -> -81601 | L71: 0 | M71: 0 | N71: -476050.28 | O71: -9661311.29 | P71: 1690819.82 | Q71: 0 | R71: 0 | S71: -7970491.47 | T71: -476050.28 | U71: -82296.6724 | V71: 0 | W71: 0 | X71: -558346.9524 | Y71: -7970491.47 | Z71: =+Z65+Z37+Z67+Z68+Z69 -> 5882327.03 | AA71: =+AA65+AA37+AA67+AA68+AA69 -> 0.03000000014 | AB71: 0 | AC71: -2088164.47 | AD71: -558061.63 | AE71: 1352481.615 | AF71: -0.06 | AG71: 0 | AH71: 794420.0448 | AI71: -2088164.47 | AJ71: -7789249.45 | AK71: -3513885.77 | AL71: 0 | AM71: =+AM65+AM37+AM67+AM68+AM69 -> -6363528.15 | AN71: 794420.0448 | AO71: -924216.0109 | AP71: -63248.34 | AQ71: 0 | AR71: -66547.62612 | AS71: -6363528.15 | AT71: -153430.4642 | AU71: -7923216.03 | AV71: 0 | AW71: 0 | AX71: =+AX65+AX37+AX67+AX68+AX69 -> 0 | AY71: 0 | AZ71: 1406257.416 | BA71: -66547.62612 | BB71: -258830.1453 | BC71: -389280.53 | BD71: 0 | BE71: 63902.7586 | BF71: 0 | BG71: 0 | BH71: 1406257.416 | BI71: =+BI65+BI37+BI67+BI68+BI69 -> 63902.7586 | BJ71: =+BJ65+BJ37+BJ67+BJ68+BJ69 -> 0 | BK71: 20671.98137 | BL71: 0 | BM71: =+BM65+BM37+BM67+BM68+BM69 -> 1490832.156 | BN71: 1470165.98 | BO71: =BN71-SUM(AZ71,BE71) -> 5.805653518
A74: 37 | C74: LRAM Variance Account | D74: 1568 | AC74: =Y74+Z74-AA74+SUM(AB74:AB74) -> 0 | AH74: =AD74+AE74-AF74+AG74 -> 0 | AI74: =AC74 -> 0 | AJ74: =62131+294042+6422-100916-35285+2921-1364 -> 227951 | AM74: =AI74+AJ74-AK74+SUM(AL74:AL74) -> 227951 | AN74: =AH74 -> 0 | AO74: 1834.34 | AR74: =AN74+AO74-AP74+AQ74 -> 1834.34 | AS74: =AM74 -> 227951 | AT74: =105786.72-296214.88+127809.61+147583.74-9515.52+1879.01-691.49 -> 76637.19 | AZ74: =AS74+AT74-AU74+SUM(AV74:AY74) -> 304588.19 | BA74: =AR74 -> 1834.34 | BB74: 808.39 | BE74: =BA74+BB74-BC74+BD74 -> 2642.73 | BH74: =AZ74-BF74 -> 304588.19 | BI74: =BE74-BG74 -> 2642.73 | BJ74: =534992-BI74-BH74-BK74 -> 221492.08 | BK74: 6269 | BM74: =SUM(BH74:BL74) -> 534992 | BN74: 307230.92 | BO74: =BN74-SUM(AZ74,BE74) -> 0
C77: Total including Account 1568 | E77: =E71+E74 -> -18792563.51 | F77: 9131252.22 | G77: 0 | H77: 0 | I77: -9661311.29 | J77: -394449.28 | K77: -81601 | L77: 0 | M77: 0 | N77: -476050.28 | O77: -9661311.29 | P77: 1690819.82 | Q77: 0 | R77: 0 | S77: -7970491.47 | T77: -476050.28 | U77: -82296.6724 | V77: 0 | W77: 0 | X77: -558346.9524 | Y77: -7970491.47 | Z77: 5882327.03 | AA77: 0.03000000014 | AB77: 0 | AC77: -2088164.47 | AD77: -558061.63 | AE77: 1352481.615 | AF77: -0.06 | AG77: 0 | AH77: 794420.0448 | AI77: -2088164.47 | AJ77: -7561298.45 | AK77: -3513885.77 | AL77: 0 | AM77: =AM71+AM74 -> -6135577.15 | AN77: 794420.0448 | AO77: -922381.6709 | AP77: -63248.34 | AQ77: 0 | AR77: -64713.28612 | AS77: -6135577.15 | AT77: -76793.27425 | AU77: -7923216.03 | AV77: 0 | AW77: 0 | AX77: 0 | AY77: 0 | AZ77: 1710845.606 | BA77: -64713.28612 | BB77: -258021.7553 | BC77: -389280.53 | BD77: 0 | BE77: 66545.4886 | BF77: 0 | BG77: 0 | BH77: =BH71+BH74 -> 1710845.606 | BI77: 66545.4886 | BJ77: 221492.08 | BK77: 26940.98137 | BL77: 0 | BM77: =BM71+BM74 -> 2025824.156 | BN77: 1777396.9 | BO77: =BN77-SUM(AZ77,BE77) -> 5.805653518
A79: 38 | C79: Smart Meter Capital and Recovery Offset Variance - Sub-Account - Capital10 | D79: 1555 | E79: 9583171.69 | F79: 7693558.56 | I79: =E79+F79-G79+H79 -> 17276730.25 | J79: 266637.98 | K79: 132276.13 | N79: =J79+K79-L79+M79 -> 398914.11 | O79: =I79 -> 17276730.25 | P79: 2125932.09 | S79: =O79+P79-Q79+R79 -> 19402662.34 | T79: =N79 -> 398914.11 | U79: 106648.05 | X79: =T79+U79-V79+W79 -> 505562.16 | Y79: =S79 -> 19402662.34 | Z79: 3344215.29 | AA79: 17276730 | AC79: =Y79+Z79-AA79+SUM(AB79:AB79) -> 5470147.63 | AD79: =X79 -> 505562.16 | AE79: 25639.95 | AF79: 398914.11 | AG79: -91513.21669 | AH79: =AD79+AE79-AF79+AG79 -> 40774.78331 | AI79: =AC79 -> 5470147.63 | AJ79: -738808.34 | AM79: =AI79+AJ79-AK79+SUM(AL79:AL79) -> 4731339.29 | AN79: =AH79 -> 40774.78331 | AO79: 22257.15 | AR79: =AN79+AO79-AP79+AQ79 -> 63031.93331 | AS79: =AM79 -> 4731339.29 | AT79: -4731339.29 | AZ79: =AS79+AT79-AU79+SUM(AV79:AY79) -> -9.313225746e-10 | BA79: =AR79 -> 63031.93331 | BB79: -63031.93331 | BE79: =BA79+BB79-BC79+BD79 -> 0 | BH79: =AZ79-BF79 -> -9.313225746e-10 | BI79: =BE79-BG79 -> 0 | BK79: =BH79*1.47% -> -1.369044185e-11 | BM79: =SUM(BH79:BL79) -> -9.450130165e-10 | BN79: 0 | BO79: =BN79-SUM(AZ79,BE79) -> 9.313225746e-10
A80: 39 | C80: Smart Meter Capital and Recovery Offset Variance - Sub-Account - Recoveries10 | D80: 1555 | E80: -1732661.96 | F80: -1401576.33 | I80: =E80+F80-G80+H80 -> -3134238.29 | J80: 0 | N80: =J80+K80-L80+M80 -> 0 | O80: =I80 -> -3134238.29 | P80: -1576766.29 | S80: =O80+P80-Q80+R80 -> -4711004.58 | T80: =N80 -> 0 | X80: =T80+U80-V80+W80 -> 0 | Y80: =S80 -> -4711004.58 | Z80: -2159707 | AA80: -3134238.29 | AB80: 54523.99763 | AC80: =Y80+Z80-AA80+SUM(AB80:AB80) -> -3681949.292 | AD80: =X80 -> 0 | AH80: =AD80+AE80-AF80+AG80 -> 0 | AI80: =AC80 -> -3681949.292 | AJ80: -108306 | AM80: =AI80+AJ80-AK80+SUM(AL80:AL80) -> -3790255.292 | AN80: =AH80 -> 0 | AR80: =AN80+AO80-AP80+AQ80 -> 0 | AS80: =AM80 -> -3790255.292 | AT80: 3790255.292 | AZ80: =AS80+AT80-AU80+SUM(AV80:AY80) -> -4.656612873e-10 | BA80: =AR80 -> 0 | BE80: =BA80+BB80-BC80+BD80 -> 0 | BH80: =AZ80-BF80 -> -4.656612873e-10 | BI80: =BE80-BG80 -> 0 | BK80: =BH80*1.47% -> -6.845220923e-12 | BM80: =SUM(BH80:BL80) -> -4.725065082e-10 | BN80: 0 | BO80: =BN80-SUM(AZ80,BE80) -> 4.656612873e-10
A81: 40 | C81: Smart Meter Capital and Recovery Offset Variance - Sub-Account - Stranded Meter Costs10 | D81: 1555 | E81: 1345568.24 | F81: 995072 | I81: =E81+F81-G81+H81 -> 2340640.24 | J81: 0 | N81: =J81+K81-L81+M81 -> 0 | O81: =I81 -> 2340640.24 | P81: 86052.91 | S81: =O81+P81-Q81+R81 -> 2426693.15 | T81: =N81 -> 0 | X81: =T81+U81-V81+W81 -> 0 | Y81: =S81 -> 2426693.15 | Z81: -736180.06 | AC81: =Y81+Z81-AA81+SUM(AB81:AB81) -> 1690513.09 | AD81: =X81 -> 0 | AE81: 32333.01 | AH81: =AD81+AE81-AF81+AG81 -> 32333.01 | AI81: =AC81 -> 1690513.09 | AJ81: -1151488.52 | AM81: =AI81+AJ81-AK81+SUM(AL81:AL81) -> 539024.57 | AN81: =AH81 -> 32333.01 | AO81: 16408.14 | AR81: =AN81+AO81-AP81+AQ81 -> 48741.15 | AS81: =AM81 -> 539024.57 | AT81: =-54567.14-19107.46 -> -73674.6 | AZ81: =AS81+AT81-AU81+SUM(AV81:AY81) -> 465349.97 | BA81: =AR81 -> 48741.15 | BB81: 7605.74 | BE81: =BA81+BB81-BC81+BD81 -> 56346.89 | BH81: 465349.97 | BI81: 56346.89 | BK81: =BH81*1.47% -> 6840.644559 | BM81: =SUM(BH81:BL81) -> 528537.5046 | BN81: =521697 -> 521697 | BO81: =BN81-SUM(AZ81,BE81) -> 0.1399999997
A82: 41 | C82: Smart Meter OM&A Variance10 | D82: 1556 | E82: 638031.87 | F82: 1293921.24 | I82: =E82+F82-G82+H82 -> 1931953.11 | J82: 18237.03 | K82: 13262.72 | N82: =J82+K82-L82+M82 -> 31499.75 | O82: =I82 -> 1931953.11 | P82: 1724978.88 | S82: =O82+P82-Q82+R82 -> 3656931.99 | T82: =N82 -> 31499.75 | U82: 21245.78 | X82: =T82+U82-V82+W82 -> 52745.53 | Y82: =S82 -> 3656931.99 | Z82: 479626.7 | AA82: 1931953.12 | AC82: =Y82+Z82-AA82+SUM(AB82:AB82) -> 2204605.57 | AD82: =X82 -> 52745.53 | AE82: 27610.57 | AF82: 31499.75 | AG82: -14360.85874 | AH82: =AD82+AE82-AF82+AG82 -> 34495.49126 | AI82: =AC82 -> 2204605.57 | AJ82: 683844.9 | AM82: =AI82+AJ82-AK82+SUM(AL82:AL82) -> 2888450.47 | AN82: =AH82 -> 34495.49126 | AO82: 37230.6 | AR82: =AN82+AO82-AP82+AQ82 -> 71726.09126 | AS82: =AM82 -> 2888450.47 | AT82: =-AS82 -> -2888450.47 | AZ82: =AS82+AT82-AU82+SUM(AV82:AY82) -> 0 | BA82: =AR82 -> 71726.09126 | BB82: =-BA82 -> -71726.09126 | BE82: =BA82+BB82-BC82+BD82 -> 0 | BH82: 0 | BI82: 0 | BK82: 0 | BM82: =SUM(BH82:BL82) -> 0 | BO82: =BN82-SUM(AZ82,BE82) -> 0
A84: 42 | C84: IFRS-CGAAP Transition PP&E Amounts Balance + Return Component9 | D84: 1575 | AZ84: =AS84+AT84-AU84+SUM(AV84:AY84) -> 0 | BA84: =AR84 -> 0 | BE84: =BA84+BB84-BC84+BD84 -> 0 | BH84: =AZ84-BF84 -> 0 | BI84: =BE84-BG84 -> 0 | BK84: =BH84*1.47% -> 0 | BM84: =SUM(BH84:BL84) -> 0 | BN84: 0 | BO84: =BN84-SUM(AZ84,BE84) -> 0
A85: 43 | C85: Accounting Changes Under CGAAP Balance + Return Component9 | D85: 1576 | AT85: =-173658.34+1789453.73+1143080.39-74899.44 -> 2683976.34 | AY85: 1786740.281 | AZ85: =AS85+AT85-AU85+SUM(AV85:AY85) -> 4470716.621 | BA85: =AR85 -> 0 | BE85: =BA85+BB85-BC85+BD85 -> 0 | BH85: =AZ85-BF85 -> 4470716.621 | BI85: =BE85-BG85 -> 0 | BJ85: 2151586 | BK85: 0 | BM85: =SUM(BH85:BL85) -> 6622302.621 | BN85: 2683976.34 | BO85: =BN85-SUM(AZ85,BE85) -> -1786740.281
C87: The following is not included in the total claim but are included on a memo basis:
A88: 44 | C88: Deferred PILs Contra Account 5 | D88: 1563 | E88: =-38100000+38159714+6081885.54 -> 6141599.54 | F88: -5297214 | I88: =E88+F88-G88+H88 -> 844385.54 | J88: 1825574.2 | K88: 20420.01 | N88: =J88+K88-L88+M88 -> 1845994.21 | O88: =I88 -> 844385.54 | S88: =O88+P88-Q88+R88 -> 844385.54 | T88: =N88 -> 1845994.21 | U88: 6733.98 | X88: =T88+U88-V88+W88 -> 1852728.19 | Y88: =S88 -> 844385.54 | Z88: 2767795 | AC88: =Y88+Z88-AA88+SUM(AB88:AB88) -> 3612180.54 | AD88: =X88 -> 1852728.19 | AE88: -1789480 | AH88: =AD88+AE88-AF88+AG88 -> 63248.19 | AI88: =AC88 -> 3612180.54 | AK88: 3612181 | AM88: =AI88+AJ88-AK88+SUM(AL88:AL88) -> -0.46 | AN88: =AH88 -> 63248.19 | AP88: 63248.19 | AR88: =AN88+AO88-AP88+AQ88 -> 0 | AS88: =AM88 -> -0.46 | AZ88: =AS88+AT88-AU88+SUM(AV88:AY88) -> -0.46 | BA88: =AR88 -> 0 | BE88: =BA88+BB88-BC88+BD88 -> 0 | BH88: =AZ88-BF88 -> -0.46 | BI88: =BE88-BG88 -> 0 | BK88: =BH88*1.47% -> -0.006761999999 | BM88: =SUM(BH88:BL88) -> -0.466762 | BN88: 0 | BO88: =BN88-SUM(AZ88,BE88) -> 0.46
A89: 45 | C89: PILs and Tax Variance for 2006 and Subsequent Years - Sub-Account HST/OVAT Contra Account | D89: 1592 | E89: 0 | I89: =E89+F89-G89+H89 -> 0 | J89: 0 | N89: =J89+K89-L89+M89 -> 0 | O89: =I89 -> 0 | S89: =O89+P89-Q89+R89 -> 0 | T89: =N89 -> 0 | X89: =T89+U89-V89+W89 -> 0 | Y89: =S89 -> 0 | AC89: =Y89+Z89-AA89+SUM(AB89:AB89) -> 0 | AD89: =X89 -> 0 | AH89: =AD89+AE89-AF89+AG89 -> 0 | AI89: =AC89 -> 0 | AM89: =AI89+AJ89-AK89+SUM(AL89:AL89) -> 0 | AN89: =AH89 -> 0 | AR89: =AN89+AO89-AP89+AQ89 -> 0 | AS89: =AM89 -> 0 | AZ89: =AS89+AT89-AU89+SUM(AV89:AY89) -> 0 | BA89: =AR89 -> 0 | BE89: =BA89+BB89-BC89+BD89 -> 0 | BH89: =AZ89-BF89 -> 0 | BI89: =BE89-BG89 -> 0 | BK89: 0 | BM89: =SUM(BH89:BL89) -> 0 | BN89: 0 | BO89: =BN89-SUM(AZ89,BE89) -> 0
A90: 46 | C90: Disposition and Recovery of Regulatory Balances7 | D90: 1595 | E90: 0 | I90: =E90+F90-G90+H90 -> 0 | J90: 0 | N90: =J90+K90-L90+M90 -> 0 | O90: =I90 -> 0 | S90: =O90+P90-Q90+R90 -> 0 | T90: =N90 -> 0 | X90: =T90+U90-V90+W90 -> 0 | Y90: =S90 -> 0 | AC90: =Y90+Z90-AA90+SUM(AB90:AB90) -> 0 | AD90: =X90 -> 0 | AH90: =AD90+AE90-AF90+AG90 -> 0 | AI90: =AC90 -> 0 | AM90: =AI90+AJ90-AK90+SUM(AL90:AL90) -> 0 | AN90: =AH90 -> 0 | AR90: =AN90+AO90-AP90+AQ90 -> 0 | AS90: 0 | AT90: 22.76 | AU90: =-SUM(AU24:AU35) -> 7923216.03 | AZ90: =AS90+AT90-AU90+SUM(AV90:AY90) -> -7923193.27 | BC90: =-SUM(BC24:BC35) -> 389280.53 | BE90: =BA90+BB90-BC90+BD90 -> -389280.53 | BH90: =AZ90-BF90 -> -7923193.27 | BI90: =BE90-BG90 -> -389280.53 | BK90: 0 | BM90: =SUM(BH90:BL90) -> -8312473.8 | BN90: -8312473.8 | BO90: =BN90-SUM(AZ90,BE90) -> 0
C93: For all Board-Approved dispositions, please ensure that the disposition amount has the same sign (e.g: debit balances are to have a positive figure and credit balance are to have a negative figure) as per the related Board decision.
B94: 1 | C94: Provide supporting statement indicating whether due to denial of costs in 2006 EDR by the Board, 10% transition costs write-off, etc.
B95: 1A | C95: Adjustments Instructed by the Board include deferral/variance account balances moved to Account 1590 as a result of the 2006 EDR and account 1595 during the 2008 EDR and subsequent years as ordered by the Board.
B96: 2 | C96: Please provide explanations for the nature of the adjustments. If the adjustment relates to previously Board Approved disposed balances, please provide amounts for adjustments and include supporting documentations.
B97: 3 | C97: For RSVA accounts only, report the net variance to the account during the year. For all other accounts, record the transactions during the year.
B98: 4 | C98: Please describe "other" components of 1508 and add more component lines if necessary.
B99: 5 | C99: 1563 is a contra-account and is not included in the total but is shown on a memo basis. Account 1562 establishes the obligation to the ratepayer.
B100: 6 | C100: If the LDC’s 2014 rate year begins January 1, 2014, the projected interest is recorded from January 1, 2013 to December 31, 2013 on the December 31, 2012 balance adjusted for the disposed balances approved by the Board in the 2013 rate decision. If the LDC’s 2014 rate year begins May 1, 2014 the projected interest is recorded from January 1, 2013 to April 30, 2014 on the December 31, 2012 balance adjusted for the disposed balances approved by the Board in the 2013 rate decision.
B103: 7 | C103: Include Account 1595 as part of Group 1 accounts (lines 31, 32, 33 and 34) for review and disposition if the recovery (or refund) period has been completed. If the recovery (or refund) period has not been completed, include the
C104: balances in Account 1595 on a memo basis only (line 85).
B105: 8 | C105: As per the January 6, 2011 Letter from the Board, regarding the implementation of the Ontario Clean Energy Benefit:
C106: "By way of exception... The Board does acticipate that licensed distributors that cannot adapt their invoices as of January 1, 2011 will require a variance account for OCEB purposes... The Board expects that any principal
C107: balances in "Sub account Financial Assistance Payment and Recovery Variance - Ontario Clean Energy Benefit Act" will be addressed through the monthly settlement process with the IESO or the host distributor, as applicable.
B108: 9 | C108: The Board requires that disposition of Account 1575 and Account 1576 shall require the use of separate rate riders. In the "Other Adjustments during Q4 2013" column of the continuity schedule, please enter the amounts to be included in the Account 1575 and 1576 rate rider calculation from the applicable Chapter 2 appendices. For Account 1575, please provide the value in cell F39 from the relevant Chapter 2 Appendix (i.e. 2-EA, 2-EB or 2-EC). For Account 1576, please provide the value in cell F39 from the relevant Chapter 2 Appendix (i.e. 2-ED or 2-EE).
B109: 10 | C109: Deferral accounts related to Smart Meter deployment are not to be recovered/refunded through the Deferral and Variance Account rate rider. For details on how to dispose of balances in Smart Meter accounts see the Board's
C110: Guideline: Smart Meter Disposition and Cost Recovery (G-2011-0001)

Sheet 3. Appendix A
A18: Accounts that produced a variance on the 2014 continuity schedule are listed below. Please provide a detailed explanation for each variance below.
C22: Account Descriptions | D22: Account Number | E22: Variance RRR vs. 2013 Balance (Principal + Interest) | F22: Variance Explanation
C25: Group 1 Accounts
C26: LV Variance Account | D26: 1550 | E26: =ROUND('2. 2015 Continuity Schedule'!BO24,0) -> 0
C27: SM Entity Charge Variance | D27: 1551 | E27: =ROUND('2. 2015 Continuity Schedule'!BO25,0) -> 0
C28: RSVA - Wholesale Market Service Charge | D28: 1580 | E28: =ROUND('2. 2015 Continuity Schedule'!BO26,0) -> 0
C29: RSVA - Retail Transmission Network Charge | D29: 1584 | E29: =ROUND('2. 2015 Continuity Schedule'!BO27,0) -> 0
C30: RSVA - Retail Transmission Connection Charge | D30: 1586 | E30: =ROUND('2. 2015 Continuity Schedule'!BO28,0) -> 0
C31: RSVA - Power (excluding Global Adjustment) | D31: 1588 | E31: =ROUND('2. 2015 Continuity Schedule'!BO29,0) -> 0
C32: RSVA - Global Adjustment | D32: 1589 | E32: =ROUND('2. 2015 Continuity Schedule'!BO30,0) -> 0
C33: Recovery of Regulatory Asset Balances | D33: 1590 | E33: =ROUND('2. 2015 Continuity Schedule'!BO31,0) -> 0
C34: Disposition and Recovery/Refund of Regulatory Balances (2009)7 | D34: 1595 | E34: =ROUND('2. 2015 Continuity Schedule'!BO32,0) -> 0
C35: Disposition and Recovery/Refund of Regulatory Balances (2010)7 | D35: 1595 | E35: =ROUND('2. 2015 Continuity Schedule'!BO33,0) -> 0
C36: Disposition and Recovery/Refund of Regulatory Balances (2011)7 | D36: 1595 | E36: =ROUND('2. 2015 Continuity Schedule'!BO34,0) -> 0
C37: Disposition and Recovery/Refund of Regulatory Balances (2012)7 | D37: 1595 | E37: =ROUND('2. 2015 Continuity Schedule'!BO35,0) -> 0
C38: Group 2 Accounts
C39: Other Regulatory Assets - Sub-Account - OEB Cost Assessments | D39: 1508 | E39: =ROUND('2. 2015 Continuity Schedule'!BO42,0) -> 0
C40: Other Regulatory Assets - Sub-Account - Pension Contributions | D40: 1508 | E40: =ROUND('2. 2015 Continuity Schedule'!BO43,0) -> 0
C41: Other Regulatory Assets - Sub-Account - Deferred IFRS Transition Costs | D41: 1508 | E41: =ROUND('2. 2015 Continuity Schedule'!BO44,0) -> 0
C42: Other Regulatory Assets - Sub-Account - Incremental Capital Charges | D42: 1508 | E42: =ROUND('2. 2015 Continuity Schedule'!BO45,0) -> 0
C43: Other Regulatory Assets - Sub-Account - Financial Assistance Payment and Recovery Variance - Ontario Clean Energy Benefit Act8 | D43: 1508 | E43: =ROUND('2. 2015 Continuity Schedule'!BO46,0) -> 0
C44: Other Regulatory Assets - Sub-Account - Financial Assistance Payment and Recovery Carrying Charges | D44: 1508 | E44: =ROUND('2. 2015 Continuity Schedule'!BO47,0) -> 0
C45: Other Regulatory Assets - Sub-Account - Non-Regulatory Account | D45: 1508 | E45: =ROUND('2. 2015 Continuity Schedule'!BO48,0) -> 6 | F45: This is an immaterial rounding error. This sub-account is not used for regulatory purposes.
C46: Other Regulatory Assets - Sub-Account - Other 4 | D46: 1508 | E46: =ROUND('2. 2015 Continuity Schedule'!BO49,0) -> 0
C47: Retail Cost Variance Account - Retail | D47: 1518 | E47: =ROUND('2. 2015 Continuity Schedule'!BO50,0) -> 0
C48: Misc. Deferred Debits | D48: 1525 | E48: =ROUND('2. 2015 Continuity Schedule'!BO51,0) -> 0
C49: Renewable Generation Connection Capital Deferral Account | D49: 1531 | E49: =ROUND('2. 2015 Continuity Schedule'!BO52,0) -> 0
C50: Renewable Generation Connection OM&A Deferral Account | D50: 1532 | E50: =ROUND('2. 2015 Continuity Schedule'!BO53,0) -> 0
C51: Renewable Generation Connection Funding Adder Deferral Account | D51: 1533 | E51: =ROUND('2. 2015 Continuity Schedule'!BO54,0) -> 0
C52: Smart Grid Capital Deferral Account | D52: 1534 | E52: =ROUND('2. 2015 Continuity Schedule'!BO55,0) -> 0
C53: Smart Grid OM&A Deferral Account | D53: 1535 | E53: =ROUND('2. 2015 Continuity Schedule'!BO56,0) -> 0
C54: Smart Grid Funding Adder Deferral Account | D54: 1536 | E54: =ROUND('2. 2015 Continuity Schedule'!BO57,0) -> 0
C55: Retail Cost Variance Account - STR | D55: 1548 | E55: =ROUND('2. 2015 Continuity Schedule'!BO58,0) -> 0
C56: Board-Approved CDM Variance Account | D56: 1567 | E56: =ROUND('2. 2015 Continuity Schedule'!BO59,0) -> 0
C57: Extra-Ordinary Event Costs | D57: 1572 | E57: =ROUND('2. 2015 Continuity Schedule'!BO60,0) -> 0
C58: Deferred Rate Impact Amounts | D58: 1574 | E58: =ROUND('2. 2015 Continuity Schedule'!BO61,0) -> 0
C59: RSVA - One-time | D59: 1582 | E59: =ROUND('2. 2015 Continuity Schedule'!BO62,0) -> 0
C60: Other Deferred Credits | D60: 2425 | E60: =ROUND('2. 2015 Continuity Schedule'!BO63,0) -> 0
C61: Deferred Payments in Lieu of Taxes | D61: 1562 | E61: =ROUND('2. 2015 Continuity Schedule'!BO67,0) -> 0
C62: PILs and Tax Variance for 2006 and Subsequent Years (excludes sub-account and contra account below) | D62: 1592 | E62: =ROUND('2. 2015 Continuity Schedule'!BO68,0) -> 0
C63: PILs and Tax Variance for 2006 and Subsequent Years - Sub-Account HST/OVAT Input Tax Credits (ITCs) | D63: 1592 | E63: =ROUND('2. 2015 Continuity Schedule'!BO69,0) -> 0
C64: LRAM Variance Account | D64: 1568 | E64: =ROUND('2. 2015 Continuity Schedule'!BO74,0) -> 0
C65: Smart Meter Capital and Recovery Offset Variance - Sub-Account - Capital10 | D65: 1555 | E65: =ROUND('2. 2015 Continuity Schedule'!BO79,0) -> 0
C66: Smart Meter Capital and Recovery Offset Variance - Sub-Account - Recoveries10 | D66: 1555 | E66: =ROUND('2. 2015 Continuity Schedule'!BO80,0) -> 0
C67: Smart Meter Capital and Recovery Offset Variance - Sub-Account - Stranded Meter Costs10 | D67: 1555 | E67: =ROUND('2. 2015 Continuity Schedule'!BO81,0) -> 0
C68: Smart Meter OM&A Variance10 | D68: 1556 | E68: =ROUND('2. 2015 Continuity Schedule'!BO82,0) -> 0
C69: IFRS-CGAAP Transition PP&E Amounts Balance + Return Component9 | D69: 1575 | E69: =ROUND('2. 2015 Continuity Schedule'!BO84,0) -> 0
C70: Accounting Changes Under CGAAP Balance + Return Component9 | D70: 1576 | E70: =ROUND('2. 2015 Continuity Schedule'!BO85,0) -> -1786740 | F70: This amount is the Return Component calculated on the balance in Account 1576, which is used in the calculation of the rate rider, but not recorded in the general ledger.
C71: Deferred PILs Contra Account 5 | D71: 1563 | E71: =ROUND('2. 2015 Continuity Schedule'!BO88,0) -> 0
C72: PILs and Tax Variance for 2006 and Subsequent Years - Sub-Account HST/OVAT Contra Account | D72: 1592 | E72: =ROUND('2. 2015 Continuity Schedule'!BO89,0) -> 0
C73: Disposition and Recovery of Regulatory Balances7 | D73: 1595 | E73: =ROUND('2. 2015 Continuity Schedule'!BO90,0) -> 0

Sheet 4(A) Billing Determinants_ALL
B16: In the green shaded cells, enter the most recent Board Approved volumetric forecast. If there is a material difference between the latest Board-approved volumetric forecast and the most recent 12-month actual volumetric data, use the most recent 12-month actual data. Do not enter data for the MicroFit class.
B19: Rate Class (Enter Rate Classes in cells below) | C19: Units | D19: # of Customers | E19: Metered kWh | F19: Metered kW | G19: Billed kWh for Non-RPP Customers | H19: Estimated kW for Non-RPP Customers | I19: Distribution Revenue 1 | J19: 1590 Recovery Share Proportion | K19: 1595 Recovery Share Proportion (2009) 2 | L19: 1595 Recovery Share Proportion (2010) 2 | M19: 1595 Recovery Share Proportion (2011) 2 | N19: 1595 Recovery Share Proportion (2012) 2 | O19: 1595 Recovery Share Proportion - Shared Tax Savings 2 | P19: 1568 LRAM Variance Account Class Allocation ($ amounts)
B21: RESIDENTIAL | C21: kWh | D21: 140979.1817 | E21: 1308264983 | G21: 151497085.1 | H21: =IF(ISERROR(F21/E21*G21), 0, F21/E21*G21) -> 0 | I21: 40063726.62 | O21: =+E21/$E$40*'2. 2015 Continuity Schedule'!$BM$35 -> -28963.39369 | P21: 260193.6417
B22: GENERAL SERVICE LESS THAN 50 KW | C22: kWh | D22: 8989.460008 | E22: 354668870.3 | G22: 72458850.2 | H22: =IF(ISERROR(F22/E22*G22), 0, F22/E22*G22) -> 0 | I22: 8209252.308 | O22: =+E22/$E$40*'2. 2015 Continuity Schedule'!$BM$35 -> -7851.936919 | P22: 8928.268117
B23: GENERAL SERVICE 50 TO 699 KW | C23: kW | D23: 1490.72449 | E23: 1064497599 | F23: 2979825.698 | G23: 894284432.5 | H23: 2503351.569 | I23: 10825595.77 | O23: =+E23/$E$40*'2. 2015 Continuity Schedule'!$BM$35 -> -23566.68063 | P23: 223110.2438
B24: GENERAL SERVICE 700 TO 4,999 KW | C24: kW | D24: 114.6164114 | E24: 806154179.9 | F24: 1969146.402 | G24: 806154179.9 | H24: 1969146.402 | I24: 5230340.859 | O24: =+E24/$E$40*'2. 2015 Continuity Schedule'!$BM$35 -> -17847.27191 | P24: 99672.68174
B25: LARGE USE | C25: kW | D25: 6 | E25: 382619513.4 | F25: 719987.0916 | G25: 382619513.4 | H25: 719987.0916 | I25: 2227630.443 | O25: =+E25/$E$40*'2. 2015 Continuity Schedule'!$BM$35 -> -8470.730123 | P25: -60961.41955
B26: UNMETERED SCATTERED LOAD | C26: kWh | D26: 1561.718162 | E26: 5931732.904 | G26: 5329068.841 | H26: 0 | I26: 144511.8098 | O26: =+E26/$E$40*'2. 2015 Continuity Schedule'!$BM$35 -> -131.3213436 | P26: -2833.549389
B27: STREET LIGHTING | C27: kW | D27: 22334.56352 | E27: 33306954.55 | F27: 100671.8914 | G27: 33306954.55 | H27: 100671.8914 | I27: 1663935.93 | O27: =+E27/$E$40*'2. 2015 Continuity Schedule'!$BM$35 -> -737.3754168 | P27: 6882.231548
B28: DISTRIBUTED GENERATION CLASS | C28: kWh | D28: 67.58333333 | E28: 178815.8383 | F28: 0 | G28: 0 | H28: =IF(ISERROR(F28/E28*G28), 0, F28/E28*G28) -> 0 | I28: 46250.97164 | O28: =+E28/$E$40*'2. 2015 Continuity Schedule'!$BM$35 -> -3.958764921
H29: =IF(ISERROR(F29/E29*G29), 0, F29/E29*G29) -> 0
H30: 0
H31: 0
H32: 0
H33: 0
H34: 0
H35: 0
H36: 0
H37: 0
H38: 0
H39: 0
B40: Total | D40: =SUM(D21:D39) -> 175543.8476 | E40: =SUM(E21:E39) -> 3955622649 | F40: =SUM(F21:F39) -> 5769631.083 | G40: 2345650084 | H40: 5293156.954 | I40: 68411244.71 | J40: 0 | K40: 0 | L40: 0 | M40: 0 | N40: 0 | O40: -87572.6688 | P40: 534992.098
N41: Balance as per Sheet 2 | P41: ='2. 2015 Continuity Schedule'!BM74 -> 534992
N42: Variance | P42: =P40-P41 -> 0.09800973511
A44: 1 For Account 1562, the allocation to customer classes should be performed on the basis of the test year distribution revenue allocation to customer classes found in the Applicant’s Cost of Service application that was most recently approved at the time of disposition of the 1562 account balances
A46: 2 Residual Account balance to be allocated to rate classes in proportion to the recovery share as established when rate riders were implemented.

Sheet 4(B). Billing Determinants_GA
B16: In the green shaded cells, enter the most recent Board Approved volumetric forecast. If there is a material difference between the latest Board-approved volumetric forecast and the most recent 12-month actual volumetric data, use the most recent 12-month actual data. Do not enter data for the MicroFit class.
B19: Rate Class (Enter Rate Classes in cells below) | C19: Units | D19: # of Customers | E19: Metered kWh | F19: Metered kW | G19: Billed kWh for Non-RPP Customers | H19: Estimated kW for Non-RPP Customers | I19: Distribution Revenue 1 | J19: 1590 Recovery Share Proportion | K19: 1595 Recovery Share Proportion (2008) 2 | L19: 1595 Recovery Share Proportion (2009) 2 | M19: 1595 Recovery Share Proportion (2010) 2 | N19: 1595 Recovery Share Proportion (2011) 2 | O19: 1568 LRAM Variance Account Class Allocation ($ amounts)
B21: RESIDENTIAL | C21: kWh | D21: 140979.1817 | E21: 1308264983 | G21: 151497085.1 | H21: =IF(ISERROR(F21/E21*G21), 0, F21/E21*G21) -> 0 | I21: 40063726.62
B22: GENERAL SERVICE LESS THAN 50 KW | C22: kWh | D22: 8989.460008 | E22: 354668870.3 | G22: 72458850.2 | H22: =IF(ISERROR(F22/E22*G22), 0, F22/E22*G22) -> 0 | I22: 8209252.308
B23: GENERAL SERVICE 50 TO 699 KW | C23: kW | D23: 1490.72449 | E23: 1064497599 | F23: 2979825.698 | G23: 894284432.5 | H23: 2503351.569 | I23: 10825595.77
B24: GENERAL SERVICE 700 TO 4,999 KW | C24: kW | D24: 110.6164114 | E24: 806154179.9 | F24: 1878171.838 | G24: 806154179.9 | H24: 1878171.838 | I24: 5230340.859
B25: LARGE USE | C25: kW | D25: 1 | E25: 36846259.14 | F25: 68758.76725 | G25: 36846259.14 | H25: 68758.76725 | I25: 2227630.443
B26: UNMETERED SCATTERED LOAD | C26: kWh | D26: 1561.718162 | E26: 5931732.904 | G26: 5329068.841 | H26: 0 | I26: 144511.8098
B27: STREET LIGHTING | C27: kW | D27: 22334.56352 | E27: 33306954.55 | F27: 100671.8914 | G27: 33306954.55 | H27: 100671.8914 | I27: 1663935.93
B28: DISTRIBUTED GENERATION CLASS | C28: kWh | D28: 67.58333333 | E28: 178815.8383 | F28: 0 | H28: =IF(ISERROR(F28/E28*G28), 0, F28/E28*G28) -> 0 | I28: 46250.97164
H29: =IF(ISERROR(F29/E29*G29), 0, F29/E29*G29) -> 0
H30: 0
H31: 0
H32: 0
H33: 0
H34: 0
H35: 0
H36: 0
H37: 0
H38: 0
H39: 0
B40: Total | D40: =SUM(D21:D39) -> 175534.8476 | E40: =SUM(E21:E39) -> 3609849394 | F40: =SUM(F21:F39) -> 5027428.195 | G40: 1999876830 | H40: 4550954.066 | I40: 68411244.71 | J40: 0 | K40: 0 | L40: 0 | M40: 0 | N40: 0 | O40: 0
N41: Balance as per Sheet 2
N42: Variance | O42: =O40-O41 -> 0
A44: 1 For Account 1562, the allocation to customer classes should be performed on the basis of the test year distribution revenue allocation to customer classes found in the Applicant’s Cost of Service application that was most recently approved at the time of disposition of the 1562 account balances
A46: 2 Residual Account balance to be allocated to rate classes in proportion to the recovery share as established when rate riders were implemented.

Sheet 5(A) Allocation of Balances_ALL
D4: Amounts from Sheet 2 | E4: Allocator | F4: =IF(LEN(TRIM('4(A) Billing Determinants_ALL'!$B21))=0, "", '4(A) Billing Determinants_ALL'!$B21) -> RESIDENTIAL | G4: =IF(LEN(TRIM('4(A) Billing Determinants_ALL'!$B22))=0, "", '4(A) Billing Determinants_ALL'!$B22) -> GENERAL SERVICE LESS THAN 50 KW | H4: =IF(LEN(TRIM('4(A) Billing Determinants_ALL'!$B23))=0, "", '4(A) Billing Determinants_ALL'!$B23) -> GENERAL SERVICE 50 TO 699 KW | I4: =IF(LEN(TRIM('4(A) Billing Determinants_ALL'!$B24))=0, "", '4(A) Billing Determinants_ALL'!$B24) -> GENERAL SERVICE 700 TO 4,999 KW | J4: =IF(LEN(TRIM('4(A) Billing Determinants_ALL'!$B25))=0, "", '4(A) Billing Determinants_ALL'!$B25) -> LARGE USE | K4: =IF(LEN(TRIM('4(A) Billing Determinants_ALL'!$B26))=0, "", '4(A) Billing Determinants_ALL'!$B26) -> UNMETERED SCATTERED LOAD | L4: =IF(LEN(TRIM('4(A) Billing Determinants_ALL'!$B27))=0, "", '4(A) Billing Determinants_ALL'!$B27) -> STREET LIGHTING | M4: =IF(LEN(TRIM('4(A) Billing Determinants_ALL'!$B28))=0, "", '4(A) Billing Determinants_ALL'!$B28) -> DISTRIBUTED GENERATION CLASS | N4: =IF(LEN(TRIM('4(A) Billing Determinants_ALL'!$B30))=0, "", '4(A) Billing Determinants_ALL'!$B30) ->  | O4: =IF(LEN(TRIM('4(A) Billing Determinants_ALL'!$B31))=0, "", '4(A) Billing Determinants_ALL'!$B31) ->  | P4: =IF(LEN(TRIM('4(A) Billing Determinants_ALL'!$B32))=0, "", '4(A) Billing Determinants_ALL'!$B32) ->  | Q4: =IF(LEN(TRIM('4(A) Billing Determinants_ALL'!$B33))=0, "", '4(A) Billing Determinants_ALL'!$B33) ->  | R4: =IF(LEN(TRIM('4(A) Billing Determinants_ALL'!$B34))=0, "", '4(A) Billing Determinants_ALL'!$B34) ->  | S4: =IF(LEN(TRIM('4(A) Billing Determinants_ALL'!$B35))=0, "", '4(A) Billing Determinants_ALL'!$B35) ->  | T4: =IF(LEN(TRIM('4(A) Billing Determinants_ALL'!$B36))=0, "", '4(A) Billing Determinants_ALL'!$B36) ->  | U4: =IF(LEN(TRIM('4(A) Billing Determinants_ALL'!$B37))=0, "", '4(A) Billing Determinants_ALL'!$B37) ->  | V4: =IF(LEN(TRIM('4(A) Billing Determinants_ALL'!$B38))=0, "", '4(A) Billing Determinants_ALL'!$B38) ->  | W4: =IF(LEN(TRIM('4(A) Billing Determinants_ALL'!$B39))=0, "", '4(A) Billing Determinants_ALL'!$B39) -> 
B5: LV Variance Account | C5: 1550 | D5: ='2. 2015 Continuity Schedule'!BM24 -> 162400.9224 | E5: kWh | F5: =IFERROR(IF(F$4="",0,IF($E5="kWh",VLOOKUP(F$4,'4(A) Billing Determinants_ALL'!$B$19:$P$40,4,0)/'4(A) Billing Determinants_ALL'!$E$40*$D5,IF($E5="kW",VLOOKUP(F$4,'4(A) Billing Determinants_ALL'!$B$19:$P$40,5,0)/'4(A) Billing Determinants_ALL'!$F$40*$D5,IF($E5="Non-RPP kWh",VLOOKUP(F$4,'4(A) Billing Determinants_ALL'!$B$19:$P$40,6,0)/'4(A) Billing Determinants_ALL'!$G$40*$D5,IF($E5="Distribution Rev.",VLOOKUP(F$4,'4(A) Billing Determinants_ALL'!$B$19:$P$40,8,0)/'4(A) Billing Determinants_ALL'!$I$40*$D5, VLOOKUP(F$4,'4(A) Billing Determinants_ALL'!$B$19:$P$40,3,0)/'4(A) Billing Determinants_ALL'!$D$40*$D5))))),0) -> 53711.75638 | G5: =IFERROR(IF(G$4="",0,IF($E5="kWh",VLOOKUP(G$4,'4(A) Billing Determinants_ALL'!$B$19:$P$40,4,0)/'4(A) Billing Determinants_ALL'!$E$40*$D5,IF($E5="kW",VLOOKUP(G$4,'4(A) Billing Determinants_ALL'!$B$19:$P$40,5,0)/'4(A) Billing Determinants_ALL'!$F$40*$D5,IF($E5="Non-RPP kWh",VLOOKUP(G$4,'4(A) Billing Determinants_ALL'!$B$19:$P$40,6,0)/'4(A) Billing Determinants_ALL'!$G$40*$D5,IF($E5="Distribution Rev.",VLOOKUP(G$4,'4(A) Billing Determinants_ALL'!$B$19:$P$40,8,0)/'4(A) Billing Determinants_ALL'!$I$40*$D5, VLOOKUP(G$4,'4(A) Billing Determinants_ALL'!$B$19:$P$40,3,0)/'4(A) Billing Determinants_ALL'!$D$40*$D5))))),0) -> 14561.18462 | H5: =IFERROR(IF(H$4="",0,IF($E5="kWh",VLOOKUP(H$4,'4(A) Billing Determinants_ALL'!$B$19:$P$40,4,0)/'4(A) Billing Determinants_ALL'!$E$40*$D5,IF($E5="kW",VLOOKUP(H$4,'4(A) Billing Determinants_ALL'!$B$19:$P$40,5,0)/'4(A) Billing Determinants_ALL'!$F$40*$D5,IF($E5="Non-RPP kWh",VLOOKUP(H$4,'4(A) Billing Determinants_ALL'!$B$19:$P$40,6,0)/'4(A) Billing Determinants_ALL'!$G$40*$D5,IF($E5="Distribution Rev.",VLOOKUP(H$4,'4(A) Billing Determinants_ALL'!$B$19:$P$40,8,0)/'4(A) Billing Determinants_ALL'!$I$40*$D5, VLOOKUP(H$4,'4(A) Billing Determinants_ALL'!$B$19:$P$40,3,0)/'4(A) Billing Determinants_ALL'!$D$40*$D5))))),0) -> 43703.71172 | I5: =IFERROR(IF(I$4="",0,IF($E5="kWh",VLOOKUP(I$4,'4(A) Billing Determinants_ALL'!$B$19:$P$40,4,0)/'4(A) Billing Determinants_ALL'!$E$40*$D5,IF($E5="kW",VLOOKUP(I$4,'4(A) Billing Determinants_ALL'!$B$19:$P$40,5,0)/'4(A) Billing Determinants_ALL'!$F$40*$D5,IF($E5="Non-RPP kWh",VLOOKUP(I$4,'4(A) Billing Determinants_ALL'!$B$19:$P$40,6,0)/'4(A) Billing Determinants_ALL'!$G$40*$D5,IF($E5="Distribution Rev.",VLOOKUP(I$4,'4(A) Billing Determinants_ALL'!$B$19:$P$40,8,0)/'4(A) Billing Determinants_ALL'!$I$40*$D5, VLOOKUP(I$4,'4(A) Billing Determinants_ALL'!$B$19:$P$40,3,0)/'4(A) Billing Determinants_ALL'!$D$40*$D5))))),0) -> 33097.23754 | J5: =IFERROR(IF(J$4="",0,IF($E5="kWh",VLOOKUP(J$4,'4(A) Billing Determinants_ALL'!$B$19:$P$40,4,0)/'4(A) Billing Determinants_ALL'!$E$40*$D5,IF($E5="kW",VLOOKUP(J$4,'4(A) Billing Determinants_ALL'!$B$19:$P$40,5,0)/'4(A) Billing Determinants_ALL'!$F$40*$D5,IF($E5="Non-RPP kWh",VLOOKUP(J$4,'4(A) Billing Determinants_ALL'!$B$19:$P$40,6,0)/'4(A) Billing Determinants_ALL'!$G$40*$D5,IF($E5="Distribution Rev.",VLOOKUP(J$4,'4(A) Billing Determinants_ALL'!$B$19:$P$40,8,0)/'4(A) Billing Determinants_ALL'!$I$40*$D5, VLOOKUP(J$4,'4(A) Billing Determinants_ALL'!$B$19:$P$40,3,0)/'4(A) Billing Determinants_ALL'!$D$40*$D5))))),0) -> 15708.7183 | K5: =IFERROR(IF(K$4="",0,IF($E5="kWh",VLOOKUP(K$4,'4(A) Billing Determinants_ALL'!$B$19:$P$40,4,0)/'4(A) Billing Determinants_ALL'!$E$40*$D5,IF($E5="kW",VLOOKUP(K$4,'4(A) Billing Determinants_ALL'!$B$19:$P$40,5,0)/'4(A) Billing Determinants_ALL'!$F$40*$D5,IF($E5="Non-RPP kWh",VLOOKUP(K$4,'4(A) Billing Determinants_ALL'!$B$19:$P$40,6,0)/'4(A) Billing Determinants_ALL'!$G$40*$D5,IF($E5="Distribution Rev.",VLOOKUP(K$4,'4(A) Billing Determinants_ALL'!$B$19:$P$40,8,0)/'4(A) Billing Determinants_ALL'!$I$40*$D5, VLOOKUP(K$4,'4(A) Billing Determinants_ALL'!$B$19:$P$40,3,0)/'4(A) Billing Determinants_ALL'!$D$40*$D5))))),0) -> 243.531545 | L5: =IFERROR(IF(L$4="",0,IF($E5="kWh",VLOOKUP(L$4,'4(A) Billing Determinants_ALL'!$B$19:$P$40,4,0)/'4(A) Billing Determinants_ALL'!$E$40*$D5,IF($E5="kW",VLOOKUP(L$4,'4(A) Billing Determinants_ALL'!$B$19:$P$40,5,0)/'4(A) Billing Determinants_ALL'!$F$40*$D5,IF($E5="Non-RPP kWh",VLOOKUP(L$4,'4(A) Billing Determinants_ALL'!$B$19:$P$40,6,0)/'4(A) Billing Determinants_ALL'!$G$40*$D5,IF($E5="Distribution Rev.",VLOOKUP(L$4,'4(A) Billing Determinants_ALL'!$B$19:$P$40,8,0)/'4(A) Billing Determinants_ALL'!$I$40*$D5, VLOOKUP(L$4,'4(A) Billing Determinants_ALL'!$B$19:$P$40,3,0)/'4(A) Billing Determinants_ALL'!$D$40*$D5))))),0) -> 1367.440886 | M5: =IFERROR(IF(M$4="",0,IF($E5="kWh",VLOOKUP(M$4,'4(A) Billing Determinants_ALL'!$B$19:$P$40,4,0)/'4(A) Billing Determinants_ALL'!$E$40*$D5,IF($E5="kW",VLOOKUP(M$4,'4(A) Billing Determinants_ALL'!$B$19:$P$40,5,0)/'4(A) Billing Determinants_ALL'!$F$40*$D5,IF($E5="Non-RPP kWh",VLOOKUP(M$4,'4(A) Billing Determinants_ALL'!$B$19:$P$40,6,0)/'4(A) Billing Determinants_ALL'!$G$40*$D5,IF($E5="Distribution Rev.",VLOOKUP(M$4,'4(A) Billing Determinants_ALL'!$B$19:$P$40,8,0)/'4(A) Billing Determinants_ALL'!$I$40*$D5, VLOOKUP(M$4,'4(A) Billing Determinants_ALL'!$B$19:$P$40,3,0)/'4(A) Billing Determinants_ALL'!$D$40*$D5))))),0) -> 7.341412378 | N5: =IFERROR(IF(N$4="",0,IF($E5="kWh",VLOOKUP(N$4,'4(A) Billing Determinants_ALL'!$B$19:$P$40,4,0)/'4(A) Billing Determinants_ALL'!$E$40*$D5,IF($E5="kW",VLOOKUP(N$4,'4(A) Billing Determinants_ALL'!$B$19:$P$40,5,0)/'4(A) Billing Determinants_ALL'!$F$40*$D5,IF($E5="Non-RPP kWh",VLOOKUP(N$4,'4(A) Billing Determinants_ALL'!$B$19:$P$40,6,0)/'4(A) Billing Determinants_ALL'!$G$40*$D5,IF($E5="Distribution Rev.",VLOOKUP(N$4,'4(A) Billing Determinants_ALL'!$B$19:$P$40,8,0)/'4(A) Billing Determinants_ALL'!$I$40*$D5, VLOOKUP(N$4,'4(A) Billing Determinants_ALL'!$B$19:$P$40,3,0)/'4(A) Billing Determinants_ALL'!$D$40*$D5))))),0) -> 0 | O5: =IFERROR(IF(O$4="",0,IF($E5="kWh",VLOOKUP(O$4,'4(A) Billing Determinants_ALL'!$B$19:$P$40,4,0)/'4(A) Billing Determinants_ALL'!$E$40*$D5,IF($E5="kW",VLOOKUP(O$4,'4(A) Billing Determinants_ALL'!$B$19:$P$40,5,0)/'4(A) Billing Determinants_ALL'!$F$40*$D5,IF($E5="Non-RPP kWh",VLOOKUP(O$4,'4(A) Billing Determinants_ALL'!$B$19:$P$40,6,0)/'4(A) Billing Determinants_ALL'!$G$40*$D5,IF($E5="Distribution Rev.",VLOOKUP(O$4,'4(A) Billing Determinants_ALL'!$B$19:$P$40,8,0)/'4(A) Billing Determinants_ALL'!$I$40*$D5, VLOOKUP(O$4,'4(A) Billing Determinants_ALL'!$B$19:$P$40,3,0)/'4(A) Billing Determinants_ALL'!$D$40*$D5))))),0) -> 0 | P5: =IFERROR(IF(P$4="",0,IF($E5="kWh",VLOOKUP(P$4,'4(A) Billing Determinants_ALL'!$B$19:$P$40,4,0)/'4(A) Billing Determinants_ALL'!$E$40*$D5,IF($E5="kW",VLOOKUP(P$4,'4(A) Billing Determinants_ALL'!$B$19:$P$40,5,0)/'4(A) Billing Determinants_ALL'!$F$40*$D5,IF($E5="Non-RPP kWh",VLOOKUP(P$4,'4(A) Billing Determinants_ALL'!$B$19:$P$40,6,0)/'4(A) Billing Determinants_ALL'!$G$40*$D5,IF($E5="Distribution Rev.",VLOOKUP(P$4,'4(A) Billing Determinants_ALL'!$B$19:$P$40,8,0)/'4(A) Billing Determinants_ALL'!$I$40*$D5, VLOOKUP(P$4,'4(A) Billing Determinants_ALL'!$B$19:$P$40,3,0)/'4(A) Billing Determinants_ALL'!$D$40*$D5))))),0) -> 0 | Q5: =IFERROR(IF(Q$4="",0,IF($E5="kWh",VLOOKUP(Q$4,'4(A) Billing Determinants_ALL'!$B$19:$P$40,4,0)/'4(A) Billing Determinants_ALL'!$E$40*$D5,IF($E5="kW",VLOOKUP(Q$4,'4(A) Billing Determinants_ALL'!$B$19:$P$40,5,0)/'4(A) Billing Determinants_ALL'!$F$40*$D5,IF($E5="Non-RPP kWh",VLOOKUP(Q$4,'4(A) Billing Determinants_ALL'!$B$19:$P$40,6,0)/'4(A) Billing Determinants_ALL'!$G$40*$D5,IF($E5="Distribution Rev.",VLOOKUP(Q$4,'4(A) Billing Determinants_ALL'!$B$19:$P$40,8,0)/'4(A) Billing Determinants_ALL'!$I$40*$D5, VLOOKUP(Q$4,'4(A) Billing Determinants_ALL'!$B$19:$P$40,3,0)/'4(A) Billing Determinants_ALL'!$D$40*$D5))))),0) -> 0 | R5: =IFERROR(IF(R$4="",0,IF($E5="kWh",VLOOKUP(R$4,'4(A) Billing Determinants_ALL'!$B$19:$P$40,4,0)/'4(A) Billing Determinants_ALL'!$E$40*$D5,IF($E5="kW",VLOOKUP(R$4,'4(A) Billing Determinants_ALL'!$B$19:$P$40,5,0)/'4(A) Billing Determinants_ALL'!$F$40*$D5,IF($E5="Non-RPP kWh",VLOOKUP(R$4,'4(A) Billing Determinants_ALL'!$B$19:$P$40,6,0)/'4(A) Billing Determinants_ALL'!$G$40*$D5,IF($E5="Distribution Rev.",VLOOKUP(R$4,'4(A) Billing Determinants_ALL'!$B$19:$P$40,8,0)/'4(A) Billing Determinants_ALL'!$I$40*$D5, VLOOKUP(R$4,'4(A) Billing Determinants_ALL'!$B$19:$P$40,3,0)/'4(A) Billing Determinants_ALL'!$D$40*$D5))))),0) -> 0 | S5: =IFERROR(IF(S$4="",0,IF($E5="kWh",VLOOKUP(S$4,'4(A) Billing Determinants_ALL'!$B$19:$P$40,4,0)/'4(A) Billing Determinants_ALL'!$E$40*$D5,IF($E5="kW",VLOOKUP(S$4,'4(A) Billing Determinants_ALL'!$B$19:$P$40,5,0)/'4(A) Billing Determinants_ALL'!$F$40*$D5,IF($E5="Non-RPP kWh",VLOOKUP(S$4,'4(A) Billing Determinants_ALL'!$B$19:$P$40,6,0)/'4(A) Billing Determinants_ALL'!$G$40*$D5,IF($E5="Distribution Rev.",VLOOKUP(S$4,'4(A) Billing Determinants_ALL'!$B$19:$P$40,8,0)/'4(A) Billing Determinants_ALL'!$I$40*$D5, VLOOKUP(S$4,'4(A) Billing Determinants_ALL'!$B$19:$P$40,3,0)/'4(A) Billing Determinants_ALL'!$D$40*$D5))))),0) -> 0 | T5: =IFERROR(IF(T$4="",0,IF($E5="kWh",VLOOKUP(T$4,'4(A) Billing Determinants_ALL'!$B$19:$P$40,4,0)/'4(A) Billing Determinants_ALL'!$E$40*$D5,IF($E5="kW",VLOOKUP(T$4,'4(A) Billing Determinants_ALL'!$B$19:$P$40,5,0)/'4(A) Billing Determinants_ALL'!$F$40*$D5,IF($E5="Non-RPP kWh",VLOOKUP(T$4,'4(A) Billing Determinants_ALL'!$B$19:$P$40,6,0)/'4(A) Billing Determinants_ALL'!$G$40*$D5,IF($E5="Distribution Rev.",VLOOKUP(T$4,'4(A) Billing Determinants_ALL'!$B$19:$P$40,8,0)/'4(A) Billing Determinants_ALL'!$I$40*$D5, VLOOKUP(T$4,'4(A) Billing Determinants_ALL'!$B$19:$P$40,3,0)/'4(A) Billing Determinants_ALL'!$D$40*$D5))))),0) -> 0 | U5: =IFERROR(IF(U$4="",0,IF($E5="kWh",VLOOKUP(U$4,'4(A) Billing Determinants_ALL'!$B$19:$P$40,4,0)/'4(A) Billing Determinants_ALL'!$E$40*$D5,IF($E5="kW",VLOOKUP(U$4,'4(A) Billing Determinants_ALL'!$B$19:$P$40,5,0)/'4(A) Billing Determinants_ALL'!$F$40*$D5,IF($E5="Non-RPP kWh",VLOOKUP(U$4,'4(A) Billing Determinants_ALL'!$B$19:$P$40,6,0)/'4(A) Billing Determinants_ALL'!$G$40*$D5,IF($E5="Distribution Rev.",VLOOKUP(U$4,'4(A) Billing Determinants_ALL'!$B$19:$P$40,8,0)/'4(A) Billing Determinants_ALL'!$I$40*$D5, VLOOKUP(U$4,'4(A) Billing Determinants_ALL'!$B$19:$P$40,3,0)/'4(A) Billing Determinants_ALL'!$D$40*$D5))))),0) -> 0 | V5: =IFERROR(IF(V$4="",0,IF($E5="kWh",VLOOKUP(V$4,'4(A) Billing Determinants_ALL'!$B$19:$P$40,4,0)/'4(A) Billing Determinants_ALL'!$E$40*$D5,IF($E5="kW",VLOOKUP(V$4,'4(A) Billing Determinants_ALL'!$B$19:$P$40,5,0)/'4(A) Billing Determinants_ALL'!$F$40*$D5,IF($E5="Non-RPP kWh",VLOOKUP(V$4,'4(A) Billing Determinants_ALL'!$B$19:$P$40,6,0)/'4(A) Billing Determinants_ALL'!$G$40*$D5,IF($E5="Distribution Rev.",VLOOKUP(V$4,'4(A) Billing Determinants_ALL'!$B$19:$P$40,8,0)/'4(A) Billing Determinants_ALL'!$I$40*$D5, VLOOKUP(V$4,'4(A) Billing Determinants_ALL'!$B$19:$P$40,3,0)/'4(A) Billing Determinants_ALL'!$D$40*$D5))))),0) -> 0 | W5: =IFERROR(IF(W$4="",0,IF($E5="kWh",VLOOKUP(W$4,'4(A) Billing Determinants_ALL'!$B$19:$P$40,4,0)/'4(A) Billing Determinants_ALL'!$E$40*$D5,IF($E5="kW",VLOOKUP(W$4,'4(A) Billing Determinants_ALL'!$B$19:$P$40,5,0)/'4(A) Billing Determinants_ALL'!$F$40*$D5,IF($E5="Non-RPP kWh",VLOOKUP(W$4,'4(A) Billing Determinants_ALL'!$B$19:$P$40,6,0)/'4(A) Billing Determinants_ALL'!$G$40*$D5,IF($E5="Distribution Rev.",VLOOKUP(W$4,'4(A) Billing Determinants_ALL'!$B$19:$P$40,8,0)/'4(A) Billing Determinants_ALL'!$I$40*$D5, VLOOKUP(W$4,'4(A) Billing Determinants_ALL'!$B$19:$P$40,3,0)/'4(A) Billing Determinants_ALL'!$D$40*$D5))))),0) -> 0
B6: ='2. 2015 Continuity Schedule'!C25 -> SM Entity Charge Variance | C6: 1551 | D6: ='2. 2015 Continuity Schedule'!BM25 -> -45119.74152 | E6: kWh | F6: =IFERROR(IF(F$4="",0,IF($E6="kWh",VLOOKUP(F$4,'4(A) Billing Determinants_ALL'!$B$19:$P$40,4,0)/'4(A) Billing Determinants_ALL'!$E$40*$D6,IF($E6="kW",VLOOKUP(F$4,'4(A) Billing Determinants_ALL'!$B$19:$P$40,5,0)/'4(A) Billing Determinants_ALL'!$F$40*$D6,IF($E6="Non-RPP kWh",VLOOKUP(F$4,'4(A) Billing Determinants_ALL'!$B$19:$P$40,6,0)/'4(A) Billing Determinants_ALL'!$G$40*$D6,IF($E6="Distribution Rev.",VLOOKUP(F$4,'4(A) Billing Determinants_ALL'!$B$19:$P$40,8,0)/'4(A) Billing Determinants_ALL'!$I$40*$D6, VLOOKUP(F$4,'4(A) Billing Determinants_ALL'!$B$19:$P$40,3,0)/'4(A) Billing Determinants_ALL'!$D$40*$D6))))),0) -> -14922.70197 | G6: =IFERROR(IF(G$4="",0,IF($E6="kWh",VLOOKUP(G$4,'4(A) Billing Determinants_ALL'!$B$19:$P$40,4,0)/'4(A) Billing Determinants_ALL'!$E$40*$D6,IF($E6="kW",VLOOKUP(G$4,'4(A) Billing Determinants_ALL'!$B$19:$P$40,5,0)/'4(A) Billing Determinants_ALL'!$F$40*$D6,IF($E6="Non-RPP kWh",VLOOKUP(G$4,'4(A) Billing Determinants_ALL'!$B$19:$P$40,6,0)/'4(A) Billing Determinants_ALL'!$G$40*$D6,IF($E6="Distribution Rev.",VLOOKUP(G$4,'4(A) Billing Determinants_ALL'!$B$19:$P$40,8,0)/'4(A) Billing Determinants_ALL'!$I$40*$D6, VLOOKUP(G$4,'4(A) Billing Determinants_ALL'!$B$19:$P$40,3,0)/'4(A) Billing Determinants_ALL'!$D$40*$D6))))),0) -> -4045.524352 | H6: =IFERROR(IF(H$4="",0,IF($E6="kWh",VLOOKUP(H$4,'4(A) Billing Determinants_ALL'!$B$19:$P$40,4,0)/'4(A) Billing Determinants_ALL'!$E$40*$D6,IF($E6="kW",VLOOKUP(H$4,'4(A) Billing Determinants_ALL'!$B$19:$P$40,5,0)/'4(A) Billing Determinants_ALL'!$F$40*$D6,IF($E6="Non-RPP kWh",VLOOKUP(H$4,'4(A) Billing Determinants_ALL'!$B$19:$P$40,6,0)/'4(A) Billing Determinants_ALL'!$G$40*$D6,IF($E6="Distribution Rev.",VLOOKUP(H$4,'4(A) Billing Determinants_ALL'!$B$19:$P$40,8,0)/'4(A) Billing Determinants_ALL'!$I$40*$D6, VLOOKUP(H$4,'4(A) Billing Determinants_ALL'!$B$19:$P$40,3,0)/'4(A) Billing Determinants_ALL'!$D$40*$D6))))),0) -> -12142.1735 | I6: =IFERROR(IF(I$4="",0,IF($E6="kWh",VLOOKUP(I$4,'4(A) Billing Determinants_ALL'!$B$19:$P$40,4,0)/'4(A) Billing Determinants_ALL'!$E$40*$D6,IF($E6="kW",VLOOKUP(I$4,'4(A) Billing Determinants_ALL'!$B$19:$P$40,5,0)/'4(A) Billing Determinants_ALL'!$F$40*$D6,IF($E6="Non-RPP kWh",VLOOKUP(I$4,'4(A) Billing Determinants_ALL'!$B$19:$P$40,6,0)/'4(A) Billing Determinants_ALL'!$G$40*$D6,IF($E6="Distribution Rev.",VLOOKUP(I$4,'4(A) Billing Determinants_ALL'!$B$19:$P$40,8,0)/'4(A) Billing Determinants_ALL'!$I$40*$D6, VLOOKUP(I$4,'4(A) Billing Determinants_ALL'!$B$19:$P$40,3,0)/'4(A) Billing Determinants_ALL'!$D$40*$D6))))),0) -> -9195.38375 | J6: =IFERROR(IF(J$4="",0,IF($E6="kWh",VLOOKUP(J$4,'4(A) Billing Determinants_ALL'!$B$19:$P$40,4,0)/'4(A) Billing Determinants_ALL'!$E$40*$D6,IF($E6="kW",VLOOKUP(J$4,'4(A) Billing Determinants_ALL'!$B$19:$P$40,5,0)/'4(A) Billing Determinants_ALL'!$F$40*$D6,IF($E6="Non-RPP kWh",VLOOKUP(J$4,'4(A) Billing Determinants_ALL'!$B$19:$P$40,6,0)/'4(A) Billing Determinants_ALL'!$G$40*$D6,IF($E6="Distribution Rev.",VLOOKUP(J$4,'4(A) Billing Determinants_ALL'!$B$19:$P$40,8,0)/'4(A) Billing Determinants_ALL'!$I$40*$D6, VLOOKUP(J$4,'4(A) Billing Determinants_ALL'!$B$19:$P$40,3,0)/'4(A) Billing Determinants_ALL'!$D$40*$D6))))),0) -> -4364.342881 | K6: =IFERROR(IF(K$4="",0,IF($E6="kWh",VLOOKUP(K$4,'4(A) Billing Determinants_ALL'!$B$19:$P$40,4,0)/'4(A) Billing Determinants_ALL'!$E$40*$D6,IF($E6="kW",VLOOKUP(K$4,'4(A) Billing Determinants_ALL'!$B$19:$P$40,5,0)/'4(A) Billing Determinants_ALL'!$F$40*$D6,IF($E6="Non-RPP kWh",VLOOKUP(K$4,'4(A) Billing Determinants_ALL'!$B$19:$P$40,6,0)/'4(A) Billing Determinants_ALL'!$G$40*$D6,IF($E6="Distribution Rev.",VLOOKUP(K$4,'4(A) Billing Determinants_ALL'!$B$19:$P$40,8,0)/'4(A) Billing Determinants_ALL'!$I$40*$D6, VLOOKUP(K$4,'4(A) Billing Determinants_ALL'!$B$19:$P$40,3,0)/'4(A) Billing Determinants_ALL'!$D$40*$D6))))),0) -> -67.66020907 | L6: =IFERROR(IF(L$4="",0,IF($E6="kWh",VLOOKUP(L$4,'4(A) Billing Determinants_ALL'!$B$19:$P$40,4,0)/'4(A) Billing Determinants_ALL'!$E$40*$D6,IF($E6="kW",VLOOKUP(L$4,'4(A) Billing Determinants_ALL'!$B$19:$P$40,5,0)/'4(A) Billing Determinants_ALL'!$F$40*$D6,IF($E6="Non-RPP kWh",VLOOKUP(L$4,'4(A) Billing Determinants_ALL'!$B$19:$P$40,6,0)/'4(A) Billing Determinants_ALL'!$G$40*$D6,IF($E6="Distribution Rev.",VLOOKUP(L$4,'4(A) Billing Determinants_ALL'!$B$19:$P$40,8,0)/'4(A) Billing Determinants_ALL'!$I$40*$D6, VLOOKUP(L$4,'4(A) Billing Determinants_ALL'!$B$19:$P$40,3,0)/'4(A) Billing Determinants_ALL'!$D$40*$D6))))),0) -> -379.9152026 | M6: =IFERROR(IF(M$4="",0,IF($E6="kWh",VLOOKUP(M$4,'4(A) Billing Determinants_ALL'!$B$19:$P$40,4,0)/'4(A) Billing Determinants_ALL'!$E$40*$D6,IF($E6="kW",VLOOKUP(M$4,'4(A) Billing Determinants_ALL'!$B$19:$P$40,5,0)/'4(A) Billing Determinants_ALL'!$F$40*$D6,IF($E6="Non-RPP kWh",VLOOKUP(M$4,'4(A) Billing Determinants_ALL'!$B$19:$P$40,6,0)/'4(A) Billing Determinants_ALL'!$G$40*$D6,IF($E6="Distribution Rev.",VLOOKUP(M$4,'4(A) Billing Determinants_ALL'!$B$19:$P$40,8,0)/'4(A) Billing Determinants_ALL'!$I$40*$D6, VLOOKUP(M$4,'4(A) Billing Determinants_ALL'!$B$19:$P$40,3,0)/'4(A) Billing Determinants_ALL'!$D$40*$D6))))),0) -> -2.039659775
B7: RSVA - Wholesale Market Service Charge | C7: 1580 | D7: ='2. 2015 Continuity Schedule'!BM26 -> -2540509.471 | E7: kWh | F7: =IFERROR(IF(F$4="",0,IF($E7="kWh",VLOOKUP(F$4,'4(A) Billing Determinants_ALL'!$B$19:$P$40,4,0)/'4(A) Billing Determinants_ALL'!$E$40*$D7,IF($E7="kW",VLOOKUP(F$4,'4(A) Billing Determinants_ALL'!$B$19:$P$40,5,0)/'4(A) Billing Determinants_ALL'!$F$40*$D7,IF($E7="Non-RPP kWh",VLOOKUP(F$4,'4(A) Billing Determinants_ALL'!$B$19:$P$40,6,0)/'4(A) Billing Determinants_ALL'!$G$40*$D7,IF($E7="Distribution Rev.",VLOOKUP(F$4,'4(A) Billing Determinants_ALL'!$B$19:$P$40,8,0)/'4(A) Billing Determinants_ALL'!$I$40*$D7, VLOOKUP(F$4,'4(A) Billing Determinants_ALL'!$B$19:$P$40,3,0)/'4(A) Billing Determinants_ALL'!$D$40*$D7))))),0) -> -840236.7657 | G7: =IFERROR(IF(G$4="",0,IF($E7="kWh",VLOOKUP(G$4,'4(A) Billing Determinants_ALL'!$B$19:$P$40,4,0)/'4(A) Billing Determinants_ALL'!$E$40*$D7,IF($E7="kW",VLOOKUP(G$4,'4(A) Billing Determinants_ALL'!$B$19:$P$40,5,0)/'4(A) Billing Determinants_ALL'!$F$40*$D7,IF($E7="Non-RPP kWh",VLOOKUP(G$4,'4(A) Billing Determinants_ALL'!$B$19:$P$40,6,0)/'4(A) Billing Determinants_ALL'!$G$40*$D7,IF($E7="Distribution Rev.",VLOOKUP(G$4,'4(A) Billing Determinants_ALL'!$B$19:$P$40,8,0)/'4(A) Billing Determinants_ALL'!$I$40*$D7, VLOOKUP(G$4,'4(A) Billing Determinants_ALL'!$B$19:$P$40,3,0)/'4(A) Billing Determinants_ALL'!$D$40*$D7))))),0) -> -227787.0525 | H7: =IFERROR(IF(H$4="",0,IF($E7="kWh",VLOOKUP(H$4,'4(A) Billing Determinants_ALL'!$B$19:$P$40,4,0)/'4(A) Billing Determinants_ALL'!$E$40*$D7,IF($E7="kW",VLOOKUP(H$4,'4(A) Billing Determinants_ALL'!$B$19:$P$40,5,0)/'4(A) Billing Determinants_ALL'!$F$40*$D7,IF($E7="Non-RPP kWh",VLOOKUP(H$4,'4(A) Billing Determinants_ALL'!$B$19:$P$40,6,0)/'4(A) Billing Determinants_ALL'!$G$40*$D7,IF($E7="Distribution Rev.",VLOOKUP(H$4,'4(A) Billing Determinants_ALL'!$B$19:$P$40,8,0)/'4(A) Billing Determinants_ALL'!$I$40*$D7, VLOOKUP(H$4,'4(A) Billing Determinants_ALL'!$B$19:$P$40,3,0)/'4(A) Billing Determinants_ALL'!$D$40*$D7))))),0) -> -683676.4958 | I7: =IFERROR(IF(I$4="",0,IF($E7="kWh",VLOOKUP(I$4,'4(A) Billing Determinants_ALL'!$B$19:$P$40,4,0)/'4(A) Billing Determinants_ALL'!$E$40*$D7,IF($E7="kW",VLOOKUP(I$4,'4(A) Billing Determinants_ALL'!$B$19:$P$40,5,0)/'4(A) Billing Determinants_ALL'!$F$40*$D7,IF($E7="Non-RPP kWh",VLOOKUP(I$4,'4(A) Billing Determinants_ALL'!$B$19:$P$40,6,0)/'4(A) Billing Determinants_ALL'!$G$40*$D7,IF($E7="Distribution Rev.",VLOOKUP(I$4,'4(A) Billing Determinants_ALL'!$B$19:$P$40,8,0)/'4(A) Billing Determinants_ALL'!$I$40*$D7, VLOOKUP(I$4,'4(A) Billing Determinants_ALL'!$B$19:$P$40,3,0)/'4(A) Billing Determinants_ALL'!$D$40*$D7))))),0) -> -517754.7281 | J7: =IFERROR(IF(J$4="",0,IF($E7="kWh",VLOOKUP(J$4,'4(A) Billing Determinants_ALL'!$B$19:$P$40,4,0)/'4(A) Billing Determinants_ALL'!$E$40*$D7,IF($E7="kW",VLOOKUP(J$4,'4(A) Billing Determinants_ALL'!$B$19:$P$40,5,0)/'4(A) Billing Determinants_ALL'!$F$40*$D7,IF($E7="Non-RPP kWh",VLOOKUP(J$4,'4(A) Billing Determinants_ALL'!$B$19:$P$40,6,0)/'4(A) Billing Determinants_ALL'!$G$40*$D7,IF($E7="Distribution Rev.",VLOOKUP(J$4,'4(A) Billing Determinants_ALL'!$B$19:$P$40,8,0)/'4(A) Billing Determinants_ALL'!$I$40*$D7, VLOOKUP(J$4,'4(A) Billing Determinants_ALL'!$B$19:$P$40,3,0)/'4(A) Billing Determinants_ALL'!$D$40*$D7))))),0) -> -245738.4296 | K7: =IFERROR(IF(K$4="",0,IF($E7="kWh",VLOOKUP(K$4,'4(A) Billing Determinants_ALL'!$B$19:$P$40,4,0)/'4(A) Billing Determinants_ALL'!$E$40*$D7,IF($E7="kW",VLOOKUP(K$4,'4(A) Billing Determinants_ALL'!$B$19:$P$40,5,0)/'4(A) Billing Determinants_ALL'!$F$40*$D7,IF($E7="Non-RPP kWh",VLOOKUP(K$4,'4(A) Billing Determinants_ALL'!$B$19:$P$40,6,0)/'4(A) Billing Determinants_ALL'!$G$40*$D7,IF($E7="Distribution Rev.",VLOOKUP(K$4,'4(A) Billing Determinants_ALL'!$B$19:$P$40,8,0)/'4(A) Billing Determinants_ALL'!$I$40*$D7, VLOOKUP(K$4,'4(A) Billing Determinants_ALL'!$B$19:$P$40,3,0)/'4(A) Billing Determinants_ALL'!$D$40*$D7))))),0) -> -3809.67169 | L7: =IFERROR(IF(L$4="",0,IF($E7="kWh",VLOOKUP(L$4,'4(A) Billing Determinants_ALL'!$B$19:$P$40,4,0)/'4(A) Billing Determinants_ALL'!$E$40*$D7,IF($E7="kW",VLOOKUP(L$4,'4(A) Billing Determinants_ALL'!$B$19:$P$40,5,0)/'4(A) Billing Determinants_ALL'!$F$40*$D7,IF($E7="Non-RPP kWh",VLOOKUP(L$4,'4(A) Billing Determinants_ALL'!$B$19:$P$40,6,0)/'4(A) Billing Determinants_ALL'!$G$40*$D7,IF($E7="Distribution Rev.",VLOOKUP(L$4,'4(A) Billing Determinants_ALL'!$B$19:$P$40,8,0)/'4(A) Billing Determinants_ALL'!$I$40*$D7, VLOOKUP(L$4,'4(A) Billing Determinants_ALL'!$B$19:$P$40,3,0)/'4(A) Billing Determinants_ALL'!$D$40*$D7))))),0) -> -21391.48271 | M7: =IFERROR(IF(M$4="",0,IF($E7="kWh",VLOOKUP(M$4,'4(A) Billing Determinants_ALL'!$B$19:$P$40,4,0)/'4(A) Billing Determinants_ALL'!$E$40*$D7,IF($E7="kW",VLOOKUP(M$4,'4(A) Billing Determinants_ALL'!$B$19:$P$40,5,0)/'4(A) Billing Determinants_ALL'!$F$40*$D7,IF($E7="Non-RPP kWh",VLOOKUP(M$4,'4(A) Billing Determinants_ALL'!$B$19:$P$40,6,0)/'4(A) Billing Determinants_ALL'!$G$40*$D7,IF($E7="Distribution Rev.",VLOOKUP(M$4,'4(A) Billing Determinants_ALL'!$B$19:$P$40,8,0)/'4(A) Billing Determinants_ALL'!$I$40*$D7, VLOOKUP(M$4,'4(A) Billing Determinants_ALL'!$B$19:$P$40,3,0)/'4(A) Billing Determinants_ALL'!$D$40*$D7))))),0) -> -114.8449615 | N7: =IFERROR(IF(N$4="",0,IF($E7="kWh",VLOOKUP(N$4,'4(A) Billing Determinants_ALL'!$B$19:$P$40,4,0)/'4(A) Billing Determinants_ALL'!$E$40*$D7,IF($E7="kW",VLOOKUP(N$4,'4(A) Billing Determinants_ALL'!$B$19:$P$40,5,0)/'4(A) Billing Determinants_ALL'!$F$40*$D7,IF($E7="Non-RPP kWh",VLOOKUP(N$4,'4(A) Billing Determinants_ALL'!$B$19:$P$40,6,0)/'4(A) Billing Determinants_ALL'!$G$40*$D7,IF($E7="Distribution Rev.",VLOOKUP(N$4,'4(A) Billing Determinants_ALL'!$B$19:$P$40,8,0)/'4(A) Billing Determinants_ALL'!$I$40*$D7, VLOOKUP(N$4,'4(A) Billing Determinants_ALL'!$B$19:$P$40,3,0)/'4(A) Billing Determinants_ALL'!$D$40*$D7))))),0) -> 0 | O7: =IFERROR(IF(O$4="",0,IF($E7="kWh",VLOOKUP(O$4,'4(A) Billing Determinants_ALL'!$B$19:$P$40,4,0)/'4(A) Billing Determinants_ALL'!$E$40*$D7,IF($E7="kW",VLOOKUP(O$4,'4(A) Billing Determinants_ALL'!$B$19:$P$40,5,0)/'4(A) Billing Determinants_ALL'!$F$40*$D7,IF($E7="Non-RPP kWh",VLOOKUP(O$4,'4(A) Billing Determinants_ALL'!$B$19:$P$40,6,0)/'4(A) Billing Determinants_ALL'!$G$40*$D7,IF($E7="Distribution Rev.",VLOOKUP(O$4,'4(A) Billing Determinants_ALL'!$B$19:$P$40,8,0)/'4(A) Billing Determinants_ALL'!$I$40*$D7, VLOOKUP(O$4,'4(A) Billing Determinants_ALL'!$B$19:$P$40,3,0)/'4(A) Billing Determinants_ALL'!$D$40*$D7))))),0) -> 0 | P7: =IFERROR(IF(P$4="",0,IF($E7="kWh",VLOOKUP(P$4,'4(A) Billing Determinants_ALL'!$B$19:$P$40,4,0)/'4(A) Billing Determinants_ALL'!$E$40*$D7,IF($E7="kW",VLOOKUP(P$4,'4(A) Billing Determinants_ALL'!$B$19:$P$40,5,0)/'4(A) Billing Determinants_ALL'!$F$40*$D7,IF($E7="Non-RPP kWh",VLOOKUP(P$4,'4(A) Billing Determinants_ALL'!$B$19:$P$40,6,0)/'4(A) Billing Determinants_ALL'!$G$40*$D7,IF($E7="Distribution Rev.",VLOOKUP(P$4,'4(A) Billing Determinants_ALL'!$B$19:$P$40,8,0)/'4(A) Billing Determinants_ALL'!$I$40*$D7, VLOOKUP(P$4,'4(A) Billing Determinants_ALL'!$B$19:$P$40,3,0)/'4(A) Billing Determinants_ALL'!$D$40*$D7))))),0) -> 0 | Q7: =IFERROR(IF(Q$4="",0,IF($E7="kWh",VLOOKUP(Q$4,'4(A) Billing Determinants_ALL'!$B$19:$P$40,4,0)/'4(A) Billing Determinants_ALL'!$E$40*$D7,IF($E7="kW",VLOOKUP(Q$4,'4(A) Billing Determinants_ALL'!$B$19:$P$40,5,0)/'4(A) Billing Determinants_ALL'!$F$40*$D7,IF($E7="Non-RPP kWh",VLOOKUP(Q$4,'4(A) Billing Determinants_ALL'!$B$19:$P$40,6,0)/'4(A) Billing Determinants_ALL'!$G$40*$D7,IF($E7="Distribution Rev.",VLOOKUP(Q$4,'4(A) Billing Determinants_ALL'!$B$19:$P$40,8,0)/'4(A) Billing Determinants_ALL'!$I$40*$D7, VLOOKUP(Q$4,'4(A) Billing Determinants_ALL'!$B$19:$P$40,3,0)/'4(A) Billing Determinants_ALL'!$D$40*$D7))))),0) -> 0 | R7: =IFERROR(IF(R$4="",0,IF($E7="kWh",VLOOKUP(R$4,'4(A) Billing Determinants_ALL'!$B$19:$P$40,4,0)/'4(A) Billing Determinants_ALL'!$E$40*$D7,IF($E7="kW",VLOOKUP(R$4,'4(A) Billing Determinants_ALL'!$B$19:$P$40,5,0)/'4(A) Billing Determinants_ALL'!$F$40*$D7,IF($E7="Non-RPP kWh",VLOOKUP(R$4,'4(A) Billing Determinants_ALL'!$B$19:$P$40,6,0)/'4(A) Billing Determinants_ALL'!$G$40*$D7,IF($E7="Distribution Rev.",VLOOKUP(R$4,'4(A) Billing Determinants_ALL'!$B$19:$P$40,8,0)/'4(A) Billing Determinants_ALL'!$I$40*$D7, VLOOKUP(R$4,'4(A) Billing Determinants_ALL'!$B$19:$P$40,3,0)/'4(A) Billing Determinants_ALL'!$D$40*$D7))))),0) -> 0 | S7: =IFERROR(IF(S$4="",0,IF($E7="kWh",VLOOKUP(S$4,'4(A) Billing Determinants_ALL'!$B$19:$P$40,4,0)/'4(A) Billing Determinants_ALL'!$E$40*$D7,IF($E7="kW",VLOOKUP(S$4,'4(A) Billing Determinants_ALL'!$B$19:$P$40,5,0)/'4(A) Billing Determinants_ALL'!$F$40*$D7,IF($E7="Non-RPP kWh",VLOOKUP(S$4,'4(A) Billing Determinants_ALL'!$B$19:$P$40,6,0)/'4(A) Billing Determinants_ALL'!$G$40*$D7,IF($E7="Distribution Rev.",VLOOKUP(S$4,'4(A) Billing Determinants_ALL'!$B$19:$P$40,8,0)/'4(A) Billing Determinants_ALL'!$I$40*$D7, VLOOKUP(S$4,'4(A) Billing Determinants_ALL'!$B$19:$P$40,3,0)/'4(A) Billing Determinants_ALL'!$D$40*$D7))))),0) -> 0 | T7: =IFERROR(IF(T$4="",0,IF($E7="kWh",VLOOKUP(T$4,'4(A) Billing Determinants_ALL'!$B$19:$P$40,4,0)/'4(A) Billing Determinants_ALL'!$E$40*$D7,IF($E7="kW",VLOOKUP(T$4,'4(A) Billing Determinants_ALL'!$B$19:$P$40,5,0)/'4(A) Billing Determinants_ALL'!$F$40*$D7,IF($E7="Non-RPP kWh",VLOOKUP(T$4,'4(A) Billing Determinants_ALL'!$B$19:$P$40,6,0)/'4(A) Billing Determinants_ALL'!$G$40*$D7,IF($E7="Distribution Rev.",VLOOKUP(T$4,'4(A) Billing Determinants_ALL'!$B$19:$P$40,8,0)/'4(A) Billing Determinants_ALL'!$I$40*$D7, VLOOKUP(T$4,'4(A) Billing Determinants_ALL'!$B$19:$P$40,3,0)/'4(A) Billing Determinants_ALL'!$D$40*$D7))))),0) -> 0 | U7: =IFERROR(IF(U$4="",0,IF($E7="kWh",VLOOKUP(U$4,'4(A) Billing Determinants_ALL'!$B$19:$P$40,4,0)/'4(A) Billing Determinants_ALL'!$E$40*$D7,IF($E7="kW",VLOOKUP(U$4,'4(A) Billing Determinants_ALL'!$B$19:$P$40,5,0)/'4(A) Billing Determinants_ALL'!$F$40*$D7,IF($E7="Non-RPP kWh",VLOOKUP(U$4,'4(A) Billing Determinants_ALL'!$B$19:$P$40,6,0)/'4(A) Billing Determinants_ALL'!$G$40*$D7,IF($E7="Distribution Rev.",VLOOKUP(U$4,'4(A) Billing Determinants_ALL'!$B$19:$P$40,8,0)/'4(A) Billing Determinants_ALL'!$I$40*$D7, VLOOKUP(U$4,'4(A) Billing Determinants_ALL'!$B$19:$P$40,3,0)/'4(A) Billing Determinants_ALL'!$D$40*$D7))))),0) -> 0 | V7: =IFERROR(IF(V$4="",0,IF($E7="kWh",VLOOKUP(V$4,'4(A) Billing Determinants_ALL'!$B$19:$P$40,4,0)/'4(A) Billing Determinants_ALL'!$E$40*$D7,IF($E7="kW",VLOOKUP(V$4,'4(A) Billing Determinants_ALL'!$B$19:$P$40,5,0)/'4(A) Billing Determinants_ALL'!$F$40*$D7,IF($E7="Non-RPP kWh",VLOOKUP(V$4,'4(A) Billing Determinants_ALL'!$B$19:$P$40,6,0)/'4(A) Billing Determinants_ALL'!$G$40*$D7,IF($E7="Distribution Rev.",VLOOKUP(V$4,'4(A) Billing Determinants_ALL'!$B$19:$P$40,8,0)/'4(A) Billing Determinants_ALL'!$I$40*$D7, VLOOKUP(V$4,'4(A) Billing Determinants_ALL'!$B$19:$P$40,3,0)/'4(A) Billing Determinants_ALL'!$D$40*$D7))))),0) -> 0 | W7: =IFERROR(IF(W$4="",0,IF($E7="kWh",VLOOKUP(W$4,'4(A) Billing Determinants_ALL'!$B$19:$P$40,4,0)/'4(A) Billing Determinants_ALL'!$E$40*$D7,IF($E7="kW",VLOOKUP(W$4,'4(A) Billing Determinants_ALL'!$B$19:$P$40,5,0)/'4(A) Billing Determinants_ALL'!$F$40*$D7,IF($E7="Non-RPP kWh",VLOOKUP(W$4,'4(A) Billing Determinants_ALL'!$B$19:$P$40,6,0)/'4(A) Billing Determinants_ALL'!$G$40*$D7,IF($E7="Distribution Rev.",VLOOKUP(W$4,'4(A) Billing Determinants_ALL'!$B$19:$P$40,8,0)/'4(A) Billing Determinants_ALL'!$I$40*$D7, VLOOKUP(W$4,'4(A) Billing Determinants_ALL'!$B$19:$P$40,3,0)/'4(A) Billing Determinants_ALL'!$D$40*$D7))))),0) -> 0
B8: RSVA - Retail Transmission Network Charge | C8: 1584 | D8: ='2. 2015 Continuity Schedule'!BM27 -> 1068652.753 | E8: kWh | F8: =IFERROR(IF(F$4="",0,IF($E8="kWh",VLOOKUP(F$4,'4(A) Billing Determinants_ALL'!$B$19:$P$40,4,0)/'4(A) Billing Determinants_ALL'!$E$40*$D8,IF($E8="kW",VLOOKUP(F$4,'4(A) Billing Determinants_ALL'!$B$19:$P$40,5,0)/'4(A) Billing Determinants_ALL'!$F$40*$D8,IF($E8="Non-RPP kWh",VLOOKUP(F$4,'4(A) Billing Determinants_ALL'!$B$19:$P$40,6,0)/'4(A) Billing Determinants_ALL'!$G$40*$D8,IF($E8="Distribution Rev.",VLOOKUP(F$4,'4(A) Billing Determinants_ALL'!$B$19:$P$40,8,0)/'4(A) Billing Determinants_ALL'!$I$40*$D8, VLOOKUP(F$4,'4(A) Billing Determinants_ALL'!$B$19:$P$40,3,0)/'4(A) Billing Determinants_ALL'!$D$40*$D8))))),0) -> 353441.4427 | G8: =IFERROR(IF(G$4="",0,IF($E8="kWh",VLOOKUP(G$4,'4(A) Billing Determinants_ALL'!$B$19:$P$40,4,0)/'4(A) Billing Determinants_ALL'!$E$40*$D8,IF($E8="kW",VLOOKUP(G$4,'4(A) Billing Determinants_ALL'!$B$19:$P$40,5,0)/'4(A) Billing Determinants_ALL'!$F$40*$D8,IF($E8="Non-RPP kWh",VLOOKUP(G$4,'4(A) Billing Determinants_ALL'!$B$19:$P$40,6,0)/'4(A) Billing Determinants_ALL'!$G$40*$D8,IF($E8="Distribution Rev.",VLOOKUP(G$4,'4(A) Billing Determinants_ALL'!$B$19:$P$40,8,0)/'4(A) Billing Determinants_ALL'!$I$40*$D8, VLOOKUP(G$4,'4(A) Billing Determinants_ALL'!$B$19:$P$40,3,0)/'4(A) Billing Determinants_ALL'!$D$40*$D8))))),0) -> 95817.49784 | H8: =IFERROR(IF(H$4="",0,IF($E8="kWh",VLOOKUP(H$4,'4(A) Billing Determinants_ALL'!$B$19:$P$40,4,0)/'4(A) Billing Determinants_ALL'!$E$40*$D8,IF($E8="kW",VLOOKUP(H$4,'4(A) Billing Determinants_ALL'!$B$19:$P$40,5,0)/'4(A) Billing Determinants_ALL'!$F$40*$D8,IF($E8="Non-RPP kWh",VLOOKUP(H$4,'4(A) Billing Determinants_ALL'!$B$19:$P$40,6,0)/'4(A) Billing Determinants_ALL'!$G$40*$D8,IF($E8="Distribution Rev.",VLOOKUP(H$4,'4(A) Billing Determinants_ALL'!$B$19:$P$40,8,0)/'4(A) Billing Determinants_ALL'!$I$40*$D8, VLOOKUP(H$4,'4(A) Billing Determinants_ALL'!$B$19:$P$40,3,0)/'4(A) Billing Determinants_ALL'!$D$40*$D8))))),0) -> 287585.139 | I8: =IFERROR(IF(I$4="",0,IF($E8="kWh",VLOOKUP(I$4,'4(A) Billing Determinants_ALL'!$B$19:$P$40,4,0)/'4(A) Billing Determinants_ALL'!$E$40*$D8,IF($E8="kW",VLOOKUP(I$4,'4(A) Billing Determinants_ALL'!$B$19:$P$40,5,0)/'4(A) Billing Determinants_ALL'!$F$40*$D8,IF($E8="Non-RPP kWh",VLOOKUP(I$4,'4(A) Billing Determinants_ALL'!$B$19:$P$40,6,0)/'4(A) Billing Determinants_ALL'!$G$40*$D8,IF($E8="Distribution Rev.",VLOOKUP(I$4,'4(A) Billing Determinants_ALL'!$B$19:$P$40,8,0)/'4(A) Billing Determinants_ALL'!$I$40*$D8, VLOOKUP(I$4,'4(A) Billing Determinants_ALL'!$B$19:$P$40,3,0)/'4(A) Billing Determinants_ALL'!$D$40*$D8))))),0) -> 217790.9675 | J8: =IFERROR(IF(J$4="",0,IF($E8="kWh",VLOOKUP(J$4,'4(A) Billing Determinants_ALL'!$B$19:$P$40,4,0)/'4(A) Billing Determinants_ALL'!$E$40*$D8,IF($E8="kW",VLOOKUP(J$4,'4(A) Billing Determinants_ALL'!$B$19:$P$40,5,0)/'4(A) Billing Determinants_ALL'!$F$40*$D8,IF($E8="Non-RPP kWh",VLOOKUP(J$4,'4(A) Billing Determinants_ALL'!$B$19:$P$40,6,0)/'4(A) Billing Determinants_ALL'!$G$40*$D8,IF($E8="Distribution Rev.",VLOOKUP(J$4,'4(A) Billing Determinants_ALL'!$B$19:$P$40,8,0)/'4(A) Billing Determinants_ALL'!$I$40*$D8, VLOOKUP(J$4,'4(A) Billing Determinants_ALL'!$B$19:$P$40,3,0)/'4(A) Billing Determinants_ALL'!$D$40*$D8))))),0) -> 103368.6559 | K8: =IFERROR(IF(K$4="",0,IF($E8="kWh",VLOOKUP(K$4,'4(A) Billing Determinants_ALL'!$B$19:$P$40,4,0)/'4(A) Billing Determinants_ALL'!$E$40*$D8,IF($E8="kW",VLOOKUP(K$4,'4(A) Billing Determinants_ALL'!$B$19:$P$40,5,0)/'4(A) Billing Determinants_ALL'!$F$40*$D8,IF($E8="Non-RPP kWh",VLOOKUP(K$4,'4(A) Billing Determinants_ALL'!$B$19:$P$40,6,0)/'4(A) Billing Determinants_ALL'!$G$40*$D8,IF($E8="Distribution Rev.",VLOOKUP(K$4,'4(A) Billing Determinants_ALL'!$B$19:$P$40,8,0)/'4(A) Billing Determinants_ALL'!$I$40*$D8, VLOOKUP(K$4,'4(A) Billing Determinants_ALL'!$B$19:$P$40,3,0)/'4(A) Billing Determinants_ALL'!$D$40*$D8))))),0) -> 1602.519568 | L8: =IFERROR(IF(L$4="",0,IF($E8="kWh",VLOOKUP(L$4,'4(A) Billing Determinants_ALL'!$B$19:$P$40,4,0)/'4(A) Billing Determinants_ALL'!$E$40*$D8,IF($E8="kW",VLOOKUP(L$4,'4(A) Billing Determinants_ALL'!$B$19:$P$40,5,0)/'4(A) Billing Determinants_ALL'!$F$40*$D8,IF($E8="Non-RPP kWh",VLOOKUP(L$4,'4(A) Billing Determinants_ALL'!$B$19:$P$40,6,0)/'4(A) Billing Determinants_ALL'!$G$40*$D8,IF($E8="Distribution Rev.",VLOOKUP(L$4,'4(A) Billing Determinants_ALL'!$B$19:$P$40,8,0)/'4(A) Billing Determinants_ALL'!$I$40*$D8, VLOOKUP(L$4,'4(A) Billing Determinants_ALL'!$B$19:$P$40,3,0)/'4(A) Billing Determinants_ALL'!$D$40*$D8))))),0) -> 8998.221476 | M8: =IFERROR(IF(M$4="",0,IF($E8="kWh",VLOOKUP(M$4,'4(A) Billing Determinants_ALL'!$B$19:$P$40,4,0)/'4(A) Billing Determinants_ALL'!$E$40*$D8,IF($E8="kW",VLOOKUP(M$4,'4(A) Billing Determinants_ALL'!$B$19:$P$40,5,0)/'4(A) Billing Determinants_ALL'!$F$40*$D8,IF($E8="Non-RPP kWh",VLOOKUP(M$4,'4(A) Billing Determinants_ALL'!$B$19:$P$40,6,0)/'4(A) Billing Determinants_ALL'!$G$40*$D8,IF($E8="Distribution Rev.",VLOOKUP(M$4,'4(A) Billing Determinants_ALL'!$B$19:$P$40,8,0)/'4(A) Billing Determinants_ALL'!$I$40*$D8, VLOOKUP(M$4,'4(A) Billing Determinants_ALL'!$B$19:$P$40,3,0)/'4(A) Billing Determinants_ALL'!$D$40*$D8))))),0) -> 48.30896544 | N8: =IFERROR(IF(N$4="",0,IF($E8="kWh",VLOOKUP(N$4,'4(A) Billing Determinants_ALL'!$B$19:$P$40,4,0)/'4(A) Billing Determinants_ALL'!$E$40*$D8,IF($E8="kW",VLOOKUP(N$4,'4(A) Billing Determinants_ALL'!$B$19:$P$40,5,0)/'4(A) Billing Determinants_ALL'!$F$40*$D8,IF($E8="Non-RPP kWh",VLOOKUP(N$4,'4(A) Billing Determinants_ALL'!$B$19:$P$40,6,0)/'4(A) Billing Determinants_ALL'!$G$40*$D8,IF($E8="Distribution Rev.",VLOOKUP(N$4,'4(A) Billing Determinants_ALL'!$B$19:$P$40,8,0)/'4(A) Billing Determinants_ALL'!$I$40*$D8, VLOOKUP(N$4,'4(A) Billing Determinants_ALL'!$B$19:$P$40,3,0)/'4(A) Billing Determinants_ALL'!$D$40*$D8))))),0) -> 0 | O8: =IFERROR(IF(O$4="",0,IF($E8="kWh",VLOOKUP(O$4,'4(A) Billing Determinants_ALL'!$B$19:$P$40,4,0)/'4(A) Billing Determinants_ALL'!$E$40*$D8,IF($E8="kW",VLOOKUP(O$4,'4(A) Billing Determinants_ALL'!$B$19:$P$40,5,0)/'4(A) Billing Determinants_ALL'!$F$40*$D8,IF($E8="Non-RPP kWh",VLOOKUP(O$4,'4(A) Billing Determinants_ALL'!$B$19:$P$40,6,0)/'4(A) Billing Determinants_ALL'!$G$40*$D8,IF($E8="Distribution Rev.",VLOOKUP(O$4,'4(A) Billing Determinants_ALL'!$B$19:$P$40,8,0)/'4(A) Billing Determinants_ALL'!$I$40*$D8, VLOOKUP(O$4,'4(A) Billing Determinants_ALL'!$B$19:$P$40,3,0)/'4(A) Billing Determinants_ALL'!$D$40*$D8))))),0) -> 0 | P8: =IFERROR(IF(P$4="",0,IF($E8="kWh",VLOOKUP(P$4,'4(A) Billing Determinants_ALL'!$B$19:$P$40,4,0)/'4(A) Billing Determinants_ALL'!$E$40*$D8,IF($E8="kW",VLOOKUP(P$4,'4(A) Billing Determinants_ALL'!$B$19:$P$40,5,0)/'4(A) Billing Determinants_ALL'!$F$40*$D8,IF($E8="Non-RPP kWh",VLOOKUP(P$4,'4(A) Billing Determinants_ALL'!$B$19:$P$40,6,0)/'4(A) Billing Determinants_ALL'!$G$40*$D8,IF($E8="Distribution Rev.",VLOOKUP(P$4,'4(A) Billing Determinants_ALL'!$B$19:$P$40,8,0)/'4(A) Billing Determinants_ALL'!$I$40*$D8, VLOOKUP(P$4,'4(A) Billing Determinants_ALL'!$B$19:$P$40,3,0)/'4(A) Billing Determinants_ALL'!$D$40*$D8))))),0) -> 0 | Q8: =IFERROR(IF(Q$4="",0,IF($E8="kWh",VLOOKUP(Q$4,'4(A) Billing Determinants_ALL'!$B$19:$P$40,4,0)/'4(A) Billing Determinants_ALL'!$E$40*$D8,IF($E8="kW",VLOOKUP(Q$4,'4(A) Billing Determinants_ALL'!$B$19:$P$40,5,0)/'4(A) Billing Determinants_ALL'!$F$40*$D8,IF($E8="Non-RPP kWh",VLOOKUP(Q$4,'4(A) Billing Determinants_ALL'!$B$19:$P$40,6,0)/'4(A) Billing Determinants_ALL'!$G$40*$D8,IF($E8="Distribution Rev.",VLOOKUP(Q$4,'4(A) Billing Determinants_ALL'!$B$19:$P$40,8,0)/'4(A) Billing Determinants_ALL'!$I$40*$D8, VLOOKUP(Q$4,'4(A) Billing Determinants_ALL'!$B$19:$P$40,3,0)/'4(A) Billing Determinants_ALL'!$D$40*$D8))))),0) -> 0 | R8: =IFERROR(IF(R$4="",0,IF($E8="kWh",VLOOKUP(R$4,'4(A) Billing Determinants_ALL'!$B$19:$P$40,4,0)/'4(A) Billing Determinants_ALL'!$E$40*$D8,IF($E8="kW",VLOOKUP(R$4,'4(A) Billing Determinants_ALL'!$B$19:$P$40,5,0)/'4(A) Billing Determinants_ALL'!$F$40*$D8,IF($E8="Non-RPP kWh",VLOOKUP(R$4,'4(A) Billing Determinants_ALL'!$B$19:$P$40,6,0)/'4(A) Billing Determinants_ALL'!$G$40*$D8,IF($E8="Distribution Rev.",VLOOKUP(R$4,'4(A) Billing Determinants_ALL'!$B$19:$P$40,8,0)/'4(A) Billing Determinants_ALL'!$I$40*$D8, VLOOKUP(R$4,'4(A) Billing Determinants_ALL'!$B$19:$P$40,3,0)/'4(A) Billing Determinants_ALL'!$D$40*$D8))))),0) -> 0 | S8: =IFERROR(IF(S$4="",0,IF($E8="kWh",VLOOKUP(S$4,'4(A) Billing Determinants_ALL'!$B$19:$P$40,4,0)/'4(A) Billing Determinants_ALL'!$E$40*$D8,IF($E8="kW",VLOOKUP(S$4,'4(A) Billing Determinants_ALL'!$B$19:$P$40,5,0)/'4(A) Billing Determinants_ALL'!$F$40*$D8,IF($E8="Non-RPP kWh",VLOOKUP(S$4,'4(A) Billing Determinants_ALL'!$B$19:$P$40,6,0)/'4(A) Billing Determinants_ALL'!$G$40*$D8,IF($E8="Distribution Rev.",VLOOKUP(S$4,'4(A) Billing Determinants_ALL'!$B$19:$P$40,8,0)/'4(A) Billing Determinants_ALL'!$I$40*$D8, VLOOKUP(S$4,'4(A) Billing Determinants_ALL'!$B$19:$P$40,3,0)/'4(A) Billing Determinants_ALL'!$D$40*$D8))))),0) -> 0 | T8: =IFERROR(IF(T$4="",0,IF($E8="kWh",VLOOKUP(T$4,'4(A) Billing Determinants_ALL'!$B$19:$P$40,4,0)/'4(A) Billing Determinants_ALL'!$E$40*$D8,IF($E8="kW",VLOOKUP(T$4,'4(A) Billing Determinants_ALL'!$B$19:$P$40,5,0)/'4(A) Billing Determinants_ALL'!$F$40*$D8,IF($E8="Non-RPP kWh",VLOOKUP(T$4,'4(A) Billing Determinants_ALL'!$B$19:$P$40,6,0)/'4(A) Billing Determinants_ALL'!$G$40*$D8,IF($E8="Distribution Rev.",VLOOKUP(T$4,'4(A) Billing Determinants_ALL'!$B$19:$P$40,8,0)/'4(A) Billing Determinants_ALL'!$I$40*$D8, VLOOKUP(T$4,'4(A) Billing Determinants_ALL'!$B$19:$P$40,3,0)/'4(A) Billing Determinants_ALL'!$D$40*$D8))))),0) -> 0 | U8: =IFERROR(IF(U$4="",0,IF($E8="kWh",VLOOKUP(U$4,'4(A) Billing Determinants_ALL'!$B$19:$P$40,4,0)/'4(A) Billing Determinants_ALL'!$E$40*$D8,IF($E8="kW",VLOOKUP(U$4,'4(A) Billing Determinants_ALL'!$B$19:$P$40,5,0)/'4(A) Billing Determinants_ALL'!$F$40*$D8,IF($E8="Non-RPP kWh",VLOOKUP(U$4,'4(A) Billing Determinants_ALL'!$B$19:$P$40,6,0)/'4(A) Billing Determinants_ALL'!$G$40*$D8,IF($E8="Distribution Rev.",VLOOKUP(U$4,'4(A) Billing Determinants_ALL'!$B$19:$P$40,8,0)/'4(A) Billing Determinants_ALL'!$I$40*$D8, VLOOKUP(U$4,'4(A) Billing Determinants_ALL'!$B$19:$P$40,3,0)/'4(A) Billing Determinants_ALL'!$D$40*$D8))))),0) -> 0 | V8: =IFERROR(IF(V$4="",0,IF($E8="kWh",VLOOKUP(V$4,'4(A) Billing Determinants_ALL'!$B$19:$P$40,4,0)/'4(A) Billing Determinants_ALL'!$E$40*$D8,IF($E8="kW",VLOOKUP(V$4,'4(A) Billing Determinants_ALL'!$B$19:$P$40,5,0)/'4(A) Billing Determinants_ALL'!$F$40*$D8,IF($E8="Non-RPP kWh",VLOOKUP(V$4,'4(A) Billing Determinants_ALL'!$B$19:$P$40,6,0)/'4(A) Billing Determinants_ALL'!$G$40*$D8,IF($E8="Distribution Rev.",VLOOKUP(V$4,'4(A) Billing Determinants_ALL'!$B$19:$P$40,8,0)/'4(A) Billing Determinants_ALL'!$I$40*$D8, VLOOKUP(V$4,'4(A) Billing Determinants_ALL'!$B$19:$P$40,3,0)/'4(A) Billing Determinants_ALL'!$D$40*$D8))))),0) -> 0 | W8: =IFERROR(IF(W$4="",0,IF($E8="kWh",VLOOKUP(W$4,'4(A) Billing Determinants_ALL'!$B$19:$P$40,4,0)/'4(A) Billing Determinants_ALL'!$E$40*$D8,IF($E8="kW",VLOOKUP(W$4,'4(A) Billing Determinants_ALL'!$B$19:$P$40,5,0)/'4(A) Billing Determinants_ALL'!$F$40*$D8,IF($E8="Non-RPP kWh",VLOOKUP(W$4,'4(A) Billing Determinants_ALL'!$B$19:$P$40,6,0)/'4(A) Billing Determinants_ALL'!$G$40*$D8,IF($E8="Distribution Rev.",VLOOKUP(W$4,'4(A) Billing Determinants_ALL'!$B$19:$P$40,8,0)/'4(A) Billing Determinants_ALL'!$I$40*$D8, VLOOKUP(W$4,'4(A) Billing Determinants_ALL'!$B$19:$P$40,3,0)/'4(A) Billing Determinants_ALL'!$D$40*$D8))))),0) -> 0
B9: RSVA - Retail Transmission Connection Charge | C9: 1586 | D9: ='2. 2015 Continuity Schedule'!BM28 -> -308042.1111 | E9: kWh | F9: =IFERROR(IF(F$4="",0,IF($E9="kWh",VLOOKUP(F$4,'4(A) Billing Determinants_ALL'!$B$19:$P$40,4,0)/'4(A) Billing Determinants_ALL'!$E$40*$D9,IF($E9="kW",VLOOKUP(F$4,'4(A) Billing Determinants_ALL'!$B$19:$P$40,5,0)/'4(A) Billing Determinants_ALL'!$F$40*$D9,IF($E9="Non-RPP kWh",VLOOKUP(F$4,'4(A) Billing Determinants_ALL'!$B$19:$P$40,6,0)/'4(A) Billing Determinants_ALL'!$G$40*$D9,IF($E9="Distribution Rev.",VLOOKUP(F$4,'4(A) Billing Determinants_ALL'!$B$19:$P$40,8,0)/'4(A) Billing Determinants_ALL'!$I$40*$D9, VLOOKUP(F$4,'4(A) Billing Determinants_ALL'!$B$19:$P$40,3,0)/'4(A) Billing Determinants_ALL'!$D$40*$D9))))),0) -> -101880.4732 | G9: =IFERROR(IF(G$4="",0,IF($E9="kWh",VLOOKUP(G$4,'4(A) Billing Determinants_ALL'!$B$19:$P$40,4,0)/'4(A) Billing Determinants_ALL'!$E$40*$D9,IF($E9="kW",VLOOKUP(G$4,'4(A) Billing Determinants_ALL'!$B$19:$P$40,5,0)/'4(A) Billing Determinants_ALL'!$F$40*$D9,IF($E9="Non-RPP kWh",VLOOKUP(G$4,'4(A) Billing Determinants_ALL'!$B$19:$P$40,6,0)/'4(A) Billing Determinants_ALL'!$G$40*$D9,IF($E9="Distribution Rev.",VLOOKUP(G$4,'4(A) Billing Determinants_ALL'!$B$19:$P$40,8,0)/'4(A) Billing Determinants_ALL'!$I$40*$D9, VLOOKUP(G$4,'4(A) Billing Determinants_ALL'!$B$19:$P$40,3,0)/'4(A) Billing Determinants_ALL'!$D$40*$D9))))),0) -> -27619.65871 | H9: =IFERROR(IF(H$4="",0,IF($E9="kWh",VLOOKUP(H$4,'4(A) Billing Determinants_ALL'!$B$19:$P$40,4,0)/'4(A) Billing Determinants_ALL'!$E$40*$D9,IF($E9="kW",VLOOKUP(H$4,'4(A) Billing Determinants_ALL'!$B$19:$P$40,5,0)/'4(A) Billing Determinants_ALL'!$F$40*$D9,IF($E9="Non-RPP kWh",VLOOKUP(H$4,'4(A) Billing Determinants_ALL'!$B$19:$P$40,6,0)/'4(A) Billing Determinants_ALL'!$G$40*$D9,IF($E9="Distribution Rev.",VLOOKUP(H$4,'4(A) Billing Determinants_ALL'!$B$19:$P$40,8,0)/'4(A) Billing Determinants_ALL'!$I$40*$D9, VLOOKUP(H$4,'4(A) Billing Determinants_ALL'!$B$19:$P$40,3,0)/'4(A) Billing Determinants_ALL'!$D$40*$D9))))),0) -> -82897.21156 | I9: =IFERROR(IF(I$4="",0,IF($E9="kWh",VLOOKUP(I$4,'4(A) Billing Determinants_ALL'!$B$19:$P$40,4,0)/'4(A) Billing Determinants_ALL'!$E$40*$D9,IF($E9="kW",VLOOKUP(I$4,'4(A) Billing Determinants_ALL'!$B$19:$P$40,5,0)/'4(A) Billing Determinants_ALL'!$F$40*$D9,IF($E9="Non-RPP kWh",VLOOKUP(I$4,'4(A) Billing Determinants_ALL'!$B$19:$P$40,6,0)/'4(A) Billing Determinants_ALL'!$G$40*$D9,IF($E9="Distribution Rev.",VLOOKUP(I$4,'4(A) Billing Determinants_ALL'!$B$19:$P$40,8,0)/'4(A) Billing Determinants_ALL'!$I$40*$D9, VLOOKUP(I$4,'4(A) Billing Determinants_ALL'!$B$19:$P$40,3,0)/'4(A) Billing Determinants_ALL'!$D$40*$D9))))),0) -> -62778.84863 | J9: =IFERROR(IF(J$4="",0,IF($E9="kWh",VLOOKUP(J$4,'4(A) Billing Determinants_ALL'!$B$19:$P$40,4,0)/'4(A) Billing Determinants_ALL'!$E$40*$D9,IF($E9="kW",VLOOKUP(J$4,'4(A) Billing Determinants_ALL'!$B$19:$P$40,5,0)/'4(A) Billing Determinants_ALL'!$F$40*$D9,IF($E9="Non-RPP kWh",VLOOKUP(J$4,'4(A) Billing Determinants_ALL'!$B$19:$P$40,6,0)/'4(A) Billing Determinants_ALL'!$G$40*$D9,IF($E9="Distribution Rev.",VLOOKUP(J$4,'4(A) Billing Determinants_ALL'!$B$19:$P$40,8,0)/'4(A) Billing Determinants_ALL'!$I$40*$D9, VLOOKUP(J$4,'4(A) Billing Determinants_ALL'!$B$19:$P$40,3,0)/'4(A) Billing Determinants_ALL'!$D$40*$D9))))),0) -> -29796.3009 | K9: =IFERROR(IF(K$4="",0,IF($E9="kWh",VLOOKUP(K$4,'4(A) Billing Determinants_ALL'!$B$19:$P$40,4,0)/'4(A) Billing Determinants_ALL'!$E$40*$D9,IF($E9="kW",VLOOKUP(K$4,'4(A) Billing Determinants_ALL'!$B$19:$P$40,5,0)/'4(A) Billing Determinants_ALL'!$F$40*$D9,IF($E9="Non-RPP kWh",VLOOKUP(K$4,'4(A) Billing Determinants_ALL'!$B$19:$P$40,6,0)/'4(A) Billing Determinants_ALL'!$G$40*$D9,IF($E9="Distribution Rev.",VLOOKUP(K$4,'4(A) Billing Determinants_ALL'!$B$19:$P$40,8,0)/'4(A) Billing Determinants_ALL'!$I$40*$D9, VLOOKUP(K$4,'4(A) Billing Determinants_ALL'!$B$19:$P$40,3,0)/'4(A) Billing Determinants_ALL'!$D$40*$D9))))),0) -> -461.9306969 | L9: =IFERROR(IF(L$4="",0,IF($E9="kWh",VLOOKUP(L$4,'4(A) Billing Determinants_ALL'!$B$19:$P$40,4,0)/'4(A) Billing Determinants_ALL'!$E$40*$D9,IF($E9="kW",VLOOKUP(L$4,'4(A) Billing Determinants_ALL'!$B$19:$P$40,5,0)/'4(A) Billing Determinants_ALL'!$F$40*$D9,IF($E9="Non-RPP kWh",VLOOKUP(L$4,'4(A) Billing Determinants_ALL'!$B$19:$P$40,6,0)/'4(A) Billing Determinants_ALL'!$G$40*$D9,IF($E9="Distribution Rev.",VLOOKUP(L$4,'4(A) Billing Determinants_ALL'!$B$19:$P$40,8,0)/'4(A) Billing Determinants_ALL'!$I$40*$D9, VLOOKUP(L$4,'4(A) Billing Determinants_ALL'!$B$19:$P$40,3,0)/'4(A) Billing Determinants_ALL'!$D$40*$D9))))),0) -> -2593.762223 | M9: =IFERROR(IF(M$4="",0,IF($E9="kWh",VLOOKUP(M$4,'4(A) Billing Determinants_ALL'!$B$19:$P$40,4,0)/'4(A) Billing Determinants_ALL'!$E$40*$D9,IF($E9="kW",VLOOKUP(M$4,'4(A) Billing Determinants_ALL'!$B$19:$P$40,5,0)/'4(A) Billing Determinants_ALL'!$F$40*$D9,IF($E9="Non-RPP kWh",VLOOKUP(M$4,'4(A) Billing Determinants_ALL'!$B$19:$P$40,6,0)/'4(A) Billing Determinants_ALL'!$G$40*$D9,IF($E9="Distribution Rev.",VLOOKUP(M$4,'4(A) Billing Determinants_ALL'!$B$19:$P$40,8,0)/'4(A) Billing Determinants_ALL'!$I$40*$D9, VLOOKUP(M$4,'4(A) Billing Determinants_ALL'!$B$19:$P$40,3,0)/'4(A) Billing Determinants_ALL'!$D$40*$D9))))),0) -> -13.92519288 | N9: =IFERROR(IF(N$4="",0,IF($E9="kWh",VLOOKUP(N$4,'4(A) Billing Determinants_ALL'!$B$19:$P$40,4,0)/'4(A) Billing Determinants_ALL'!$E$40*$D9,IF($E9="kW",VLOOKUP(N$4,'4(A) Billing Determinants_ALL'!$B$19:$P$40,5,0)/'4(A) Billing Determinants_ALL'!$F$40*$D9,IF($E9="Non-RPP kWh",VLOOKUP(N$4,'4(A) Billing Determinants_ALL'!$B$19:$P$40,6,0)/'4(A) Billing Determinants_ALL'!$G$40*$D9,IF($E9="Distribution Rev.",VLOOKUP(N$4,'4(A) Billing Determinants_ALL'!$B$19:$P$40,8,0)/'4(A) Billing Determinants_ALL'!$I$40*$D9, VLOOKUP(N$4,'4(A) Billing Determinants_ALL'!$B$19:$P$40,3,0)/'4(A) Billing Determinants_ALL'!$D$40*$D9))))),0) -> 0 | O9: =IFERROR(IF(O$4="",0,IF($E9="kWh",VLOOKUP(O$4,'4(A) Billing Determinants_ALL'!$B$19:$P$40,4,0)/'4(A) Billing Determinants_ALL'!$E$40*$D9,IF($E9="kW",VLOOKUP(O$4,'4(A) Billing Determinants_ALL'!$B$19:$P$40,5,0)/'4(A) Billing Determinants_ALL'!$F$40*$D9,IF($E9="Non-RPP kWh",VLOOKUP(O$4,'4(A) Billing Determinants_ALL'!$B$19:$P$40,6,0)/'4(A) Billing Determinants_ALL'!$G$40*$D9,IF($E9="Distribution Rev.",VLOOKUP(O$4,'4(A) Billing Determinants_ALL'!$B$19:$P$40,8,0)/'4(A) Billing Determinants_ALL'!$I$40*$D9, VLOOKUP(O$4,'4(A) Billing Determinants_ALL'!$B$19:$P$40,3,0)/'4(A) Billing Determinants_ALL'!$D$40*$D9))))),0) -> 0 | P9: =IFERROR(IF(P$4="",0,IF($E9="kWh",VLOOKUP(P$4,'4(A) Billing Determinants_ALL'!$B$19:$P$40,4,0)/'4(A) Billing Determinants_ALL'!$E$40*$D9,IF($E9="kW",VLOOKUP(P$4,'4(A) Billing Determinants_ALL'!$B$19:$P$40,5,0)/'4(A) Billing Determinants_ALL'!$F$40*$D9,IF($E9="Non-RPP kWh",VLOOKUP(P$4,'4(A) Billing Determinants_ALL'!$B$19:$P$40,6,0)/'4(A) Billing Determinants_ALL'!$G$40*$D9,IF($E9="Distribution Rev.",VLOOKUP(P$4,'4(A) Billing Determinants_ALL'!$B$19:$P$40,8,0)/'4(A) Billing Determinants_ALL'!$I$40*$D9, VLOOKUP(P$4,'4(A) Billing Determinants_ALL'!$B$19:$P$40,3,0)/'4(A) Billing Determinants_ALL'!$D$40*$D9))))),0) -> 0 | Q9: =IFERROR(IF(Q$4="",0,IF($E9="kWh",VLOOKUP(Q$4,'4(A) Billing Determinants_ALL'!$B$19:$P$40,4,0)/'4(A) Billing Determinants_ALL'!$E$40*$D9,IF($E9="kW",VLOOKUP(Q$4,'4(A) Billing Determinants_ALL'!$B$19:$P$40,5,0)/'4(A) Billing Determinants_ALL'!$F$40*$D9,IF($E9="Non-RPP kWh",VLOOKUP(Q$4,'4(A) Billing Determinants_ALL'!$B$19:$P$40,6,0)/'4(A) Billing Determinants_ALL'!$G$40*$D9,IF($E9="Distribution Rev.",VLOOKUP(Q$4,'4(A) Billing Determinants_ALL'!$B$19:$P$40,8,0)/'4(A) Billing Determinants_ALL'!$I$40*$D9, VLOOKUP(Q$4,'4(A) Billing Determinants_ALL'!$B$19:$P$40,3,0)/'4(A) Billing Determinants_ALL'!$D$40*$D9))))),0) -> 0 | R9: =IFERROR(IF(R$4="",0,IF($E9="kWh",VLOOKUP(R$4,'4(A) Billing Determinants_ALL'!$B$19:$P$40,4,0)/'4(A) Billing Determinants_ALL'!$E$40*$D9,IF($E9="kW",VLOOKUP(R$4,'4(A) Billing Determinants_ALL'!$B$19:$P$40,5,0)/'4(A) Billing Determinants_ALL'!$F$40*$D9,IF($E9="Non-RPP kWh",VLOOKUP(R$4,'4(A) Billing Determinants_ALL'!$B$19:$P$40,6,0)/'4(A) Billing Determinants_ALL'!$G$40*$D9,IF($E9="Distribution Rev.",VLOOKUP(R$4,'4(A) Billing Determinants_ALL'!$B$19:$P$40,8,0)/'4(A) Billing Determinants_ALL'!$I$40*$D9, VLOOKUP(R$4,'4(A) Billing Determinants_ALL'!$B$19:$P$40,3,0)/'4(A) Billing Determinants_ALL'!$D$40*$D9))))),0) -> 0 | S9: =IFERROR(IF(S$4="",0,IF($E9="kWh",VLOOKUP(S$4,'4(A) Billing Determinants_ALL'!$B$19:$P$40,4,0)/'4(A) Billing Determinants_ALL'!$E$40*$D9,IF($E9="kW",VLOOKUP(S$4,'4(A) Billing Determinants_ALL'!$B$19:$P$40,5,0)/'4(A) Billing Determinants_ALL'!$F$40*$D9,IF($E9="Non-RPP kWh",VLOOKUP(S$4,'4(A) Billing Determinants_ALL'!$B$19:$P$40,6,0)/'4(A) Billing Determinants_ALL'!$G$40*$D9,IF($E9="Distribution Rev.",VLOOKUP(S$4,'4(A) Billing Determinants_ALL'!$B$19:$P$40,8,0)/'4(A) Billing Determinants_ALL'!$I$40*$D9, VLOOKUP(S$4,'4(A) Billing Determinants_ALL'!$B$19:$P$40,3,0)/'4(A) Billing Determinants_ALL'!$D$40*$D9))))),0) -> 0 | T9: =IFERROR(IF(T$4="",0,IF($E9="kWh",VLOOKUP(T$4,'4(A) Billing Determinants_ALL'!$B$19:$P$40,4,0)/'4(A) Billing Determinants_ALL'!$E$40*$D9,IF($E9="kW",VLOOKUP(T$4,'4(A) Billing Determinants_ALL'!$B$19:$P$40,5,0)/'4(A) Billing Determinants_ALL'!$F$40*$D9,IF($E9="Non-RPP kWh",VLOOKUP(T$4,'4(A) Billing Determinants_ALL'!$B$19:$P$40,6,0)/'4(A) Billing Determinants_ALL'!$G$40*$D9,IF($E9="Distribution Rev.",VLOOKUP(T$4,'4(A) Billing Determinants_ALL'!$B$19:$P$40,8,0)/'4(A) Billing Determinants_ALL'!$I$40*$D9, VLOOKUP(T$4,'4(A) Billing Determinants_ALL'!$B$19:$P$40,3,0)/'4(A) Billing Determinants_ALL'!$D$40*$D9))))),0) -> 0 | U9: =IFERROR(IF(U$4="",0,IF($E9="kWh",VLOOKUP(U$4,'4(A) Billing Determinants_ALL'!$B$19:$P$40,4,0)/'4(A) Billing Determinants_ALL'!$E$40*$D9,IF($E9="kW",VLOOKUP(U$4,'4(A) Billing Determinants_ALL'!$B$19:$P$40,5,0)/'4(A) Billing Determinants_ALL'!$F$40*$D9,IF($E9="Non-RPP kWh",VLOOKUP(U$4,'4(A) Billing Determinants_ALL'!$B$19:$P$40,6,0)/'4(A) Billing Determinants_ALL'!$G$40*$D9,IF($E9="Distribution Rev.",VLOOKUP(U$4,'4(A) Billing Determinants_ALL'!$B$19:$P$40,8,0)/'4(A) Billing Determinants_ALL'!$I$40*$D9, VLOOKUP(U$4,'4(A) Billing Determinants_ALL'!$B$19:$P$40,3,0)/'4(A) Billing Determinants_ALL'!$D$40*$D9))))),0) -> 0 | V9: =IFERROR(IF(V$4="",0,IF($E9="kWh",VLOOKUP(V$4,'4(A) Billing Determinants_ALL'!$B$19:$P$40,4,0)/'4(A) Billing Determinants_ALL'!$E$40*$D9,IF($E9="kW",VLOOKUP(V$4,'4(A) Billing Determinants_ALL'!$B$19:$P$40,5,0)/'4(A) Billing Determinants_ALL'!$F$40*$D9,IF($E9="Non-RPP kWh",VLOOKUP(V$4,'4(A) Billing Determinants_ALL'!$B$19:$P$40,6,0)/'4(A) Billing Determinants_ALL'!$G$40*$D9,IF($E9="Distribution Rev.",VLOOKUP(V$4,'4(A) Billing Determinants_ALL'!$B$19:$P$40,8,0)/'4(A) Billing Determinants_ALL'!$I$40*$D9, VLOOKUP(V$4,'4(A) Billing Determinants_ALL'!$B$19:$P$40,3,0)/'4(A) Billing Determinants_ALL'!$D$40*$D9))))),0) -> 0 | W9: =IFERROR(IF(W$4="",0,IF($E9="kWh",VLOOKUP(W$4,'4(A) Billing Determinants_ALL'!$B$19:$P$40,4,0)/'4(A) Billing Determinants_ALL'!$E$40*$D9,IF($E9="kW",VLOOKUP(W$4,'4(A) Billing Determinants_ALL'!$B$19:$P$40,5,0)/'4(A) Billing Determinants_ALL'!$F$40*$D9,IF($E9="Non-RPP kWh",VLOOKUP(W$4,'4(A) Billing Determinants_ALL'!$B$19:$P$40,6,0)/'4(A) Billing Determinants_ALL'!$G$40*$D9,IF($E9="Distribution Rev.",VLOOKUP(W$4,'4(A) Billing Determinants_ALL'!$B$19:$P$40,8,0)/'4(A) Billing Determinants_ALL'!$I$40*$D9, VLOOKUP(W$4,'4(A) Billing Determinants_ALL'!$B$19:$P$40,3,0)/'4(A) Billing Determinants_ALL'!$D$40*$D9))))),0) -> 0
B10: RSVA - Power (excluding Global Adjustment) | C10: 1588 | D10: ='2. 2015 Continuity Schedule'!BM29 -> -1571539.273 | E10: kWh | F10: =IFERROR(IF(F$4="",0,IF($E10="kWh",VLOOKUP(F$4,'4(A) Billing Determinants_ALL'!$B$19:$P$40,4,0)/'4(A) Billing Determinants_ALL'!$E$40*$D10,IF($E10="kW",VLOOKUP(F$4,'4(A) Billing Determinants_ALL'!$B$19:$P$40,5,0)/'4(A) Billing Determinants_ALL'!$F$40*$D10,IF($E10="Non-RPP kWh",VLOOKUP(F$4,'4(A) Billing Determinants_ALL'!$B$19:$P$40,6,0)/'4(A) Billing Determinants_ALL'!$G$40*$D10,IF($E10="Distribution Rev.",VLOOKUP(F$4,'4(A) Billing Determinants_ALL'!$B$19:$P$40,8,0)/'4(A) Billing Determinants_ALL'!$I$40*$D10, VLOOKUP(F$4,'4(A) Billing Determinants_ALL'!$B$19:$P$40,3,0)/'4(A) Billing Determinants_ALL'!$D$40*$D10))))),0) -> -519763.8865 | G10: =IFERROR(IF(G$4="",0,IF($E10="kWh",VLOOKUP(G$4,'4(A) Billing Determinants_ALL'!$B$19:$P$40,4,0)/'4(A) Billing Determinants_ALL'!$E$40*$D10,IF($E10="kW",VLOOKUP(G$4,'4(A) Billing Determinants_ALL'!$B$19:$P$40,5,0)/'4(A) Billing Determinants_ALL'!$F$40*$D10,IF($E10="Non-RPP kWh",VLOOKUP(G$4,'4(A) Billing Determinants_ALL'!$B$19:$P$40,6,0)/'4(A) Billing Determinants_ALL'!$G$40*$D10,IF($E10="Distribution Rev.",VLOOKUP(G$4,'4(A) Billing Determinants_ALL'!$B$19:$P$40,8,0)/'4(A) Billing Determinants_ALL'!$I$40*$D10, VLOOKUP(G$4,'4(A) Billing Determinants_ALL'!$B$19:$P$40,3,0)/'4(A) Billing Determinants_ALL'!$D$40*$D10))))),0) -> -140907.2877 | H10: =IFERROR(IF(H$4="",0,IF($E10="kWh",VLOOKUP(H$4,'4(A) Billing Determinants_ALL'!$B$19:$P$40,4,0)/'4(A) Billing Determinants_ALL'!$E$40*$D10,IF($E10="kW",VLOOKUP(H$4,'4(A) Billing Determinants_ALL'!$B$19:$P$40,5,0)/'4(A) Billing Determinants_ALL'!$F$40*$D10,IF($E10="Non-RPP kWh",VLOOKUP(H$4,'4(A) Billing Determinants_ALL'!$B$19:$P$40,6,0)/'4(A) Billing Determinants_ALL'!$G$40*$D10,IF($E10="Distribution Rev.",VLOOKUP(H$4,'4(A) Billing Determinants_ALL'!$B$19:$P$40,8,0)/'4(A) Billing Determinants_ALL'!$I$40*$D10, VLOOKUP(H$4,'4(A) Billing Determinants_ALL'!$B$19:$P$40,3,0)/'4(A) Billing Determinants_ALL'!$D$40*$D10))))),0) -> -422916.9289 | I10: =IFERROR(IF(I$4="",0,IF($E10="kWh",VLOOKUP(I$4,'4(A) Billing Determinants_ALL'!$B$19:$P$40,4,0)/'4(A) Billing Determinants_ALL'!$E$40*$D10,IF($E10="kW",VLOOKUP(I$4,'4(A) Billing Determinants_ALL'!$B$19:$P$40,5,0)/'4(A) Billing Determinants_ALL'!$F$40*$D10,IF($E10="Non-RPP kWh",VLOOKUP(I$4,'4(A) Billing Determinants_ALL'!$B$19:$P$40,6,0)/'4(A) Billing Determinants_ALL'!$G$40*$D10,IF($E10="Distribution Rev.",VLOOKUP(I$4,'4(A) Billing Determinants_ALL'!$B$19:$P$40,8,0)/'4(A) Billing Determinants_ALL'!$I$40*$D10, VLOOKUP(I$4,'4(A) Billing Determinants_ALL'!$B$19:$P$40,3,0)/'4(A) Billing Determinants_ALL'!$D$40*$D10))))),0) -> -320279.0222 | J10: =IFERROR(IF(J$4="",0,IF($E10="kWh",VLOOKUP(J$4,'4(A) Billing Determinants_ALL'!$B$19:$P$40,4,0)/'4(A) Billing Determinants_ALL'!$E$40*$D10,IF($E10="kW",VLOOKUP(J$4,'4(A) Billing Determinants_ALL'!$B$19:$P$40,5,0)/'4(A) Billing Determinants_ALL'!$F$40*$D10,IF($E10="Non-RPP kWh",VLOOKUP(J$4,'4(A) Billing Determinants_ALL'!$B$19:$P$40,6,0)/'4(A) Billing Determinants_ALL'!$G$40*$D10,IF($E10="Distribution Rev.",VLOOKUP(J$4,'4(A) Billing Determinants_ALL'!$B$19:$P$40,8,0)/'4(A) Billing Determinants_ALL'!$I$40*$D10, VLOOKUP(J$4,'4(A) Billing Determinants_ALL'!$B$19:$P$40,3,0)/'4(A) Billing Determinants_ALL'!$D$40*$D10))))),0) -> -152011.8691 | K10: =IFERROR(IF(K$4="",0,IF($E10="kWh",VLOOKUP(K$4,'4(A) Billing Determinants_ALL'!$B$19:$P$40,4,0)/'4(A) Billing Determinants_ALL'!$E$40*$D10,IF($E10="kW",VLOOKUP(K$4,'4(A) Billing Determinants_ALL'!$B$19:$P$40,5,0)/'4(A) Billing Determinants_ALL'!$F$40*$D10,IF($E10="Non-RPP kWh",VLOOKUP(K$4,'4(A) Billing Determinants_ALL'!$B$19:$P$40,6,0)/'4(A) Billing Determinants_ALL'!$G$40*$D10,IF($E10="Distribution Rev.",VLOOKUP(K$4,'4(A) Billing Determinants_ALL'!$B$19:$P$40,8,0)/'4(A) Billing Determinants_ALL'!$I$40*$D10, VLOOKUP(K$4,'4(A) Billing Determinants_ALL'!$B$19:$P$40,3,0)/'4(A) Billing Determinants_ALL'!$D$40*$D10))))),0) -> -2356.633088 | L10: =IFERROR(IF(L$4="",0,IF($E10="kWh",VLOOKUP(L$4,'4(A) Billing Determinants_ALL'!$B$19:$P$40,4,0)/'4(A) Billing Determinants_ALL'!$E$40*$D10,IF($E10="kW",VLOOKUP(L$4,'4(A) Billing Determinants_ALL'!$B$19:$P$40,5,0)/'4(A) Billing Determinants_ALL'!$F$40*$D10,IF($E10="Non-RPP kWh",VLOOKUP(L$4,'4(A) Billing Determinants_ALL'!$B$19:$P$40,6,0)/'4(A) Billing Determinants_ALL'!$G$40*$D10,IF($E10="Distribution Rev.",VLOOKUP(L$4,'4(A) Billing Determinants_ALL'!$B$19:$P$40,8,0)/'4(A) Billing Determinants_ALL'!$I$40*$D10, VLOOKUP(L$4,'4(A) Billing Determinants_ALL'!$B$19:$P$40,3,0)/'4(A) Billing Determinants_ALL'!$D$40*$D10))))),0) -> -13232.60376 | M10: =IFERROR(IF(M$4="",0,IF($E10="kWh",VLOOKUP(M$4,'4(A) Billing Determinants_ALL'!$B$19:$P$40,4,0)/'4(A) Billing Determinants_ALL'!$E$40*$D10,IF($E10="kW",VLOOKUP(M$4,'4(A) Billing Determinants_ALL'!$B$19:$P$40,5,0)/'4(A) Billing Determinants_ALL'!$F$40*$D10,IF($E10="Non-RPP kWh",VLOOKUP(M$4,'4(A) Billing Determinants_ALL'!$B$19:$P$40,6,0)/'4(A) Billing Determinants_ALL'!$G$40*$D10,IF($E10="Distribution Rev.",VLOOKUP(M$4,'4(A) Billing Determinants_ALL'!$B$19:$P$40,8,0)/'4(A) Billing Determinants_ALL'!$I$40*$D10, VLOOKUP(M$4,'4(A) Billing Determinants_ALL'!$B$19:$P$40,3,0)/'4(A) Billing Determinants_ALL'!$D$40*$D10))))),0) -> -71.04219424 | N10: =IFERROR(IF(N$4="",0,IF($E10="kWh",VLOOKUP(N$4,'4(A) Billing Determinants_ALL'!$B$19:$P$40,4,0)/'4(A) Billing Determinants_ALL'!$E$40*$D10,IF($E10="kW",VLOOKUP(N$4,'4(A) Billing Determinants_ALL'!$B$19:$P$40,5,0)/'4(A) Billing Determinants_ALL'!$F$40*$D10,IF($E10="Non-RPP kWh",VLOOKUP(N$4,'4(A) Billing Determinants_ALL'!$B$19:$P$40,6,0)/'4(A) Billing Determinants_ALL'!$G$40*$D10,IF($E10="Distribution Rev.",VLOOKUP(N$4,'4(A) Billing Determinants_ALL'!$B$19:$P$40,8,0)/'4(A) Billing Determinants_ALL'!$I$40*$D10, VLOOKUP(N$4,'4(A) Billing Determinants_ALL'!$B$19:$P$40,3,0)/'4(A) Billing Determinants_ALL'!$D$40*$D10))))),0) -> 0 | O10: =IFERROR(IF(O$4="",0,IF($E10="kWh",VLOOKUP(O$4,'4(A) Billing Determinants_ALL'!$B$19:$P$40,4,0)/'4(A) Billing Determinants_ALL'!$E$40*$D10,IF($E10="kW",VLOOKUP(O$4,'4(A) Billing Determinants_ALL'!$B$19:$P$40,5,0)/'4(A) Billing Determinants_ALL'!$F$40*$D10,IF($E10="Non-RPP kWh",VLOOKUP(O$4,'4(A) Billing Determinants_ALL'!$B$19:$P$40,6,0)/'4(A) Billing Determinants_ALL'!$G$40*$D10,IF($E10="Distribution Rev.",VLOOKUP(O$4,'4(A) Billing Determinants_ALL'!$B$19:$P$40,8,0)/'4(A) Billing Determinants_ALL'!$I$40*$D10, VLOOKUP(O$4,'4(A) Billing Determinants_ALL'!$B$19:$P$40,3,0)/'4(A) Billing Determinants_ALL'!$D$40*$D10))))),0) -> 0 | P10: =IFERROR(IF(P$4="",0,IF($E10="kWh",VLOOKUP(P$4,'4(A) Billing Determinants_ALL'!$B$19:$P$40,4,0)/'4(A) Billing Determinants_ALL'!$E$40*$D10,IF($E10="kW",VLOOKUP(P$4,'4(A) Billing Determinants_ALL'!$B$19:$P$40,5,0)/'4(A) Billing Determinants_ALL'!$F$40*$D10,IF($E10="Non-RPP kWh",VLOOKUP(P$4,'4(A) Billing Determinants_ALL'!$B$19:$P$40,6,0)/'4(A) Billing Determinants_ALL'!$G$40*$D10,IF($E10="Distribution Rev.",VLOOKUP(P$4,'4(A) Billing Determinants_ALL'!$B$19:$P$40,8,0)/'4(A) Billing Determinants_ALL'!$I$40*$D10, VLOOKUP(P$4,'4(A) Billing Determinants_ALL'!$B$19:$P$40,3,0)/'4(A) Billing Determinants_ALL'!$D$40*$D10))))),0) -> 0 | Q10: =IFERROR(IF(Q$4="",0,IF($E10="kWh",VLOOKUP(Q$4,'4(A) Billing Determinants_ALL'!$B$19:$P$40,4,0)/'4(A) Billing Determinants_ALL'!$E$40*$D10,IF($E10="kW",VLOOKUP(Q$4,'4(A) Billing Determinants_ALL'!$B$19:$P$40,5,0)/'4(A) Billing Determinants_ALL'!$F$40*$D10,IF($E10="Non-RPP kWh",VLOOKUP(Q$4,'4(A) Billing Determinants_ALL'!$B$19:$P$40,6,0)/'4(A) Billing Determinants_ALL'!$G$40*$D10,IF($E10="Distribution Rev.",VLOOKUP(Q$4,'4(A) Billing Determinants_ALL'!$B$19:$P$40,8,0)/'4(A) Billing Determinants_ALL'!$I$40*$D10, VLOOKUP(Q$4,'4(A) Billing Determinants_ALL'!$B$19:$P$40,3,0)/'4(A) Billing Determinants_ALL'!$D$40*$D10))))),0) -> 0 | R10: =IFERROR(IF(R$4="",0,IF($E10="kWh",VLOOKUP(R$4,'4(A) Billing Determinants_ALL'!$B$19:$P$40,4,0)/'4(A) Billing Determinants_ALL'!$E$40*$D10,IF($E10="kW",VLOOKUP(R$4,'4(A) Billing Determinants_ALL'!$B$19:$P$40,5,0)/'4(A) Billing Determinants_ALL'!$F$40*$D10,IF($E10="Non-RPP kWh",VLOOKUP(R$4,'4(A) Billing Determinants_ALL'!$B$19:$P$40,6,0)/'4(A) Billing Determinants_ALL'!$G$40*$D10,IF($E10="Distribution Rev.",VLOOKUP(R$4,'4(A) Billing Determinants_ALL'!$B$19:$P$40,8,0)/'4(A) Billing Determinants_ALL'!$I$40*$D10, VLOOKUP(R$4,'4(A) Billing Determinants_ALL'!$B$19:$P$40,3,0)/'4(A) Billing Determinants_ALL'!$D$40*$D10))))),0) -> 0 | S10: =IFERROR(IF(S$4="",0,IF($E10="kWh",VLOOKUP(S$4,'4(A) Billing Determinants_ALL'!$B$19:$P$40,4,0)/'4(A) Billing Determinants_ALL'!$E$40*$D10,IF($E10="kW",VLOOKUP(S$4,'4(A) Billing Determinants_ALL'!$B$19:$P$40,5,0)/'4(A) Billing Determinants_ALL'!$F$40*$D10,IF($E10="Non-RPP kWh",VLOOKUP(S$4,'4(A) Billing Determinants_ALL'!$B$19:$P$40,6,0)/'4(A) Billing Determinants_ALL'!$G$40*$D10,IF($E10="Distribution Rev.",VLOOKUP(S$4,'4(A) Billing Determinants_ALL'!$B$19:$P$40,8,0)/'4(A) Billing Determinants_ALL'!$I$40*$D10, VLOOKUP(S$4,'4(A) Billing Determinants_ALL'!$B$19:$P$40,3,0)/'4(A) Billing Determinants_ALL'!$D$40*$D10))))),0) -> 0 | T10: =IFERROR(IF(T$4="",0,IF($E10="kWh",VLOOKUP(T$4,'4(A) Billing Determinants_ALL'!$B$19:$P$40,4,0)/'4(A) Billing Determinants_ALL'!$E$40*$D10,IF($E10="kW",VLOOKUP(T$4,'4(A) Billing Determinants_ALL'!$B$19:$P$40,5,0)/'4(A) Billing Determinants_ALL'!$F$40*$D10,IF($E10="Non-RPP kWh",VLOOKUP(T$4,'4(A) Billing Determinants_ALL'!$B$19:$P$40,6,0)/'4(A) Billing Determinants_ALL'!$G$40*$D10,IF($E10="Distribution Rev.",VLOOKUP(T$4,'4(A) Billing Determinants_ALL'!$B$19:$P$40,8,0)/'4(A) Billing Determinants_ALL'!$I$40*$D10, VLOOKUP(T$4,'4(A) Billing Determinants_ALL'!$B$19:$P$40,3,0)/'4(A) Billing Determinants_ALL'!$D$40*$D10))))),0) -> 0 | U10: =IFERROR(IF(U$4="",0,IF($E10="kWh",VLOOKUP(U$4,'4(A) Billing Determinants_ALL'!$B$19:$P$40,4,0)/'4(A) Billing Determinants_ALL'!$E$40*$D10,IF($E10="kW",VLOOKUP(U$4,'4(A) Billing Determinants_ALL'!$B$19:$P$40,5,0)/'4(A) Billing Determinants_ALL'!$F$40*$D10,IF($E10="Non-RPP kWh",VLOOKUP(U$4,'4(A) Billing Determinants_ALL'!$B$19:$P$40,6,0)/'4(A) Billing Determinants_ALL'!$G$40*$D10,IF($E10="Distribution Rev.",VLOOKUP(U$4,'4(A) Billing Determinants_ALL'!$B$19:$P$40,8,0)/'4(A) Billing Determinants_ALL'!$I$40*$D10, VLOOKUP(U$4,'4(A) Billing Determinants_ALL'!$B$19:$P$40,3,0)/'4(A) Billing Determinants_ALL'!$D$40*$D10))))),0) -> 0 | V10: =IFERROR(IF(V$4="",0,IF($E10="kWh",VLOOKUP(V$4,'4(A) Billing Determinants_ALL'!$B$19:$P$40,4,0)/'4(A) Billing Determinants_ALL'!$E$40*$D10,IF($E10="kW",VLOOKUP(V$4,'4(A) Billing Determinants_ALL'!$B$19:$P$40,5,0)/'4(A) Billing Determinants_ALL'!$F$40*$D10,IF($E10="Non-RPP kWh",VLOOKUP(V$4,'4(A) Billing Determinants_ALL'!$B$19:$P$40,6,0)/'4(A) Billing Determinants_ALL'!$G$40*$D10,IF($E10="Distribution Rev.",VLOOKUP(V$4,'4(A) Billing Determinants_ALL'!$B$19:$P$40,8,0)/'4(A) Billing Determinants_ALL'!$I$40*$D10, VLOOKUP(V$4,'4(A) Billing Determinants_ALL'!$B$19:$P$40,3,0)/'4(A) Billing Determinants_ALL'!$D$40*$D10))))),0) -> 0 | W10: =IFERROR(IF(W$4="",0,IF($E10="kWh",VLOOKUP(W$4,'4(A) Billing Determinants_ALL'!$B$19:$P$40,4,0)/'4(A) Billing Determinants_ALL'!$E$40*$D10,IF($E10="kW",VLOOKUP(W$4,'4(A) Billing Determinants_ALL'!$B$19:$P$40,5,0)/'4(A) Billing Determinants_ALL'!$F$40*$D10,IF($E10="Non-RPP kWh",VLOOKUP(W$4,'4(A) Billing Determinants_ALL'!$B$19:$P$40,6,0)/'4(A) Billing Determinants_ALL'!$G$40*$D10,IF($E10="Distribution Rev.",VLOOKUP(W$4,'4(A) Billing Determinants_ALL'!$B$19:$P$40,8,0)/'4(A) Billing Determinants_ALL'!$I$40*$D10, VLOOKUP(W$4,'4(A) Billing Determinants_ALL'!$B$19:$P$40,3,0)/'4(A) Billing Determinants_ALL'!$D$40*$D10))))),0) -> 0
B11: RSVA - Global Adjustment | C11: 1589 | D11: ='2. 2015 Continuity Schedule'!BM30 -> 3548471.33 | E11: Non-RPP kWh | F11: =IFERROR(IF(F$4="",0,IF($E11="kWh",VLOOKUP(F$4,'4(A) Billing Determinants_ALL'!$B$19:$P$40,4,0)/'4(A) Billing Determinants_ALL'!$E$40*$D11,IF($E11="kW",VLOOKUP(F$4,'4(A) Billing Determinants_ALL'!$B$19:$P$40,5,0)/'4(A) Billing Determinants_ALL'!$F$40*$D11,IF($E11="Non-RPP kWh",VLOOKUP(F$4,'4(A) Billing Determinants_ALL'!$B$19:$P$40,6,0)/'4(A) Billing Determinants_ALL'!$G$40*$D11,IF($E11="Distribution Rev.",VLOOKUP(F$4,'4(A) Billing Determinants_ALL'!$B$19:$P$40,8,0)/'4(A) Billing Determinants_ALL'!$I$40*$D11, VLOOKUP(F$4,'4(A) Billing Determinants_ALL'!$B$19:$P$40,3,0)/'4(A) Billing Determinants_ALL'!$D$40*$D11))))),0) -> 229182.9743 | G11: =IFERROR(IF(G$4="",0,IF($E11="kWh",VLOOKUP(G$4,'4(A) Billing Determinants_ALL'!$B$19:$P$40,4,0)/'4(A) Billing Determinants_ALL'!$E$40*$D11,IF($E11="kW",VLOOKUP(G$4,'4(A) Billing Determinants_ALL'!$B$19:$P$40,5,0)/'4(A) Billing Determinants_ALL'!$F$40*$D11,IF($E11="Non-RPP kWh",VLOOKUP(G$4,'4(A) Billing Determinants_ALL'!$B$19:$P$40,6,0)/'4(A) Billing Determinants_ALL'!$G$40*$D11,IF($E11="Distribution Rev.",VLOOKUP(G$4,'4(A) Billing Determinants_ALL'!$B$19:$P$40,8,0)/'4(A) Billing Determinants_ALL'!$I$40*$D11, VLOOKUP(G$4,'4(A) Billing Determinants_ALL'!$B$19:$P$40,3,0)/'4(A) Billing Determinants_ALL'!$D$40*$D11))))),0) -> 109614.88 | H11: =IFERROR(IF(H$4="",0,IF($E11="kWh",VLOOKUP(H$4,'4(A) Billing Determinants_ALL'!$B$19:$P$40,4,0)/'4(A) Billing Determinants_ALL'!$E$40*$D11,IF($E11="kW",VLOOKUP(H$4,'4(A) Billing Determinants_ALL'!$B$19:$P$40,5,0)/'4(A) Billing Determinants_ALL'!$F$40*$D11,IF($E11="Non-RPP kWh",VLOOKUP(H$4,'4(A) Billing Determinants_ALL'!$B$19:$P$40,6,0)/'4(A) Billing Determinants_ALL'!$G$40*$D11,IF($E11="Distribution Rev.",VLOOKUP(H$4,'4(A) Billing Determinants_ALL'!$B$19:$P$40,8,0)/'4(A) Billing Determinants_ALL'!$I$40*$D11, VLOOKUP(H$4,'4(A) Billing Determinants_ALL'!$B$19:$P$40,3,0)/'4(A) Billing Determinants_ALL'!$D$40*$D11))))),0) -> 1352862.77 | I11: =IFERROR(IF(I$4="",0,IF($E11="kWh",VLOOKUP(I$4,'4(A) Billing Determinants_ALL'!$B$19:$P$40,4,0)/'4(A) Billing Determinants_ALL'!$E$40*$D11,IF($E11="kW",VLOOKUP(I$4,'4(A) Billing Determinants_ALL'!$B$19:$P$40,5,0)/'4(A) Billing Determinants_ALL'!$F$40*$D11,IF($E11="Non-RPP kWh",VLOOKUP(I$4,'4(A) Billing Determinants_ALL'!$B$19:$P$40,6,0)/'4(A) Billing Determinants_ALL'!$G$40*$D11,IF($E11="Distribution Rev.",VLOOKUP(I$4,'4(A) Billing Determinants_ALL'!$B$19:$P$40,8,0)/'4(A) Billing Determinants_ALL'!$I$40*$D11, VLOOKUP(I$4,'4(A) Billing Determinants_ALL'!$B$19:$P$40,3,0)/'4(A) Billing Determinants_ALL'!$D$40*$D11))))),0) -> 1219540.38 | J11: =IFERROR(IF(J$4="",0,IF($E11="kWh",VLOOKUP(J$4,'4(A) Billing Determinants_ALL'!$B$19:$P$40,4,0)/'4(A) Billing Determinants_ALL'!$E$40*$D11,IF($E11="kW",VLOOKUP(J$4,'4(A) Billing Determinants_ALL'!$B$19:$P$40,5,0)/'4(A) Billing Determinants_ALL'!$F$40*$D11,IF($E11="Non-RPP kWh",VLOOKUP(J$4,'4(A) Billing Determinants_ALL'!$B$19:$P$40,6,0)/'4(A) Billing Determinants_ALL'!$G$40*$D11,IF($E11="Distribution Rev.",VLOOKUP(J$4,'4(A) Billing Determinants_ALL'!$B$19:$P$40,8,0)/'4(A) Billing Determinants_ALL'!$I$40*$D11, VLOOKUP(J$4,'4(A) Billing Determinants_ALL'!$B$19:$P$40,3,0)/'4(A) Billing Determinants_ALL'!$D$40*$D11))))),0) -> 578822.2134 | K11: =IFERROR(IF(K$4="",0,IF($E11="kWh",VLOOKUP(K$4,'4(A) Billing Determinants_ALL'!$B$19:$P$40,4,0)/'4(A) Billing Determinants_ALL'!$E$40*$D11,IF($E11="kW",VLOOKUP(K$4,'4(A) Billing Determinants_ALL'!$B$19:$P$40,5,0)/'4(A) Billing Determinants_ALL'!$F$40*$D11,IF($E11="Non-RPP kWh",VLOOKUP(K$4,'4(A) Billing Determinants_ALL'!$B$19:$P$40,6,0)/'4(A) Billing Determinants_ALL'!$G$40*$D11,IF($E11="Distribution Rev.",VLOOKUP(K$4,'4(A) Billing Determinants_ALL'!$B$19:$P$40,8,0)/'4(A) Billing Determinants_ALL'!$I$40*$D11, VLOOKUP(K$4,'4(A) Billing Determinants_ALL'!$B$19:$P$40,3,0)/'4(A) Billing Determinants_ALL'!$D$40*$D11))))),0) -> 8061.751463 | L11: =IFERROR(IF(L$4="",0,IF($E11="kWh",VLOOKUP(L$4,'4(A) Billing Determinants_ALL'!$B$19:$P$40,4,0)/'4(A) Billing Determinants_ALL'!$E$40*$D11,IF($E11="kW",VLOOKUP(L$4,'4(A) Billing Determinants_ALL'!$B$19:$P$40,5,0)/'4(A) Billing Determinants_ALL'!$F$40*$D11,IF($E11="Non-RPP kWh",VLOOKUP(L$4,'4(A) Billing Determinants_ALL'!$B$19:$P$40,6,0)/'4(A) Billing Determinants_ALL'!$G$40*$D11,IF($E11="Distribution Rev.",VLOOKUP(L$4,'4(A) Billing Determinants_ALL'!$B$19:$P$40,8,0)/'4(A) Billing Determinants_ALL'!$I$40*$D11, VLOOKUP(L$4,'4(A) Billing Determinants_ALL'!$B$19:$P$40,3,0)/'4(A) Billing Determinants_ALL'!$D$40*$D11))))),0) -> 50386.36159 | M11: =IFERROR(IF(M$4="",0,IF($E11="kWh",VLOOKUP(M$4,'4(A) Billing Determinants_ALL'!$B$19:$P$40,4,0)/'4(A) Billing Determinants_ALL'!$E$40*$D11,IF($E11="kW",VLOOKUP(M$4,'4(A) Billing Determinants_ALL'!$B$19:$P$40,5,0)/'4(A) Billing Determinants_ALL'!$F$40*$D11,IF($E11="Non-RPP kWh",VLOOKUP(M$4,'4(A) Billing Determinants_ALL'!$B$19:$P$40,6,0)/'4(A) Billing Determinants_ALL'!$G$40*$D11,IF($E11="Distribution Rev.",VLOOKUP(M$4,'4(A) Billing Determinants_ALL'!$B$19:$P$40,8,0)/'4(A) Billing Determinants_ALL'!$I$40*$D11, VLOOKUP(M$4,'4(A) Billing Determinants_ALL'!$B$19:$P$40,3,0)/'4(A) Billing Determinants_ALL'!$D$40*$D11))))),0) -> 0 | N11: =IFERROR(IF(N$4="",0,IF($E11="kWh",VLOOKUP(N$4,'4(A) Billing Determinants_ALL'!$B$19:$P$40,4,0)/'4(A) Billing Determinants_ALL'!$E$40*$D11,IF($E11="kW",VLOOKUP(N$4,'4(A) Billing Determinants_ALL'!$B$19:$P$40,5,0)/'4(A) Billing Determinants_ALL'!$F$40*$D11,IF($E11="Non-RPP kWh",VLOOKUP(N$4,'4(A) Billing Determinants_ALL'!$B$19:$P$40,6,0)/'4(A) Billing Determinants_ALL'!$G$40*$D11,IF($E11="Distribution Rev.",VLOOKUP(N$4,'4(A) Billing Determinants_ALL'!$B$19:$P$40,8,0)/'4(A) Billing Determinants_ALL'!$I$40*$D11, VLOOKUP(N$4,'4(A) Billing Determinants_ALL'!$B$19:$P$40,3,0)/'4(A) Billing Determinants_ALL'!$D$40*$D11))))),0) -> 0 | O11: =IFERROR(IF(O$4="",0,IF($E11="kWh",VLOOKUP(O$4,'4(A) Billing Determinants_ALL'!$B$19:$P$40,4,0)/'4(A) Billing Determinants_ALL'!$E$40*$D11,IF($E11="kW",VLOOKUP(O$4,'4(A) Billing Determinants_ALL'!$B$19:$P$40,5,0)/'4(A) Billing Determinants_ALL'!$F$40*$D11,IF($E11="Non-RPP kWh",VLOOKUP(O$4,'4(A) Billing Determinants_ALL'!$B$19:$P$40,6,0)/'4(A) Billing Determinants_ALL'!$G$40*$D11,IF($E11="Distribution Rev.",VLOOKUP(O$4,'4(A) Billing Determinants_ALL'!$B$19:$P$40,8,0)/'4(A) Billing Determinants_ALL'!$I$40*$D11, VLOOKUP(O$4,'4(A) Billing Determinants_ALL'!$B$19:$P$40,3,0)/'4(A) Billing Determinants_ALL'!$D$40*$D11))))),0) -> 0 | P11: =IFERROR(IF(P$4="",0,IF($E11="kWh",VLOOKUP(P$4,'4(A) Billing Determinants_ALL'!$B$19:$P$40,4,0)/'4(A) Billing Determinants_ALL'!$E$40*$D11,IF($E11="kW",VLOOKUP(P$4,'4(A) Billing Determinants_ALL'!$B$19:$P$40,5,0)/'4(A) Billing Determinants_ALL'!$F$40*$D11,IF($E11="Non-RPP kWh",VLOOKUP(P$4,'4(A) Billing Determinants_ALL'!$B$19:$P$40,6,0)/'4(A) Billing Determinants_ALL'!$G$40*$D11,IF($E11="Distribution Rev.",VLOOKUP(P$4,'4(A) Billing Determinants_ALL'!$B$19:$P$40,8,0)/'4(A) Billing Determinants_ALL'!$I$40*$D11, VLOOKUP(P$4,'4(A) Billing Determinants_ALL'!$B$19:$P$40,3,0)/'4(A) Billing Determinants_ALL'!$D$40*$D11))))),0) -> 0 | Q11: =IFERROR(IF(Q$4="",0,IF($E11="kWh",VLOOKUP(Q$4,'4(A) Billing Determinants_ALL'!$B$19:$P$40,4,0)/'4(A) Billing Determinants_ALL'!$E$40*$D11,IF($E11="kW",VLOOKUP(Q$4,'4(A) Billing Determinants_ALL'!$B$19:$P$40,5,0)/'4(A) Billing Determinants_ALL'!$F$40*$D11,IF($E11="Non-RPP kWh",VLOOKUP(Q$4,'4(A) Billing Determinants_ALL'!$B$19:$P$40,6,0)/'4(A) Billing Determinants_ALL'!$G$40*$D11,IF($E11="Distribution Rev.",VLOOKUP(Q$4,'4(A) Billing Determinants_ALL'!$B$19:$P$40,8,0)/'4(A) Billing Determinants_ALL'!$I$40*$D11, VLOOKUP(Q$4,'4(A) Billing Determinants_ALL'!$B$19:$P$40,3,0)/'4(A) Billing Determinants_ALL'!$D$40*$D11))))),0) -> 0 | R11: =IFERROR(IF(R$4="",0,IF($E11="kWh",VLOOKUP(R$4,'4(A) Billing Determinants_ALL'!$B$19:$P$40,4,0)/'4(A) Billing Determinants_ALL'!$E$40*$D11,IF($E11="kW",VLOOKUP(R$4,'4(A) Billing Determinants_ALL'!$B$19:$P$40,5,0)/'4(A) Billing Determinants_ALL'!$F$40*$D11,IF($E11="Non-RPP kWh",VLOOKUP(R$4,'4(A) Billing Determinants_ALL'!$B$19:$P$40,6,0)/'4(A) Billing Determinants_ALL'!$G$40*$D11,IF($E11="Distribution Rev.",VLOOKUP(R$4,'4(A) Billing Determinants_ALL'!$B$19:$P$40,8,0)/'4(A) Billing Determinants_ALL'!$I$40*$D11, VLOOKUP(R$4,'4(A) Billing Determinants_ALL'!$B$19:$P$40,3,0)/'4(A) Billing Determinants_ALL'!$D$40*$D11))))),0) -> 0 | S11: =IFERROR(IF(S$4="",0,IF($E11="kWh",VLOOKUP(S$4,'4(A) Billing Determinants_ALL'!$B$19:$P$40,4,0)/'4(A) Billing Determinants_ALL'!$E$40*$D11,IF($E11="kW",VLOOKUP(S$4,'4(A) Billing Determinants_ALL'!$B$19:$P$40,5,0)/'4(A) Billing Determinants_ALL'!$F$40*$D11,IF($E11="Non-RPP kWh",VLOOKUP(S$4,'4(A) Billing Determinants_ALL'!$B$19:$P$40,6,0)/'4(A) Billing Determinants_ALL'!$G$40*$D11,IF($E11="Distribution Rev.",VLOOKUP(S$4,'4(A) Billing Determinants_ALL'!$B$19:$P$40,8,0)/'4(A) Billing Determinants_ALL'!$I$40*$D11, VLOOKUP(S$4,'4(A) Billing Determinants_ALL'!$B$19:$P$40,3,0)/'4(A) Billing Determinants_ALL'!$D$40*$D11))))),0) -> 0 | T11: =IFERROR(IF(T$4="",0,IF($E11="kWh",VLOOKUP(T$4,'4(A) Billing Determinants_ALL'!$B$19:$P$40,4,0)/'4(A) Billing Determinants_ALL'!$E$40*$D11,IF($E11="kW",VLOOKUP(T$4,'4(A) Billing Determinants_ALL'!$B$19:$P$40,5,0)/'4(A) Billing Determinants_ALL'!$F$40*$D11,IF($E11="Non-RPP kWh",VLOOKUP(T$4,'4(A) Billing Determinants_ALL'!$B$19:$P$40,6,0)/'4(A) Billing Determinants_ALL'!$G$40*$D11,IF($E11="Distribution Rev.",VLOOKUP(T$4,'4(A) Billing Determinants_ALL'!$B$19:$P$40,8,0)/'4(A) Billing Determinants_ALL'!$I$40*$D11, VLOOKUP(T$4,'4(A) Billing Determinants_ALL'!$B$19:$P$40,3,0)/'4(A) Billing Determinants_ALL'!$D$40*$D11))))),0) -> 0 | U11: =IFERROR(IF(U$4="",0,IF($E11="kWh",VLOOKUP(U$4,'4(A) Billing Determinants_ALL'!$B$19:$P$40,4,0)/'4(A) Billing Determinants_ALL'!$E$40*$D11,IF($E11="kW",VLOOKUP(U$4,'4(A) Billing Determinants_ALL'!$B$19:$P$40,5,0)/'4(A) Billing Determinants_ALL'!$F$40*$D11,IF($E11="Non-RPP kWh",VLOOKUP(U$4,'4(A) Billing Determinants_ALL'!$B$19:$P$40,6,0)/'4(A) Billing Determinants_ALL'!$G$40*$D11,IF($E11="Distribution Rev.",VLOOKUP(U$4,'4(A) Billing Determinants_ALL'!$B$19:$P$40,8,0)/'4(A) Billing Determinants_ALL'!$I$40*$D11, VLOOKUP(U$4,'4(A) Billing Determinants_ALL'!$B$19:$P$40,3,0)/'4(A) Billing Determinants_ALL'!$D$40*$D11))))),0) -> 0 | V11: =IFERROR(IF(V$4="",0,IF($E11="kWh",VLOOKUP(V$4,'4(A) Billing Determinants_ALL'!$B$19:$P$40,4,0)/'4(A) Billing Determinants_ALL'!$E$40*$D11,IF($E11="kW",VLOOKUP(V$4,'4(A) Billing Determinants_ALL'!$B$19:$P$40,5,0)/'4(A) Billing Determinants_ALL'!$F$40*$D11,IF($E11="Non-RPP kWh",VLOOKUP(V$4,'4(A) Billing Determinants_ALL'!$B$19:$P$40,6,0)/'4(A) Billing Determinants_ALL'!$G$40*$D11,IF($E11="Distribution Rev.",VLOOKUP(V$4,'4(A) Billing Determinants_ALL'!$B$19:$P$40,8,0)/'4(A) Billing Determinants_ALL'!$I$40*$D11, VLOOKUP(V$4,'4(A) Billing Determinants_ALL'!$B$19:$P$40,3,0)/'4(A) Billing Determinants_ALL'!$D$40*$D11))))),0) -> 0 | W11: =IFERROR(IF(W$4="",0,IF($E11="kWh",VLOOKUP(W$4,'4(A) Billing Determinants_ALL'!$B$19:$P$40,4,0)/'4(A) Billing Determinants_ALL'!$E$40*$D11,IF($E11="kW",VLOOKUP(W$4,'4(A) Billing Determinants_ALL'!$B$19:$P$40,5,0)/'4(A) Billing Determinants_ALL'!$F$40*$D11,IF($E11="Non-RPP kWh",VLOOKUP(W$4,'4(A) Billing Determinants_ALL'!$B$19:$P$40,6,0)/'4(A) Billing Determinants_ALL'!$G$40*$D11,IF($E11="Distribution Rev.",VLOOKUP(W$4,'4(A) Billing Determinants_ALL'!$B$19:$P$40,8,0)/'4(A) Billing Determinants_ALL'!$I$40*$D11, VLOOKUP(W$4,'4(A) Billing Determinants_ALL'!$B$19:$P$40,3,0)/'4(A) Billing Determinants_ALL'!$D$40*$D11))))),0) -> 0
B12: Recovery of Regulatory Asset Balances | C12: 1590 | D12: ='2. 2015 Continuity Schedule'!BM31 -> 1.683732262e-09 | F12: =IFERROR(IF(F$4="",0,IF($E12="kWh",VLOOKUP(F$4,'4(A) Billing Determinants_ALL'!$B$19:$P$40,4,0)/'4(A) Billing Determinants_ALL'!$E$40*$D12,IF($E12="kW",VLOOKUP(F$4,'4(A) Billing Determinants_ALL'!$B$19:$P$40,5,0)/'4(A) Billing Determinants_ALL'!$F$40*$D12,IF($E12="Non-RPP kWh",VLOOKUP(F$4,'4(A) Billing Determinants_ALL'!$B$19:$P$40,6,0)/'4(A) Billing Determinants_ALL'!$G$40*$D12,IF($E12="Distribution Rev.",VLOOKUP(F$4,'4(A) Billing Determinants_ALL'!$B$19:$P$40,8,0)/'4(A) Billing Determinants_ALL'!$I$40*$D12, VLOOKUP(F$4,'4(A) Billing Determinants_ALL'!$B$19:$P$40,3,0)/'4(A) Billing Determinants_ALL'!$D$40*$D12))))),0) -> 1.35220459e-09 | G12: =IFERROR(IF(G$4="",0,IF($E12="kWh",VLOOKUP(G$4,'4(A) Billing Determinants_ALL'!$B$19:$P$40,4,0)/'4(A) Billing Determinants_ALL'!$E$40*$D12,IF($E12="kW",VLOOKUP(G$4,'4(A) Billing Determinants_ALL'!$B$19:$P$40,5,0)/'4(A) Billing Determinants_ALL'!$F$40*$D12,IF($E12="Non-RPP kWh",VLOOKUP(G$4,'4(A) Billing Determinants_ALL'!$B$19:$P$40,6,0)/'4(A) Billing Determinants_ALL'!$G$40*$D12,IF($E12="Distribution Rev.",VLOOKUP(G$4,'4(A) Billing Determinants_ALL'!$B$19:$P$40,8,0)/'4(A) Billing Determinants_ALL'!$I$40*$D12, VLOOKUP(G$4,'4(A) Billing Determinants_ALL'!$B$19:$P$40,3,0)/'4(A) Billing Determinants_ALL'!$D$40*$D12))))),0) -> 8.62225822e-11 | H12: =IFERROR(IF(H$4="",0,IF($E12="kWh",VLOOKUP(H$4,'4(A) Billing Determinants_ALL'!$B$19:$P$40,4,0)/'4(A) Billing Determinants_ALL'!$E$40*$D12,IF($E12="kW",VLOOKUP(H$4,'4(A) Billing Determinants_ALL'!$B$19:$P$40,5,0)/'4(A) Billing Determinants_ALL'!$F$40*$D12,IF($E12="Non-RPP kWh",VLOOKUP(H$4,'4(A) Billing Determinants_ALL'!$B$19:$P$40,6,0)/'4(A) Billing Determinants_ALL'!$G$40*$D12,IF($E12="Distribution Rev.",VLOOKUP(H$4,'4(A) Billing Determinants_ALL'!$B$19:$P$40,8,0)/'4(A) Billing Determinants_ALL'!$I$40*$D12, VLOOKUP(H$4,'4(A) Billing Determinants_ALL'!$B$19:$P$40,3,0)/'4(A) Billing Determinants_ALL'!$D$40*$D12))))),0) -> 1.429831322e-11 | I12: =IFERROR(IF(I$4="",0,IF($E12="kWh",VLOOKUP(I$4,'4(A) Billing Determinants_ALL'!$B$19:$P$40,4,0)/'4(A) Billing Determinants_ALL'!$E$40*$D12,IF($E12="kW",VLOOKUP(I$4,'4(A) Billing Determinants_ALL'!$B$19:$P$40,5,0)/'4(A) Billing Determinants_ALL'!$F$40*$D12,IF($E12="Non-RPP kWh",VLOOKUP(I$4,'4(A) Billing Determinants_ALL'!$B$19:$P$40,6,0)/'4(A) Billing Determinants_ALL'!$G$40*$D12,IF($E12="Distribution Rev.",VLOOKUP(I$4,'4(A) Billing Determinants_ALL'!$B$19:$P$40,8,0)/'4(A) Billing Determinants_ALL'!$I$40*$D12, VLOOKUP(I$4,'4(A) Billing Determinants_ALL'!$B$19:$P$40,3,0)/'4(A) Billing Determinants_ALL'!$D$40*$D12))))),0) -> 1.099345561e-12 | J12: =IFERROR(IF(J$4="",0,IF($E12="kWh",VLOOKUP(J$4,'4(A) Billing Determinants_ALL'!$B$19:$P$40,4,0)/'4(A) Billing Determinants_ALL'!$E$40*$D12,IF($E12="kW",VLOOKUP(J$4,'4(A) Billing Determinants_ALL'!$B$19:$P$40,5,0)/'4(A) Billing Determinants_ALL'!$F$40*$D12,IF($E12="Non-RPP kWh",VLOOKUP(J$4,'4(A) Billing Determinants_ALL'!$B$19:$P$40,6,0)/'4(A) Billing Determinants_ALL'!$G$40*$D12,IF($E12="Distribution Rev.",VLOOKUP(J$4,'4(A) Billing Determinants_ALL'!$B$19:$P$40,8,0)/'4(A) Billing Determinants_ALL'!$I$40*$D12, VLOOKUP(J$4,'4(A) Billing Determinants_ALL'!$B$19:$P$40,3,0)/'4(A) Billing Determinants_ALL'!$D$40*$D12))))),0) -> 5.754911782e-14 | K12: =IFERROR(IF(K$4="",0,IF($E12="kWh",VLOOKUP(K$4,'4(A) Billing Determinants_ALL'!$B$19:$P$40,4,0)/'4(A) Billing Determinants_ALL'!$E$40*$D12,IF($E12="kW",VLOOKUP(K$4,'4(A) Billing Determinants_ALL'!$B$19:$P$40,5,0)/'4(A) Billing Determinants_ALL'!$F$40*$D12,IF($E12="Non-RPP kWh",VLOOKUP(K$4,'4(A) Billing Determinants_ALL'!$B$19:$P$40,6,0)/'4(A) Billing Determinants_ALL'!$G$40*$D12,IF($E12="Distribution Rev.",VLOOKUP(K$4,'4(A) Billing Determinants_ALL'!$B$19:$P$40,8,0)/'4(A) Billing Determinants_ALL'!$I$40*$D12, VLOOKUP(K$4,'4(A) Billing Determinants_ALL'!$B$19:$P$40,3,0)/'4(A) Billing Determinants_ALL'!$D$40*$D12))))),0) -> 1.497925042e-11 | L12: =IFERROR(IF(L$4="",0,IF($E12="kWh",VLOOKUP(L$4,'4(A) Billing Determinants_ALL'!$B$19:$P$40,4,0)/'4(A) Billing Determinants_ALL'!$E$40*$D12,IF($E12="kW",VLOOKUP(L$4,'4(A) Billing Determinants_ALL'!$B$19:$P$40,5,0)/'4(A) Billing Determinants_ALL'!$F$40*$D12,IF($E12="Non-RPP kWh",VLOOKUP(L$4,'4(A) Billing Determinants_ALL'!$B$19:$P$40,6,0)/'4(A) Billing Determinants_ALL'!$G$40*$D12,IF($E12="Distribution Rev.",VLOOKUP(L$4,'4(A) Billing Determinants_ALL'!$B$19:$P$40,8,0)/'4(A) Billing Determinants_ALL'!$I$40*$D12, VLOOKUP(L$4,'4(A) Billing Determinants_ALL'!$B$19:$P$40,3,0)/'4(A) Billing Determinants_ALL'!$D$40*$D12))))),0) -> 2.142224046e-10 | M12: =IFERROR(IF(M$4="",0,IF($E12="kWh",VLOOKUP(M$4,'4(A) Billing Determinants_ALL'!$B$19:$P$40,4,0)/'4(A) Billing Determinants_ALL'!$E$40*$D12,IF($E12="kW",VLOOKUP(M$4,'4(A) Billing Determinants_ALL'!$B$19:$P$40,5,0)/'4(A) Billing Determinants_ALL'!$F$40*$D12,IF($E12="Non-RPP kWh",VLOOKUP(M$4,'4(A) Billing Determinants_ALL'!$B$19:$P$40,6,0)/'4(A) Billing Determinants_ALL'!$G$40*$D12,IF($E12="Distribution Rev.",VLOOKUP(M$4,'4(A) Billing Determinants_ALL'!$B$19:$P$40,8,0)/'4(A) Billing Determinants_ALL'!$I$40*$D12, VLOOKUP(M$4,'4(A) Billing Determinants_ALL'!$B$19:$P$40,3,0)/'4(A) Billing Determinants_ALL'!$D$40*$D12))))),0) -> 6.482268688e-13 | N12: =IFERROR(IF(N$4="",0,IF($E12="kWh",VLOOKUP(N$4,'4(A) Billing Determinants_ALL'!$B$19:$P$40,4,0)/'4(A) Billing Determinants_ALL'!$E$40*$D12,IF($E12="kW",VLOOKUP(N$4,'4(A) Billing Determinants_ALL'!$B$19:$P$40,5,0)/'4(A) Billing Determinants_ALL'!$F$40*$D12,IF($E12="Non-RPP kWh",VLOOKUP(N$4,'4(A) Billing Determinants_ALL'!$B$19:$P$40,6,0)/'4(A) Billing Determinants_ALL'!$G$40*$D12,IF($E12="Distribution Rev.",VLOOKUP(N$4,'4(A) Billing Determinants_ALL'!$B$19:$P$40,8,0)/'4(A) Billing Determinants_ALL'!$I$40*$D12, VLOOKUP(N$4,'4(A) Billing Determinants_ALL'!$B$19:$P$40,3,0)/'4(A) Billing Determinants_ALL'!$D$40*$D12))))),0) -> 0 | O12: =IFERROR(IF(O$4="",0,IF($E12="kWh",VLOOKUP(O$4,'4(A) Billing Determinants_ALL'!$B$19:$P$40,4,0)/'4(A) Billing Determinants_ALL'!$E$40*$D12,IF($E12="kW",VLOOKUP(O$4,'4(A) Billing Determinants_ALL'!$B$19:$P$40,5,0)/'4(A) Billing Determinants_ALL'!$F$40*$D12,IF($E12="Non-RPP kWh",VLOOKUP(O$4,'4(A) Billing Determinants_ALL'!$B$19:$P$40,6,0)/'4(A) Billing Determinants_ALL'!$G$40*$D12,IF($E12="Distribution Rev.",VLOOKUP(O$4,'4(A) Billing Determinants_ALL'!$B$19:$P$40,8,0)/'4(A) Billing Determinants_ALL'!$I$40*$D12, VLOOKUP(O$4,'4(A) Billing Determinants_ALL'!$B$19:$P$40,3,0)/'4(A) Billing Determinants_ALL'!$D$40*$D12))))),0) -> 0 | P12: =IFERROR(IF(P$4="",0,IF($E12="kWh",VLOOKUP(P$4,'4(A) Billing Determinants_ALL'!$B$19:$P$40,4,0)/'4(A) Billing Determinants_ALL'!$E$40*$D12,IF($E12="kW",VLOOKUP(P$4,'4(A) Billing Determinants_ALL'!$B$19:$P$40,5,0)/'4(A) Billing Determinants_ALL'!$F$40*$D12,IF($E12="Non-RPP kWh",VLOOKUP(P$4,'4(A) Billing Determinants_ALL'!$B$19:$P$40,6,0)/'4(A) Billing Determinants_ALL'!$G$40*$D12,IF($E12="Distribution Rev.",VLOOKUP(P$4,'4(A) Billing Determinants_ALL'!$B$19:$P$40,8,0)/'4(A) Billing Determinants_ALL'!$I$40*$D12, VLOOKUP(P$4,'4(A) Billing Determinants_ALL'!$B$19:$P$40,3,0)/'4(A) Billing Determinants_ALL'!$D$40*$D12))))),0) -> 0 | Q12: =IFERROR(IF(Q$4="",0,IF($E12="kWh",VLOOKUP(Q$4,'4(A) Billing Determinants_ALL'!$B$19:$P$40,4,0)/'4(A) Billing Determinants_ALL'!$E$40*$D12,IF($E12="kW",VLOOKUP(Q$4,'4(A) Billing Determinants_ALL'!$B$19:$P$40,5,0)/'4(A) Billing Determinants_ALL'!$F$40*$D12,IF($E12="Non-RPP kWh",VLOOKUP(Q$4,'4(A) Billing Determinants_ALL'!$B$19:$P$40,6,0)/'4(A) Billing Determinants_ALL'!$G$40*$D12,IF($E12="Distribution Rev.",VLOOKUP(Q$4,'4(A) Billing Determinants_ALL'!$B$19:$P$40,8,0)/'4(A) Billing Determinants_ALL'!$I$40*$D12, VLOOKUP(Q$4,'4(A) Billing Determinants_ALL'!$B$19:$P$40,3,0)/'4(A) Billing Determinants_ALL'!$D$40*$D12))))),0) -> 0 | R12: =IFERROR(IF(R$4="",0,IF($E12="kWh",VLOOKUP(R$4,'4(A) Billing Determinants_ALL'!$B$19:$P$40,4,0)/'4(A) Billing Determinants_ALL'!$E$40*$D12,IF($E12="kW",VLOOKUP(R$4,'4(A) Billing Determinants_ALL'!$B$19:$P$40,5,0)/'4(A) Billing Determinants_ALL'!$F$40*$D12,IF($E12="Non-RPP kWh",VLOOKUP(R$4,'4(A) Billing Determinants_ALL'!$B$19:$P$40,6,0)/'4(A) Billing Determinants_ALL'!$G$40*$D12,IF($E12="Distribution Rev.",VLOOKUP(R$4,'4(A) Billing Determinants_ALL'!$B$19:$P$40,8,0)/'4(A) Billing Determinants_ALL'!$I$40*$D12, VLOOKUP(R$4,'4(A) Billing Determinants_ALL'!$B$19:$P$40,3,0)/'4(A) Billing Determinants_ALL'!$D$40*$D12))))),0) -> 0 | S12: =IFERROR(IF(S$4="",0,IF($E12="kWh",VLOOKUP(S$4,'4(A) Billing Determinants_ALL'!$B$19:$P$40,4,0)/'4(A) Billing Determinants_ALL'!$E$40*$D12,IF($E12="kW",VLOOKUP(S$4,'4(A) Billing Determinants_ALL'!$B$19:$P$40,5,0)/'4(A) Billing Determinants_ALL'!$F$40*$D12,IF($E12="Non-RPP kWh",VLOOKUP(S$4,'4(A) Billing Determinants_ALL'!$B$19:$P$40,6,0)/'4(A) Billing Determinants_ALL'!$G$40*$D12,IF($E12="Distribution Rev.",VLOOKUP(S$4,'4(A) Billing Determinants_ALL'!$B$19:$P$40,8,0)/'4(A) Billing Determinants_ALL'!$I$40*$D12, VLOOKUP(S$4,'4(A) Billing Determinants_ALL'!$B$19:$P$40,3,0)/'4(A) Billing Determinants_ALL'!$D$40*$D12))))),0) -> 0 | T12: =IFERROR(IF(T$4="",0,IF($E12="kWh",VLOOKUP(T$4,'4(A) Billing Determinants_ALL'!$B$19:$P$40,4,0)/'4(A) Billing Determinants_ALL'!$E$40*$D12,IF($E12="kW",VLOOKUP(T$4,'4(A) Billing Determinants_ALL'!$B$19:$P$40,5,0)/'4(A) Billing Determinants_ALL'!$F$40*$D12,IF($E12="Non-RPP kWh",VLOOKUP(T$4,'4(A) Billing Determinants_ALL'!$B$19:$P$40,6,0)/'4(A) Billing Determinants_ALL'!$G$40*$D12,IF($E12="Distribution Rev.",VLOOKUP(T$4,'4(A) Billing Determinants_ALL'!$B$19:$P$40,8,0)/'4(A) Billing Determinants_ALL'!$I$40*$D12, VLOOKUP(T$4,'4(A) Billing Determinants_ALL'!$B$19:$P$40,3,0)/'4(A) Billing Determinants_ALL'!$D$40*$D12))))),0) -> 0 | U12: =IFERROR(IF(U$4="",0,IF($E12="kWh",VLOOKUP(U$4,'4(A) Billing Determinants_ALL'!$B$19:$P$40,4,0)/'4(A) Billing Determinants_ALL'!$E$40*$D12,IF($E12="kW",VLOOKUP(U$4,'4(A) Billing Determinants_ALL'!$B$19:$P$40,5,0)/'4(A) Billing Determinants_ALL'!$F$40*$D12,IF($E12="Non-RPP kWh",VLOOKUP(U$4,'4(A) Billing Determinants_ALL'!$B$19:$P$40,6,0)/'4(A) Billing Determinants_ALL'!$G$40*$D12,IF($E12="Distribution Rev.",VLOOKUP(U$4,'4(A) Billing Determinants_ALL'!$B$19:$P$40,8,0)/'4(A) Billing Determinants_ALL'!$I$40*$D12, VLOOKUP(U$4,'4(A) Billing Determinants_ALL'!$B$19:$P$40,3,0)/'4(A) Billing Determinants_ALL'!$D$40*$D12))))),0) -> 0 | V12: =IFERROR(IF(V$4="",0,IF($E12="kWh",VLOOKUP(V$4,'4(A) Billing Determinants_ALL'!$B$19:$P$40,4,0)/'4(A) Billing Determinants_ALL'!$E$40*$D12,IF($E12="kW",VLOOKUP(V$4,'4(A) Billing Determinants_ALL'!$B$19:$P$40,5,0)/'4(A) Billing Determinants_ALL'!$F$40*$D12,IF($E12="Non-RPP kWh",VLOOKUP(V$4,'4(A) Billing Determinants_ALL'!$B$19:$P$40,6,0)/'4(A) Billing Determinants_ALL'!$G$40*$D12,IF($E12="Distribution Rev.",VLOOKUP(V$4,'4(A) Billing Determinants_ALL'!$B$19:$P$40,8,0)/'4(A) Billing Determinants_ALL'!$I$40*$D12, VLOOKUP(V$4,'4(A) Billing Determinants_ALL'!$B$19:$P$40,3,0)/'4(A) Billing Determinants_ALL'!$D$40*$D12))))),0) -> 0 | W12: =IFERROR(IF(W$4="",0,IF($E12="kWh",VLOOKUP(W$4,'4(A) Billing Determinants_ALL'!$B$19:$P$40,4,0)/'4(A) Billing Determinants_ALL'!$E$40*$D12,IF($E12="kW",VLOOKUP(W$4,'4(A) Billing Determinants_ALL'!$B$19:$P$40,5,0)/'4(A) Billing Determinants_ALL'!$F$40*$D12,IF($E12="Non-RPP kWh",VLOOKUP(W$4,'4(A) Billing Determinants_ALL'!$B$19:$P$40,6,0)/'4(A) Billing Determinants_ALL'!$G$40*$D12,IF($E12="Distribution Rev.",VLOOKUP(W$4,'4(A) Billing Determinants_ALL'!$B$19:$P$40,8,0)/'4(A) Billing Determinants_ALL'!$I$40*$D12, VLOOKUP(W$4,'4(A) Billing Determinants_ALL'!$B$19:$P$40,3,0)/'4(A) Billing Determinants_ALL'!$D$40*$D12))))),0) -> 0
B13: Disposition and Recovery/Refund of Regulatory Balances (2008) | C13: 1595 | D13: ='2. 2015 Continuity Schedule'!BM32 -> 0 | F13: =IF(ISERROR(VLOOKUP(F$4, '4(A) Billing Determinants_ALL'!$B$19:$P$40, 10, FALSE)*'2. 2015 Continuity Schedule'!$BM$32), 0, VLOOKUP(F$4, '4(A) Billing Determinants_ALL'!$B$19:$P$40, 10, FALSE)*'2. 2015 Continuity Schedule'!$BM$32) -> 0 | G13: =IF(ISERROR(VLOOKUP(G$4, '4(A) Billing Determinants_ALL'!$B$19:$P$40, 10, FALSE)*'2. 2015 Continuity Schedule'!$BM$32), 0, VLOOKUP(G$4, '4(A) Billing Determinants_ALL'!$B$19:$P$40, 10, FALSE)*'2. 2015 Continuity Schedule'!$BM$32) -> 0 | H13: =IF(ISERROR(VLOOKUP(H$4, '4(A) Billing Determinants_ALL'!$B$19:$P$40, 10, FALSE)*'2. 2015 Continuity Schedule'!$BM$32), 0, VLOOKUP(H$4, '4(A) Billing Determinants_ALL'!$B$19:$P$40, 10, FALSE)*'2. 2015 Continuity Schedule'!$BM$32) -> 0 | I13: =IF(ISERROR(VLOOKUP(I$4, '4(A) Billing Determinants_ALL'!$B$19:$P$40, 10, FALSE)*'2. 2015 Continuity Schedule'!$BM$32), 0, VLOOKUP(I$4, '4(A) Billing Determinants_ALL'!$B$19:$P$40, 10, FALSE)*'2. 2015 Continuity Schedule'!$BM$32) -> 0 | J13: =IF(ISERROR(VLOOKUP(J$4, '4(A) Billing Determinants_ALL'!$B$19:$P$40, 10, FALSE)*'2. 2015 Continuity Schedule'!$BM$32), 0, VLOOKUP(J$4, '4(A) Billing Determinants_ALL'!$B$19:$P$40, 10, FALSE)*'2. 2015 Continuity Schedule'!$BM$32) -> 0 | K13: =IF(ISERROR(VLOOKUP(K$4, '4(A) Billing Determinants_ALL'!$B$19:$P$40, 10, FALSE)*'2. 2015 Continuity Schedule'!$BM$32), 0, VLOOKUP(K$4, '4(A) Billing Determinants_ALL'!$B$19:$P$40, 10, FALSE)*'2. 2015 Continuity Schedule'!$BM$32) -> 0 | L13: =IF(ISERROR(VLOOKUP(L$4, '4(A) Billing Determinants_ALL'!$B$19:$P$40, 10, FALSE)*'2. 2015 Continuity Schedule'!$BM$32), 0, VLOOKUP(L$4, '4(A) Billing Determinants_ALL'!$B$19:$P$40, 10, FALSE)*'2. 2015 Continuity Schedule'!$BM$32) -> 0 | M13: =IF(ISERROR(VLOOKUP(M$4, '4(A) Billing Determinants_ALL'!$B$19:$P$40, 10, FALSE)*'2. 2015 Continuity Schedule'!$BM$32), 0, VLOOKUP(M$4, '4(A) Billing Determinants_ALL'!$B$19:$P$40, 10, FALSE)*'2. 2015 Continuity Schedule'!$BM$32) -> 0 | N13: =IF(ISERROR(VLOOKUP(N$4, '4(A) Billing Determinants_ALL'!$B$19:$P$40, 10, FALSE)*'2. 2015 Continuity Schedule'!$BM$32), 0, VLOOKUP(N$4, '4(A) Billing Determinants_ALL'!$B$19:$P$40, 10, FALSE)*'2. 2015 Continuity Schedule'!$BM$32) -> 0 | O13: =IF(ISERROR(VLOOKUP(O$4, '4(A) Billing Determinants_ALL'!$B$19:$P$40, 10, FALSE)*'2. 2015 Continuity Schedule'!$BM$32), 0, VLOOKUP(O$4, '4(A) Billing Determinants_ALL'!$B$19:$P$40, 10, FALSE)*'2. 2015 Continuity Schedule'!$BM$32) -> 0 | P13: =IF(ISERROR(VLOOKUP(P$4, '4(A) Billing Determinants_ALL'!$B$19:$P$40, 10, FALSE)*'2. 2015 Continuity Schedule'!$BM$32), 0, VLOOKUP(P$4, '4(A) Billing Determinants_ALL'!$B$19:$P$40, 10, FALSE)*'2. 2015 Continuity Schedule'!$BM$32) -> 0 | Q13: =IF(ISERROR(VLOOKUP(Q$4, '4(A) Billing Determinants_ALL'!$B$19:$P$40, 10, FALSE)*'2. 2015 Continuity Schedule'!$BM$32), 0, VLOOKUP(Q$4, '4(A) Billing Determinants_ALL'!$B$19:$P$40, 10, FALSE)*'2. 2015 Continuity Schedule'!$BM$32) -> 0 | R13: =IF(ISERROR(VLOOKUP(R$4, '4(A) Billing Determinants_ALL'!$B$19:$P$40, 10, FALSE)*'2. 2015 Continuity Schedule'!$BM$32), 0, VLOOKUP(R$4, '4(A) Billing Determinants_ALL'!$B$19:$P$40, 10, FALSE)*'2. 2015 Continuity Schedule'!$BM$32) -> 0 | S13: =IF(ISERROR(VLOOKUP(S$4, '4(A) Billing Determinants_ALL'!$B$19:$P$40, 10, FALSE)*'2. 2015 Continuity Schedule'!$BM$32), 0, VLOOKUP(S$4, '4(A) Billing Determinants_ALL'!$B$19:$P$40, 10, FALSE)*'2. 2015 Continuity Schedule'!$BM$32) -> 0 | T13: =IF(ISERROR(VLOOKUP(T$4, '4(A) Billing Determinants_ALL'!$B$19:$P$40, 10, FALSE)*'2. 2015 Continuity Schedule'!$BM$32), 0, VLOOKUP(T$4, '4(A) Billing Determinants_ALL'!$B$19:$P$40, 10, FALSE)*'2. 2015 Continuity Schedule'!$BM$32) -> 0 | U13: =IF(ISERROR(VLOOKUP(U$4, '4(A) Billing Determinants_ALL'!$B$19:$P$40, 10, FALSE)*'2. 2015 Continuity Schedule'!$BM$32), 0, VLOOKUP(U$4, '4(A) Billing Determinants_ALL'!$B$19:$P$40, 10, FALSE)*'2. 2015 Continuity Schedule'!$BM$32) -> 0 | V13: =IF(ISERROR(VLOOKUP(V$4, '4(A) Billing Determinants_ALL'!$B$19:$P$40, 10, FALSE)*'2. 2015 Continuity Schedule'!$BM$32), 0, VLOOKUP(V$4, '4(A) Billing Determinants_ALL'!$B$19:$P$40, 10, FALSE)*'2. 2015 Continuity Schedule'!$BM$32) -> 0 | W13: =IF(ISERROR(VLOOKUP(W$4, '4(A) Billing Determinants_ALL'!$B$19:$P$40, 10, FALSE)*'2. 2015 Continuity Schedule'!$BM$32), 0, VLOOKUP(W$4, '4(A) Billing Determinants_ALL'!$B$19:$P$40, 10, FALSE)*'2. 2015 Continuity Schedule'!$BM$32) -> 0
B14: Disposition and Recovery/Refund of Regulatory Balances (2009) | C14: 1595 | D14: ='2. 2015 Continuity Schedule'!BM33 -> 0 | F14: =IF(ISERROR(VLOOKUP(F$4, '4(A) Billing Determinants_ALL'!$B$19:$P$40, 11, FALSE)*'2. 2015 Continuity Schedule'!$BM$33), 0, VLOOKUP(F$4, '4(A) Billing Determinants_ALL'!$B$19:$P$40, 11, FALSE)*'2. 2015 Continuity Schedule'!$BM$33) -> 0 | G14: =IF(ISERROR(VLOOKUP(G$4, '4(A) Billing Determinants_ALL'!$B$19:$P$40, 11, FALSE)*'2. 2015 Continuity Schedule'!$BM$33), 0, VLOOKUP(G$4, '4(A) Billing Determinants_ALL'!$B$19:$P$40, 11, FALSE)*'2. 2015 Continuity Schedule'!$BM$33) -> 0 | H14: =IF(ISERROR(VLOOKUP(H$4, '4(A) Billing Determinants_ALL'!$B$19:$P$40, 11, FALSE)*'2. 2015 Continuity Schedule'!$BM$33), 0, VLOOKUP(H$4, '4(A) Billing Determinants_ALL'!$B$19:$P$40, 11, FALSE)*'2. 2015 Continuity Schedule'!$BM$33) -> 0 | I14: =IF(ISERROR(VLOOKUP(I$4, '4(A) Billing Determinants_ALL'!$B$19:$P$40, 11, FALSE)*'2. 2015 Continuity Schedule'!$BM$33), 0, VLOOKUP(I$4, '4(A) Billing Determinants_ALL'!$B$19:$P$40, 11, FALSE)*'2. 2015 Continuity Schedule'!$BM$33) -> 0 | J14: =IF(ISERROR(VLOOKUP(J$4, '4(A) Billing Determinants_ALL'!$B$19:$P$40, 11, FALSE)*'2. 2015 Continuity Schedule'!$BM$33), 0, VLOOKUP(J$4, '4(A) Billing Determinants_ALL'!$B$19:$P$40, 11, FALSE)*'2. 2015 Continuity Schedule'!$BM$33) -> 0 | K14: =IF(ISERROR(VLOOKUP(K$4, '4(A) Billing Determinants_ALL'!$B$19:$P$40, 11, FALSE)*'2. 2015 Continuity Schedule'!$BM$33), 0, VLOOKUP(K$4, '4(A) Billing Determinants_ALL'!$B$19:$P$40, 11, FALSE)*'2. 2015 Continuity Schedule'!$BM$33) -> 0 | L14: =IF(ISERROR(VLOOKUP(L$4, '4(A) Billing Determinants_ALL'!$B$19:$P$40, 11, FALSE)*'2. 2015 Continuity Schedule'!$BM$33), 0, VLOOKUP(L$4, '4(A) Billing Determinants_ALL'!$B$19:$P$40, 11, FALSE)*'2. 2015 Continuity Schedule'!$BM$33) -> 0 | M14: =IF(ISERROR(VLOOKUP(M$4, '4(A) Billing Determinants_ALL'!$B$19:$P$40, 11, FALSE)*'2. 2015 Continuity Schedule'!$BM$33), 0, VLOOKUP(M$4, '4(A) Billing Determinants_ALL'!$B$19:$P$40, 11, FALSE)*'2. 2015 Continuity Schedule'!$BM$33) -> 0 | N14: =IF(ISERROR(VLOOKUP(N$4, '4(A) Billing Determinants_ALL'!$B$19:$P$40, 11, FALSE)*'2. 2015 Continuity Schedule'!$BM$33), 0, VLOOKUP(N$4, '4(A) Billing Determinants_ALL'!$B$19:$P$40, 11, FALSE)*'2. 2015 Continuity Schedule'!$BM$33) -> 0 | O14: =IF(ISERROR(VLOOKUP(O$4, '4(A) Billing Determinants_ALL'!$B$19:$P$40, 11, FALSE)*'2. 2015 Continuity Schedule'!$BM$33), 0, VLOOKUP(O$4, '4(A) Billing Determinants_ALL'!$B$19:$P$40, 11, FALSE)*'2. 2015 Continuity Schedule'!$BM$33) -> 0 | P14: =IF(ISERROR(VLOOKUP(P$4, '4(A) Billing Determinants_ALL'!$B$19:$P$40, 11, FALSE)*'2. 2015 Continuity Schedule'!$BM$33), 0, VLOOKUP(P$4, '4(A) Billing Determinants_ALL'!$B$19:$P$40, 11, FALSE)*'2. 2015 Continuity Schedule'!$BM$33) -> 0 | Q14: =IF(ISERROR(VLOOKUP(Q$4, '4(A) Billing Determinants_ALL'!$B$19:$P$40, 11, FALSE)*'2. 2015 Continuity Schedule'!$BM$33), 0, VLOOKUP(Q$4, '4(A) Billing Determinants_ALL'!$B$19:$P$40, 11, FALSE)*'2. 2015 Continuity Schedule'!$BM$33) -> 0 | R14: =IF(ISERROR(VLOOKUP(R$4, '4(A) Billing Determinants_ALL'!$B$19:$P$40, 11, FALSE)*'2. 2015 Continuity Schedule'!$BM$33), 0, VLOOKUP(R$4, '4(A) Billing Determinants_ALL'!$B$19:$P$40, 11, FALSE)*'2. 2015 Continuity Schedule'!$BM$33) -> 0 | S14: =IF(ISERROR(VLOOKUP(S$4, '4(A) Billing Determinants_ALL'!$B$19:$P$40, 11, FALSE)*'2. 2015 Continuity Schedule'!$BM$33), 0, VLOOKUP(S$4, '4(A) Billing Determinants_ALL'!$B$19:$P$40, 11, FALSE)*'2. 2015 Continuity Schedule'!$BM$33) -> 0 | T14: =IF(ISERROR(VLOOKUP(T$4, '4(A) Billing Determinants_ALL'!$B$19:$P$40, 11, FALSE)*'2. 2015 Continuity Schedule'!$BM$33), 0, VLOOKUP(T$4, '4(A) Billing Determinants_ALL'!$B$19:$P$40, 11, FALSE)*'2. 2015 Continuity Schedule'!$BM$33) -> 0 | U14: =IF(ISERROR(VLOOKUP(U$4, '4(A) Billing Determinants_ALL'!$B$19:$P$40, 11, FALSE)*'2. 2015 Continuity Schedule'!$BM$33), 0, VLOOKUP(U$4, '4(A) Billing Determinants_ALL'!$B$19:$P$40, 11, FALSE)*'2. 2015 Continuity Schedule'!$BM$33) -> 0 | V14: =IF(ISERROR(VLOOKUP(V$4, '4(A) Billing Determinants_ALL'!$B$19:$P$40, 11, FALSE)*'2. 2015 Continuity Schedule'!$BM$33), 0, VLOOKUP(V$4, '4(A) Billing Determinants_ALL'!$B$19:$P$40, 11, FALSE)*'2. 2015 Continuity Schedule'!$BM$33) -> 0 | W14: =IF(ISERROR(VLOOKUP(W$4, '4(A) Billing Determinants_ALL'!$B$19:$P$40, 11, FALSE)*'2. 2015 Continuity Schedule'!$BM$33), 0, VLOOKUP(W$4, '4(A) Billing Determinants_ALL'!$B$19:$P$40, 11, FALSE)*'2. 2015 Continuity Schedule'!$BM$33) -> 0
B15: Disposition and Recovery/Refund of Regulatory Balances (2010) | C15: 1595 | D15: ='2. 2015 Continuity Schedule'!BM34 -> 2.637534635e-11 | F15: =IF(ISERROR(VLOOKUP(F$4, '4(A) Billing Determinants_ALL'!$B$19:$P$40, 12, FALSE)*'2. 2015 Continuity Schedule'!$BM$34), 0, VLOOKUP(F$4, '4(A) Billing Determinants_ALL'!$B$19:$P$40, 12, FALSE)*'2. 2015 Continuity Schedule'!$BM$34) -> 0 | G15: =IF(ISERROR(VLOOKUP(G$4, '4(A) Billing Determinants_ALL'!$B$19:$P$40, 12, FALSE)*'2. 2015 Continuity Schedule'!$BM$34), 0, VLOOKUP(G$4, '4(A) Billing Determinants_ALL'!$B$19:$P$40, 12, FALSE)*'2. 2015 Continuity Schedule'!$BM$34) -> 0 | H15: =IF(ISERROR(VLOOKUP(H$4, '4(A) Billing Determinants_ALL'!$B$19:$P$40, 12, FALSE)*'2. 2015 Continuity Schedule'!$BM$34), 0, VLOOKUP(H$4, '4(A) Billing Determinants_ALL'!$B$19:$P$40, 12, FALSE)*'2. 2015 Continuity Schedule'!$BM$34) -> 0 | I15: =IF(ISERROR(VLOOKUP(I$4, '4(A) Billing Determinants_ALL'!$B$19:$P$40, 12, FALSE)*'2. 2015 Continuity Schedule'!$BM$34), 0, VLOOKUP(I$4, '4(A) Billing Determinants_ALL'!$B$19:$P$40, 12, FALSE)*'2. 2015 Continuity Schedule'!$BM$34) -> 0 | J15: =IF(ISERROR(VLOOKUP(J$4, '4(A) Billing Determinants_ALL'!$B$19:$P$40, 12, FALSE)*'2. 2015 Continuity Schedule'!$BM$34), 0, VLOOKUP(J$4, '4(A) Billing Determinants_ALL'!$B$19:$P$40, 12, FALSE)*'2. 2015 Continuity Schedule'!$BM$34) -> 0 | K15: =IF(ISERROR(VLOOKUP(K$4, '4(A) Billing Determinants_ALL'!$B$19:$P$40, 12, FALSE)*'2. 2015 Continuity Schedule'!$BM$34), 0, VLOOKUP(K$4, '4(A) Billing Determinants_ALL'!$B$19:$P$40, 12, FALSE)*'2. 2015 Continuity Schedule'!$BM$34) -> 0 | L15: =IF(ISERROR(VLOOKUP(L$4, '4(A) Billing Determinants_ALL'!$B$19:$P$40, 12, FALSE)*'2. 2015 Continuity Schedule'!$BM$34), 0, VLOOKUP(L$4, '4(A) Billing Determinants_ALL'!$B$19:$P$40, 12, FALSE)*'2. 2015 Continuity Schedule'!$BM$34) -> 0 | M15: =IF(ISERROR(VLOOKUP(M$4, '4(A) Billing Determinants_ALL'!$B$19:$P$40, 12, FALSE)*'2. 2015 Continuity Schedule'!$BM$34), 0, VLOOKUP(M$4, '4(A) Billing Determinants_ALL'!$B$19:$P$40, 12, FALSE)*'2. 2015 Continuity Schedule'!$BM$34) -> 0 | N15: =IF(ISERROR(VLOOKUP(N$4, '4(A) Billing Determinants_ALL'!$B$19:$P$40, 12, FALSE)*'2. 2015 Continuity Schedule'!$BM$34), 0, VLOOKUP(N$4, '4(A) Billing Determinants_ALL'!$B$19:$P$40, 12, FALSE)*'2. 2015 Continuity Schedule'!$BM$34) -> 0 | O15: =IF(ISERROR(VLOOKUP(O$4, '4(A) Billing Determinants_ALL'!$B$19:$P$40, 12, FALSE)*'2. 2015 Continuity Schedule'!$BM$34), 0, VLOOKUP(O$4, '4(A) Billing Determinants_ALL'!$B$19:$P$40, 12, FALSE)*'2. 2015 Continuity Schedule'!$BM$34) -> 0 | P15: =IF(ISERROR(VLOOKUP(P$4, '4(A) Billing Determinants_ALL'!$B$19:$P$40, 12, FALSE)*'2. 2015 Continuity Schedule'!$BM$34), 0, VLOOKUP(P$4, '4(A) Billing Determinants_ALL'!$B$19:$P$40, 12, FALSE)*'2. 2015 Continuity Schedule'!$BM$34) -> 0 | Q15: =IF(ISERROR(VLOOKUP(Q$4, '4(A) Billing Determinants_ALL'!$B$19:$P$40, 12, FALSE)*'2. 2015 Continuity Schedule'!$BM$34), 0, VLOOKUP(Q$4, '4(A) Billing Determinants_ALL'!$B$19:$P$40, 12, FALSE)*'2. 2015 Continuity Schedule'!$BM$34) -> 0 | R15: =IF(ISERROR(VLOOKUP(R$4, '4(A) Billing Determinants_ALL'!$B$19:$P$40, 12, FALSE)*'2. 2015 Continuity Schedule'!$BM$34), 0, VLOOKUP(R$4, '4(A) Billing Determinants_ALL'!$B$19:$P$40, 12, FALSE)*'2. 2015 Continuity Schedule'!$BM$34) -> 0 | S15: =IF(ISERROR(VLOOKUP(S$4, '4(A) Billing Determinants_ALL'!$B$19:$P$40, 12, FALSE)*'2. 2015 Continuity Schedule'!$BM$34), 0, VLOOKUP(S$4, '4(A) Billing Determinants_ALL'!$B$19:$P$40, 12, FALSE)*'2. 2015 Continuity Schedule'!$BM$34) -> 0 | T15: =IF(ISERROR(VLOOKUP(T$4, '4(A) Billing Determinants_ALL'!$B$19:$P$40, 12, FALSE)*'2. 2015 Continuity Schedule'!$BM$34), 0, VLOOKUP(T$4, '4(A) Billing Determinants_ALL'!$B$19:$P$40, 12, FALSE)*'2. 2015 Continuity Schedule'!$BM$34) -> 0 | U15: =IF(ISERROR(VLOOKUP(U$4, '4(A) Billing Determinants_ALL'!$B$19:$P$40, 12, FALSE)*'2. 2015 Continuity Schedule'!$BM$34), 0, VLOOKUP(U$4, '4(A) Billing Determinants_ALL'!$B$19:$P$40, 12, FALSE)*'2. 2015 Continuity Schedule'!$BM$34) -> 0 | V15: =IF(ISERROR(VLOOKUP(V$4, '4(A) Billing Determinants_ALL'!$B$19:$P$40, 12, FALSE)*'2. 2015 Continuity Schedule'!$BM$34), 0, VLOOKUP(V$4, '4(A) Billing Determinants_ALL'!$B$19:$P$40, 12, FALSE)*'2. 2015 Continuity Schedule'!$BM$34) -> 0 | W15: =IF(ISERROR(VLOOKUP(W$4, '4(A) Billing Determinants_ALL'!$B$19:$P$40, 12, FALSE)*'2. 2015 Continuity Schedule'!$BM$34), 0, VLOOKUP(W$4, '4(A) Billing Determinants_ALL'!$B$19:$P$40, 12, FALSE)*'2. 2015 Continuity Schedule'!$BM$34) -> 0
B16: Disposition and Recovery/Refund of Regulatory Balances - Shared Tax Savings | C16: 1595 | D16: ='2. 2015 Continuity Schedule'!BM35 -> -87572.6688 | F16: =+'4(A) Billing Determinants_ALL'!$O$21 -> -28963.39369 | G16: =+'4(A) Billing Determinants_ALL'!$O$22 -> -7851.936919 | H16: =+'4(A) Billing Determinants_ALL'!$O$23 -> -23566.68063 | I16: =+'4(A) Billing Determinants_ALL'!$O$24 -> -17847.27191 | J16: =+'4(A) Billing Determinants_ALL'!$O$25 -> -8470.730123 | K16: =+'4(A) Billing Determinants_ALL'!$O$26 -> -131.3213436 | L16: =+'4(A) Billing Determinants_ALL'!$O$27 -> -737.3754168 | M16: =+'4(A) Billing Determinants_ALL'!$O$28 -> -3.958764921 | N16: =IF(ISERROR(VLOOKUP(N$4, '4(A) Billing Determinants_ALL'!$B$19:$P$40, 13, FALSE)*'2. 2015 Continuity Schedule'!$BM$35), 0, VLOOKUP(N$4, '4(A) Billing Determinants_ALL'!$B$19:$P$40, 13, FALSE)*'2. 2015 Continuity Schedule'!$BM$35) -> 0 | O16: =IF(ISERROR(VLOOKUP(O$4, '4(A) Billing Determinants_ALL'!$B$19:$P$40, 13, FALSE)*'2. 2015 Continuity Schedule'!$BM$35), 0, VLOOKUP(O$4, '4(A) Billing Determinants_ALL'!$B$19:$P$40, 13, FALSE)*'2. 2015 Continuity Schedule'!$BM$35) -> 0 | P16: =IF(ISERROR(VLOOKUP(P$4, '4(A) Billing Determinants_ALL'!$B$19:$P$40, 13, FALSE)*'2. 2015 Continuity Schedule'!$BM$35), 0, VLOOKUP(P$4, '4(A) Billing Determinants_ALL'!$B$19:$P$40, 13, FALSE)*'2. 2015 Continuity Schedule'!$BM$35) -> 0 | Q16: =IF(ISERROR(VLOOKUP(Q$4, '4(A) Billing Determinants_ALL'!$B$19:$P$40, 13, FALSE)*'2. 2015 Continuity Schedule'!$BM$35), 0, VLOOKUP(Q$4, '4(A) Billing Determinants_ALL'!$B$19:$P$40, 13, FALSE)*'2. 2015 Continuity Schedule'!$BM$35) -> 0 | R16: =IF(ISERROR(VLOOKUP(R$4, '4(A) Billing Determinants_ALL'!$B$19:$P$40, 13, FALSE)*'2. 2015 Continuity Schedule'!$BM$35), 0, VLOOKUP(R$4, '4(A) Billing Determinants_ALL'!$B$19:$P$40, 13, FALSE)*'2. 2015 Continuity Schedule'!$BM$35) -> 0 | S16: =IF(ISERROR(VLOOKUP(S$4, '4(A) Billing Determinants_ALL'!$B$19:$P$40, 13, FALSE)*'2. 2015 Continuity Schedule'!$BM$35), 0, VLOOKUP(S$4, '4(A) Billing Determinants_ALL'!$B$19:$P$40, 13, FALSE)*'2. 2015 Continuity Schedule'!$BM$35) -> 0 | T16: =IF(ISERROR(VLOOKUP(T$4, '4(A) Billing Determinants_ALL'!$B$19:$P$40, 13, FALSE)*'2. 2015 Continuity Schedule'!$BM$35), 0, VLOOKUP(T$4, '4(A) Billing Determinants_ALL'!$B$19:$P$40, 13, FALSE)*'2. 2015 Continuity Schedule'!$BM$35) -> 0 | U16: =IF(ISERROR(VLOOKUP(U$4, '4(A) Billing Determinants_ALL'!$B$19:$P$40, 13, FALSE)*'2. 2015 Continuity Schedule'!$BM$35), 0, VLOOKUP(U$4, '4(A) Billing Determinants_ALL'!$B$19:$P$40, 13, FALSE)*'2. 2015 Continuity Schedule'!$BM$35) -> 0 | V16: =IF(ISERROR(VLOOKUP(V$4, '4(A) Billing Determinants_ALL'!$B$19:$P$40, 13, FALSE)*'2. 2015 Continuity Schedule'!$BM$35), 0, VLOOKUP(V$4, '4(A) Billing Determinants_ALL'!$B$19:$P$40, 13, FALSE)*'2. 2015 Continuity Schedule'!$BM$35) -> 0 | W16: =IF(ISERROR(VLOOKUP(W$4, '4(A) Billing Determinants_ALL'!$B$19:$P$40, 13, FALSE)*'2. 2015 Continuity Schedule'!$BM$35), 0, VLOOKUP(W$4, '4(A) Billing Determinants_ALL'!$B$19:$P$40, 13, FALSE)*'2. 2015 Continuity Schedule'!$BM$35) -> 0
B17: Total of Group 1 Accounts (excluding 1589) | D17: =SUM(D5:D16)-D11 -> -3321729.591 | F17: =SUM(F5:F16)-F11 -> -1098614.022 | G17: -297832.7778 | H17: -893910.6397 | I17: -676967.0496 | J17: -321304.2983 | K17: -4981.165916 | L17: -27969.47695 | M17: -150.1603955 | N17: 0 | O17: 0 | P17: 0 | Q17: 0 | R17: 0 | S17: 0 | T17: 0 | U17: 0 | V17: 0 | W17: 0
B19: Other Regulatory Assets - Sub-Account - OEB Cost Assessments | C19: 1508 | D19: ='2. 2015 Continuity Schedule'!BM42 -> 0 | F19: =IFERROR(IF(F$4="",0,IF($E19="kWh",VLOOKUP(F$4,'4(A) Billing Determinants_ALL'!$B$19:$P$40,4,0)/'4(A) Billing Determinants_ALL'!$E$40*$D19,IF($E19="kW",VLOOKUP(F$4,'4(A) Billing Determinants_ALL'!$B$19:$P$40,5,0)/'4(A) Billing Determinants_ALL'!$F$40*$D19,IF($E19="Non-RPP kWh",VLOOKUP(F$4,'4(A) Billing Determinants_ALL'!$B$19:$P$40,6,0)/'4(A) Billing Determinants_ALL'!$G$40*$D19,IF($E19="Distribution Rev.",VLOOKUP(F$4,'4(A) Billing Determinants_ALL'!$B$19:$P$40,8,0)/'4(A) Billing Determinants_ALL'!$I$40*$D19, VLOOKUP(F$4,'4(A) Billing Determinants_ALL'!$B$19:$P$40,3,0)/'4(A) Billing Determinants_ALL'!$D$40*$D19))))),0) -> 0 | G19: =IFERROR(IF(G$4="",0,IF($E19="kWh",VLOOKUP(G$4,'4(A) Billing Determinants_ALL'!$B$19:$P$40,4,0)/'4(A) Billing Determinants_ALL'!$E$40*$D19,IF($E19="kW",VLOOKUP(G$4,'4(A) Billing Determinants_ALL'!$B$19:$P$40,5,0)/'4(A) Billing Determinants_ALL'!$F$40*$D19,IF($E19="Non-RPP kWh",VLOOKUP(G$4,'4(A) Billing Determinants_ALL'!$B$19:$P$40,6,0)/'4(A) Billing Determinants_ALL'!$G$40*$D19,IF($E19="Distribution Rev.",VLOOKUP(G$4,'4(A) Billing Determinants_ALL'!$B$19:$P$40,8,0)/'4(A) Billing Determinants_ALL'!$I$40*$D19, VLOOKUP(G$4,'4(A) Billing Determinants_ALL'!$B$19:$P$40,3,0)/'4(A) Billing Determinants_ALL'!$D$40*$D19))))),0) -> 0 | H19: =IFERROR(IF(H$4="",0,IF($E19="kWh",VLOOKUP(H$4,'4(A) Billing Determinants_ALL'!$B$19:$P$40,4,0)/'4(A) Billing Determinants_ALL'!$E$40*$D19,IF($E19="kW",VLOOKUP(H$4,'4(A) Billing Determinants_ALL'!$B$19:$P$40,5,0)/'4(A) Billing Determinants_ALL'!$F$40*$D19,IF($E19="Non-RPP kWh",VLOOKUP(H$4,'4(A) Billing Determinants_ALL'!$B$19:$P$40,6,0)/'4(A) Billing Determinants_ALL'!$G$40*$D19,IF($E19="Distribution Rev.",VLOOKUP(H$4,'4(A) Billing Determinants_ALL'!$B$19:$P$40,8,0)/'4(A) Billing Determinants_ALL'!$I$40*$D19, VLOOKUP(H$4,'4(A) Billing Determinants_ALL'!$B$19:$P$40,3,0)/'4(A) Billing Determinants_ALL'!$D$40*$D19))))),0) -> 0 | I19: =IFERROR(IF(I$4="",0,IF($E19="kWh",VLOOKUP(I$4,'4(A) Billing Determinants_ALL'!$B$19:$P$40,4,0)/'4(A) Billing Determinants_ALL'!$E$40*$D19,IF($E19="kW",VLOOKUP(I$4,'4(A) Billing Determinants_ALL'!$B$19:$P$40,5,0)/'4(A) Billing Determinants_ALL'!$F$40*$D19,IF($E19="Non-RPP kWh",VLOOKUP(I$4,'4(A) Billing Determinants_ALL'!$B$19:$P$40,6,0)/'4(A) Billing Determinants_ALL'!$G$40*$D19,IF($E19="Distribution Rev.",VLOOKUP(I$4,'4(A) Billing Determinants_ALL'!$B$19:$P$40,8,0)/'4(A) Billing Determinants_ALL'!$I$40*$D19, VLOOKUP(I$4,'4(A) Billing Determinants_ALL'!$B$19:$P$40,3,0)/'4(A) Billing Determinants_ALL'!$D$40*$D19))))),0) -> 0 | J19: =IFERROR(IF(J$4="",0,IF($E19="kWh",VLOOKUP(J$4,'4(A) Billing Determinants_ALL'!$B$19:$P$40,4,0)/'4(A) Billing Determinants_ALL'!$E$40*$D19,IF($E19="kW",VLOOKUP(J$4,'4(A) Billing Determinants_ALL'!$B$19:$P$40,5,0)/'4(A) Billing Determinants_ALL'!$F$40*$D19,IF($E19="Non-RPP kWh",VLOOKUP(J$4,'4(A) Billing Determinants_ALL'!$B$19:$P$40,6,0)/'4(A) Billing Determinants_ALL'!$G$40*$D19,IF($E19="Distribution Rev.",VLOOKUP(J$4,'4(A) Billing Determinants_ALL'!$B$19:$P$40,8,0)/'4(A) Billing Determinants_ALL'!$I$40*$D19, VLOOKUP(J$4,'4(A) Billing Determinants_ALL'!$B$19:$P$40,3,0)/'4(A) Billing Determinants_ALL'!$D$40*$D19))))),0) -> 0 | K19: =IFERROR(IF(K$4="",0,IF($E19="kWh",VLOOKUP(K$4,'4(A) Billing Determinants_ALL'!$B$19:$P$40,4,0)/'4(A) Billing Determinants_ALL'!$E$40*$D19,IF($E19="kW",VLOOKUP(K$4,'4(A) Billing Determinants_ALL'!$B$19:$P$40,5,0)/'4(A) Billing Determinants_ALL'!$F$40*$D19,IF($E19="Non-RPP kWh",VLOOKUP(K$4,'4(A) Billing Determinants_ALL'!$B$19:$P$40,6,0)/'4(A) Billing Determinants_ALL'!$G$40*$D19,IF($E19="Distribution Rev.",VLOOKUP(K$4,'4(A) Billing Determinants_ALL'!$B$19:$P$40,8,0)/'4(A) Billing Determinants_ALL'!$I$40*$D19, VLOOKUP(K$4,'4(A) Billing Determinants_ALL'!$B$19:$P$40,3,0)/'4(A) Billing Determinants_ALL'!$D$40*$D19))))),0) -> 0 | L19: =IFERROR(IF(L$4="",0,IF($E19="kWh",VLOOKUP(L$4,'4(A) Billing Determinants_ALL'!$B$19:$P$40,4,0)/'4(A) Billing Determinants_ALL'!$E$40*$D19,IF($E19="kW",VLOOKUP(L$4,'4(A) Billing Determinants_ALL'!$B$19:$P$40,5,0)/'4(A) Billing Determinants_ALL'!$F$40*$D19,IF($E19="Non-RPP kWh",VLOOKUP(L$4,'4(A) Billing Determinants_ALL'!$B$19:$P$40,6,0)/'4(A) Billing Determinants_ALL'!$G$40*$D19,IF($E19="Distribution Rev.",VLOOKUP(L$4,'4(A) Billing Determinants_ALL'!$B$19:$P$40,8,0)/'4(A) Billing Determinants_ALL'!$I$40*$D19, VLOOKUP(L$4,'4(A) Billing Determinants_ALL'!$B$19:$P$40,3,0)/'4(A) Billing Determinants_ALL'!$D$40*$D19))))),0) -> 0 | M19: =IFERROR(IF(M$4="",0,IF($E19="kWh",VLOOKUP(M$4,'4(A) Billing Determinants_ALL'!$B$19:$P$40,4,0)/'4(A) Billing Determinants_ALL'!$E$40*$D19,IF($E19="kW",VLOOKUP(M$4,'4(A) Billing Determinants_ALL'!$B$19:$P$40,5,0)/'4(A) Billing Determinants_ALL'!$F$40*$D19,IF($E19="Non-RPP kWh",VLOOKUP(M$4,'4(A) Billing Determinants_ALL'!$B$19:$P$40,6,0)/'4(A) Billing Determinants_ALL'!$G$40*$D19,IF($E19="Distribution Rev.",VLOOKUP(M$4,'4(A) Billing Determinants_ALL'!$B$19:$P$40,8,0)/'4(A) Billing Determinants_ALL'!$I$40*$D19, VLOOKUP(M$4,'4(A) Billing Determinants_ALL'!$B$19:$P$40,3,0)/'4(A) Billing Determinants_ALL'!$D$40*$D19))))),0) -> 0 | N19: =IFERROR(IF(N$4="",0,IF($E19="kWh",VLOOKUP(N$4,'4(A) Billing Determinants_ALL'!$B$19:$P$40,4,0)/'4(A) Billing Determinants_ALL'!$E$40*$D19,IF($E19="kW",VLOOKUP(N$4,'4(A) Billing Determinants_ALL'!$B$19:$P$40,5,0)/'4(A) Billing Determinants_ALL'!$F$40*$D19,IF($E19="Non-RPP kWh",VLOOKUP(N$4,'4(A) Billing Determinants_ALL'!$B$19:$P$40,6,0)/'4(A) Billing Determinants_ALL'!$G$40*$D19,IF($E19="Distribution Rev.",VLOOKUP(N$4,'4(A) Billing Determinants_ALL'!$B$19:$P$40,8,0)/'4(A) Billing Determinants_ALL'!$I$40*$D19, VLOOKUP(N$4,'4(A) Billing Determinants_ALL'!$B$19:$P$40,3,0)/'4(A) Billing Determinants_ALL'!$D$40*$D19))))),0) -> 0 | O19: =IFERROR(IF(O$4="",0,IF($E19="kWh",VLOOKUP(O$4,'4(A) Billing Determinants_ALL'!$B$19:$P$40,4,0)/'4(A) Billing Determinants_ALL'!$E$40*$D19,IF($E19="kW",VLOOKUP(O$4,'4(A) Billing Determinants_ALL'!$B$19:$P$40,5,0)/'4(A) Billing Determinants_ALL'!$F$40*$D19,IF($E19="Non-RPP kWh",VLOOKUP(O$4,'4(A) Billing Determinants_ALL'!$B$19:$P$40,6,0)/'4(A) Billing Determinants_ALL'!$G$40*$D19,IF($E19="Distribution Rev.",VLOOKUP(O$4,'4(A) Billing Determinants_ALL'!$B$19:$P$40,8,0)/'4(A) Billing Determinants_ALL'!$I$40*$D19, VLOOKUP(O$4,'4(A) Billing Determinants_ALL'!$B$19:$P$40,3,0)/'4(A) Billing Determinants_ALL'!$D$40*$D19))))),0) -> 0 | P19: =IFERROR(IF(P$4="",0,IF($E19="kWh",VLOOKUP(P$4,'4(A) Billing Determinants_ALL'!$B$19:$P$40,4,0)/'4(A) Billing Determinants_ALL'!$E$40*$D19,IF($E19="kW",VLOOKUP(P$4,'4(A) Billing Determinants_ALL'!$B$19:$P$40,5,0)/'4(A) Billing Determinants_ALL'!$F$40*$D19,IF($E19="Non-RPP kWh",VLOOKUP(P$4,'4(A) Billing Determinants_ALL'!$B$19:$P$40,6,0)/'4(A) Billing Determinants_ALL'!$G$40*$D19,IF($E19="Distribution Rev.",VLOOKUP(P$4,'4(A) Billing Determinants_ALL'!$B$19:$P$40,8,0)/'4(A) Billing Determinants_ALL'!$I$40*$D19, VLOOKUP(P$4,'4(A) Billing Determinants_ALL'!$B$19:$P$40,3,0)/'4(A) Billing Determinants_ALL'!$D$40*$D19))))),0) -> 0 | Q19: =IFERROR(IF(Q$4="",0,IF($E19="kWh",VLOOKUP(Q$4,'4(A) Billing Determinants_ALL'!$B$19:$P$40,4,0)/'4(A) Billing Determinants_ALL'!$E$40*$D19,IF($E19="kW",VLOOKUP(Q$4,'4(A) Billing Determinants_ALL'!$B$19:$P$40,5,0)/'4(A) Billing Determinants_ALL'!$F$40*$D19,IF($E19="Non-RPP kWh",VLOOKUP(Q$4,'4(A) Billing Determinants_ALL'!$B$19:$P$40,6,0)/'4(A) Billing Determinants_ALL'!$G$40*$D19,IF($E19="Distribution Rev.",VLOOKUP(Q$4,'4(A) Billing Determinants_ALL'!$B$19:$P$40,8,0)/'4(A) Billing Determinants_ALL'!$I$40*$D19, VLOOKUP(Q$4,'4(A) Billing Determinants_ALL'!$B$19:$P$40,3,0)/'4(A) Billing Determinants_ALL'!$D$40*$D19))))),0) -> 0 | R19: =IFERROR(IF(R$4="",0,IF($E19="kWh",VLOOKUP(R$4,'4(A) Billing Determinants_ALL'!$B$19:$P$40,4,0)/'4(A) Billing Determinants_ALL'!$E$40*$D19,IF($E19="kW",VLOOKUP(R$4,'4(A) Billing Determinants_ALL'!$B$19:$P$40,5,0)/'4(A) Billing Determinants_ALL'!$F$40*$D19,IF($E19="Non-RPP kWh",VLOOKUP(R$4,'4(A) Billing Determinants_ALL'!$B$19:$P$40,6,0)/'4(A) Billing Determinants_ALL'!$G$40*$D19,IF($E19="Distribution Rev.",VLOOKUP(R$4,'4(A) Billing Determinants_ALL'!$B$19:$P$40,8,0)/'4(A) Billing Determinants_ALL'!$I$40*$D19, VLOOKUP(R$4,'4(A) Billing Determinants_ALL'!$B$19:$P$40,3,0)/'4(A) Billing Determinants_ALL'!$D$40*$D19))))),0) -> 0 | S19: =IFERROR(IF(S$4="",0,IF($E19="kWh",VLOOKUP(S$4,'4(A) Billing Determinants_ALL'!$B$19:$P$40,4,0)/'4(A) Billing Determinants_ALL'!$E$40*$D19,IF($E19="kW",VLOOKUP(S$4,'4(A) Billing Determinants_ALL'!$B$19:$P$40,5,0)/'4(A) Billing Determinants_ALL'!$F$40*$D19,IF($E19="Non-RPP kWh",VLOOKUP(S$4,'4(A) Billing Determinants_ALL'!$B$19:$P$40,6,0)/'4(A) Billing Determinants_ALL'!$G$40*$D19,IF($E19="Distribution Rev.",VLOOKUP(S$4,'4(A) Billing Determinants_ALL'!$B$19:$P$40,8,0)/'4(A) Billing Determinants_ALL'!$I$40*$D19, VLOOKUP(S$4,'4(A) Billing Determinants_ALL'!$B$19:$P$40,3,0)/'4(A) Billing Determinants_ALL'!$D$40*$D19))))),0) -> 0 | T19: =IFERROR(IF(T$4="",0,IF($E19="kWh",VLOOKUP(T$4,'4(A) Billing Determinants_ALL'!$B$19:$P$40,4,0)/'4(A) Billing Determinants_ALL'!$E$40*$D19,IF($E19="kW",VLOOKUP(T$4,'4(A) Billing Determinants_ALL'!$B$19:$P$40,5,0)/'4(A) Billing Determinants_ALL'!$F$40*$D19,IF($E19="Non-RPP kWh",VLOOKUP(T$4,'4(A) Billing Determinants_ALL'!$B$19:$P$40,6,0)/'4(A) Billing Determinants_ALL'!$G$40*$D19,IF($E19="Distribution Rev.",VLOOKUP(T$4,'4(A) Billing Determinants_ALL'!$B$19:$P$40,8,0)/'4(A) Billing Determinants_ALL'!$I$40*$D19, VLOOKUP(T$4,'4(A) Billing Determinants_ALL'!$B$19:$P$40,3,0)/'4(A) Billing Determinants_ALL'!$D$40*$D19))))),0) -> 0 | U19: =IFERROR(IF(U$4="",0,IF($E19="kWh",VLOOKUP(U$4,'4(A) Billing Determinants_ALL'!$B$19:$P$40,4,0)/'4(A) Billing Determinants_ALL'!$E$40*$D19,IF($E19="kW",VLOOKUP(U$4,'4(A) Billing Determinants_ALL'!$B$19:$P$40,5,0)/'4(A) Billing Determinants_ALL'!$F$40*$D19,IF($E19="Non-RPP kWh",VLOOKUP(U$4,'4(A) Billing Determinants_ALL'!$B$19:$P$40,6,0)/'4(A) Billing Determinants_ALL'!$G$40*$D19,IF($E19="Distribution Rev.",VLOOKUP(U$4,'4(A) Billing Determinants_ALL'!$B$19:$P$40,8,0)/'4(A) Billing Determinants_ALL'!$I$40*$D19, VLOOKUP(U$4,'4(A) Billing Determinants_ALL'!$B$19:$P$40,3,0)/'4(A) Billing Determinants_ALL'!$D$40*$D19))))),0) -> 0 | V19: =IFERROR(IF(V$4="",0,IF($E19="kWh",VLOOKUP(V$4,'4(A) Billing Determinants_ALL'!$B$19:$P$40,4,0)/'4(A) Billing Determinants_ALL'!$E$40*$D19,IF($E19="kW",VLOOKUP(V$4,'4(A) Billing Determinants_ALL'!$B$19:$P$40,5,0)/'4(A) Billing Determinants_ALL'!$F$40*$D19,IF($E19="Non-RPP kWh",VLOOKUP(V$4,'4(A) Billing Determinants_ALL'!$B$19:$P$40,6,0)/'4(A) Billing Determinants_ALL'!$G$40*$D19,IF($E19="Distribution Rev.",VLOOKUP(V$4,'4(A) Billing Determinants_ALL'!$B$19:$P$40,8,0)/'4(A) Billing Determinants_ALL'!$I$40*$D19, VLOOKUP(V$4,'4(A) Billing Determinants_ALL'!$B$19:$P$40,3,0)/'4(A) Billing Determinants_ALL'!$D$40*$D19))))),0) -> 0 | W19: =IFERROR(IF(W$4="",0,IF($E19="kWh",VLOOKUP(W$4,'4(A) Billing Determinants_ALL'!$B$19:$P$40,4,0)/'4(A) Billing Determinants_ALL'!$E$40*$D19,IF($E19="kW",VLOOKUP(W$4,'4(A) Billing Determinants_ALL'!$B$19:$P$40,5,0)/'4(A) Billing Determinants_ALL'!$F$40*$D19,IF($E19="Non-RPP kWh",VLOOKUP(W$4,'4(A) Billing Determinants_ALL'!$B$19:$P$40,6,0)/'4(A) Billing Determinants_ALL'!$G$40*$D19,IF($E19="Distribution Rev.",VLOOKUP(W$4,'4(A) Billing Determinants_ALL'!$B$19:$P$40,8,0)/'4(A) Billing Determinants_ALL'!$I$40*$D19, VLOOKUP(W$4,'4(A) Billing Determinants_ALL'!$B$19:$P$40,3,0)/'4(A) Billing Determinants_ALL'!$D$40*$D19))))),0) -> 0
B20: Other Regulatory Assets - Sub-Account - Pension Contributions | C20: 1508 | D20: ='2. 2015 Continuity Schedule'!BM43 -> 0 | F20: =IFERROR(IF(F$4="",0,IF($E20="kWh",VLOOKUP(F$4,'4(A) Billing Determinants_ALL'!$B$19:$P$40,4,0)/'4(A) Billing Determinants_ALL'!$E$40*$D20,IF($E20="kW",VLOOKUP(F$4,'4(A) Billing Determinants_ALL'!$B$19:$P$40,5,0)/'4(A) Billing Determinants_ALL'!$F$40*$D20,IF($E20="Non-RPP kWh",VLOOKUP(F$4,'4(A) Billing Determinants_ALL'!$B$19:$P$40,6,0)/'4(A) Billing Determinants_ALL'!$G$40*$D20,IF($E20="Distribution Rev.",VLOOKUP(F$4,'4(A) Billing Determinants_ALL'!$B$19:$P$40,8,0)/'4(A) Billing Determinants_ALL'!$I$40*$D20, VLOOKUP(F$4,'4(A) Billing Determinants_ALL'!$B$19:$P$40,3,0)/'4(A) Billing Determinants_ALL'!$D$40*$D20))))),0) -> 0 | G20: =IFERROR(IF(G$4="",0,IF($E20="kWh",VLOOKUP(G$4,'4(A) Billing Determinants_ALL'!$B$19:$P$40,4,0)/'4(A) Billing Determinants_ALL'!$E$40*$D20,IF($E20="kW",VLOOKUP(G$4,'4(A) Billing Determinants_ALL'!$B$19:$P$40,5,0)/'4(A) Billing Determinants_ALL'!$F$40*$D20,IF($E20="Non-RPP kWh",VLOOKUP(G$4,'4(A) Billing Determinants_ALL'!$B$19:$P$40,6,0)/'4(A) Billing Determinants_ALL'!$G$40*$D20,IF($E20="Distribution Rev.",VLOOKUP(G$4,'4(A) Billing Determinants_ALL'!$B$19:$P$40,8,0)/'4(A) Billing Determinants_ALL'!$I$40*$D20, VLOOKUP(G$4,'4(A) Billing Determinants_ALL'!$B$19:$P$40,3,0)/'4(A) Billing Determinants_ALL'!$D$40*$D20))))),0) -> 0 | H20: =IFERROR(IF(H$4="",0,IF($E20="kWh",VLOOKUP(H$4,'4(A) Billing Determinants_ALL'!$B$19:$P$40,4,0)/'4(A) Billing Determinants_ALL'!$E$40*$D20,IF($E20="kW",VLOOKUP(H$4,'4(A) Billing Determinants_ALL'!$B$19:$P$40,5,0)/'4(A) Billing Determinants_ALL'!$F$40*$D20,IF($E20="Non-RPP kWh",VLOOKUP(H$4,'4(A) Billing Determinants_ALL'!$B$19:$P$40,6,0)/'4(A) Billing Determinants_ALL'!$G$40*$D20,IF($E20="Distribution Rev.",VLOOKUP(H$4,'4(A) Billing Determinants_ALL'!$B$19:$P$40,8,0)/'4(A) Billing Determinants_ALL'!$I$40*$D20, VLOOKUP(H$4,'4(A) Billing Determinants_ALL'!$B$19:$P$40,3,0)/'4(A) Billing Determinants_ALL'!$D$40*$D20))))),0) -> 0 | I20: =IFERROR(IF(I$4="",0,IF($E20="kWh",VLOOKUP(I$4,'4(A) Billing Determinants_ALL'!$B$19:$P$40,4,0)/'4(A) Billing Determinants_ALL'!$E$40*$D20,IF($E20="kW",VLOOKUP(I$4,'4(A) Billing Determinants_ALL'!$B$19:$P$40,5,0)/'4(A) Billing Determinants_ALL'!$F$40*$D20,IF($E20="Non-RPP kWh",VLOOKUP(I$4,'4(A) Billing Determinants_ALL'!$B$19:$P$40,6,0)/'4(A) Billing Determinants_ALL'!$G$40*$D20,IF($E20="Distribution Rev.",VLOOKUP(I$4,'4(A) Billing Determinants_ALL'!$B$19:$P$40,8,0)/'4(A) Billing Determinants_ALL'!$I$40*$D20, VLOOKUP(I$4,'4(A) Billing Determinants_ALL'!$B$19:$P$40,3,0)/'4(A) Billing Determinants_ALL'!$D$40*$D20))))),0) -> 0 | J20: =IFERROR(IF(J$4="",0,IF($E20="kWh",VLOOKUP(J$4,'4(A) Billing Determinants_ALL'!$B$19:$P$40,4,0)/'4(A) Billing Determinants_ALL'!$E$40*$D20,IF($E20="kW",VLOOKUP(J$4,'4(A) Billing Determinants_ALL'!$B$19:$P$40,5,0)/'4(A) Billing Determinants_ALL'!$F$40*$D20,IF($E20="Non-RPP kWh",VLOOKUP(J$4,'4(A) Billing Determinants_ALL'!$B$19:$P$40,6,0)/'4(A) Billing Determinants_ALL'!$G$40*$D20,IF($E20="Distribution Rev.",VLOOKUP(J$4,'4(A) Billing Determinants_ALL'!$B$19:$P$40,8,0)/'4(A) Billing Determinants_ALL'!$I$40*$D20, VLOOKUP(J$4,'4(A) Billing Determinants_ALL'!$B$19:$P$40,3,0)/'4(A) Billing Determinants_ALL'!$D$40*$D20))))),0) -> 0 | K20: =IFERROR(IF(K$4="",0,IF($E20="kWh",VLOOKUP(K$4,'4(A) Billing Determinants_ALL'!$B$19:$P$40,4,0)/'4(A) Billing Determinants_ALL'!$E$40*$D20,IF($E20="kW",VLOOKUP(K$4,'4(A) Billing Determinants_ALL'!$B$19:$P$40,5,0)/'4(A) Billing Determinants_ALL'!$F$40*$D20,IF($E20="Non-RPP kWh",VLOOKUP(K$4,'4(A) Billing Determinants_ALL'!$B$19:$P$40,6,0)/'4(A) Billing Determinants_ALL'!$G$40*$D20,IF($E20="Distribution Rev.",VLOOKUP(K$4,'4(A) Billing Determinants_ALL'!$B$19:$P$40,8,0)/'4(A) Billing Determinants_ALL'!$I$40*$D20, VLOOKUP(K$4,'4(A) Billing Determinants_ALL'!$B$19:$P$40,3,0)/'4(A) Billing Determinants_ALL'!$D$40*$D20))))),0) -> 0 | L20: =IFERROR(IF(L$4="",0,IF($E20="kWh",VLOOKUP(L$4,'4(A) Billing Determinants_ALL'!$B$19:$P$40,4,0)/'4(A) Billing Determinants_ALL'!$E$40*$D20,IF($E20="kW",VLOOKUP(L$4,'4(A) Billing Determinants_ALL'!$B$19:$P$40,5,0)/'4(A) Billing Determinants_ALL'!$F$40*$D20,IF($E20="Non-RPP kWh",VLOOKUP(L$4,'4(A) Billing Determinants_ALL'!$B$19:$P$40,6,0)/'4(A) Billing Determinants_ALL'!$G$40*$D20,IF($E20="Distribution Rev.",VLOOKUP(L$4,'4(A) Billing Determinants_ALL'!$B$19:$P$40,8,0)/'4(A) Billing Determinants_ALL'!$I$40*$D20, VLOOKUP(L$4,'4(A) Billing Determinants_ALL'!$B$19:$P$40,3,0)/'4(A) Billing Determinants_ALL'!$D$40*$D20))))),0) -> 0 | M20: =IFERROR(IF(M$4="",0,IF($E20="kWh",VLOOKUP(M$4,'4(A) Billing Determinants_ALL'!$B$19:$P$40,4,0)/'4(A) Billing Determinants_ALL'!$E$40*$D20,IF($E20="kW",VLOOKUP(M$4,'4(A) Billing Determinants_ALL'!$B$19:$P$40,5,0)/'4(A) Billing Determinants_ALL'!$F$40*$D20,IF($E20="Non-RPP kWh",VLOOKUP(M$4,'4(A) Billing Determinants_ALL'!$B$19:$P$40,6,0)/'4(A) Billing Determinants_ALL'!$G$40*$D20,IF($E20="Distribution Rev.",VLOOKUP(M$4,'4(A) Billing Determinants_ALL'!$B$19:$P$40,8,0)/'4(A) Billing Determinants_ALL'!$I$40*$D20, VLOOKUP(M$4,'4(A) Billing Determinants_ALL'!$B$19:$P$40,3,0)/'4(A) Billing Determinants_ALL'!$D$40*$D20))))),0) -> 0 | N20: =IFERROR(IF(N$4="",0,IF($E20="kWh",VLOOKUP(N$4,'4(A) Billing Determinants_ALL'!$B$19:$P$40,4,0)/'4(A) Billing Determinants_ALL'!$E$40*$D20,IF($E20="kW",VLOOKUP(N$4,'4(A) Billing Determinants_ALL'!$B$19:$P$40,5,0)/'4(A) Billing Determinants_ALL'!$F$40*$D20,IF($E20="Non-RPP kWh",VLOOKUP(N$4,'4(A) Billing Determinants_ALL'!$B$19:$P$40,6,0)/'4(A) Billing Determinants_ALL'!$G$40*$D20,IF($E20="Distribution Rev.",VLOOKUP(N$4,'4(A) Billing Determinants_ALL'!$B$19:$P$40,8,0)/'4(A) Billing Determinants_ALL'!$I$40*$D20, VLOOKUP(N$4,'4(A) Billing Determinants_ALL'!$B$19:$P$40,3,0)/'4(A) Billing Determinants_ALL'!$D$40*$D20))))),0) -> 0 | O20: =IFERROR(IF(O$4="",0,IF($E20="kWh",VLOOKUP(O$4,'4(A) Billing Determinants_ALL'!$B$19:$P$40,4,0)/'4(A) Billing Determinants_ALL'!$E$40*$D20,IF($E20="kW",VLOOKUP(O$4,'4(A) Billing Determinants_ALL'!$B$19:$P$40,5,0)/'4(A) Billing Determinants_ALL'!$F$40*$D20,IF($E20="Non-RPP kWh",VLOOKUP(O$4,'4(A) Billing Determinants_ALL'!$B$19:$P$40,6,0)/'4(A) Billing Determinants_ALL'!$G$40*$D20,IF($E20="Distribution Rev.",VLOOKUP(O$4,'4(A) Billing Determinants_ALL'!$B$19:$P$40,8,0)/'4(A) Billing Determinants_ALL'!$I$40*$D20, VLOOKUP(O$4,'4(A) Billing Determinants_ALL'!$B$19:$P$40,3,0)/'4(A) Billing Determinants_ALL'!$D$40*$D20))))),0) -> 0 | P20: =IFERROR(IF(P$4="",0,IF($E20="kWh",VLOOKUP(P$4,'4(A) Billing Determinants_ALL'!$B$19:$P$40,4,0)/'4(A) Billing Determinants_ALL'!$E$40*$D20,IF($E20="kW",VLOOKUP(P$4,'4(A) Billing Determinants_ALL'!$B$19:$P$40,5,0)/'4(A) Billing Determinants_ALL'!$F$40*$D20,IF($E20="Non-RPP kWh",VLOOKUP(P$4,'4(A) Billing Determinants_ALL'!$B$19:$P$40,6,0)/'4(A) Billing Determinants_ALL'!$G$40*$D20,IF($E20="Distribution Rev.",VLOOKUP(P$4,'4(A) Billing Determinants_ALL'!$B$19:$P$40,8,0)/'4(A) Billing Determinants_ALL'!$I$40*$D20, VLOOKUP(P$4,'4(A) Billing Determinants_ALL'!$B$19:$P$40,3,0)/'4(A) Billing Determinants_ALL'!$D$40*$D20))))),0) -> 0 | Q20: =IFERROR(IF(Q$4="",0,IF($E20="kWh",VLOOKUP(Q$4,'4(A) Billing Determinants_ALL'!$B$19:$P$40,4,0)/'4(A) Billing Determinants_ALL'!$E$40*$D20,IF($E20="kW",VLOOKUP(Q$4,'4(A) Billing Determinants_ALL'!$B$19:$P$40,5,0)/'4(A) Billing Determinants_ALL'!$F$40*$D20,IF($E20="Non-RPP kWh",VLOOKUP(Q$4,'4(A) Billing Determinants_ALL'!$B$19:$P$40,6,0)/'4(A) Billing Determinants_ALL'!$G$40*$D20,IF($E20="Distribution Rev.",VLOOKUP(Q$4,'4(A) Billing Determinants_ALL'!$B$19:$P$40,8,0)/'4(A) Billing Determinants_ALL'!$I$40*$D20, VLOOKUP(Q$4,'4(A) Billing Determinants_ALL'!$B$19:$P$40,3,0)/'4(A) Billing Determinants_ALL'!$D$40*$D20))))),0) -> 0 | R20: =IFERROR(IF(R$4="",0,IF($E20="kWh",VLOOKUP(R$4,'4(A) Billing Determinants_ALL'!$B$19:$P$40,4,0)/'4(A) Billing Determinants_ALL'!$E$40*$D20,IF($E20="kW",VLOOKUP(R$4,'4(A) Billing Determinants_ALL'!$B$19:$P$40,5,0)/'4(A) Billing Determinants_ALL'!$F$40*$D20,IF($E20="Non-RPP kWh",VLOOKUP(R$4,'4(A) Billing Determinants_ALL'!$B$19:$P$40,6,0)/'4(A) Billing Determinants_ALL'!$G$40*$D20,IF($E20="Distribution Rev.",VLOOKUP(R$4,'4(A) Billing Determinants_ALL'!$B$19:$P$40,8,0)/'4(A) Billing Determinants_ALL'!$I$40*$D20, VLOOKUP(R$4,'4(A) Billing Determinants_ALL'!$B$19:$P$40,3,0)/'4(A) Billing Determinants_ALL'!$D$40*$D20))))),0) -> 0 | S20: =IFERROR(IF(S$4="",0,IF($E20="kWh",VLOOKUP(S$4,'4(A) Billing Determinants_ALL'!$B$19:$P$40,4,0)/'4(A) Billing Determinants_ALL'!$E$40*$D20,IF($E20="kW",VLOOKUP(S$4,'4(A) Billing Determinants_ALL'!$B$19:$P$40,5,0)/'4(A) Billing Determinants_ALL'!$F$40*$D20,IF($E20="Non-RPP kWh",VLOOKUP(S$4,'4(A) Billing Determinants_ALL'!$B$19:$P$40,6,0)/'4(A) Billing Determinants_ALL'!$G$40*$D20,IF($E20="Distribution Rev.",VLOOKUP(S$4,'4(A) Billing Determinants_ALL'!$B$19:$P$40,8,0)/'4(A) Billing Determinants_ALL'!$I$40*$D20, VLOOKUP(S$4,'4(A) Billing Determinants_ALL'!$B$19:$P$40,3,0)/'4(A) Billing Determinants_ALL'!$D$40*$D20))))),0) -> 0 | T20: =IFERROR(IF(T$4="",0,IF($E20="kWh",VLOOKUP(T$4,'4(A) Billing Determinants_ALL'!$B$19:$P$40,4,0)/'4(A) Billing Determinants_ALL'!$E$40*$D20,IF($E20="kW",VLOOKUP(T$4,'4(A) Billing Determinants_ALL'!$B$19:$P$40,5,0)/'4(A) Billing Determinants_ALL'!$F$40*$D20,IF($E20="Non-RPP kWh",VLOOKUP(T$4,'4(A) Billing Determinants_ALL'!$B$19:$P$40,6,0)/'4(A) Billing Determinants_ALL'!$G$40*$D20,IF($E20="Distribution Rev.",VLOOKUP(T$4,'4(A) Billing Determinants_ALL'!$B$19:$P$40,8,0)/'4(A) Billing Determinants_ALL'!$I$40*$D20, VLOOKUP(T$4,'4(A) Billing Determinants_ALL'!$B$19:$P$40,3,0)/'4(A) Billing Determinants_ALL'!$D$40*$D20))))),0) -> 0 | U20: =IFERROR(IF(U$4="",0,IF($E20="kWh",VLOOKUP(U$4,'4(A) Billing Determinants_ALL'!$B$19:$P$40,4,0)/'4(A) Billing Determinants_ALL'!$E$40*$D20,IF($E20="kW",VLOOKUP(U$4,'4(A) Billing Determinants_ALL'!$B$19:$P$40,5,0)/'4(A) Billing Determinants_ALL'!$F$40*$D20,IF($E20="Non-RPP kWh",VLOOKUP(U$4,'4(A) Billing Determinants_ALL'!$B$19:$P$40,6,0)/'4(A) Billing Determinants_ALL'!$G$40*$D20,IF($E20="Distribution Rev.",VLOOKUP(U$4,'4(A) Billing Determinants_ALL'!$B$19:$P$40,8,0)/'4(A) Billing Determinants_ALL'!$I$40*$D20, VLOOKUP(U$4,'4(A) Billing Determinants_ALL'!$B$19:$P$40,3,0)/'4(A) Billing Determinants_ALL'!$D$40*$D20))))),0) -> 0 | V20: =IFERROR(IF(V$4="",0,IF($E20="kWh",VLOOKUP(V$4,'4(A) Billing Determinants_ALL'!$B$19:$P$40,4,0)/'4(A) Billing Determinants_ALL'!$E$40*$D20,IF($E20="kW",VLOOKUP(V$4,'4(A) Billing Determinants_ALL'!$B$19:$P$40,5,0)/'4(A) Billing Determinants_ALL'!$F$40*$D20,IF($E20="Non-RPP kWh",VLOOKUP(V$4,'4(A) Billing Determinants_ALL'!$B$19:$P$40,6,0)/'4(A) Billing Determinants_ALL'!$G$40*$D20,IF($E20="Distribution Rev.",VLOOKUP(V$4,'4(A) Billing Determinants_ALL'!$B$19:$P$40,8,0)/'4(A) Billing Determinants_ALL'!$I$40*$D20, VLOOKUP(V$4,'4(A) Billing Determinants_ALL'!$B$19:$P$40,3,0)/'4(A) Billing Determinants_ALL'!$D$40*$D20))))),0) -> 0 | W20: =IFERROR(IF(W$4="",0,IF($E20="kWh",VLOOKUP(W$4,'4(A) Billing Determinants_ALL'!$B$19:$P$40,4,0)/'4(A) Billing Determinants_ALL'!$E$40*$D20,IF($E20="kW",VLOOKUP(W$4,'4(A) Billing Determinants_ALL'!$B$19:$P$40,5,0)/'4(A) Billing Determinants_ALL'!$F$40*$D20,IF($E20="Non-RPP kWh",VLOOKUP(W$4,'4(A) Billing Determinants_ALL'!$B$19:$P$40,6,0)/'4(A) Billing Determinants_ALL'!$G$40*$D20,IF($E20="Distribution Rev.",VLOOKUP(W$4,'4(A) Billing Determinants_ALL'!$B$19:$P$40,8,0)/'4(A) Billing Determinants_ALL'!$I$40*$D20, VLOOKUP(W$4,'4(A) Billing Determinants_ALL'!$B$19:$P$40,3,0)/'4(A) Billing Determinants_ALL'!$D$40*$D20))))),0) -> 0
B21: Other Regulatory Assets - Sub-Account - Deferred IFRS Transition Costs | C21: 1508 | D21: ='2. 2015 Continuity Schedule'!BM44 -> 974033.1634 | E21: kWh | F21: =IFERROR(IF(F$4="",0,IF($E21="kWh",VLOOKUP(F$4,'4(A) Billing Determinants_ALL'!$B$19:$P$40,4,0)/'4(A) Billing Determinants_ALL'!$E$40*$D21,IF($E21="kW",VLOOKUP(F$4,'4(A) Billing Determinants_ALL'!$B$19:$P$40,5,0)/'4(A) Billing Determinants_ALL'!$F$40*$D21,IF($E21="Non-RPP kWh",VLOOKUP(F$4,'4(A) Billing Determinants_ALL'!$B$19:$P$40,6,0)/'4(A) Billing Determinants_ALL'!$G$40*$D21,IF($E21="Distribution Rev.",VLOOKUP(F$4,'4(A) Billing Determinants_ALL'!$B$19:$P$40,8,0)/'4(A) Billing Determinants_ALL'!$I$40*$D21, VLOOKUP(F$4,'4(A) Billing Determinants_ALL'!$B$19:$P$40,3,0)/'4(A) Billing Determinants_ALL'!$D$40*$D21))))),0) -> 322147.382 | G21: =IFERROR(IF(G$4="",0,IF($E21="kWh",VLOOKUP(G$4,'4(A) Billing Determinants_ALL'!$B$19:$P$40,4,0)/'4(A) Billing Determinants_ALL'!$E$40*$D21,IF($E21="kW",VLOOKUP(G$4,'4(A) Billing Determinants_ALL'!$B$19:$P$40,5,0)/'4(A) Billing Determinants_ALL'!$F$40*$D21,IF($E21="Non-RPP kWh",VLOOKUP(G$4,'4(A) Billing Determinants_ALL'!$B$19:$P$40,6,0)/'4(A) Billing Determinants_ALL'!$G$40*$D21,IF($E21="Distribution Rev.",VLOOKUP(G$4,'4(A) Billing Determinants_ALL'!$B$19:$P$40,8,0)/'4(A) Billing Determinants_ALL'!$I$40*$D21, VLOOKUP(G$4,'4(A) Billing Determinants_ALL'!$B$19:$P$40,3,0)/'4(A) Billing Determinants_ALL'!$D$40*$D21))))),0) -> 87333.72022 | H21: =IFERROR(IF(H$4="",0,IF($E21="kWh",VLOOKUP(H$4,'4(A) Billing Determinants_ALL'!$B$19:$P$40,4,0)/'4(A) Billing Determinants_ALL'!$E$40*$D21,IF($E21="kW",VLOOKUP(H$4,'4(A) Billing Determinants_ALL'!$B$19:$P$40,5,0)/'4(A) Billing Determinants_ALL'!$F$40*$D21,IF($E21="Non-RPP kWh",VLOOKUP(H$4,'4(A) Billing Determinants_ALL'!$B$19:$P$40,6,0)/'4(A) Billing Determinants_ALL'!$G$40*$D21,IF($E21="Distribution Rev.",VLOOKUP(H$4,'4(A) Billing Determinants_ALL'!$B$19:$P$40,8,0)/'4(A) Billing Determinants_ALL'!$I$40*$D21, VLOOKUP(H$4,'4(A) Billing Determinants_ALL'!$B$19:$P$40,3,0)/'4(A) Billing Determinants_ALL'!$D$40*$D21))))),0) -> 262122.0616 | I21: =IFERROR(IF(I$4="",0,IF($E21="kWh",VLOOKUP(I$4,'4(A) Billing Determinants_ALL'!$B$19:$P$40,4,0)/'4(A) Billing Determinants_ALL'!$E$40*$D21,IF($E21="kW",VLOOKUP(I$4,'4(A) Billing Determinants_ALL'!$B$19:$P$40,5,0)/'4(A) Billing Determinants_ALL'!$F$40*$D21,IF($E21="Non-RPP kWh",VLOOKUP(I$4,'4(A) Billing Determinants_ALL'!$B$19:$P$40,6,0)/'4(A) Billing Determinants_ALL'!$G$40*$D21,IF($E21="Distribution Rev.",VLOOKUP(I$4,'4(A) Billing Determinants_ALL'!$B$19:$P$40,8,0)/'4(A) Billing Determinants_ALL'!$I$40*$D21, VLOOKUP(I$4,'4(A) Billing Determinants_ALL'!$B$19:$P$40,3,0)/'4(A) Billing Determinants_ALL'!$D$40*$D21))))),0) -> 198507.5362 | J21: =IFERROR(IF(J$4="",0,IF($E21="kWh",VLOOKUP(J$4,'4(A) Billing Determinants_ALL'!$B$19:$P$40,4,0)/'4(A) Billing Determinants_ALL'!$E$40*$D21,IF($E21="kW",VLOOKUP(J$4,'4(A) Billing Determinants_ALL'!$B$19:$P$40,5,0)/'4(A) Billing Determinants_ALL'!$F$40*$D21,IF($E21="Non-RPP kWh",VLOOKUP(J$4,'4(A) Billing Determinants_ALL'!$B$19:$P$40,6,0)/'4(A) Billing Determinants_ALL'!$G$40*$D21,IF($E21="Distribution Rev.",VLOOKUP(J$4,'4(A) Billing Determinants_ALL'!$B$19:$P$40,8,0)/'4(A) Billing Determinants_ALL'!$I$40*$D21, VLOOKUP(J$4,'4(A) Billing Determinants_ALL'!$B$19:$P$40,3,0)/'4(A) Billing Determinants_ALL'!$D$40*$D21))))),0) -> 94216.29112 | K21: =IFERROR(IF(K$4="",0,IF($E21="kWh",VLOOKUP(K$4,'4(A) Billing Determinants_ALL'!$B$19:$P$40,4,0)/'4(A) Billing Determinants_ALL'!$E$40*$D21,IF($E21="kW",VLOOKUP(K$4,'4(A) Billing Determinants_ALL'!$B$19:$P$40,5,0)/'4(A) Billing Determinants_ALL'!$F$40*$D21,IF($E21="Non-RPP kWh",VLOOKUP(K$4,'4(A) Billing Determinants_ALL'!$B$19:$P$40,6,0)/'4(A) Billing Determinants_ALL'!$G$40*$D21,IF($E21="Distribution Rev.",VLOOKUP(K$4,'4(A) Billing Determinants_ALL'!$B$19:$P$40,8,0)/'4(A) Billing Determinants_ALL'!$I$40*$D21, VLOOKUP(K$4,'4(A) Billing Determinants_ALL'!$B$19:$P$40,3,0)/'4(A) Billing Determinants_ALL'!$D$40*$D21))))),0) -> 1460.630874 | L21: =IFERROR(IF(L$4="",0,IF($E21="kWh",VLOOKUP(L$4,'4(A) Billing Determinants_ALL'!$B$19:$P$40,4,0)/'4(A) Billing Determinants_ALL'!$E$40*$D21,IF($E21="kW",VLOOKUP(L$4,'4(A) Billing Determinants_ALL'!$B$19:$P$40,5,0)/'4(A) Billing Determinants_ALL'!$F$40*$D21,IF($E21="Non-RPP kWh",VLOOKUP(L$4,'4(A) Billing Determinants_ALL'!$B$19:$P$40,6,0)/'4(A) Billing Determinants_ALL'!$G$40*$D21,IF($E21="Distribution Rev.",VLOOKUP(L$4,'4(A) Billing Determinants_ALL'!$B$19:$P$40,8,0)/'4(A) Billing Determinants_ALL'!$I$40*$D21, VLOOKUP(L$4,'4(A) Billing Determinants_ALL'!$B$19:$P$40,3,0)/'4(A) Billing Determinants_ALL'!$D$40*$D21))))),0) -> 8201.509897 | M21: =IFERROR(IF(M$4="",0,IF($E21="kWh",VLOOKUP(M$4,'4(A) Billing Determinants_ALL'!$B$19:$P$40,4,0)/'4(A) Billing Determinants_ALL'!$E$40*$D21,IF($E21="kW",VLOOKUP(M$4,'4(A) Billing Determinants_ALL'!$B$19:$P$40,5,0)/'4(A) Billing Determinants_ALL'!$F$40*$D21,IF($E21="Non-RPP kWh",VLOOKUP(M$4,'4(A) Billing Determinants_ALL'!$B$19:$P$40,6,0)/'4(A) Billing Determinants_ALL'!$G$40*$D21,IF($E21="Distribution Rev.",VLOOKUP(M$4,'4(A) Billing Determinants_ALL'!$B$19:$P$40,8,0)/'4(A) Billing Determinants_ALL'!$I$40*$D21, VLOOKUP(M$4,'4(A) Billing Determinants_ALL'!$B$19:$P$40,3,0)/'4(A) Billing Determinants_ALL'!$D$40*$D21))))),0) -> 44.03164106 | N21: =IFERROR(IF(N$4="",0,IF($E21="kWh",VLOOKUP(N$4,'4(A) Billing Determinants_ALL'!$B$19:$P$40,4,0)/'4(A) Billing Determinants_ALL'!$E$40*$D21,IF($E21="kW",VLOOKUP(N$4,'4(A) Billing Determinants_ALL'!$B$19:$P$40,5,0)/'4(A) Billing Determinants_ALL'!$F$40*$D21,IF($E21="Non-RPP kWh",VLOOKUP(N$4,'4(A) Billing Determinants_ALL'!$B$19:$P$40,6,0)/'4(A) Billing Determinants_ALL'!$G$40*$D21,IF($E21="Distribution Rev.",VLOOKUP(N$4,'4(A) Billing Determinants_ALL'!$B$19:$P$40,8,0)/'4(A) Billing Determinants_ALL'!$I$40*$D21, VLOOKUP(N$4,'4(A) Billing Determinants_ALL'!$B$19:$P$40,3,0)/'4(A) Billing Determinants_ALL'!$D$40*$D21))))),0) -> 0 | O21: =IFERROR(IF(O$4="",0,IF($E21="kWh",VLOOKUP(O$4,'4(A) Billing Determinants_ALL'!$B$19:$P$40,4,0)/'4(A) Billing Determinants_ALL'!$E$40*$D21,IF($E21="kW",VLOOKUP(O$4,'4(A) Billing Determinants_ALL'!$B$19:$P$40,5,0)/'4(A) Billing Determinants_ALL'!$F$40*$D21,IF($E21="Non-RPP kWh",VLOOKUP(O$4,'4(A) Billing Determinants_ALL'!$B$19:$P$40,6,0)/'4(A) Billing Determinants_ALL'!$G$40*$D21,IF($E21="Distribution Rev.",VLOOKUP(O$4,'4(A) Billing Determinants_ALL'!$B$19:$P$40,8,0)/'4(A) Billing Determinants_ALL'!$I$40*$D21, VLOOKUP(O$4,'4(A) Billing Determinants_ALL'!$B$19:$P$40,3,0)/'4(A) Billing Determinants_ALL'!$D$40*$D21))))),0) -> 0 | P21: =IFERROR(IF(P$4="",0,IF($E21="kWh",VLOOKUP(P$4,'4(A) Billing Determinants_ALL'!$B$19:$P$40,4,0)/'4(A) Billing Determinants_ALL'!$E$40*$D21,IF($E21="kW",VLOOKUP(P$4,'4(A) Billing Determinants_ALL'!$B$19:$P$40,5,0)/'4(A) Billing Determinants_ALL'!$F$40*$D21,IF($E21="Non-RPP kWh",VLOOKUP(P$4,'4(A) Billing Determinants_ALL'!$B$19:$P$40,6,0)/'4(A) Billing Determinants_ALL'!$G$40*$D21,IF($E21="Distribution Rev.",VLOOKUP(P$4,'4(A) Billing Determinants_ALL'!$B$19:$P$40,8,0)/'4(A) Billing Determinants_ALL'!$I$40*$D21, VLOOKUP(P$4,'4(A) Billing Determinants_ALL'!$B$19:$P$40,3,0)/'4(A) Billing Determinants_ALL'!$D$40*$D21))))),0) -> 0 | Q21: =IFERROR(IF(Q$4="",0,IF($E21="kWh",VLOOKUP(Q$4,'4(A) Billing Determinants_ALL'!$B$19:$P$40,4,0)/'4(A) Billing Determinants_ALL'!$E$40*$D21,IF($E21="kW",VLOOKUP(Q$4,'4(A) Billing Determinants_ALL'!$B$19:$P$40,5,0)/'4(A) Billing Determinants_ALL'!$F$40*$D21,IF($E21="Non-RPP kWh",VLOOKUP(Q$4,'4(A) Billing Determinants_ALL'!$B$19:$P$40,6,0)/'4(A) Billing Determinants_ALL'!$G$40*$D21,IF($E21="Distribution Rev.",VLOOKUP(Q$4,'4(A) Billing Determinants_ALL'!$B$19:$P$40,8,0)/'4(A) Billing Determinants_ALL'!$I$40*$D21, VLOOKUP(Q$4,'4(A) Billing Determinants_ALL'!$B$19:$P$40,3,0)/'4(A) Billing Determinants_ALL'!$D$40*$D21))))),0) -> 0 | R21: =IFERROR(IF(R$4="",0,IF($E21="kWh",VLOOKUP(R$4,'4(A) Billing Determinants_ALL'!$B$19:$P$40,4,0)/'4(A) Billing Determinants_ALL'!$E$40*$D21,IF($E21="kW",VLOOKUP(R$4,'4(A) Billing Determinants_ALL'!$B$19:$P$40,5,0)/'4(A) Billing Determinants_ALL'!$F$40*$D21,IF($E21="Non-RPP kWh",VLOOKUP(R$4,'4(A) Billing Determinants_ALL'!$B$19:$P$40,6,0)/'4(A) Billing Determinants_ALL'!$G$40*$D21,IF($E21="Distribution Rev.",VLOOKUP(R$4,'4(A) Billing Determinants_ALL'!$B$19:$P$40,8,0)/'4(A) Billing Determinants_ALL'!$I$40*$D21, VLOOKUP(R$4,'4(A) Billing Determinants_ALL'!$B$19:$P$40,3,0)/'4(A) Billing Determinants_ALL'!$D$40*$D21))))),0) -> 0 | S21: =IFERROR(IF(S$4="",0,IF($E21="kWh",VLOOKUP(S$4,'4(A) Billing Determinants_ALL'!$B$19:$P$40,4,0)/'4(A) Billing Determinants_ALL'!$E$40*$D21,IF($E21="kW",VLOOKUP(S$4,'4(A) Billing Determinants_ALL'!$B$19:$P$40,5,0)/'4(A) Billing Determinants_ALL'!$F$40*$D21,IF($E21="Non-RPP kWh",VLOOKUP(S$4,'4(A) Billing Determinants_ALL'!$B$19:$P$40,6,0)/'4(A) Billing Determinants_ALL'!$G$40*$D21,IF($E21="Distribution Rev.",VLOOKUP(S$4,'4(A) Billing Determinants_ALL'!$B$19:$P$40,8,0)/'4(A) Billing Determinants_ALL'!$I$40*$D21, VLOOKUP(S$4,'4(A) Billing Determinants_ALL'!$B$19:$P$40,3,0)/'4(A) Billing Determinants_ALL'!$D$40*$D21))))),0) -> 0 | T21: =IFERROR(IF(T$4="",0,IF($E21="kWh",VLOOKUP(T$4,'4(A) Billing Determinants_ALL'!$B$19:$P$40,4,0)/'4(A) Billing Determinants_ALL'!$E$40*$D21,IF($E21="kW",VLOOKUP(T$4,'4(A) Billing Determinants_ALL'!$B$19:$P$40,5,0)/'4(A) Billing Determinants_ALL'!$F$40*$D21,IF($E21="Non-RPP kWh",VLOOKUP(T$4,'4(A) Billing Determinants_ALL'!$B$19:$P$40,6,0)/'4(A) Billing Determinants_ALL'!$G$40*$D21,IF($E21="Distribution Rev.",VLOOKUP(T$4,'4(A) Billing Determinants_ALL'!$B$19:$P$40,8,0)/'4(A) Billing Determinants_ALL'!$I$40*$D21, VLOOKUP(T$4,'4(A) Billing Determinants_ALL'!$B$19:$P$40,3,0)/'4(A) Billing Determinants_ALL'!$D$40*$D21))))),0) -> 0 | U21: =IFERROR(IF(U$4="",0,IF($E21="kWh",VLOOKUP(U$4,'4(A) Billing Determinants_ALL'!$B$19:$P$40,4,0)/'4(A) Billing Determinants_ALL'!$E$40*$D21,IF($E21="kW",VLOOKUP(U$4,'4(A) Billing Determinants_ALL'!$B$19:$P$40,5,0)/'4(A) Billing Determinants_ALL'!$F$40*$D21,IF($E21="Non-RPP kWh",VLOOKUP(U$4,'4(A) Billing Determinants_ALL'!$B$19:$P$40,6,0)/'4(A) Billing Determinants_ALL'!$G$40*$D21,IF($E21="Distribution Rev.",VLOOKUP(U$4,'4(A) Billing Determinants_ALL'!$B$19:$P$40,8,0)/'4(A) Billing Determinants_ALL'!$I$40*$D21, VLOOKUP(U$4,'4(A) Billing Determinants_ALL'!$B$19:$P$40,3,0)/'4(A) Billing Determinants_ALL'!$D$40*$D21))))),0) -> 0 | V21: =IFERROR(IF(V$4="",0,IF($E21="kWh",VLOOKUP(V$4,'4(A) Billing Determinants_ALL'!$B$19:$P$40,4,0)/'4(A) Billing Determinants_ALL'!$E$40*$D21,IF($E21="kW",VLOOKUP(V$4,'4(A) Billing Determinants_ALL'!$B$19:$P$40,5,0)/'4(A) Billing Determinants_ALL'!$F$40*$D21,IF($E21="Non-RPP kWh",VLOOKUP(V$4,'4(A) Billing Determinants_ALL'!$B$19:$P$40,6,0)/'4(A) Billing Determinants_ALL'!$G$40*$D21,IF($E21="Distribution Rev.",VLOOKUP(V$4,'4(A) Billing Determinants_ALL'!$B$19:$P$40,8,0)/'4(A) Billing Determinants_ALL'!$I$40*$D21, VLOOKUP(V$4,'4(A) Billing Determinants_ALL'!$B$19:$P$40,3,0)/'4(A) Billing Determinants_ALL'!$D$40*$D21))))),0) -> 0 | W21: =IFERROR(IF(W$4="",0,IF($E21="kWh",VLOOKUP(W$4,'4(A) Billing Determinants_ALL'!$B$19:$P$40,4,0)/'4(A) Billing Determinants_ALL'!$E$40*$D21,IF($E21="kW",VLOOKUP(W$4,'4(A) Billing Determinants_ALL'!$B$19:$P$40,5,0)/'4(A) Billing Determinants_ALL'!$F$40*$D21,IF($E21="Non-RPP kWh",VLOOKUP(W$4,'4(A) Billing Determinants_ALL'!$B$19:$P$40,6,0)/'4(A) Billing Determinants_ALL'!$G$40*$D21,IF($E21="Distribution Rev.",VLOOKUP(W$4,'4(A) Billing Determinants_ALL'!$B$19:$P$40,8,0)/'4(A) Billing Determinants_ALL'!$I$40*$D21, VLOOKUP(W$4,'4(A) Billing Determinants_ALL'!$B$19:$P$40,3,0)/'4(A) Billing Determinants_ALL'!$D$40*$D21))))),0) -> 0
B22: Other Regulatory Assets - Sub-Account - Incremental Capital Charges | C22: 1508 | D22: ='2. 2015 Continuity Schedule'!BM45 -> 0 | F22: =IFERROR(IF(F$4="",0,IF($E22="kWh",VLOOKUP(F$4,'4(A) Billing Determinants_ALL'!$B$19:$P$40,4,0)/'4(A) Billing Determinants_ALL'!$E$40*$D22,IF($E22="kW",VLOOKUP(F$4,'4(A) Billing Determinants_ALL'!$B$19:$P$40,5,0)/'4(A) Billing Determinants_ALL'!$F$40*$D22,IF($E22="Non-RPP kWh",VLOOKUP(F$4,'4(A) Billing Determinants_ALL'!$B$19:$P$40,6,0)/'4(A) Billing Determinants_ALL'!$G$40*$D22,IF($E22="Distribution Rev.",VLOOKUP(F$4,'4(A) Billing Determinants_ALL'!$B$19:$P$40,8,0)/'4(A) Billing Determinants_ALL'!$I$40*$D22, VLOOKUP(F$4,'4(A) Billing Determinants_ALL'!$B$19:$P$40,3,0)/'4(A) Billing Determinants_ALL'!$D$40*$D22))))),0) -> 0 | G22: =IFERROR(IF(G$4="",0,IF($E22="kWh",VLOOKUP(G$4,'4(A) Billing Determinants_ALL'!$B$19:$P$40,4,0)/'4(A) Billing Determinants_ALL'!$E$40*$D22,IF($E22="kW",VLOOKUP(G$4,'4(A) Billing Determinants_ALL'!$B$19:$P$40,5,0)/'4(A) Billing Determinants_ALL'!$F$40*$D22,IF($E22="Non-RPP kWh",VLOOKUP(G$4,'4(A) Billing Determinants_ALL'!$B$19:$P$40,6,0)/'4(A) Billing Determinants_ALL'!$G$40*$D22,IF($E22="Distribution Rev.",VLOOKUP(G$4,'4(A) Billing Determinants_ALL'!$B$19:$P$40,8,0)/'4(A) Billing Determinants_ALL'!$I$40*$D22, VLOOKUP(G$4,'4(A) Billing Determinants_ALL'!$B$19:$P$40,3,0)/'4(A) Billing Determinants_ALL'!$D$40*$D22))))),0) -> 0 | H22: =IFERROR(IF(H$4="",0,IF($E22="kWh",VLOOKUP(H$4,'4(A) Billing Determinants_ALL'!$B$19:$P$40,4,0)/'4(A) Billing Determinants_ALL'!$E$40*$D22,IF($E22="kW",VLOOKUP(H$4,'4(A) Billing Determinants_ALL'!$B$19:$P$40,5,0)/'4(A) Billing Determinants_ALL'!$F$40*$D22,IF($E22="Non-RPP kWh",VLOOKUP(H$4,'4(A) Billing Determinants_ALL'!$B$19:$P$40,6,0)/'4(A) Billing Determinants_ALL'!$G$40*$D22,IF($E22="Distribution Rev.",VLOOKUP(H$4,'4(A) Billing Determinants_ALL'!$B$19:$P$40,8,0)/'4(A) Billing Determinants_ALL'!$I$40*$D22, VLOOKUP(H$4,'4(A) Billing Determinants_ALL'!$B$19:$P$40,3,0)/'4(A) Billing Determinants_ALL'!$D$40*$D22))))),0) -> 0 | I22: =IFERROR(IF(I$4="",0,IF($E22="kWh",VLOOKUP(I$4,'4(A) Billing Determinants_ALL'!$B$19:$P$40,4,0)/'4(A) Billing Determinants_ALL'!$E$40*$D22,IF($E22="kW",VLOOKUP(I$4,'4(A) Billing Determinants_ALL'!$B$19:$P$40,5,0)/'4(A) Billing Determinants_ALL'!$F$40*$D22,IF($E22="Non-RPP kWh",VLOOKUP(I$4,'4(A) Billing Determinants_ALL'!$B$19:$P$40,6,0)/'4(A) Billing Determinants_ALL'!$G$40*$D22,IF($E22="Distribution Rev.",VLOOKUP(I$4,'4(A) Billing Determinants_ALL'!$B$19:$P$40,8,0)/'4(A) Billing Determinants_ALL'!$I$40*$D22, VLOOKUP(I$4,'4(A) Billing Determinants_ALL'!$B$19:$P$40,3,0)/'4(A) Billing Determinants_ALL'!$D$40*$D22))))),0) -> 0 | J22: =IFERROR(IF(J$4="",0,IF($E22="kWh",VLOOKUP(J$4,'4(A) Billing Determinants_ALL'!$B$19:$P$40,4,0)/'4(A) Billing Determinants_ALL'!$E$40*$D22,IF($E22="kW",VLOOKUP(J$4,'4(A) Billing Determinants_ALL'!$B$19:$P$40,5,0)/'4(A) Billing Determinants_ALL'!$F$40*$D22,IF($E22="Non-RPP kWh",VLOOKUP(J$4,'4(A) Billing Determinants_ALL'!$B$19:$P$40,6,0)/'4(A) Billing Determinants_ALL'!$G$40*$D22,IF($E22="Distribution Rev.",VLOOKUP(J$4,'4(A) Billing Determinants_ALL'!$B$19:$P$40,8,0)/'4(A) Billing Determinants_ALL'!$I$40*$D22, VLOOKUP(J$4,'4(A) Billing Determinants_ALL'!$B$19:$P$40,3,0)/'4(A) Billing Determinants_ALL'!$D$40*$D22))))),0) -> 0 | K22: =IFERROR(IF(K$4="",0,IF($E22="kWh",VLOOKUP(K$4,'4(A) Billing Determinants_ALL'!$B$19:$P$40,4,0)/'4(A) Billing Determinants_ALL'!$E$40*$D22,IF($E22="kW",VLOOKUP(K$4,'4(A) Billing Determinants_ALL'!$B$19:$P$40,5,0)/'4(A) Billing Determinants_ALL'!$F$40*$D22,IF($E22="Non-RPP kWh",VLOOKUP(K$4,'4(A) Billing Determinants_ALL'!$B$19:$P$40,6,0)/'4(A) Billing Determinants_ALL'!$G$40*$D22,IF($E22="Distribution Rev.",VLOOKUP(K$4,'4(A) Billing Determinants_ALL'!$B$19:$P$40,8,0)/'4(A) Billing Determinants_ALL'!$I$40*$D22, VLOOKUP(K$4,'4(A) Billing Determinants_ALL'!$B$19:$P$40,3,0)/'4(A) Billing Determinants_ALL'!$D$40*$D22))))),0) -> 0 | L22: =IFERROR(IF(L$4="",0,IF($E22="kWh",VLOOKUP(L$4,'4(A) Billing Determinants_ALL'!$B$19:$P$40,4,0)/'4(A) Billing Determinants_ALL'!$E$40*$D22,IF($E22="kW",VLOOKUP(L$4,'4(A) Billing Determinants_ALL'!$B$19:$P$40,5,0)/'4(A) Billing Determinants_ALL'!$F$40*$D22,IF($E22="Non-RPP kWh",VLOOKUP(L$4,'4(A) Billing Determinants_ALL'!$B$19:$P$40,6,0)/'4(A) Billing Determinants_ALL'!$G$40*$D22,IF($E22="Distribution Rev.",VLOOKUP(L$4,'4(A) Billing Determinants_ALL'!$B$19:$P$40,8,0)/'4(A) Billing Determinants_ALL'!$I$40*$D22, VLOOKUP(L$4,'4(A) Billing Determinants_ALL'!$B$19:$P$40,3,0)/'4(A) Billing Determinants_ALL'!$D$40*$D22))))),0) -> 0 | M22: =IFERROR(IF(M$4="",0,IF($E22="kWh",VLOOKUP(M$4,'4(A) Billing Determinants_ALL'!$B$19:$P$40,4,0)/'4(A) Billing Determinants_ALL'!$E$40*$D22,IF($E22="kW",VLOOKUP(M$4,'4(A) Billing Determinants_ALL'!$B$19:$P$40,5,0)/'4(A) Billing Determinants_ALL'!$F$40*$D22,IF($E22="Non-RPP kWh",VLOOKUP(M$4,'4(A) Billing Determinants_ALL'!$B$19:$P$40,6,0)/'4(A) Billing Determinants_ALL'!$G$40*$D22,IF($E22="Distribution Rev.",VLOOKUP(M$4,'4(A) Billing Determinants_ALL'!$B$19:$P$40,8,0)/'4(A) Billing Determinants_ALL'!$I$40*$D22, VLOOKUP(M$4,'4(A) Billing Determinants_ALL'!$B$19:$P$40,3,0)/'4(A) Billing Determinants_ALL'!$D$40*$D22))))),0) -> 0 | N22: =IFERROR(IF(N$4="",0,IF($E22="kWh",VLOOKUP(N$4,'4(A) Billing Determinants_ALL'!$B$19:$P$40,4,0)/'4(A) Billing Determinants_ALL'!$E$40*$D22,IF($E22="kW",VLOOKUP(N$4,'4(A) Billing Determinants_ALL'!$B$19:$P$40,5,0)/'4(A) Billing Determinants_ALL'!$F$40*$D22,IF($E22="Non-RPP kWh",VLOOKUP(N$4,'4(A) Billing Determinants_ALL'!$B$19:$P$40,6,0)/'4(A) Billing Determinants_ALL'!$G$40*$D22,IF($E22="Distribution Rev.",VLOOKUP(N$4,'4(A) Billing Determinants_ALL'!$B$19:$P$40,8,0)/'4(A) Billing Determinants_ALL'!$I$40*$D22, VLOOKUP(N$4,'4(A) Billing Determinants_ALL'!$B$19:$P$40,3,0)/'4(A) Billing Determinants_ALL'!$D$40*$D22))))),0) -> 0 | O22: =IFERROR(IF(O$4="",0,IF($E22="kWh",VLOOKUP(O$4,'4(A) Billing Determinants_ALL'!$B$19:$P$40,4,0)/'4(A) Billing Determinants_ALL'!$E$40*$D22,IF($E22="kW",VLOOKUP(O$4,'4(A) Billing Determinants_ALL'!$B$19:$P$40,5,0)/'4(A) Billing Determinants_ALL'!$F$40*$D22,IF($E22="Non-RPP kWh",VLOOKUP(O$4,'4(A) Billing Determinants_ALL'!$B$19:$P$40,6,0)/'4(A) Billing Determinants_ALL'!$G$40*$D22,IF($E22="Distribution Rev.",VLOOKUP(O$4,'4(A) Billing Determinants_ALL'!$B$19:$P$40,8,0)/'4(A) Billing Determinants_ALL'!$I$40*$D22, VLOOKUP(O$4,'4(A) Billing Determinants_ALL'!$B$19:$P$40,3,0)/'4(A) Billing Determinants_ALL'!$D$40*$D22))))),0) -> 0 | P22: =IFERROR(IF(P$4="",0,IF($E22="kWh",VLOOKUP(P$4,'4(A) Billing Determinants_ALL'!$B$19:$P$40,4,0)/'4(A) Billing Determinants_ALL'!$E$40*$D22,IF($E22="kW",VLOOKUP(P$4,'4(A) Billing Determinants_ALL'!$B$19:$P$40,5,0)/'4(A) Billing Determinants_ALL'!$F$40*$D22,IF($E22="Non-RPP kWh",VLOOKUP(P$4,'4(A) Billing Determinants_ALL'!$B$19:$P$40,6,0)/'4(A) Billing Determinants_ALL'!$G$40*$D22,IF($E22="Distribution Rev.",VLOOKUP(P$4,'4(A) Billing Determinants_ALL'!$B$19:$P$40,8,0)/'4(A) Billing Determinants_ALL'!$I$40*$D22, VLOOKUP(P$4,'4(A) Billing Determinants_ALL'!$B$19:$P$40,3,0)/'4(A) Billing Determinants_ALL'!$D$40*$D22))))),0) -> 0 | Q22: =IFERROR(IF(Q$4="",0,IF($E22="kWh",VLOOKUP(Q$4,'4(A) Billing Determinants_ALL'!$B$19:$P$40,4,0)/'4(A) Billing Determinants_ALL'!$E$40*$D22,IF($E22="kW",VLOOKUP(Q$4,'4(A) Billing Determinants_ALL'!$B$19:$P$40,5,0)/'4(A) Billing Determinants_ALL'!$F$40*$D22,IF($E22="Non-RPP kWh",VLOOKUP(Q$4,'4(A) Billing Determinants_ALL'!$B$19:$P$40,6,0)/'4(A) Billing Determinants_ALL'!$G$40*$D22,IF($E22="Distribution Rev.",VLOOKUP(Q$4,'4(A) Billing Determinants_ALL'!$B$19:$P$40,8,0)/'4(A) Billing Determinants_ALL'!$I$40*$D22, VLOOKUP(Q$4,'4(A) Billing Determinants_ALL'!$B$19:$P$40,3,0)/'4(A) Billing Determinants_ALL'!$D$40*$D22))))),0) -> 0 | R22: =IFERROR(IF(R$4="",0,IF($E22="kWh",VLOOKUP(R$4,'4(A) Billing Determinants_ALL'!$B$19:$P$40,4,0)/'4(A) Billing Determinants_ALL'!$E$40*$D22,IF($E22="kW",VLOOKUP(R$4,'4(A) Billing Determinants_ALL'!$B$19:$P$40,5,0)/'4(A) Billing Determinants_ALL'!$F$40*$D22,IF($E22="Non-RPP kWh",VLOOKUP(R$4,'4(A) Billing Determinants_ALL'!$B$19:$P$40,6,0)/'4(A) Billing Determinants_ALL'!$G$40*$D22,IF($E22="Distribution Rev.",VLOOKUP(R$4,'4(A) Billing Determinants_ALL'!$B$19:$P$40,8,0)/'4(A) Billing Determinants_ALL'!$I$40*$D22, VLOOKUP(R$4,'4(A) Billing Determinants_ALL'!$B$19:$P$40,3,0)/'4(A) Billing Determinants_ALL'!$D$40*$D22))))),0) -> 0 | S22: =IFERROR(IF(S$4="",0,IF($E22="kWh",VLOOKUP(S$4,'4(A) Billing Determinants_ALL'!$B$19:$P$40,4,0)/'4(A) Billing Determinants_ALL'!$E$40*$D22,IF($E22="kW",VLOOKUP(S$4,'4(A) Billing Determinants_ALL'!$B$19:$P$40,5,0)/'4(A) Billing Determinants_ALL'!$F$40*$D22,IF($E22="Non-RPP kWh",VLOOKUP(S$4,'4(A) Billing Determinants_ALL'!$B$19:$P$40,6,0)/'4(A) Billing Determinants_ALL'!$G$40*$D22,IF($E22="Distribution Rev.",VLOOKUP(S$4,'4(A) Billing Determinants_ALL'!$B$19:$P$40,8,0)/'4(A) Billing Determinants_ALL'!$I$40*$D22, VLOOKUP(S$4,'4(A) Billing Determinants_ALL'!$B$19:$P$40,3,0)/'4(A) Billing Determinants_ALL'!$D$40*$D22))))),0) -> 0 | T22: =IFERROR(IF(T$4="",0,IF($E22="kWh",VLOOKUP(T$4,'4(A) Billing Determinants_ALL'!$B$19:$P$40,4,0)/'4(A) Billing Determinants_ALL'!$E$40*$D22,IF($E22="kW",VLOOKUP(T$4,'4(A) Billing Determinants_ALL'!$B$19:$P$40,5,0)/'4(A) Billing Determinants_ALL'!$F$40*$D22,IF($E22="Non-RPP kWh",VLOOKUP(T$4,'4(A) Billing Determinants_ALL'!$B$19:$P$40,6,0)/'4(A) Billing Determinants_ALL'!$G$40*$D22,IF($E22="Distribution Rev.",VLOOKUP(T$4,'4(A) Billing Determinants_ALL'!$B$19:$P$40,8,0)/'4(A) Billing Determinants_ALL'!$I$40*$D22, VLOOKUP(T$4,'4(A) Billing Determinants_ALL'!$B$19:$P$40,3,0)/'4(A) Billing Determinants_ALL'!$D$40*$D22))))),0) -> 0 | U22: =IFERROR(IF(U$4="",0,IF($E22="kWh",VLOOKUP(U$4,'4(A) Billing Determinants_ALL'!$B$19:$P$40,4,0)/'4(A) Billing Determinants_ALL'!$E$40*$D22,IF($E22="kW",VLOOKUP(U$4,'4(A) Billing Determinants_ALL'!$B$19:$P$40,5,0)/'4(A) Billing Determinants_ALL'!$F$40*$D22,IF($E22="Non-RPP kWh",VLOOKUP(U$4,'4(A) Billing Determinants_ALL'!$B$19:$P$40,6,0)/'4(A) Billing Determinants_ALL'!$G$40*$D22,IF($E22="Distribution Rev.",VLOOKUP(U$4,'4(A) Billing Determinants_ALL'!$B$19:$P$40,8,0)/'4(A) Billing Determinants_ALL'!$I$40*$D22, VLOOKUP(U$4,'4(A) Billing Determinants_ALL'!$B$19:$P$40,3,0)/'4(A) Billing Determinants_ALL'!$D$40*$D22))))),0) -> 0 | V22: =IFERROR(IF(V$4="",0,IF($E22="kWh",VLOOKUP(V$4,'4(A) Billing Determinants_ALL'!$B$19:$P$40,4,0)/'4(A) Billing Determinants_ALL'!$E$40*$D22,IF($E22="kW",VLOOKUP(V$4,'4(A) Billing Determinants_ALL'!$B$19:$P$40,5,0)/'4(A) Billing Determinants_ALL'!$F$40*$D22,IF($E22="Non-RPP kWh",VLOOKUP(V$4,'4(A) Billing Determinants_ALL'!$B$19:$P$40,6,0)/'4(A) Billing Determinants_ALL'!$G$40*$D22,IF($E22="Distribution Rev.",VLOOKUP(V$4,'4(A) Billing Determinants_ALL'!$B$19:$P$40,8,0)/'4(A) Billing Determinants_ALL'!$I$40*$D22, VLOOKUP(V$4,'4(A) Billing Determinants_ALL'!$B$19:$P$40,3,0)/'4(A) Billing Determinants_ALL'!$D$40*$D22))))),0) -> 0 | W22: =IFERROR(IF(W$4="",0,IF($E22="kWh",VLOOKUP(W$4,'4(A) Billing Determinants_ALL'!$B$19:$P$40,4,0)/'4(A) Billing Determinants_ALL'!$E$40*$D22,IF($E22="kW",VLOOKUP(W$4,'4(A) Billing Determinants_ALL'!$B$19:$P$40,5,0)/'4(A) Billing Determinants_ALL'!$F$40*$D22,IF($E22="Non-RPP kWh",VLOOKUP(W$4,'4(A) Billing Determinants_ALL'!$B$19:$P$40,6,0)/'4(A) Billing Determinants_ALL'!$G$40*$D22,IF($E22="Distribution Rev.",VLOOKUP(W$4,'4(A) Billing Determinants_ALL'!$B$19:$P$40,8,0)/'4(A) Billing Determinants_ALL'!$I$40*$D22, VLOOKUP(W$4,'4(A) Billing Determinants_ALL'!$B$19:$P$40,3,0)/'4(A) Billing Determinants_ALL'!$D$40*$D22))))),0) -> 0
B23: Other Regulatory Assets - Sub-Account - Financial Assistance Payment and Recovery Variance - Ontario Clean Energy Benefit Act | C23: 1508 | D23: ='2. 2015 Continuity Schedule'!BM46 -> 0 | F23: =IFERROR(IF(F$4="",0,IF($E23="kWh",VLOOKUP(F$4,'4(A) Billing Determinants_ALL'!$B$19:$P$40,4,0)/'4(A) Billing Determinants_ALL'!$E$40*$D23,IF($E23="kW",VLOOKUP(F$4,'4(A) Billing Determinants_ALL'!$B$19:$P$40,5,0)/'4(A) Billing Determinants_ALL'!$F$40*$D23,IF($E23="Non-RPP kWh",VLOOKUP(F$4,'4(A) Billing Determinants_ALL'!$B$19:$P$40,6,0)/'4(A) Billing Determinants_ALL'!$G$40*$D23,IF($E23="Distribution Rev.",VLOOKUP(F$4,'4(A) Billing Determinants_ALL'!$B$19:$P$40,8,0)/'4(A) Billing Determinants_ALL'!$I$40*$D23, VLOOKUP(F$4,'4(A) Billing Determinants_ALL'!$B$19:$P$40,3,0)/'4(A) Billing Determinants_ALL'!$D$40*$D23))))),0) -> 0 | G23: =IFERROR(IF(G$4="",0,IF($E23="kWh",VLOOKUP(G$4,'4(A) Billing Determinants_ALL'!$B$19:$P$40,4,0)/'4(A) Billing Determinants_ALL'!$E$40*$D23,IF($E23="kW",VLOOKUP(G$4,'4(A) Billing Determinants_ALL'!$B$19:$P$40,5,0)/'4(A) Billing Determinants_ALL'!$F$40*$D23,IF($E23="Non-RPP kWh",VLOOKUP(G$4,'4(A) Billing Determinants_ALL'!$B$19:$P$40,6,0)/'4(A) Billing Determinants_ALL'!$G$40*$D23,IF($E23="Distribution Rev.",VLOOKUP(G$4,'4(A) Billing Determinants_ALL'!$B$19:$P$40,8,0)/'4(A) Billing Determinants_ALL'!$I$40*$D23, VLOOKUP(G$4,'4(A) Billing Determinants_ALL'!$B$19:$P$40,3,0)/'4(A) Billing Determinants_ALL'!$D$40*$D23))))),0) -> 0 | H23: =IFERROR(IF(H$4="",0,IF($E23="kWh",VLOOKUP(H$4,'4(A) Billing Determinants_ALL'!$B$19:$P$40,4,0)/'4(A) Billing Determinants_ALL'!$E$40*$D23,IF($E23="kW",VLOOKUP(H$4,'4(A) Billing Determinants_ALL'!$B$19:$P$40,5,0)/'4(A) Billing Determinants_ALL'!$F$40*$D23,IF($E23="Non-RPP kWh",VLOOKUP(H$4,'4(A) Billing Determinants_ALL'!$B$19:$P$40,6,0)/'4(A) Billing Determinants_ALL'!$G$40*$D23,IF($E23="Distribution Rev.",VLOOKUP(H$4,'4(A) Billing Determinants_ALL'!$B$19:$P$40,8,0)/'4(A) Billing Determinants_ALL'!$I$40*$D23, VLOOKUP(H$4,'4(A) Billing Determinants_ALL'!$B$19:$P$40,3,0)/'4(A) Billing Determinants_ALL'!$D$40*$D23))))),0) -> 0 | I23: =IFERROR(IF(I$4="",0,IF($E23="kWh",VLOOKUP(I$4,'4(A) Billing Determinants_ALL'!$B$19:$P$40,4,0)/'4(A) Billing Determinants_ALL'!$E$40*$D23,IF($E23="kW",VLOOKUP(I$4,'4(A) Billing Determinants_ALL'!$B$19:$P$40,5,0)/'4(A) Billing Determinants_ALL'!$F$40*$D23,IF($E23="Non-RPP kWh",VLOOKUP(I$4,'4(A) Billing Determinants_ALL'!$B$19:$P$40,6,0)/'4(A) Billing Determinants_ALL'!$G$40*$D23,IF($E23="Distribution Rev.",VLOOKUP(I$4,'4(A) Billing Determinants_ALL'!$B$19:$P$40,8,0)/'4(A) Billing Determinants_ALL'!$I$40*$D23, VLOOKUP(I$4,'4(A) Billing Determinants_ALL'!$B$19:$P$40,3,0)/'4(A) Billing Determinants_ALL'!$D$40*$D23))))),0) -> 0 | J23: =IFERROR(IF(J$4="",0,IF($E23="kWh",VLOOKUP(J$4,'4(A) Billing Determinants_ALL'!$B$19:$P$40,4,0)/'4(A) Billing Determinants_ALL'!$E$40*$D23,IF($E23="kW",VLOOKUP(J$4,'4(A) Billing Determinants_ALL'!$B$19:$P$40,5,0)/'4(A) Billing Determinants_ALL'!$F$40*$D23,IF($E23="Non-RPP kWh",VLOOKUP(J$4,'4(A) Billing Determinants_ALL'!$B$19:$P$40,6,0)/'4(A) Billing Determinants_ALL'!$G$40*$D23,IF($E23="Distribution Rev.",VLOOKUP(J$4,'4(A) Billing Determinants_ALL'!$B$19:$P$40,8,0)/'4(A) Billing Determinants_ALL'!$I$40*$D23, VLOOKUP(J$4,'4(A) Billing Determinants_ALL'!$B$19:$P$40,3,0)/'4(A) Billing Determinants_ALL'!$D$40*$D23))))),0) -> 0 | K23: =IFERROR(IF(K$4="",0,IF($E23="kWh",VLOOKUP(K$4,'4(A) Billing Determinants_ALL'!$B$19:$P$40,4,0)/'4(A) Billing Determinants_ALL'!$E$40*$D23,IF($E23="kW",VLOOKUP(K$4,'4(A) Billing Determinants_ALL'!$B$19:$P$40,5,0)/'4(A) Billing Determinants_ALL'!$F$40*$D23,IF($E23="Non-RPP kWh",VLOOKUP(K$4,'4(A) Billing Determinants_ALL'!$B$19:$P$40,6,0)/'4(A) Billing Determinants_ALL'!$G$40*$D23,IF($E23="Distribution Rev.",VLOOKUP(K$4,'4(A) Billing Determinants_ALL'!$B$19:$P$40,8,0)/'4(A) Billing Determinants_ALL'!$I$40*$D23, VLOOKUP(K$4,'4(A) Billing Determinants_ALL'!$B$19:$P$40,3,0)/'4(A) Billing Determinants_ALL'!$D$40*$D23))))),0) -> 0 | L23: =IFERROR(IF(L$4="",0,IF($E23="kWh",VLOOKUP(L$4,'4(A) Billing Determinants_ALL'!$B$19:$P$40,4,0)/'4(A) Billing Determinants_ALL'!$E$40*$D23,IF($E23="kW",VLOOKUP(L$4,'4(A) Billing Determinants_ALL'!$B$19:$P$40,5,0)/'4(A) Billing Determinants_ALL'!$F$40*$D23,IF($E23="Non-RPP kWh",VLOOKUP(L$4,'4(A) Billing Determinants_ALL'!$B$19:$P$40,6,0)/'4(A) Billing Determinants_ALL'!$G$40*$D23,IF($E23="Distribution Rev.",VLOOKUP(L$4,'4(A) Billing Determinants_ALL'!$B$19:$P$40,8,0)/'4(A) Billing Determinants_ALL'!$I$40*$D23, VLOOKUP(L$4,'4(A) Billing Determinants_ALL'!$B$19:$P$40,3,0)/'4(A) Billing Determinants_ALL'!$D$40*$D23))))),0) -> 0 | M23: =IFERROR(IF(M$4="",0,IF($E23="kWh",VLOOKUP(M$4,'4(A) Billing Determinants_ALL'!$B$19:$P$40,4,0)/'4(A) Billing Determinants_ALL'!$E$40*$D23,IF($E23="kW",VLOOKUP(M$4,'4(A) Billing Determinants_ALL'!$B$19:$P$40,5,0)/'4(A) Billing Determinants_ALL'!$F$40*$D23,IF($E23="Non-RPP kWh",VLOOKUP(M$4,'4(A) Billing Determinants_ALL'!$B$19:$P$40,6,0)/'4(A) Billing Determinants_ALL'!$G$40*$D23,IF($E23="Distribution Rev.",VLOOKUP(M$4,'4(A) Billing Determinants_ALL'!$B$19:$P$40,8,0)/'4(A) Billing Determinants_ALL'!$I$40*$D23, VLOOKUP(M$4,'4(A) Billing Determinants_ALL'!$B$19:$P$40,3,0)/'4(A) Billing Determinants_ALL'!$D$40*$D23))))),0) -> 0 | N23: =IFERROR(IF(N$4="",0,IF($E23="kWh",VLOOKUP(N$4,'4(A) Billing Determinants_ALL'!$B$19:$P$40,4,0)/'4(A) Billing Determinants_ALL'!$E$40*$D23,IF($E23="kW",VLOOKUP(N$4,'4(A) Billing Determinants_ALL'!$B$19:$P$40,5,0)/'4(A) Billing Determinants_ALL'!$F$40*$D23,IF($E23="Non-RPP kWh",VLOOKUP(N$4,'4(A) Billing Determinants_ALL'!$B$19:$P$40,6,0)/'4(A) Billing Determinants_ALL'!$G$40*$D23,IF($E23="Distribution Rev.",VLOOKUP(N$4,'4(A) Billing Determinants_ALL'!$B$19:$P$40,8,0)/'4(A) Billing Determinants_ALL'!$I$40*$D23, VLOOKUP(N$4,'4(A) Billing Determinants_ALL'!$B$19:$P$40,3,0)/'4(A) Billing Determinants_ALL'!$D$40*$D23))))),0) -> 0 | O23: =IFERROR(IF(O$4="",0,IF($E23="kWh",VLOOKUP(O$4,'4(A) Billing Determinants_ALL'!$B$19:$P$40,4,0)/'4(A) Billing Determinants_ALL'!$E$40*$D23,IF($E23="kW",VLOOKUP(O$4,'4(A) Billing Determinants_ALL'!$B$19:$P$40,5,0)/'4(A) Billing Determinants_ALL'!$F$40*$D23,IF($E23="Non-RPP kWh",VLOOKUP(O$4,'4(A) Billing Determinants_ALL'!$B$19:$P$40,6,0)/'4(A) Billing Determinants_ALL'!$G$40*$D23,IF($E23="Distribution Rev.",VLOOKUP(O$4,'4(A) Billing Determinants_ALL'!$B$19:$P$40,8,0)/'4(A) Billing Determinants_ALL'!$I$40*$D23, VLOOKUP(O$4,'4(A) Billing Determinants_ALL'!$B$19:$P$40,3,0)/'4(A) Billing Determinants_ALL'!$D$40*$D23))))),0) -> 0 | P23: =IFERROR(IF(P$4="",0,IF($E23="kWh",VLOOKUP(P$4,'4(A) Billing Determinants_ALL'!$B$19:$P$40,4,0)/'4(A) Billing Determinants_ALL'!$E$40*$D23,IF($E23="kW",VLOOKUP(P$4,'4(A) Billing Determinants_ALL'!$B$19:$P$40,5,0)/'4(A) Billing Determinants_ALL'!$F$40*$D23,IF($E23="Non-RPP kWh",VLOOKUP(P$4,'4(A) Billing Determinants_ALL'!$B$19:$P$40,6,0)/'4(A) Billing Determinants_ALL'!$G$40*$D23,IF($E23="Distribution Rev.",VLOOKUP(P$4,'4(A) Billing Determinants_ALL'!$B$19:$P$40,8,0)/'4(A) Billing Determinants_ALL'!$I$40*$D23, VLOOKUP(P$4,'4(A) Billing Determinants_ALL'!$B$19:$P$40,3,0)/'4(A) Billing Determinants_ALL'!$D$40*$D23))))),0) -> 0 | Q23: =IFERROR(IF(Q$4="",0,IF($E23="kWh",VLOOKUP(Q$4,'4(A) Billing Determinants_ALL'!$B$19:$P$40,4,0)/'4(A) Billing Determinants_ALL'!$E$40*$D23,IF($E23="kW",VLOOKUP(Q$4,'4(A) Billing Determinants_ALL'!$B$19:$P$40,5,0)/'4(A) Billing Determinants_ALL'!$F$40*$D23,IF($E23="Non-RPP kWh",VLOOKUP(Q$4,'4(A) Billing Determinants_ALL'!$B$19:$P$40,6,0)/'4(A) Billing Determinants_ALL'!$G$40*$D23,IF($E23="Distribution Rev.",VLOOKUP(Q$4,'4(A) Billing Determinants_ALL'!$B$19:$P$40,8,0)/'4(A) Billing Determinants_ALL'!$I$40*$D23, VLOOKUP(Q$4,'4(A) Billing Determinants_ALL'!$B$19:$P$40,3,0)/'4(A) Billing Determinants_ALL'!$D$40*$D23))))),0) -> 0 | R23: =IFERROR(IF(R$4="",0,IF($E23="kWh",VLOOKUP(R$4,'4(A) Billing Determinants_ALL'!$B$19:$P$40,4,0)/'4(A) Billing Determinants_ALL'!$E$40*$D23,IF($E23="kW",VLOOKUP(R$4,'4(A) Billing Determinants_ALL'!$B$19:$P$40,5,0)/'4(A) Billing Determinants_ALL'!$F$40*$D23,IF($E23="Non-RPP kWh",VLOOKUP(R$4,'4(A) Billing Determinants_ALL'!$B$19:$P$40,6,0)/'4(A) Billing Determinants_ALL'!$G$40*$D23,IF($E23="Distribution Rev.",VLOOKUP(R$4,'4(A) Billing Determinants_ALL'!$B$19:$P$40,8,0)/'4(A) Billing Determinants_ALL'!$I$40*$D23, VLOOKUP(R$4,'4(A) Billing Determinants_ALL'!$B$19:$P$40,3,0)/'4(A) Billing Determinants_ALL'!$D$40*$D23))))),0) -> 0 | S23: =IFERROR(IF(S$4="",0,IF($E23="kWh",VLOOKUP(S$4,'4(A) Billing Determinants_ALL'!$B$19:$P$40,4,0)/'4(A) Billing Determinants_ALL'!$E$40*$D23,IF($E23="kW",VLOOKUP(S$4,'4(A) Billing Determinants_ALL'!$B$19:$P$40,5,0)/'4(A) Billing Determinants_ALL'!$F$40*$D23,IF($E23="Non-RPP kWh",VLOOKUP(S$4,'4(A) Billing Determinants_ALL'!$B$19:$P$40,6,0)/'4(A) Billing Determinants_ALL'!$G$40*$D23,IF($E23="Distribution Rev.",VLOOKUP(S$4,'4(A) Billing Determinants_ALL'!$B$19:$P$40,8,0)/'4(A) Billing Determinants_ALL'!$I$40*$D23, VLOOKUP(S$4,'4(A) Billing Determinants_ALL'!$B$19:$P$40,3,0)/'4(A) Billing Determinants_ALL'!$D$40*$D23))))),0) -> 0 | T23: =IFERROR(IF(T$4="",0,IF($E23="kWh",VLOOKUP(T$4,'4(A) Billing Determinants_ALL'!$B$19:$P$40,4,0)/'4(A) Billing Determinants_ALL'!$E$40*$D23,IF($E23="kW",VLOOKUP(T$4,'4(A) Billing Determinants_ALL'!$B$19:$P$40,5,0)/'4(A) Billing Determinants_ALL'!$F$40*$D23,IF($E23="Non-RPP kWh",VLOOKUP(T$4,'4(A) Billing Determinants_ALL'!$B$19:$P$40,6,0)/'4(A) Billing Determinants_ALL'!$G$40*$D23,IF($E23="Distribution Rev.",VLOOKUP(T$4,'4(A) Billing Determinants_ALL'!$B$19:$P$40,8,0)/'4(A) Billing Determinants_ALL'!$I$40*$D23, VLOOKUP(T$4,'4(A) Billing Determinants_ALL'!$B$19:$P$40,3,0)/'4(A) Billing Determinants_ALL'!$D$40*$D23))))),0) -> 0 | U23: =IFERROR(IF(U$4="",0,IF($E23="kWh",VLOOKUP(U$4,'4(A) Billing Determinants_ALL'!$B$19:$P$40,4,0)/'4(A) Billing Determinants_ALL'!$E$40*$D23,IF($E23="kW",VLOOKUP(U$4,'4(A) Billing Determinants_ALL'!$B$19:$P$40,5,0)/'4(A) Billing Determinants_ALL'!$F$40*$D23,IF($E23="Non-RPP kWh",VLOOKUP(U$4,'4(A) Billing Determinants_ALL'!$B$19:$P$40,6,0)/'4(A) Billing Determinants_ALL'!$G$40*$D23,IF($E23="Distribution Rev.",VLOOKUP(U$4,'4(A) Billing Determinants_ALL'!$B$19:$P$40,8,0)/'4(A) Billing Determinants_ALL'!$I$40*$D23, VLOOKUP(U$4,'4(A) Billing Determinants_ALL'!$B$19:$P$40,3,0)/'4(A) Billing Determinants_ALL'!$D$40*$D23))))),0) -> 0 | V23: =IFERROR(IF(V$4="",0,IF($E23="kWh",VLOOKUP(V$4,'4(A) Billing Determinants_ALL'!$B$19:$P$40,4,0)/'4(A) Billing Determinants_ALL'!$E$40*$D23,IF($E23="kW",VLOOKUP(V$4,'4(A) Billing Determinants_ALL'!$B$19:$P$40,5,0)/'4(A) Billing Determinants_ALL'!$F$40*$D23,IF($E23="Non-RPP kWh",VLOOKUP(V$4,'4(A) Billing Determinants_ALL'!$B$19:$P$40,6,0)/'4(A) Billing Determinants_ALL'!$G$40*$D23,IF($E23="Distribution Rev.",VLOOKUP(V$4,'4(A) Billing Determinants_ALL'!$B$19:$P$40,8,0)/'4(A) Billing Determinants_ALL'!$I$40*$D23, VLOOKUP(V$4,'4(A) Billing Determinants_ALL'!$B$19:$P$40,3,0)/'4(A) Billing Determinants_ALL'!$D$40*$D23))))),0) -> 0 | W23: =IFERROR(IF(W$4="",0,IF($E23="kWh",VLOOKUP(W$4,'4(A) Billing Determinants_ALL'!$B$19:$P$40,4,0)/'4(A) Billing Determinants_ALL'!$E$40*$D23,IF($E23="kW",VLOOKUP(W$4,'4(A) Billing Determinants_ALL'!$B$19:$P$40,5,0)/'4(A) Billing Determinants_ALL'!$F$40*$D23,IF($E23="Non-RPP kWh",VLOOKUP(W$4,'4(A) Billing Determinants_ALL'!$B$19:$P$40,6,0)/'4(A) Billing Determinants_ALL'!$G$40*$D23,IF($E23="Distribution Rev.",VLOOKUP(W$4,'4(A) Billing Determinants_ALL'!$B$19:$P$40,8,0)/'4(A) Billing Determinants_ALL'!$I$40*$D23, VLOOKUP(W$4,'4(A) Billing Determinants_ALL'!$B$19:$P$40,3,0)/'4(A) Billing Determinants_ALL'!$D$40*$D23))))),0) -> 0
B24: Other Regulatory Assets - Sub-Account - Financial Assistance Payment and Recovery Carrying Charges | C24: 1508 | D24: ='2. 2015 Continuity Schedule'!BM47 -> 0 | F24: =IFERROR(IF(F$4="",0,IF($E24="kWh",VLOOKUP(F$4,'4(A) Billing Determinants_ALL'!$B$19:$P$40,4,0)/'4(A) Billing Determinants_ALL'!$E$40*$D24,IF($E24="kW",VLOOKUP(F$4,'4(A) Billing Determinants_ALL'!$B$19:$P$40,5,0)/'4(A) Billing Determinants_ALL'!$F$40*$D24,IF($E24="Non-RPP kWh",VLOOKUP(F$4,'4(A) Billing Determinants_ALL'!$B$19:$P$40,6,0)/'4(A) Billing Determinants_ALL'!$G$40*$D24,IF($E24="Distribution Rev.",VLOOKUP(F$4,'4(A) Billing Determinants_ALL'!$B$19:$P$40,8,0)/'4(A) Billing Determinants_ALL'!$I$40*$D24, VLOOKUP(F$4,'4(A) Billing Determinants_ALL'!$B$19:$P$40,3,0)/'4(A) Billing Determinants_ALL'!$D$40*$D24))))),0) -> 0 | G24: =IFERROR(IF(G$4="",0,IF($E24="kWh",VLOOKUP(G$4,'4(A) Billing Determinants_ALL'!$B$19:$P$40,4,0)/'4(A) Billing Determinants_ALL'!$E$40*$D24,IF($E24="kW",VLOOKUP(G$4,'4(A) Billing Determinants_ALL'!$B$19:$P$40,5,0)/'4(A) Billing Determinants_ALL'!$F$40*$D24,IF($E24="Non-RPP kWh",VLOOKUP(G$4,'4(A) Billing Determinants_ALL'!$B$19:$P$40,6,0)/'4(A) Billing Determinants_ALL'!$G$40*$D24,IF($E24="Distribution Rev.",VLOOKUP(G$4,'4(A) Billing Determinants_ALL'!$B$19:$P$40,8,0)/'4(A) Billing Determinants_ALL'!$I$40*$D24, VLOOKUP(G$4,'4(A) Billing Determinants_ALL'!$B$19:$P$40,3,0)/'4(A) Billing Determinants_ALL'!$D$40*$D24))))),0) -> 0 | H24: =IFERROR(IF(H$4="",0,IF($E24="kWh",VLOOKUP(H$4,'4(A) Billing Determinants_ALL'!$B$19:$P$40,4,0)/'4(A) Billing Determinants_ALL'!$E$40*$D24,IF($E24="kW",VLOOKUP(H$4,'4(A) Billing Determinants_ALL'!$B$19:$P$40,5,0)/'4(A) Billing Determinants_ALL'!$F$40*$D24,IF($E24="Non-RPP kWh",VLOOKUP(H$4,'4(A) Billing Determinants_ALL'!$B$19:$P$40,6,0)/'4(A) Billing Determinants_ALL'!$G$40*$D24,IF($E24="Distribution Rev.",VLOOKUP(H$4,'4(A) Billing Determinants_ALL'!$B$19:$P$40,8,0)/'4(A) Billing Determinants_ALL'!$I$40*$D24, VLOOKUP(H$4,'4(A) Billing Determinants_ALL'!$B$19:$P$40,3,0)/'4(A) Billing Determinants_ALL'!$D$40*$D24))))),0) -> 0 | I24: =IFERROR(IF(I$4="",0,IF($E24="kWh",VLOOKUP(I$4,'4(A) Billing Determinants_ALL'!$B$19:$P$40,4,0)/'4(A) Billing Determinants_ALL'!$E$40*$D24,IF($E24="kW",VLOOKUP(I$4,'4(A) Billing Determinants_ALL'!$B$19:$P$40,5,0)/'4(A) Billing Determinants_ALL'!$F$40*$D24,IF($E24="Non-RPP kWh",VLOOKUP(I$4,'4(A) Billing Determinants_ALL'!$B$19:$P$40,6,0)/'4(A) Billing Determinants_ALL'!$G$40*$D24,IF($E24="Distribution Rev.",VLOOKUP(I$4,'4(A) Billing Determinants_ALL'!$B$19:$P$40,8,0)/'4(A) Billing Determinants_ALL'!$I$40*$D24, VLOOKUP(I$4,'4(A) Billing Determinants_ALL'!$B$19:$P$40,3,0)/'4(A) Billing Determinants_ALL'!$D$40*$D24))))),0) -> 0 | J24: =IFERROR(IF(J$4="",0,IF($E24="kWh",VLOOKUP(J$4,'4(A) Billing Determinants_ALL'!$B$19:$P$40,4,0)/'4(A) Billing Determinants_ALL'!$E$40*$D24,IF($E24="kW",VLOOKUP(J$4,'4(A) Billing Determinants_ALL'!$B$19:$P$40,5,0)/'4(A) Billing Determinants_ALL'!$F$40*$D24,IF($E24="Non-RPP kWh",VLOOKUP(J$4,'4(A) Billing Determinants_ALL'!$B$19:$P$40,6,0)/'4(A) Billing Determinants_ALL'!$G$40*$D24,IF($E24="Distribution Rev.",VLOOKUP(J$4,'4(A) Billing Determinants_ALL'!$B$19:$P$40,8,0)/'4(A) Billing Determinants_ALL'!$I$40*$D24, VLOOKUP(J$4,'4(A) Billing Determinants_ALL'!$B$19:$P$40,3,0)/'4(A) Billing Determinants_ALL'!$D$40*$D24))))),0) -> 0 | K24: =IFERROR(IF(K$4="",0,IF($E24="kWh",VLOOKUP(K$4,'4(A) Billing Determinants_ALL'!$B$19:$P$40,4,0)/'4(A) Billing Determinants_ALL'!$E$40*$D24,IF($E24="kW",VLOOKUP(K$4,'4(A) Billing Determinants_ALL'!$B$19:$P$40,5,0)/'4(A) Billing Determinants_ALL'!$F$40*$D24,IF($E24="Non-RPP kWh",VLOOKUP(K$4,'4(A) Billing Determinants_ALL'!$B$19:$P$40,6,0)/'4(A) Billing Determinants_ALL'!$G$40*$D24,IF($E24="Distribution Rev.",VLOOKUP(K$4,'4(A) Billing Determinants_ALL'!$B$19:$P$40,8,0)/'4(A) Billing Determinants_ALL'!$I$40*$D24, VLOOKUP(K$4,'4(A) Billing Determinants_ALL'!$B$19:$P$40,3,0)/'4(A) Billing Determinants_ALL'!$D$40*$D24))))),0) -> 0 | L24: =IFERROR(IF(L$4="",0,IF($E24="kWh",VLOOKUP(L$4,'4(A) Billing Determinants_ALL'!$B$19:$P$40,4,0)/'4(A) Billing Determinants_ALL'!$E$40*$D24,IF($E24="kW",VLOOKUP(L$4,'4(A) Billing Determinants_ALL'!$B$19:$P$40,5,0)/'4(A) Billing Determinants_ALL'!$F$40*$D24,IF($E24="Non-RPP kWh",VLOOKUP(L$4,'4(A) Billing Determinants_ALL'!$B$19:$P$40,6,0)/'4(A) Billing Determinants_ALL'!$G$40*$D24,IF($E24="Distribution Rev.",VLOOKUP(L$4,'4(A) Billing Determinants_ALL'!$B$19:$P$40,8,0)/'4(A) Billing Determinants_ALL'!$I$40*$D24, VLOOKUP(L$4,'4(A) Billing Determinants_ALL'!$B$19:$P$40,3,0)/'4(A) Billing Determinants_ALL'!$D$40*$D24))))),0) -> 0 | M24: =IFERROR(IF(M$4="",0,IF($E24="kWh",VLOOKUP(M$4,'4(A) Billing Determinants_ALL'!$B$19:$P$40,4,0)/'4(A) Billing Determinants_ALL'!$E$40*$D24,IF($E24="kW",VLOOKUP(M$4,'4(A) Billing Determinants_ALL'!$B$19:$P$40,5,0)/'4(A) Billing Determinants_ALL'!$F$40*$D24,IF($E24="Non-RPP kWh",VLOOKUP(M$4,'4(A) Billing Determinants_ALL'!$B$19:$P$40,6,0)/'4(A) Billing Determinants_ALL'!$G$40*$D24,IF($E24="Distribution Rev.",VLOOKUP(M$4,'4(A) Billing Determinants_ALL'!$B$19:$P$40,8,0)/'4(A) Billing Determinants_ALL'!$I$40*$D24, VLOOKUP(M$4,'4(A) Billing Determinants_ALL'!$B$19:$P$40,3,0)/'4(A) Billing Determinants_ALL'!$D$40*$D24))))),0) -> 0 | N24: =IFERROR(IF(N$4="",0,IF($E24="kWh",VLOOKUP(N$4,'4(A) Billing Determinants_ALL'!$B$19:$P$40,4,0)/'4(A) Billing Determinants_ALL'!$E$40*$D24,IF($E24="kW",VLOOKUP(N$4,'4(A) Billing Determinants_ALL'!$B$19:$P$40,5,0)/'4(A) Billing Determinants_ALL'!$F$40*$D24,IF($E24="Non-RPP kWh",VLOOKUP(N$4,'4(A) Billing Determinants_ALL'!$B$19:$P$40,6,0)/'4(A) Billing Determinants_ALL'!$G$40*$D24,IF($E24="Distribution Rev.",VLOOKUP(N$4,'4(A) Billing Determinants_ALL'!$B$19:$P$40,8,0)/'4(A) Billing Determinants_ALL'!$I$40*$D24, VLOOKUP(N$4,'4(A) Billing Determinants_ALL'!$B$19:$P$40,3,0)/'4(A) Billing Determinants_ALL'!$D$40*$D24))))),0) -> 0 | O24: =IFERROR(IF(O$4="",0,IF($E24="kWh",VLOOKUP(O$4,'4(A) Billing Determinants_ALL'!$B$19:$P$40,4,0)/'4(A) Billing Determinants_ALL'!$E$40*$D24,IF($E24="kW",VLOOKUP(O$4,'4(A) Billing Determinants_ALL'!$B$19:$P$40,5,0)/'4(A) Billing Determinants_ALL'!$F$40*$D24,IF($E24="Non-RPP kWh",VLOOKUP(O$4,'4(A) Billing Determinants_ALL'!$B$19:$P$40,6,0)/'4(A) Billing Determinants_ALL'!$G$40*$D24,IF($E24="Distribution Rev.",VLOOKUP(O$4,'4(A) Billing Determinants_ALL'!$B$19:$P$40,8,0)/'4(A) Billing Determinants_ALL'!$I$40*$D24, VLOOKUP(O$4,'4(A) Billing Determinants_ALL'!$B$19:$P$40,3,0)/'4(A) Billing Determinants_ALL'!$D$40*$D24))))),0) -> 0 | P24: =IFERROR(IF(P$4="",0,IF($E24="kWh",VLOOKUP(P$4,'4(A) Billing Determinants_ALL'!$B$19:$P$40,4,0)/'4(A) Billing Determinants_ALL'!$E$40*$D24,IF($E24="kW",VLOOKUP(P$4,'4(A) Billing Determinants_ALL'!$B$19:$P$40,5,0)/'4(A) Billing Determinants_ALL'!$F$40*$D24,IF($E24="Non-RPP kWh",VLOOKUP(P$4,'4(A) Billing Determinants_ALL'!$B$19:$P$40,6,0)/'4(A) Billing Determinants_ALL'!$G$40*$D24,IF($E24="Distribution Rev.",VLOOKUP(P$4,'4(A) Billing Determinants_ALL'!$B$19:$P$40,8,0)/'4(A) Billing Determinants_ALL'!$I$40*$D24, VLOOKUP(P$4,'4(A) Billing Determinants_ALL'!$B$19:$P$40,3,0)/'4(A) Billing Determinants_ALL'!$D$40*$D24))))),0) -> 0 | Q24: =IFERROR(IF(Q$4="",0,IF($E24="kWh",VLOOKUP(Q$4,'4(A) Billing Determinants_ALL'!$B$19:$P$40,4,0)/'4(A) Billing Determinants_ALL'!$E$40*$D24,IF($E24="kW",VLOOKUP(Q$4,'4(A) Billing Determinants_ALL'!$B$19:$P$40,5,0)/'4(A) Billing Determinants_ALL'!$F$40*$D24,IF($E24="Non-RPP kWh",VLOOKUP(Q$4,'4(A) Billing Determinants_ALL'!$B$19:$P$40,6,0)/'4(A) Billing Determinants_ALL'!$G$40*$D24,IF($E24="Distribution Rev.",VLOOKUP(Q$4,'4(A) Billing Determinants_ALL'!$B$19:$P$40,8,0)/'4(A) Billing Determinants_ALL'!$I$40*$D24, VLOOKUP(Q$4,'4(A) Billing Determinants_ALL'!$B$19:$P$40,3,0)/'4(A) Billing Determinants_ALL'!$D$40*$D24))))),0) -> 0 | R24: =IFERROR(IF(R$4="",0,IF($E24="kWh",VLOOKUP(R$4,'4(A) Billing Determinants_ALL'!$B$19:$P$40,4,0)/'4(A) Billing Determinants_ALL'!$E$40*$D24,IF($E24="kW",VLOOKUP(R$4,'4(A) Billing Determinants_ALL'!$B$19:$P$40,5,0)/'4(A) Billing Determinants_ALL'!$F$40*$D24,IF($E24="Non-RPP kWh",VLOOKUP(R$4,'4(A) Billing Determinants_ALL'!$B$19:$P$40,6,0)/'4(A) Billing Determinants_ALL'!$G$40*$D24,IF($E24="Distribution Rev.",VLOOKUP(R$4,'4(A) Billing Determinants_ALL'!$B$19:$P$40,8,0)/'4(A) Billing Determinants_ALL'!$I$40*$D24, VLOOKUP(R$4,'4(A) Billing Determinants_ALL'!$B$19:$P$40,3,0)/'4(A) Billing Determinants_ALL'!$D$40*$D24))))),0) -> 0 | S24: =IFERROR(IF(S$4="",0,IF($E24="kWh",VLOOKUP(S$4,'4(A) Billing Determinants_ALL'!$B$19:$P$40,4,0)/'4(A) Billing Determinants_ALL'!$E$40*$D24,IF($E24="kW",VLOOKUP(S$4,'4(A) Billing Determinants_ALL'!$B$19:$P$40,5,0)/'4(A) Billing Determinants_ALL'!$F$40*$D24,IF($E24="Non-RPP kWh",VLOOKUP(S$4,'4(A) Billing Determinants_ALL'!$B$19:$P$40,6,0)/'4(A) Billing Determinants_ALL'!$G$40*$D24,IF($E24="Distribution Rev.",VLOOKUP(S$4,'4(A) Billing Determinants_ALL'!$B$19:$P$40,8,0)/'4(A) Billing Determinants_ALL'!$I$40*$D24, VLOOKUP(S$4,'4(A) Billing Determinants_ALL'!$B$19:$P$40,3,0)/'4(A) Billing Determinants_ALL'!$D$40*$D24))))),0) -> 0 | T24: =IFERROR(IF(T$4="",0,IF($E24="kWh",VLOOKUP(T$4,'4(A) Billing Determinants_ALL'!$B$19:$P$40,4,0)/'4(A) Billing Determinants_ALL'!$E$40*$D24,IF($E24="kW",VLOOKUP(T$4,'4(A) Billing Determinants_ALL'!$B$19:$P$40,5,0)/'4(A) Billing Determinants_ALL'!$F$40*$D24,IF($E24="Non-RPP kWh",VLOOKUP(T$4,'4(A) Billing Determinants_ALL'!$B$19:$P$40,6,0)/'4(A) Billing Determinants_ALL'!$G$40*$D24,IF($E24="Distribution Rev.",VLOOKUP(T$4,'4(A) Billing Determinants_ALL'!$B$19:$P$40,8,0)/'4(A) Billing Determinants_ALL'!$I$40*$D24, VLOOKUP(T$4,'4(A) Billing Determinants_ALL'!$B$19:$P$40,3,0)/'4(A) Billing Determinants_ALL'!$D$40*$D24))))),0) -> 0 | U24: =IFERROR(IF(U$4="",0,IF($E24="kWh",VLOOKUP(U$4,'4(A) Billing Determinants_ALL'!$B$19:$P$40,4,0)/'4(A) Billing Determinants_ALL'!$E$40*$D24,IF($E24="kW",VLOOKUP(U$4,'4(A) Billing Determinants_ALL'!$B$19:$P$40,5,0)/'4(A) Billing Determinants_ALL'!$F$40*$D24,IF($E24="Non-RPP kWh",VLOOKUP(U$4,'4(A) Billing Determinants_ALL'!$B$19:$P$40,6,0)/'4(A) Billing Determinants_ALL'!$G$40*$D24,IF($E24="Distribution Rev.",VLOOKUP(U$4,'4(A) Billing Determinants_ALL'!$B$19:$P$40,8,0)/'4(A) Billing Determinants_ALL'!$I$40*$D24, VLOOKUP(U$4,'4(A) Billing Determinants_ALL'!$B$19:$P$40,3,0)/'4(A) Billing Determinants_ALL'!$D$40*$D24))))),0) -> 0 | V24: =IFERROR(IF(V$4="",0,IF($E24="kWh",VLOOKUP(V$4,'4(A) Billing Determinants_ALL'!$B$19:$P$40,4,0)/'4(A) Billing Determinants_ALL'!$E$40*$D24,IF($E24="kW",VLOOKUP(V$4,'4(A) Billing Determinants_ALL'!$B$19:$P$40,5,0)/'4(A) Billing Determinants_ALL'!$F$40*$D24,IF($E24="Non-RPP kWh",VLOOKUP(V$4,'4(A) Billing Determinants_ALL'!$B$19:$P$40,6,0)/'4(A) Billing Determinants_ALL'!$G$40*$D24,IF($E24="Distribution Rev.",VLOOKUP(V$4,'4(A) Billing Determinants_ALL'!$B$19:$P$40,8,0)/'4(A) Billing Determinants_ALL'!$I$40*$D24, VLOOKUP(V$4,'4(A) Billing Determinants_ALL'!$B$19:$P$40,3,0)/'4(A) Billing Determinants_ALL'!$D$40*$D24))))),0) -> 0 | W24: =IFERROR(IF(W$4="",0,IF($E24="kWh",VLOOKUP(W$4,'4(A) Billing Determinants_ALL'!$B$19:$P$40,4,0)/'4(A) Billing Determinants_ALL'!$E$40*$D24,IF($E24="kW",VLOOKUP(W$4,'4(A) Billing Determinants_ALL'!$B$19:$P$40,5,0)/'4(A) Billing Determinants_ALL'!$F$40*$D24,IF($E24="Non-RPP kWh",VLOOKUP(W$4,'4(A) Billing Determinants_ALL'!$B$19:$P$40,6,0)/'4(A) Billing Determinants_ALL'!$G$40*$D24,IF($E24="Distribution Rev.",VLOOKUP(W$4,'4(A) Billing Determinants_ALL'!$B$19:$P$40,8,0)/'4(A) Billing Determinants_ALL'!$I$40*$D24, VLOOKUP(W$4,'4(A) Billing Determinants_ALL'!$B$19:$P$40,3,0)/'4(A) Billing Determinants_ALL'!$D$40*$D24))))),0) -> 0
B25: Other Regulatory Assets - Sub-Account - Other | C25: 1508 | D25: ='2. 2015 Continuity Schedule'!BM49 -> 0.04058800001 | F25: =IFERROR(IF(F$4="",0,IF($E25="kWh",VLOOKUP(F$4,'4(A) Billing Determinants_ALL'!$B$19:$P$40,4,0)/'4(A) Billing Determinants_ALL'!$E$40*$D25,IF($E25="kW",VLOOKUP(F$4,'4(A) Billing Determinants_ALL'!$B$19:$P$40,5,0)/'4(A) Billing Determinants_ALL'!$F$40*$D25,IF($E25="Non-RPP kWh",VLOOKUP(F$4,'4(A) Billing Determinants_ALL'!$B$19:$P$40,6,0)/'4(A) Billing Determinants_ALL'!$G$40*$D25,IF($E25="Distribution Rev.",VLOOKUP(F$4,'4(A) Billing Determinants_ALL'!$B$19:$P$40,8,0)/'4(A) Billing Determinants_ALL'!$I$40*$D25, VLOOKUP(F$4,'4(A) Billing Determinants_ALL'!$B$19:$P$40,3,0)/'4(A) Billing Determinants_ALL'!$D$40*$D25))))),0) -> 0.03259620377 | G25: =IFERROR(IF(G$4="",0,IF($E25="kWh",VLOOKUP(G$4,'4(A) Billing Determinants_ALL'!$B$19:$P$40,4,0)/'4(A) Billing Determinants_ALL'!$E$40*$D25,IF($E25="kW",VLOOKUP(G$4,'4(A) Billing Determinants_ALL'!$B$19:$P$40,5,0)/'4(A) Billing Determinants_ALL'!$F$40*$D25,IF($E25="Non-RPP kWh",VLOOKUP(G$4,'4(A) Billing Determinants_ALL'!$B$19:$P$40,6,0)/'4(A) Billing Determinants_ALL'!$G$40*$D25,IF($E25="Distribution Rev.",VLOOKUP(G$4,'4(A) Billing Determinants_ALL'!$B$19:$P$40,8,0)/'4(A) Billing Determinants_ALL'!$I$40*$D25, VLOOKUP(G$4,'4(A) Billing Determinants_ALL'!$B$19:$P$40,3,0)/'4(A) Billing Determinants_ALL'!$D$40*$D25))))),0) -> 0.002078479011 | H25: =IFERROR(IF(H$4="",0,IF($E25="kWh",VLOOKUP(H$4,'4(A) Billing Determinants_ALL'!$B$19:$P$40,4,0)/'4(A) Billing Determinants_ALL'!$E$40*$D25,IF($E25="kW",VLOOKUP(H$4,'4(A) Billing Determinants_ALL'!$B$19:$P$40,5,0)/'4(A) Billing Determinants_ALL'!$F$40*$D25,IF($E25="Non-RPP kWh",VLOOKUP(H$4,'4(A) Billing Determinants_ALL'!$B$19:$P$40,6,0)/'4(A) Billing Determinants_ALL'!$G$40*$D25,IF($E25="Distribution Rev.",VLOOKUP(H$4,'4(A) Billing Determinants_ALL'!$B$19:$P$40,8,0)/'4(A) Billing Determinants_ALL'!$I$40*$D25, VLOOKUP(H$4,'4(A) Billing Determinants_ALL'!$B$19:$P$40,3,0)/'4(A) Billing Determinants_ALL'!$D$40*$D25))))),0) -> 0.0003446747148 | I25: =IFERROR(IF(I$4="",0,IF($E25="kWh",VLOOKUP(I$4,'4(A) Billing Determinants_ALL'!$B$19:$P$40,4,0)/'4(A) Billing Determinants_ALL'!$E$40*$D25,IF($E25="kW",VLOOKUP(I$4,'4(A) Billing Determinants_ALL'!$B$19:$P$40,5,0)/'4(A) Billing Determinants_ALL'!$F$40*$D25,IF($E25="Non-RPP kWh",VLOOKUP(I$4,'4(A) Billing Determinants_ALL'!$B$19:$P$40,6,0)/'4(A) Billing Determinants_ALL'!$G$40*$D25,IF($E25="Distribution Rev.",VLOOKUP(I$4,'4(A) Billing Determinants_ALL'!$B$19:$P$40,8,0)/'4(A) Billing Determinants_ALL'!$I$40*$D25, VLOOKUP(I$4,'4(A) Billing Determinants_ALL'!$B$19:$P$40,3,0)/'4(A) Billing Determinants_ALL'!$D$40*$D25))))),0) -> 2.650079151e-05 | J25: =IFERROR(IF(J$4="",0,IF($E25="kWh",VLOOKUP(J$4,'4(A) Billing Determinants_ALL'!$B$19:$P$40,4,0)/'4(A) Billing Determinants_ALL'!$E$40*$D25,IF($E25="kW",VLOOKUP(J$4,'4(A) Billing Determinants_ALL'!$B$19:$P$40,5,0)/'4(A) Billing Determinants_ALL'!$F$40*$D25,IF($E25="Non-RPP kWh",VLOOKUP(J$4,'4(A) Billing Determinants_ALL'!$B$19:$P$40,6,0)/'4(A) Billing Determinants_ALL'!$G$40*$D25,IF($E25="Distribution Rev.",VLOOKUP(J$4,'4(A) Billing Determinants_ALL'!$B$19:$P$40,8,0)/'4(A) Billing Determinants_ALL'!$I$40*$D25, VLOOKUP(J$4,'4(A) Billing Determinants_ALL'!$B$19:$P$40,3,0)/'4(A) Billing Determinants_ALL'!$D$40*$D25))))),0) -> 1.387277329e-06 | K25: =IFERROR(IF(K$4="",0,IF($E25="kWh",VLOOKUP(K$4,'4(A) Billing Determinants_ALL'!$B$19:$P$40,4,0)/'4(A) Billing Determinants_ALL'!$E$40*$D25,IF($E25="kW",VLOOKUP(K$4,'4(A) Billing Determinants_ALL'!$B$19:$P$40,5,0)/'4(A) Billing Determinants_ALL'!$F$40*$D25,IF($E25="Non-RPP kWh",VLOOKUP(K$4,'4(A) Billing Determinants_ALL'!$B$19:$P$40,6,0)/'4(A) Billing Determinants_ALL'!$G$40*$D25,IF($E25="Distribution Rev.",VLOOKUP(K$4,'4(A) Billing Determinants_ALL'!$B$19:$P$40,8,0)/'4(A) Billing Determinants_ALL'!$I$40*$D25, VLOOKUP(K$4,'4(A) Billing Determinants_ALL'!$B$19:$P$40,3,0)/'4(A) Billing Determinants_ALL'!$D$40*$D25))))),0) -> 0.0003610893666 | L25: =IFERROR(IF(L$4="",0,IF($E25="kWh",VLOOKUP(L$4,'4(A) Billing Determinants_ALL'!$B$19:$P$40,4,0)/'4(A) Billing Determinants_ALL'!$E$40*$D25,IF($E25="kW",VLOOKUP(L$4,'4(A) Billing Determinants_ALL'!$B$19:$P$40,5,0)/'4(A) Billing Determinants_ALL'!$F$40*$D25,IF($E25="Non-RPP kWh",VLOOKUP(L$4,'4(A) Billing Determinants_ALL'!$B$19:$P$40,6,0)/'4(A) Billing Determinants_ALL'!$G$40*$D25,IF($E25="Distribution Rev.",VLOOKUP(L$4,'4(A) Billing Determinants_ALL'!$B$19:$P$40,8,0)/'4(A) Billing Determinants_ALL'!$I$40*$D25, VLOOKUP(L$4,'4(A) Billing Determinants_ALL'!$B$19:$P$40,3,0)/'4(A) Billing Determinants_ALL'!$D$40*$D25))))),0) -> 0.005164038936 | M25: =IFERROR(IF(M$4="",0,IF($E25="kWh",VLOOKUP(M$4,'4(A) Billing Determinants_ALL'!$B$19:$P$40,4,0)/'4(A) Billing Determinants_ALL'!$E$40*$D25,IF($E25="kW",VLOOKUP(M$4,'4(A) Billing Determinants_ALL'!$B$19:$P$40,5,0)/'4(A) Billing Determinants_ALL'!$F$40*$D25,IF($E25="Non-RPP kWh",VLOOKUP(M$4,'4(A) Billing Determinants_ALL'!$B$19:$P$40,6,0)/'4(A) Billing Determinants_ALL'!$G$40*$D25,IF($E25="Distribution Rev.",VLOOKUP(M$4,'4(A) Billing Determinants_ALL'!$B$19:$P$40,8,0)/'4(A) Billing Determinants_ALL'!$I$40*$D25, VLOOKUP(M$4,'4(A) Billing Determinants_ALL'!$B$19:$P$40,3,0)/'4(A) Billing Determinants_ALL'!$D$40*$D25))))),0) -> 1.562613769e-05 | N25: =IFERROR(IF(N$4="",0,IF($E25="kWh",VLOOKUP(N$4,'4(A) Billing Determinants_ALL'!$B$19:$P$40,4,0)/'4(A) Billing Determinants_ALL'!$E$40*$D25,IF($E25="kW",VLOOKUP(N$4,'4(A) Billing Determinants_ALL'!$B$19:$P$40,5,0)/'4(A) Billing Determinants_ALL'!$F$40*$D25,IF($E25="Non-RPP kWh",VLOOKUP(N$4,'4(A) Billing Determinants_ALL'!$B$19:$P$40,6,0)/'4(A) Billing Determinants_ALL'!$G$40*$D25,IF($E25="Distribution Rev.",VLOOKUP(N$4,'4(A) Billing Determinants_ALL'!$B$19:$P$40,8,0)/'4(A) Billing Determinants_ALL'!$I$40*$D25, VLOOKUP(N$4,'4(A) Billing Determinants_ALL'!$B$19:$P$40,3,0)/'4(A) Billing Determinants_ALL'!$D$40*$D25))))),0) -> 0 | O25: =IFERROR(IF(O$4="",0,IF($E25="kWh",VLOOKUP(O$4,'4(A) Billing Determinants_ALL'!$B$19:$P$40,4,0)/'4(A) Billing Determinants_ALL'!$E$40*$D25,IF($E25="kW",VLOOKUP(O$4,'4(A) Billing Determinants_ALL'!$B$19:$P$40,5,0)/'4(A) Billing Determinants_ALL'!$F$40*$D25,IF($E25="Non-RPP kWh",VLOOKUP(O$4,'4(A) Billing Determinants_ALL'!$B$19:$P$40,6,0)/'4(A) Billing Determinants_ALL'!$G$40*$D25,IF($E25="Distribution Rev.",VLOOKUP(O$4,'4(A) Billing Determinants_ALL'!$B$19:$P$40,8,0)/'4(A) Billing Determinants_ALL'!$I$40*$D25, VLOOKUP(O$4,'4(A) Billing Determinants_ALL'!$B$19:$P$40,3,0)/'4(A) Billing Determinants_ALL'!$D$40*$D25))))),0) -> 0 | P25: =IFERROR(IF(P$4="",0,IF($E25="kWh",VLOOKUP(P$4,'4(A) Billing Determinants_ALL'!$B$19:$P$40,4,0)/'4(A) Billing Determinants_ALL'!$E$40*$D25,IF($E25="kW",VLOOKUP(P$4,'4(A) Billing Determinants_ALL'!$B$19:$P$40,5,0)/'4(A) Billing Determinants_ALL'!$F$40*$D25,IF($E25="Non-RPP kWh",VLOOKUP(P$4,'4(A) Billing Determinants_ALL'!$B$19:$P$40,6,0)/'4(A) Billing Determinants_ALL'!$G$40*$D25,IF($E25="Distribution Rev.",VLOOKUP(P$4,'4(A) Billing Determinants_ALL'!$B$19:$P$40,8,0)/'4(A) Billing Determinants_ALL'!$I$40*$D25, VLOOKUP(P$4,'4(A) Billing Determinants_ALL'!$B$19:$P$40,3,0)/'4(A) Billing Determinants_ALL'!$D$40*$D25))))),0) -> 0 | Q25: =IFERROR(IF(Q$4="",0,IF($E25="kWh",VLOOKUP(Q$4,'4(A) Billing Determinants_ALL'!$B$19:$P$40,4,0)/'4(A) Billing Determinants_ALL'!$E$40*$D25,IF($E25="kW",VLOOKUP(Q$4,'4(A) Billing Determinants_ALL'!$B$19:$P$40,5,0)/'4(A) Billing Determinants_ALL'!$F$40*$D25,IF($E25="Non-RPP kWh",VLOOKUP(Q$4,'4(A) Billing Determinants_ALL'!$B$19:$P$40,6,0)/'4(A) Billing Determinants_ALL'!$G$40*$D25,IF($E25="Distribution Rev.",VLOOKUP(Q$4,'4(A) Billing Determinants_ALL'!$B$19:$P$40,8,0)/'4(A) Billing Determinants_ALL'!$I$40*$D25, VLOOKUP(Q$4,'4(A) Billing Determinants_ALL'!$B$19:$P$40,3,0)/'4(A) Billing Determinants_ALL'!$D$40*$D25))))),0) -> 0 | R25: =IFERROR(IF(R$4="",0,IF($E25="kWh",VLOOKUP(R$4,'4(A) Billing Determinants_ALL'!$B$19:$P$40,4,0)/'4(A) Billing Determinants_ALL'!$E$40*$D25,IF($E25="kW",VLOOKUP(R$4,'4(A) Billing Determinants_ALL'!$B$19:$P$40,5,0)/'4(A) Billing Determinants_ALL'!$F$40*$D25,IF($E25="Non-RPP kWh",VLOOKUP(R$4,'4(A) Billing Determinants_ALL'!$B$19:$P$40,6,0)/'4(A) Billing Determinants_ALL'!$G$40*$D25,IF($E25="Distribution Rev.",VLOOKUP(R$4,'4(A) Billing Determinants_ALL'!$B$19:$P$40,8,0)/'4(A) Billing Determinants_ALL'!$I$40*$D25, VLOOKUP(R$4,'4(A) Billing Determinants_ALL'!$B$19:$P$40,3,0)/'4(A) Billing Determinants_ALL'!$D$40*$D25))))),0) -> 0 | S25: =IFERROR(IF(S$4="",0,IF($E25="kWh",VLOOKUP(S$4,'4(A) Billing Determinants_ALL'!$B$19:$P$40,4,0)/'4(A) Billing Determinants_ALL'!$E$40*$D25,IF($E25="kW",VLOOKUP(S$4,'4(A) Billing Determinants_ALL'!$B$19:$P$40,5,0)/'4(A) Billing Determinants_ALL'!$F$40*$D25,IF($E25="Non-RPP kWh",VLOOKUP(S$4,'4(A) Billing Determinants_ALL'!$B$19:$P$40,6,0)/'4(A) Billing Determinants_ALL'!$G$40*$D25,IF($E25="Distribution Rev.",VLOOKUP(S$4,'4(A) Billing Determinants_ALL'!$B$19:$P$40,8,0)/'4(A) Billing Determinants_ALL'!$I$40*$D25, VLOOKUP(S$4,'4(A) Billing Determinants_ALL'!$B$19:$P$40,3,0)/'4(A) Billing Determinants_ALL'!$D$40*$D25))))),0) -> 0 | T25: =IFERROR(IF(T$4="",0,IF($E25="kWh",VLOOKUP(T$4,'4(A) Billing Determinants_ALL'!$B$19:$P$40,4,0)/'4(A) Billing Determinants_ALL'!$E$40*$D25,IF($E25="kW",VLOOKUP(T$4,'4(A) Billing Determinants_ALL'!$B$19:$P$40,5,0)/'4(A) Billing Determinants_ALL'!$F$40*$D25,IF($E25="Non-RPP kWh",VLOOKUP(T$4,'4(A) Billing Determinants_ALL'!$B$19:$P$40,6,0)/'4(A) Billing Determinants_ALL'!$G$40*$D25,IF($E25="Distribution Rev.",VLOOKUP(T$4,'4(A) Billing Determinants_ALL'!$B$19:$P$40,8,0)/'4(A) Billing Determinants_ALL'!$I$40*$D25, VLOOKUP(T$4,'4(A) Billing Determinants_ALL'!$B$19:$P$40,3,0)/'4(A) Billing Determinants_ALL'!$D$40*$D25))))),0) -> 0 | U25: =IFERROR(IF(U$4="",0,IF($E25="kWh",VLOOKUP(U$4,'4(A) Billing Determinants_ALL'!$B$19:$P$40,4,0)/'4(A) Billing Determinants_ALL'!$E$40*$D25,IF($E25="kW",VLOOKUP(U$4,'4(A) Billing Determinants_ALL'!$B$19:$P$40,5,0)/'4(A) Billing Determinants_ALL'!$F$40*$D25,IF($E25="Non-RPP kWh",VLOOKUP(U$4,'4(A) Billing Determinants_ALL'!$B$19:$P$40,6,0)/'4(A) Billing Determinants_ALL'!$G$40*$D25,IF($E25="Distribution Rev.",VLOOKUP(U$4,'4(A) Billing Determinants_ALL'!$B$19:$P$40,8,0)/'4(A) Billing Determinants_ALL'!$I$40*$D25, VLOOKUP(U$4,'4(A) Billing Determinants_ALL'!$B$19:$P$40,3,0)/'4(A) Billing Determinants_ALL'!$D$40*$D25))))),0) -> 0 | V25: =IFERROR(IF(V$4="",0,IF($E25="kWh",VLOOKUP(V$4,'4(A) Billing Determinants_ALL'!$B$19:$P$40,4,0)/'4(A) Billing Determinants_ALL'!$E$40*$D25,IF($E25="kW",VLOOKUP(V$4,'4(A) Billing Determinants_ALL'!$B$19:$P$40,5,0)/'4(A) Billing Determinants_ALL'!$F$40*$D25,IF($E25="Non-RPP kWh",VLOOKUP(V$4,'4(A) Billing Determinants_ALL'!$B$19:$P$40,6,0)/'4(A) Billing Determinants_ALL'!$G$40*$D25,IF($E25="Distribution Rev.",VLOOKUP(V$4,'4(A) Billing Determinants_ALL'!$B$19:$P$40,8,0)/'4(A) Billing Determinants_ALL'!$I$40*$D25, VLOOKUP(V$4,'4(A) Billing Determinants_ALL'!$B$19:$P$40,3,0)/'4(A) Billing Determinants_ALL'!$D$40*$D25))))),0) -> 0 | W25: =IFERROR(IF(W$4="",0,IF($E25="kWh",VLOOKUP(W$4,'4(A) Billing Determinants_ALL'!$B$19:$P$40,4,0)/'4(A) Billing Determinants_ALL'!$E$40*$D25,IF($E25="kW",VLOOKUP(W$4,'4(A) Billing Determinants_ALL'!$B$19:$P$40,5,0)/'4(A) Billing Determinants_ALL'!$F$40*$D25,IF($E25="Non-RPP kWh",VLOOKUP(W$4,'4(A) Billing Determinants_ALL'!$B$19:$P$40,6,0)/'4(A) Billing Determinants_ALL'!$G$40*$D25,IF($E25="Distribution Rev.",VLOOKUP(W$4,'4(A) Billing Determinants_ALL'!$B$19:$P$40,8,0)/'4(A) Billing Determinants_ALL'!$I$40*$D25, VLOOKUP(W$4,'4(A) Billing Determinants_ALL'!$B$19:$P$40,3,0)/'4(A) Billing Determinants_ALL'!$D$40*$D25))))),0) -> 0
B26: Retail Cost Variance Account - Retail | C26: 1518 | D26: ='2. 2015 Continuity Schedule'!BM50 -> 101835.1988 | E26: # of Customers | F26: =IFERROR(IF(F$4="",0,IF($E26="kWh",VLOOKUP(F$4,'4(A) Billing Determinants_ALL'!$B$19:$P$40,4,0)/'4(A) Billing Determinants_ALL'!$E$40*$D26,IF($E26="kW",VLOOKUP(F$4,'4(A) Billing Determinants_ALL'!$B$19:$P$40,5,0)/'4(A) Billing Determinants_ALL'!$F$40*$D26,IF($E26="Non-RPP kWh",VLOOKUP(F$4,'4(A) Billing Determinants_ALL'!$B$19:$P$40,6,0)/'4(A) Billing Determinants_ALL'!$G$40*$D26,IF($E26="Distribution Rev.",VLOOKUP(F$4,'4(A) Billing Determinants_ALL'!$B$19:$P$40,8,0)/'4(A) Billing Determinants_ALL'!$I$40*$D26, VLOOKUP(F$4,'4(A) Billing Determinants_ALL'!$B$19:$P$40,3,0)/'4(A) Billing Determinants_ALL'!$D$40*$D26))))),0) -> 81783.80041 | G26: =IFERROR(IF(G$4="",0,IF($E26="kWh",VLOOKUP(G$4,'4(A) Billing Determinants_ALL'!$B$19:$P$40,4,0)/'4(A) Billing Determinants_ALL'!$E$40*$D26,IF($E26="kW",VLOOKUP(G$4,'4(A) Billing Determinants_ALL'!$B$19:$P$40,5,0)/'4(A) Billing Determinants_ALL'!$F$40*$D26,IF($E26="Non-RPP kWh",VLOOKUP(G$4,'4(A) Billing Determinants_ALL'!$B$19:$P$40,6,0)/'4(A) Billing Determinants_ALL'!$G$40*$D26,IF($E26="Distribution Rev.",VLOOKUP(G$4,'4(A) Billing Determinants_ALL'!$B$19:$P$40,8,0)/'4(A) Billing Determinants_ALL'!$I$40*$D26, VLOOKUP(G$4,'4(A) Billing Determinants_ALL'!$B$19:$P$40,3,0)/'4(A) Billing Determinants_ALL'!$D$40*$D26))))),0) -> 5214.899066 | H26: =IFERROR(IF(H$4="",0,IF($E26="kWh",VLOOKUP(H$4,'4(A) Billing Determinants_ALL'!$B$19:$P$40,4,0)/'4(A) Billing Determinants_ALL'!$E$40*$D26,IF($E26="kW",VLOOKUP(H$4,'4(A) Billing Determinants_ALL'!$B$19:$P$40,5,0)/'4(A) Billing Determinants_ALL'!$F$40*$D26,IF($E26="Non-RPP kWh",VLOOKUP(H$4,'4(A) Billing Determinants_ALL'!$B$19:$P$40,6,0)/'4(A) Billing Determinants_ALL'!$G$40*$D26,IF($E26="Distribution Rev.",VLOOKUP(H$4,'4(A) Billing Determinants_ALL'!$B$19:$P$40,8,0)/'4(A) Billing Determinants_ALL'!$I$40*$D26, VLOOKUP(H$4,'4(A) Billing Determinants_ALL'!$B$19:$P$40,3,0)/'4(A) Billing Determinants_ALL'!$D$40*$D26))))),0) -> 864.788068 | I26: =IFERROR(IF(I$4="",0,IF($E26="kWh",VLOOKUP(I$4,'4(A) Billing Determinants_ALL'!$B$19:$P$40,4,0)/'4(A) Billing Determinants_ALL'!$E$40*$D26,IF($E26="kW",VLOOKUP(I$4,'4(A) Billing Determinants_ALL'!$B$19:$P$40,5,0)/'4(A) Billing Determinants_ALL'!$F$40*$D26,IF($E26="Non-RPP kWh",VLOOKUP(I$4,'4(A) Billing Determinants_ALL'!$B$19:$P$40,6,0)/'4(A) Billing Determinants_ALL'!$G$40*$D26,IF($E26="Distribution Rev.",VLOOKUP(I$4,'4(A) Billing Determinants_ALL'!$B$19:$P$40,8,0)/'4(A) Billing Determinants_ALL'!$I$40*$D26, VLOOKUP(I$4,'4(A) Billing Determinants_ALL'!$B$19:$P$40,3,0)/'4(A) Billing Determinants_ALL'!$D$40*$D26))))),0) -> 66.49042505 | J26: =IFERROR(IF(J$4="",0,IF($E26="kWh",VLOOKUP(J$4,'4(A) Billing Determinants_ALL'!$B$19:$P$40,4,0)/'4(A) Billing Determinants_ALL'!$E$40*$D26,IF($E26="kW",VLOOKUP(J$4,'4(A) Billing Determinants_ALL'!$B$19:$P$40,5,0)/'4(A) Billing Determinants_ALL'!$F$40*$D26,IF($E26="Non-RPP kWh",VLOOKUP(J$4,'4(A) Billing Determinants_ALL'!$B$19:$P$40,6,0)/'4(A) Billing Determinants_ALL'!$G$40*$D26,IF($E26="Distribution Rev.",VLOOKUP(J$4,'4(A) Billing Determinants_ALL'!$B$19:$P$40,8,0)/'4(A) Billing Determinants_ALL'!$I$40*$D26, VLOOKUP(J$4,'4(A) Billing Determinants_ALL'!$B$19:$P$40,3,0)/'4(A) Billing Determinants_ALL'!$D$40*$D26))))),0) -> 3.480675632 | K26: =IFERROR(IF(K$4="",0,IF($E26="kWh",VLOOKUP(K$4,'4(A) Billing Determinants_ALL'!$B$19:$P$40,4,0)/'4(A) Billing Determinants_ALL'!$E$40*$D26,IF($E26="kW",VLOOKUP(K$4,'4(A) Billing Determinants_ALL'!$B$19:$P$40,5,0)/'4(A) Billing Determinants_ALL'!$F$40*$D26,IF($E26="Non-RPP kWh",VLOOKUP(K$4,'4(A) Billing Determinants_ALL'!$B$19:$P$40,6,0)/'4(A) Billing Determinants_ALL'!$G$40*$D26,IF($E26="Distribution Rev.",VLOOKUP(K$4,'4(A) Billing Determinants_ALL'!$B$19:$P$40,8,0)/'4(A) Billing Determinants_ALL'!$I$40*$D26, VLOOKUP(K$4,'4(A) Billing Determinants_ALL'!$B$19:$P$40,3,0)/'4(A) Billing Determinants_ALL'!$D$40*$D26))))),0) -> 905.9723917 | L26: =IFERROR(IF(L$4="",0,IF($E26="kWh",VLOOKUP(L$4,'4(A) Billing Determinants_ALL'!$B$19:$P$40,4,0)/'4(A) Billing Determinants_ALL'!$E$40*$D26,IF($E26="kW",VLOOKUP(L$4,'4(A) Billing Determinants_ALL'!$B$19:$P$40,5,0)/'4(A) Billing Determinants_ALL'!$F$40*$D26,IF($E26="Non-RPP kWh",VLOOKUP(L$4,'4(A) Billing Determinants_ALL'!$B$19:$P$40,6,0)/'4(A) Billing Determinants_ALL'!$G$40*$D26,IF($E26="Distribution Rev.",VLOOKUP(L$4,'4(A) Billing Determinants_ALL'!$B$19:$P$40,8,0)/'4(A) Billing Determinants_ALL'!$I$40*$D26, VLOOKUP(L$4,'4(A) Billing Determinants_ALL'!$B$19:$P$40,3,0)/'4(A) Billing Determinants_ALL'!$D$40*$D26))))),0) -> 12956.56183 | M26: =IFERROR(IF(M$4="",0,IF($E26="kWh",VLOOKUP(M$4,'4(A) Billing Determinants_ALL'!$B$19:$P$40,4,0)/'4(A) Billing Determinants_ALL'!$E$40*$D26,IF($E26="kW",VLOOKUP(M$4,'4(A) Billing Determinants_ALL'!$B$19:$P$40,5,0)/'4(A) Billing Determinants_ALL'!$F$40*$D26,IF($E26="Non-RPP kWh",VLOOKUP(M$4,'4(A) Billing Determinants_ALL'!$B$19:$P$40,6,0)/'4(A) Billing Determinants_ALL'!$G$40*$D26,IF($E26="Distribution Rev.",VLOOKUP(M$4,'4(A) Billing Determinants_ALL'!$B$19:$P$40,8,0)/'4(A) Billing Determinants_ALL'!$I$40*$D26, VLOOKUP(M$4,'4(A) Billing Determinants_ALL'!$B$19:$P$40,3,0)/'4(A) Billing Determinants_ALL'!$D$40*$D26))))),0) -> 39.20594358 | N26: =IFERROR(IF(N$4="",0,IF($E26="kWh",VLOOKUP(N$4,'4(A) Billing Determinants_ALL'!$B$19:$P$40,4,0)/'4(A) Billing Determinants_ALL'!$E$40*$D26,IF($E26="kW",VLOOKUP(N$4,'4(A) Billing Determinants_ALL'!$B$19:$P$40,5,0)/'4(A) Billing Determinants_ALL'!$F$40*$D26,IF($E26="Non-RPP kWh",VLOOKUP(N$4,'4(A) Billing Determinants_ALL'!$B$19:$P$40,6,0)/'4(A) Billing Determinants_ALL'!$G$40*$D26,IF($E26="Distribution Rev.",VLOOKUP(N$4,'4(A) Billing Determinants_ALL'!$B$19:$P$40,8,0)/'4(A) Billing Determinants_ALL'!$I$40*$D26, VLOOKUP(N$4,'4(A) Billing Determinants_ALL'!$B$19:$P$40,3,0)/'4(A) Billing Determinants_ALL'!$D$40*$D26))))),0) -> 0 | O26: =IFERROR(IF(O$4="",0,IF($E26="kWh",VLOOKUP(O$4,'4(A) Billing Determinants_ALL'!$B$19:$P$40,4,0)/'4(A) Billing Determinants_ALL'!$E$40*$D26,IF($E26="kW",VLOOKUP(O$4,'4(A) Billing Determinants_ALL'!$B$19:$P$40,5,0)/'4(A) Billing Determinants_ALL'!$F$40*$D26,IF($E26="Non-RPP kWh",VLOOKUP(O$4,'4(A) Billing Determinants_ALL'!$B$19:$P$40,6,0)/'4(A) Billing Determinants_ALL'!$G$40*$D26,IF($E26="Distribution Rev.",VLOOKUP(O$4,'4(A) Billing Determinants_ALL'!$B$19:$P$40,8,0)/'4(A) Billing Determinants_ALL'!$I$40*$D26, VLOOKUP(O$4,'4(A) Billing Determinants_ALL'!$B$19:$P$40,3,0)/'4(A) Billing Determinants_ALL'!$D$40*$D26))))),0) -> 0 | P26: =IFERROR(IF(P$4="",0,IF($E26="kWh",VLOOKUP(P$4,'4(A) Billing Determinants_ALL'!$B$19:$P$40,4,0)/'4(A) Billing Determinants_ALL'!$E$40*$D26,IF($E26="kW",VLOOKUP(P$4,'4(A) Billing Determinants_ALL'!$B$19:$P$40,5,0)/'4(A) Billing Determinants_ALL'!$F$40*$D26,IF($E26="Non-RPP kWh",VLOOKUP(P$4,'4(A) Billing Determinants_ALL'!$B$19:$P$40,6,0)/'4(A) Billing Determinants_ALL'!$G$40*$D26,IF($E26="Distribution Rev.",VLOOKUP(P$4,'4(A) Billing Determinants_ALL'!$B$19:$P$40,8,0)/'4(A) Billing Determinants_ALL'!$I$40*$D26, VLOOKUP(P$4,'4(A) Billing Determinants_ALL'!$B$19:$P$40,3,0)/'4(A) Billing Determinants_ALL'!$D$40*$D26))))),0) -> 0 | Q26: =IFERROR(IF(Q$4="",0,IF($E26="kWh",VLOOKUP(Q$4,'4(A) Billing Determinants_ALL'!$B$19:$P$40,4,0)/'4(A) Billing Determinants_ALL'!$E$40*$D26,IF($E26="kW",VLOOKUP(Q$4,'4(A) Billing Determinants_ALL'!$B$19:$P$40,5,0)/'4(A) Billing Determinants_ALL'!$F$40*$D26,IF($E26="Non-RPP kWh",VLOOKUP(Q$4,'4(A) Billing Determinants_ALL'!$B$19:$P$40,6,0)/'4(A) Billing Determinants_ALL'!$G$40*$D26,IF($E26="Distribution Rev.",VLOOKUP(Q$4,'4(A) Billing Determinants_ALL'!$B$19:$P$40,8,0)/'4(A) Billing Determinants_ALL'!$I$40*$D26, VLOOKUP(Q$4,'4(A) Billing Determinants_ALL'!$B$19:$P$40,3,0)/'4(A) Billing Determinants_ALL'!$D$40*$D26))))),0) -> 0 | R26: =IFERROR(IF(R$4="",0,IF($E26="kWh",VLOOKUP(R$4,'4(A) Billing Determinants_ALL'!$B$19:$P$40,4,0)/'4(A) Billing Determinants_ALL'!$E$40*$D26,IF($E26="kW",VLOOKUP(R$4,'4(A) Billing Determinants_ALL'!$B$19:$P$40,5,0)/'4(A) Billing Determinants_ALL'!$F$40*$D26,IF($E26="Non-RPP kWh",VLOOKUP(R$4,'4(A) Billing Determinants_ALL'!$B$19:$P$40,6,0)/'4(A) Billing Determinants_ALL'!$G$40*$D26,IF($E26="Distribution Rev.",VLOOKUP(R$4,'4(A) Billing Determinants_ALL'!$B$19:$P$40,8,0)/'4(A) Billing Determinants_ALL'!$I$40*$D26, VLOOKUP(R$4,'4(A) Billing Determinants_ALL'!$B$19:$P$40,3,0)/'4(A) Billing Determinants_ALL'!$D$40*$D26))))),0) -> 0 | S26: =IFERROR(IF(S$4="",0,IF($E26="kWh",VLOOKUP(S$4,'4(A) Billing Determinants_ALL'!$B$19:$P$40,4,0)/'4(A) Billing Determinants_ALL'!$E$40*$D26,IF($E26="kW",VLOOKUP(S$4,'4(A) Billing Determinants_ALL'!$B$19:$P$40,5,0)/'4(A) Billing Determinants_ALL'!$F$40*$D26,IF($E26="Non-RPP kWh",VLOOKUP(S$4,'4(A) Billing Determinants_ALL'!$B$19:$P$40,6,0)/'4(A) Billing Determinants_ALL'!$G$40*$D26,IF($E26="Distribution Rev.",VLOOKUP(S$4,'4(A) Billing Determinants_ALL'!$B$19:$P$40,8,0)/'4(A) Billing Determinants_ALL'!$I$40*$D26, VLOOKUP(S$4,'4(A) Billing Determinants_ALL'!$B$19:$P$40,3,0)/'4(A) Billing Determinants_ALL'!$D$40*$D26))))),0) -> 0 | T26: =IFERROR(IF(T$4="",0,IF($E26="kWh",VLOOKUP(T$4,'4(A) Billing Determinants_ALL'!$B$19:$P$40,4,0)/'4(A) Billing Determinants_ALL'!$E$40*$D26,IF($E26="kW",VLOOKUP(T$4,'4(A) Billing Determinants_ALL'!$B$19:$P$40,5,0)/'4(A) Billing Determinants_ALL'!$F$40*$D26,IF($E26="Non-RPP kWh",VLOOKUP(T$4,'4(A) Billing Determinants_ALL'!$B$19:$P$40,6,0)/'4(A) Billing Determinants_ALL'!$G$40*$D26,IF($E26="Distribution Rev.",VLOOKUP(T$4,'4(A) Billing Determinants_ALL'!$B$19:$P$40,8,0)/'4(A) Billing Determinants_ALL'!$I$40*$D26, VLOOKUP(T$4,'4(A) Billing Determinants_ALL'!$B$19:$P$40,3,0)/'4(A) Billing Determinants_ALL'!$D$40*$D26))))),0) -> 0 | U26: =IFERROR(IF(U$4="",0,IF($E26="kWh",VLOOKUP(U$4,'4(A) Billing Determinants_ALL'!$B$19:$P$40,4,0)/'4(A) Billing Determinants_ALL'!$E$40*$D26,IF($E26="kW",VLOOKUP(U$4,'4(A) Billing Determinants_ALL'!$B$19:$P$40,5,0)/'4(A) Billing Determinants_ALL'!$F$40*$D26,IF($E26="Non-RPP kWh",VLOOKUP(U$4,'4(A) Billing Determinants_ALL'!$B$19:$P$40,6,0)/'4(A) Billing Determinants_ALL'!$G$40*$D26,IF($E26="Distribution Rev.",VLOOKUP(U$4,'4(A) Billing Determinants_ALL'!$B$19:$P$40,8,0)/'4(A) Billing Determinants_ALL'!$I$40*$D26, VLOOKUP(U$4,'4(A) Billing Determinants_ALL'!$B$19:$P$40,3,0)/'4(A) Billing Determinants_ALL'!$D$40*$D26))))),0) -> 0 | V26: =IFERROR(IF(V$4="",0,IF($E26="kWh",VLOOKUP(V$4,'4(A) Billing Determinants_ALL'!$B$19:$P$40,4,0)/'4(A) Billing Determinants_ALL'!$E$40*$D26,IF($E26="kW",VLOOKUP(V$4,'4(A) Billing Determinants_ALL'!$B$19:$P$40,5,0)/'4(A) Billing Determinants_ALL'!$F$40*$D26,IF($E26="Non-RPP kWh",VLOOKUP(V$4,'4(A) Billing Determinants_ALL'!$B$19:$P$40,6,0)/'4(A) Billing Determinants_ALL'!$G$40*$D26,IF($E26="Distribution Rev.",VLOOKUP(V$4,'4(A) Billing Determinants_ALL'!$B$19:$P$40,8,0)/'4(A) Billing Determinants_ALL'!$I$40*$D26, VLOOKUP(V$4,'4(A) Billing Determinants_ALL'!$B$19:$P$40,3,0)/'4(A) Billing Determinants_ALL'!$D$40*$D26))))),0) -> 0 | W26: =IFERROR(IF(W$4="",0,IF($E26="kWh",VLOOKUP(W$4,'4(A) Billing Determinants_ALL'!$B$19:$P$40,4,0)/'4(A) Billing Determinants_ALL'!$E$40*$D26,IF($E26="kW",VLOOKUP(W$4,'4(A) Billing Determinants_ALL'!$B$19:$P$40,5,0)/'4(A) Billing Determinants_ALL'!$F$40*$D26,IF($E26="Non-RPP kWh",VLOOKUP(W$4,'4(A) Billing Determinants_ALL'!$B$19:$P$40,6,0)/'4(A) Billing Determinants_ALL'!$G$40*$D26,IF($E26="Distribution Rev.",VLOOKUP(W$4,'4(A) Billing Determinants_ALL'!$B$19:$P$40,8,0)/'4(A) Billing Determinants_ALL'!$I$40*$D26, VLOOKUP(W$4,'4(A) Billing Determinants_ALL'!$B$19:$P$40,3,0)/'4(A) Billing Determinants_ALL'!$D$40*$D26))))),0) -> 0
B27: Misc. Deferred Debits | C27: 1525 | D27: ='2. 2015 Continuity Schedule'!BM51 -> 0 | F27: =IFERROR(IF(F$4="",0,IF($E27="kWh",VLOOKUP(F$4,'4(A) Billing Determinants_ALL'!$B$19:$P$40,4,0)/'4(A) Billing Determinants_ALL'!$E$40*$D27,IF($E27="kW",VLOOKUP(F$4,'4(A) Billing Determinants_ALL'!$B$19:$P$40,5,0)/'4(A) Billing Determinants_ALL'!$F$40*$D27,IF($E27="Non-RPP kWh",VLOOKUP(F$4,'4(A) Billing Determinants_ALL'!$B$19:$P$40,6,0)/'4(A) Billing Determinants_ALL'!$G$40*$D27,IF($E27="Distribution Rev.",VLOOKUP(F$4,'4(A) Billing Determinants_ALL'!$B$19:$P$40,8,0)/'4(A) Billing Determinants_ALL'!$I$40*$D27, VLOOKUP(F$4,'4(A) Billing Determinants_ALL'!$B$19:$P$40,3,0)/'4(A) Billing Determinants_ALL'!$D$40*$D27))))),0) -> 0 | G27: =IFERROR(IF(G$4="",0,IF($E27="kWh",VLOOKUP(G$4,'4(A) Billing Determinants_ALL'!$B$19:$P$40,4,0)/'4(A) Billing Determinants_ALL'!$E$40*$D27,IF($E27="kW",VLOOKUP(G$4,'4(A) Billing Determinants_ALL'!$B$19:$P$40,5,0)/'4(A) Billing Determinants_ALL'!$F$40*$D27,IF($E27="Non-RPP kWh",VLOOKUP(G$4,'4(A) Billing Determinants_ALL'!$B$19:$P$40,6,0)/'4(A) Billing Determinants_ALL'!$G$40*$D27,IF($E27="Distribution Rev.",VLOOKUP(G$4,'4(A) Billing Determinants_ALL'!$B$19:$P$40,8,0)/'4(A) Billing Determinants_ALL'!$I$40*$D27, VLOOKUP(G$4,'4(A) Billing Determinants_ALL'!$B$19:$P$40,3,0)/'4(A) Billing Determinants_ALL'!$D$40*$D27))))),0) -> 0 | H27: =IFERROR(IF(H$4="",0,IF($E27="kWh",VLOOKUP(H$4,'4(A) Billing Determinants_ALL'!$B$19:$P$40,4,0)/'4(A) Billing Determinants_ALL'!$E$40*$D27,IF($E27="kW",VLOOKUP(H$4,'4(A) Billing Determinants_ALL'!$B$19:$P$40,5,0)/'4(A) Billing Determinants_ALL'!$F$40*$D27,IF($E27="Non-RPP kWh",VLOOKUP(H$4,'4(A) Billing Determinants_ALL'!$B$19:$P$40,6,0)/'4(A) Billing Determinants_ALL'!$G$40*$D27,IF($E27="Distribution Rev.",VLOOKUP(H$4,'4(A) Billing Determinants_ALL'!$B$19:$P$40,8,0)/'4(A) Billing Determinants_ALL'!$I$40*$D27, VLOOKUP(H$4,'4(A) Billing Determinants_ALL'!$B$19:$P$40,3,0)/'4(A) Billing Determinants_ALL'!$D$40*$D27))))),0) -> 0 | I27: =IFERROR(IF(I$4="",0,IF($E27="kWh",VLOOKUP(I$4,'4(A) Billing Determinants_ALL'!$B$19:$P$40,4,0)/'4(A) Billing Determinants_ALL'!$E$40*$D27,IF($E27="kW",VLOOKUP(I$4,'4(A) Billing Determinants_ALL'!$B$19:$P$40,5,0)/'4(A) Billing Determinants_ALL'!$F$40*$D27,IF($E27="Non-RPP kWh",VLOOKUP(I$4,'4(A) Billing Determinants_ALL'!$B$19:$P$40,6,0)/'4(A) Billing Determinants_ALL'!$G$40*$D27,IF($E27="Distribution Rev.",VLOOKUP(I$4,'4(A) Billing Determinants_ALL'!$B$19:$P$40,8,0)/'4(A) Billing Determinants_ALL'!$I$40*$D27, VLOOKUP(I$4,'4(A) Billing Determinants_ALL'!$B$19:$P$40,3,0)/'4(A) Billing Determinants_ALL'!$D$40*$D27))))),0) -> 0 | J27: =IFERROR(IF(J$4="",0,IF($E27="kWh",VLOOKUP(J$4,'4(A) Billing Determinants_ALL'!$B$19:$P$40,4,0)/'4(A) Billing Determinants_ALL'!$E$40*$D27,IF($E27="kW",VLOOKUP(J$4,'4(A) Billing Determinants_ALL'!$B$19:$P$40,5,0)/'4(A) Billing Determinants_ALL'!$F$40*$D27,IF($E27="Non-RPP kWh",VLOOKUP(J$4,'4(A) Billing Determinants_ALL'!$B$19:$P$40,6,0)/'4(A) Billing Determinants_ALL'!$G$40*$D27,IF($E27="Distribution Rev.",VLOOKUP(J$4,'4(A) Billing Determinants_ALL'!$B$19:$P$40,8,0)/'4(A) Billing Determinants_ALL'!$I$40*$D27, VLOOKUP(J$4,'4(A) Billing Determinants_ALL'!$B$19:$P$40,3,0)/'4(A) Billing Determinants_ALL'!$D$40*$D27))))),0) -> 0 | K27: =IFERROR(IF(K$4="",0,IF($E27="kWh",VLOOKUP(K$4,'4(A) Billing Determinants_ALL'!$B$19:$P$40,4,0)/'4(A) Billing Determinants_ALL'!$E$40*$D27,IF($E27="kW",VLOOKUP(K$4,'4(A) Billing Determinants_ALL'!$B$19:$P$40,5,0)/'4(A) Billing Determinants_ALL'!$F$40*$D27,IF($E27="Non-RPP kWh",VLOOKUP(K$4,'4(A) Billing Determinants_ALL'!$B$19:$P$40,6,0)/'4(A) Billing Determinants_ALL'!$G$40*$D27,IF($E27="Distribution Rev.",VLOOKUP(K$4,'4(A) Billing Determinants_ALL'!$B$19:$P$40,8,0)/'4(A) Billing Determinants_ALL'!$I$40*$D27, VLOOKUP(K$4,'4(A) Billing Determinants_ALL'!$B$19:$P$40,3,0)/'4(A) Billing Determinants_ALL'!$D$40*$D27))))),0) -> 0 | L27: =IFERROR(IF(L$4="",0,IF($E27="kWh",VLOOKUP(L$4,'4(A) Billing Determinants_ALL'!$B$19:$P$40,4,0)/'4(A) Billing Determinants_ALL'!$E$40*$D27,IF($E27="kW",VLOOKUP(L$4,'4(A) Billing Determinants_ALL'!$B$19:$P$40,5,0)/'4(A) Billing Determinants_ALL'!$F$40*$D27,IF($E27="Non-RPP kWh",VLOOKUP(L$4,'4(A) Billing Determinants_ALL'!$B$19:$P$40,6,0)/'4(A) Billing Determinants_ALL'!$G$40*$D27,IF($E27="Distribution Rev.",VLOOKUP(L$4,'4(A) Billing Determinants_ALL'!$B$19:$P$40,8,0)/'4(A) Billing Determinants_ALL'!$I$40*$D27, VLOOKUP(L$4,'4(A) Billing Determinants_ALL'!$B$19:$P$40,3,0)/'4(A) Billing Determinants_ALL'!$D$40*$D27))))),0) -> 0 | M27: =IFERROR(IF(M$4="",0,IF($E27="kWh",VLOOKUP(M$4,'4(A) Billing Determinants_ALL'!$B$19:$P$40,4,0)/'4(A) Billing Determinants_ALL'!$E$40*$D27,IF($E27="kW",VLOOKUP(M$4,'4(A) Billing Determinants_ALL'!$B$19:$P$40,5,0)/'4(A) Billing Determinants_ALL'!$F$40*$D27,IF($E27="Non-RPP kWh",VLOOKUP(M$4,'4(A) Billing Determinants_ALL'!$B$19:$P$40,6,0)/'4(A) Billing Determinants_ALL'!$G$40*$D27,IF($E27="Distribution Rev.",VLOOKUP(M$4,'4(A) Billing Determinants_ALL'!$B$19:$P$40,8,0)/'4(A) Billing Determinants_ALL'!$I$40*$D27, VLOOKUP(M$4,'4(A) Billing Determinants_ALL'!$B$19:$P$40,3,0)/'4(A) Billing Determinants_ALL'!$D$40*$D27))))),0) -> 0 | N27: =IFERROR(IF(N$4="",0,IF($E27="kWh",VLOOKUP(N$4,'4(A) Billing Determinants_ALL'!$B$19:$P$40,4,0)/'4(A) Billing Determinants_ALL'!$E$40*$D27,IF($E27="kW",VLOOKUP(N$4,'4(A) Billing Determinants_ALL'!$B$19:$P$40,5,0)/'4(A) Billing Determinants_ALL'!$F$40*$D27,IF($E27="Non-RPP kWh",VLOOKUP(N$4,'4(A) Billing Determinants_ALL'!$B$19:$P$40,6,0)/'4(A) Billing Determinants_ALL'!$G$40*$D27,IF($E27="Distribution Rev.",VLOOKUP(N$4,'4(A) Billing Determinants_ALL'!$B$19:$P$40,8,0)/'4(A) Billing Determinants_ALL'!$I$40*$D27, VLOOKUP(N$4,'4(A) Billing Determinants_ALL'!$B$19:$P$40,3,0)/'4(A) Billing Determinants_ALL'!$D$40*$D27))))),0) -> 0 | O27: =IFERROR(IF(O$4="",0,IF($E27="kWh",VLOOKUP(O$4,'4(A) Billing Determinants_ALL'!$B$19:$P$40,4,0)/'4(A) Billing Determinants_ALL'!$E$40*$D27,IF($E27="kW",VLOOKUP(O$4,'4(A) Billing Determinants_ALL'!$B$19:$P$40,5,0)/'4(A) Billing Determinants_ALL'!$F$40*$D27,IF($E27="Non-RPP kWh",VLOOKUP(O$4,'4(A) Billing Determinants_ALL'!$B$19:$P$40,6,0)/'4(A) Billing Determinants_ALL'!$G$40*$D27,IF($E27="Distribution Rev.",VLOOKUP(O$4,'4(A) Billing Determinants_ALL'!$B$19:$P$40,8,0)/'4(A) Billing Determinants_ALL'!$I$40*$D27, VLOOKUP(O$4,'4(A) Billing Determinants_ALL'!$B$19:$P$40,3,0)/'4(A) Billing Determinants_ALL'!$D$40*$D27))))),0) -> 0 | P27: =IFERROR(IF(P$4="",0,IF($E27="kWh",VLOOKUP(P$4,'4(A) Billing Determinants_ALL'!$B$19:$P$40,4,0)/'4(A) Billing Determinants_ALL'!$E$40*$D27,IF($E27="kW",VLOOKUP(P$4,'4(A) Billing Determinants_ALL'!$B$19:$P$40,5,0)/'4(A) Billing Determinants_ALL'!$F$40*$D27,IF($E27="Non-RPP kWh",VLOOKUP(P$4,'4(A) Billing Determinants_ALL'!$B$19:$P$40,6,0)/'4(A) Billing Determinants_ALL'!$G$40*$D27,IF($E27="Distribution Rev.",VLOOKUP(P$4,'4(A) Billing Determinants_ALL'!$B$19:$P$40,8,0)/'4(A) Billing Determinants_ALL'!$I$40*$D27, VLOOKUP(P$4,'4(A) Billing Determinants_ALL'!$B$19:$P$40,3,0)/'4(A) Billing Determinants_ALL'!$D$40*$D27))))),0) -> 0 | Q27: =IFERROR(IF(Q$4="",0,IF($E27="kWh",VLOOKUP(Q$4,'4(A) Billing Determinants_ALL'!$B$19:$P$40,4,0)/'4(A) Billing Determinants_ALL'!$E$40*$D27,IF($E27="kW",VLOOKUP(Q$4,'4(A) Billing Determinants_ALL'!$B$19:$P$40,5,0)/'4(A) Billing Determinants_ALL'!$F$40*$D27,IF($E27="Non-RPP kWh",VLOOKUP(Q$4,'4(A) Billing Determinants_ALL'!$B$19:$P$40,6,0)/'4(A) Billing Determinants_ALL'!$G$40*$D27,IF($E27="Distribution Rev.",VLOOKUP(Q$4,'4(A) Billing Determinants_ALL'!$B$19:$P$40,8,0)/'4(A) Billing Determinants_ALL'!$I$40*$D27, VLOOKUP(Q$4,'4(A) Billing Determinants_ALL'!$B$19:$P$40,3,0)/'4(A) Billing Determinants_ALL'!$D$40*$D27))))),0) -> 0 | R27: =IFERROR(IF(R$4="",0,IF($E27="kWh",VLOOKUP(R$4,'4(A) Billing Determinants_ALL'!$B$19:$P$40,4,0)/'4(A) Billing Determinants_ALL'!$E$40*$D27,IF($E27="kW",VLOOKUP(R$4,'4(A) Billing Determinants_ALL'!$B$19:$P$40,5,0)/'4(A) Billing Determinants_ALL'!$F$40*$D27,IF($E27="Non-RPP kWh",VLOOKUP(R$4,'4(A) Billing Determinants_ALL'!$B$19:$P$40,6,0)/'4(A) Billing Determinants_ALL'!$G$40*$D27,IF($E27="Distribution Rev.",VLOOKUP(R$4,'4(A) Billing Determinants_ALL'!$B$19:$P$40,8,0)/'4(A) Billing Determinants_ALL'!$I$40*$D27, VLOOKUP(R$4,'4(A) Billing Determinants_ALL'!$B$19:$P$40,3,0)/'4(A) Billing Determinants_ALL'!$D$40*$D27))))),0) -> 0 | S27: =IFERROR(IF(S$4="",0,IF($E27="kWh",VLOOKUP(S$4,'4(A) Billing Determinants_ALL'!$B$19:$P$40,4,0)/'4(A) Billing Determinants_ALL'!$E$40*$D27,IF($E27="kW",VLOOKUP(S$4,'4(A) Billing Determinants_ALL'!$B$19:$P$40,5,0)/'4(A) Billing Determinants_ALL'!$F$40*$D27,IF($E27="Non-RPP kWh",VLOOKUP(S$4,'4(A) Billing Determinants_ALL'!$B$19:$P$40,6,0)/'4(A) Billing Determinants_ALL'!$G$40*$D27,IF($E27="Distribution Rev.",VLOOKUP(S$4,'4(A) Billing Determinants_ALL'!$B$19:$P$40,8,0)/'4(A) Billing Determinants_ALL'!$I$40*$D27, VLOOKUP(S$4,'4(A) Billing Determinants_ALL'!$B$19:$P$40,3,0)/'4(A) Billing Determinants_ALL'!$D$40*$D27))))),0) -> 0 | T27: =IFERROR(IF(T$4="",0,IF($E27="kWh",VLOOKUP(T$4,'4(A) Billing Determinants_ALL'!$B$19:$P$40,4,0)/'4(A) Billing Determinants_ALL'!$E$40*$D27,IF($E27="kW",VLOOKUP(T$4,'4(A) Billing Determinants_ALL'!$B$19:$P$40,5,0)/'4(A) Billing Determinants_ALL'!$F$40*$D27,IF($E27="Non-RPP kWh",VLOOKUP(T$4,'4(A) Billing Determinants_ALL'!$B$19:$P$40,6,0)/'4(A) Billing Determinants_ALL'!$G$40*$D27,IF($E27="Distribution Rev.",VLOOKUP(T$4,'4(A) Billing Determinants_ALL'!$B$19:$P$40,8,0)/'4(A) Billing Determinants_ALL'!$I$40*$D27, VLOOKUP(T$4,'4(A) Billing Determinants_ALL'!$B$19:$P$40,3,0)/'4(A) Billing Determinants_ALL'!$D$40*$D27))))),0) -> 0 | U27: =IFERROR(IF(U$4="",0,IF($E27="kWh",VLOOKUP(U$4,'4(A) Billing Determinants_ALL'!$B$19:$P$40,4,0)/'4(A) Billing Determinants_ALL'!$E$40*$D27,IF($E27="kW",VLOOKUP(U$4,'4(A) Billing Determinants_ALL'!$B$19:$P$40,5,0)/'4(A) Billing Determinants_ALL'!$F$40*$D27,IF($E27="Non-RPP kWh",VLOOKUP(U$4,'4(A) Billing Determinants_ALL'!$B$19:$P$40,6,0)/'4(A) Billing Determinants_ALL'!$G$40*$D27,IF($E27="Distribution Rev.",VLOOKUP(U$4,'4(A) Billing Determinants_ALL'!$B$19:$P$40,8,0)/'4(A) Billing Determinants_ALL'!$I$40*$D27, VLOOKUP(U$4,'4(A) Billing Determinants_ALL'!$B$19:$P$40,3,0)/'4(A) Billing Determinants_ALL'!$D$40*$D27))))),0) -> 0 | V27: =IFERROR(IF(V$4="",0,IF($E27="kWh",VLOOKUP(V$4,'4(A) Billing Determinants_ALL'!$B$19:$P$40,4,0)/'4(A) Billing Determinants_ALL'!$E$40*$D27,IF($E27="kW",VLOOKUP(V$4,'4(A) Billing Determinants_ALL'!$B$19:$P$40,5,0)/'4(A) Billing Determinants_ALL'!$F$40*$D27,IF($E27="Non-RPP kWh",VLOOKUP(V$4,'4(A) Billing Determinants_ALL'!$B$19:$P$40,6,0)/'4(A) Billing Determinants_ALL'!$G$40*$D27,IF($E27="Distribution Rev.",VLOOKUP(V$4,'4(A) Billing Determinants_ALL'!$B$19:$P$40,8,0)/'4(A) Billing Determinants_ALL'!$I$40*$D27, VLOOKUP(V$4,'4(A) Billing Determinants_ALL'!$B$19:$P$40,3,0)/'4(A) Billing Determinants_ALL'!$D$40*$D27))))),0) -> 0 | W27: =IFERROR(IF(W$4="",0,IF($E27="kWh",VLOOKUP(W$4,'4(A) Billing Determinants_ALL'!$B$19:$P$40,4,0)/'4(A) Billing Determinants_ALL'!$E$40*$D27,IF($E27="kW",VLOOKUP(W$4,'4(A) Billing Determinants_ALL'!$B$19:$P$40,5,0)/'4(A) Billing Determinants_ALL'!$F$40*$D27,IF($E27="Non-RPP kWh",VLOOKUP(W$4,'4(A) Billing Determinants_ALL'!$B$19:$P$40,6,0)/'4(A) Billing Determinants_ALL'!$G$40*$D27,IF($E27="Distribution Rev.",VLOOKUP(W$4,'4(A) Billing Determinants_ALL'!$B$19:$P$40,8,0)/'4(A) Billing Determinants_ALL'!$I$40*$D27, VLOOKUP(W$4,'4(A) Billing Determinants_ALL'!$B$19:$P$40,3,0)/'4(A) Billing Determinants_ALL'!$D$40*$D27))))),0) -> 0
B28: Smart Grid Funding Adder Deferral Account | C28: 1536 | D28: ='2. 2015 Continuity Schedule'!BM57 -> 0 | F28: =IFERROR(IF(F$4="",0,IF($E28="kWh",VLOOKUP(F$4,'4(A) Billing Determinants_ALL'!$B$19:$P$40,4,0)/'4(A) Billing Determinants_ALL'!$E$40*$D28,IF($E28="kW",VLOOKUP(F$4,'4(A) Billing Determinants_ALL'!$B$19:$P$40,5,0)/'4(A) Billing Determinants_ALL'!$F$40*$D28,IF($E28="Non-RPP kWh",VLOOKUP(F$4,'4(A) Billing Determinants_ALL'!$B$19:$P$40,6,0)/'4(A) Billing Determinants_ALL'!$G$40*$D28,IF($E28="Distribution Rev.",VLOOKUP(F$4,'4(A) Billing Determinants_ALL'!$B$19:$P$40,8,0)/'4(A) Billing Determinants_ALL'!$I$40*$D28, VLOOKUP(F$4,'4(A) Billing Determinants_ALL'!$B$19:$P$40,3,0)/'4(A) Billing Determinants_ALL'!$D$40*$D28))))),0) -> 0 | G28: =IFERROR(IF(G$4="",0,IF($E28="kWh",VLOOKUP(G$4,'4(A) Billing Determinants_ALL'!$B$19:$P$40,4,0)/'4(A) Billing Determinants_ALL'!$E$40*$D28,IF($E28="kW",VLOOKUP(G$4,'4(A) Billing Determinants_ALL'!$B$19:$P$40,5,0)/'4(A) Billing Determinants_ALL'!$F$40*$D28,IF($E28="Non-RPP kWh",VLOOKUP(G$4,'4(A) Billing Determinants_ALL'!$B$19:$P$40,6,0)/'4(A) Billing Determinants_ALL'!$G$40*$D28,IF($E28="Distribution Rev.",VLOOKUP(G$4,'4(A) Billing Determinants_ALL'!$B$19:$P$40,8,0)/'4(A) Billing Determinants_ALL'!$I$40*$D28, VLOOKUP(G$4,'4(A) Billing Determinants_ALL'!$B$19:$P$40,3,0)/'4(A) Billing Determinants_ALL'!$D$40*$D28))))),0) -> 0 | H28: =IFERROR(IF(H$4="",0,IF($E28="kWh",VLOOKUP(H$4,'4(A) Billing Determinants_ALL'!$B$19:$P$40,4,0)/'4(A) Billing Determinants_ALL'!$E$40*$D28,IF($E28="kW",VLOOKUP(H$4,'4(A) Billing Determinants_ALL'!$B$19:$P$40,5,0)/'4(A) Billing Determinants_ALL'!$F$40*$D28,IF($E28="Non-RPP kWh",VLOOKUP(H$4,'4(A) Billing Determinants_ALL'!$B$19:$P$40,6,0)/'4(A) Billing Determinants_ALL'!$G$40*$D28,IF($E28="Distribution Rev.",VLOOKUP(H$4,'4(A) Billing Determinants_ALL'!$B$19:$P$40,8,0)/'4(A) Billing Determinants_ALL'!$I$40*$D28, VLOOKUP(H$4,'4(A) Billing Determinants_ALL'!$B$19:$P$40,3,0)/'4(A) Billing Determinants_ALL'!$D$40*$D28))))),0) -> 0 | I28: =IFERROR(IF(I$4="",0,IF($E28="kWh",VLOOKUP(I$4,'4(A) Billing Determinants_ALL'!$B$19:$P$40,4,0)/'4(A) Billing Determinants_ALL'!$E$40*$D28,IF($E28="kW",VLOOKUP(I$4,'4(A) Billing Determinants_ALL'!$B$19:$P$40,5,0)/'4(A) Billing Determinants_ALL'!$F$40*$D28,IF($E28="Non-RPP kWh",VLOOKUP(I$4,'4(A) Billing Determinants_ALL'!$B$19:$P$40,6,0)/'4(A) Billing Determinants_ALL'!$G$40*$D28,IF($E28="Distribution Rev.",VLOOKUP(I$4,'4(A) Billing Determinants_ALL'!$B$19:$P$40,8,0)/'4(A) Billing Determinants_ALL'!$I$40*$D28, VLOOKUP(I$4,'4(A) Billing Determinants_ALL'!$B$19:$P$40,3,0)/'4(A) Billing Determinants_ALL'!$D$40*$D28))))),0) -> 0 | J28: =IFERROR(IF(J$4="",0,IF($E28="kWh",VLOOKUP(J$4,'4(A) Billing Determinants_ALL'!$B$19:$P$40,4,0)/'4(A) Billing Determinants_ALL'!$E$40*$D28,IF($E28="kW",VLOOKUP(J$4,'4(A) Billing Determinants_ALL'!$B$19:$P$40,5,0)/'4(A) Billing Determinants_ALL'!$F$40*$D28,IF($E28="Non-RPP kWh",VLOOKUP(J$4,'4(A) Billing Determinants_ALL'!$B$19:$P$40,6,0)/'4(A) Billing Determinants_ALL'!$G$40*$D28,IF($E28="Distribution Rev.",VLOOKUP(J$4,'4(A) Billing Determinants_ALL'!$B$19:$P$40,8,0)/'4(A) Billing Determinants_ALL'!$I$40*$D28, VLOOKUP(J$4,'4(A) Billing Determinants_ALL'!$B$19:$P$40,3,0)/'4(A) Billing Determinants_ALL'!$D$40*$D28))))),0) -> 0 | K28: =IFERROR(IF(K$4="",0,IF($E28="kWh",VLOOKUP(K$4,'4(A) Billing Determinants_ALL'!$B$19:$P$40,4,0)/'4(A) Billing Determinants_ALL'!$E$40*$D28,IF($E28="kW",VLOOKUP(K$4,'4(A) Billing Determinants_ALL'!$B$19:$P$40,5,0)/'4(A) Billing Determinants_ALL'!$F$40*$D28,IF($E28="Non-RPP kWh",VLOOKUP(K$4,'4(A) Billing Determinants_ALL'!$B$19:$P$40,6,0)/'4(A) Billing Determinants_ALL'!$G$40*$D28,IF($E28="Distribution Rev.",VLOOKUP(K$4,'4(A) Billing Determinants_ALL'!$B$19:$P$40,8,0)/'4(A) Billing Determinants_ALL'!$I$40*$D28, VLOOKUP(K$4,'4(A) Billing Determinants_ALL'!$B$19:$P$40,3,0)/'4(A) Billing Determinants_ALL'!$D$40*$D28))))),0) -> 0 | L28: =IFERROR(IF(L$4="",0,IF($E28="kWh",VLOOKUP(L$4,'4(A) Billing Determinants_ALL'!$B$19:$P$40,4,0)/'4(A) Billing Determinants_ALL'!$E$40*$D28,IF($E28="kW",VLOOKUP(L$4,'4(A) Billing Determinants_ALL'!$B$19:$P$40,5,0)/'4(A) Billing Determinants_ALL'!$F$40*$D28,IF($E28="Non-RPP kWh",VLOOKUP(L$4,'4(A) Billing Determinants_ALL'!$B$19:$P$40,6,0)/'4(A) Billing Determinants_ALL'!$G$40*$D28,IF($E28="Distribution Rev.",VLOOKUP(L$4,'4(A) Billing Determinants_ALL'!$B$19:$P$40,8,0)/'4(A) Billing Determinants_ALL'!$I$40*$D28, VLOOKUP(L$4,'4(A) Billing Determinants_ALL'!$B$19:$P$40,3,0)/'4(A) Billing Determinants_ALL'!$D$40*$D28))))),0) -> 0 | M28: =IFERROR(IF(M$4="",0,IF($E28="kWh",VLOOKUP(M$4,'4(A) Billing Determinants_ALL'!$B$19:$P$40,4,0)/'4(A) Billing Determinants_ALL'!$E$40*$D28,IF($E28="kW",VLOOKUP(M$4,'4(A) Billing Determinants_ALL'!$B$19:$P$40,5,0)/'4(A) Billing Determinants_ALL'!$F$40*$D28,IF($E28="Non-RPP kWh",VLOOKUP(M$4,'4(A) Billing Determinants_ALL'!$B$19:$P$40,6,0)/'4(A) Billing Determinants_ALL'!$G$40*$D28,IF($E28="Distribution Rev.",VLOOKUP(M$4,'4(A) Billing Determinants_ALL'!$B$19:$P$40,8,0)/'4(A) Billing Determinants_ALL'!$I$40*$D28, VLOOKUP(M$4,'4(A) Billing Determinants_ALL'!$B$19:$P$40,3,0)/'4(A) Billing Determinants_ALL'!$D$40*$D28))))),0) -> 0 | N28: =IFERROR(IF(N$4="",0,IF($E28="kWh",VLOOKUP(N$4,'4(A) Billing Determinants_ALL'!$B$19:$P$40,4,0)/'4(A) Billing Determinants_ALL'!$E$40*$D28,IF($E28="kW",VLOOKUP(N$4,'4(A) Billing Determinants_ALL'!$B$19:$P$40,5,0)/'4(A) Billing Determinants_ALL'!$F$40*$D28,IF($E28="Non-RPP kWh",VLOOKUP(N$4,'4(A) Billing Determinants_ALL'!$B$19:$P$40,6,0)/'4(A) Billing Determinants_ALL'!$G$40*$D28,IF($E28="Distribution Rev.",VLOOKUP(N$4,'4(A) Billing Determinants_ALL'!$B$19:$P$40,8,0)/'4(A) Billing Determinants_ALL'!$I$40*$D28, VLOOKUP(N$4,'4(A) Billing Determinants_ALL'!$B$19:$P$40,3,0)/'4(A) Billing Determinants_ALL'!$D$40*$D28))))),0) -> 0 | O28: =IFERROR(IF(O$4="",0,IF($E28="kWh",VLOOKUP(O$4,'4(A) Billing Determinants_ALL'!$B$19:$P$40,4,0)/'4(A) Billing Determinants_ALL'!$E$40*$D28,IF($E28="kW",VLOOKUP(O$4,'4(A) Billing Determinants_ALL'!$B$19:$P$40,5,0)/'4(A) Billing Determinants_ALL'!$F$40*$D28,IF($E28="Non-RPP kWh",VLOOKUP(O$4,'4(A) Billing Determinants_ALL'!$B$19:$P$40,6,0)/'4(A) Billing Determinants_ALL'!$G$40*$D28,IF($E28="Distribution Rev.",VLOOKUP(O$4,'4(A) Billing Determinants_ALL'!$B$19:$P$40,8,0)/'4(A) Billing Determinants_ALL'!$I$40*$D28, VLOOKUP(O$4,'4(A) Billing Determinants_ALL'!$B$19:$P$40,3,0)/'4(A) Billing Determinants_ALL'!$D$40*$D28))))),0) -> 0 | P28: =IFERROR(IF(P$4="",0,IF($E28="kWh",VLOOKUP(P$4,'4(A) Billing Determinants_ALL'!$B$19:$P$40,4,0)/'4(A) Billing Determinants_ALL'!$E$40*$D28,IF($E28="kW",VLOOKUP(P$4,'4(A) Billing Determinants_ALL'!$B$19:$P$40,5,0)/'4(A) Billing Determinants_ALL'!$F$40*$D28,IF($E28="Non-RPP kWh",VLOOKUP(P$4,'4(A) Billing Determinants_ALL'!$B$19:$P$40,6,0)/'4(A) Billing Determinants_ALL'!$G$40*$D28,IF($E28="Distribution Rev.",VLOOKUP(P$4,'4(A) Billing Determinants_ALL'!$B$19:$P$40,8,0)/'4(A) Billing Determinants_ALL'!$I$40*$D28, VLOOKUP(P$4,'4(A) Billing Determinants_ALL'!$B$19:$P$40,3,0)/'4(A) Billing Determinants_ALL'!$D$40*$D28))))),0) -> 0 | Q28: =IFERROR(IF(Q$4="",0,IF($E28="kWh",VLOOKUP(Q$4,'4(A) Billing Determinants_ALL'!$B$19:$P$40,4,0)/'4(A) Billing Determinants_ALL'!$E$40*$D28,IF($E28="kW",VLOOKUP(Q$4,'4(A) Billing Determinants_ALL'!$B$19:$P$40,5,0)/'4(A) Billing Determinants_ALL'!$F$40*$D28,IF($E28="Non-RPP kWh",VLOOKUP(Q$4,'4(A) Billing Determinants_ALL'!$B$19:$P$40,6,0)/'4(A) Billing Determinants_ALL'!$G$40*$D28,IF($E28="Distribution Rev.",VLOOKUP(Q$4,'4(A) Billing Determinants_ALL'!$B$19:$P$40,8,0)/'4(A) Billing Determinants_ALL'!$I$40*$D28, VLOOKUP(Q$4,'4(A) Billing Determinants_ALL'!$B$19:$P$40,3,0)/'4(A) Billing Determinants_ALL'!$D$40*$D28))))),0) -> 0 | R28: =IFERROR(IF(R$4="",0,IF($E28="kWh",VLOOKUP(R$4,'4(A) Billing Determinants_ALL'!$B$19:$P$40,4,0)/'4(A) Billing Determinants_ALL'!$E$40*$D28,IF($E28="kW",VLOOKUP(R$4,'4(A) Billing Determinants_ALL'!$B$19:$P$40,5,0)/'4(A) Billing Determinants_ALL'!$F$40*$D28,IF($E28="Non-RPP kWh",VLOOKUP(R$4,'4(A) Billing Determinants_ALL'!$B$19:$P$40,6,0)/'4(A) Billing Determinants_ALL'!$G$40*$D28,IF($E28="Distribution Rev.",VLOOKUP(R$4,'4(A) Billing Determinants_ALL'!$B$19:$P$40,8,0)/'4(A) Billing Determinants_ALL'!$I$40*$D28, VLOOKUP(R$4,'4(A) Billing Determinants_ALL'!$B$19:$P$40,3,0)/'4(A) Billing Determinants_ALL'!$D$40*$D28))))),0) -> 0 | S28: =IFERROR(IF(S$4="",0,IF($E28="kWh",VLOOKUP(S$4,'4(A) Billing Determinants_ALL'!$B$19:$P$40,4,0)/'4(A) Billing Determinants_ALL'!$E$40*$D28,IF($E28="kW",VLOOKUP(S$4,'4(A) Billing Determinants_ALL'!$B$19:$P$40,5,0)/'4(A) Billing Determinants_ALL'!$F$40*$D28,IF($E28="Non-RPP kWh",VLOOKUP(S$4,'4(A) Billing Determinants_ALL'!$B$19:$P$40,6,0)/'4(A) Billing Determinants_ALL'!$G$40*$D28,IF($E28="Distribution Rev.",VLOOKUP(S$4,'4(A) Billing Determinants_ALL'!$B$19:$P$40,8,0)/'4(A) Billing Determinants_ALL'!$I$40*$D28, VLOOKUP(S$4,'4(A) Billing Determinants_ALL'!$B$19:$P$40,3,0)/'4(A) Billing Determinants_ALL'!$D$40*$D28))))),0) -> 0 | T28: =IFERROR(IF(T$4="",0,IF($E28="kWh",VLOOKUP(T$4,'4(A) Billing Determinants_ALL'!$B$19:$P$40,4,0)/'4(A) Billing Determinants_ALL'!$E$40*$D28,IF($E28="kW",VLOOKUP(T$4,'4(A) Billing Determinants_ALL'!$B$19:$P$40,5,0)/'4(A) Billing Determinants_ALL'!$F$40*$D28,IF($E28="Non-RPP kWh",VLOOKUP(T$4,'4(A) Billing Determinants_ALL'!$B$19:$P$40,6,0)/'4(A) Billing Determinants_ALL'!$G$40*$D28,IF($E28="Distribution Rev.",VLOOKUP(T$4,'4(A) Billing Determinants_ALL'!$B$19:$P$40,8,0)/'4(A) Billing Determinants_ALL'!$I$40*$D28, VLOOKUP(T$4,'4(A) Billing Determinants_ALL'!$B$19:$P$40,3,0)/'4(A) Billing Determinants_ALL'!$D$40*$D28))))),0) -> 0 | U28: =IFERROR(IF(U$4="",0,IF($E28="kWh",VLOOKUP(U$4,'4(A) Billing Determinants_ALL'!$B$19:$P$40,4,0)/'4(A) Billing Determinants_ALL'!$E$40*$D28,IF($E28="kW",VLOOKUP(U$4,'4(A) Billing Determinants_ALL'!$B$19:$P$40,5,0)/'4(A) Billing Determinants_ALL'!$F$40*$D28,IF($E28="Non-RPP kWh",VLOOKUP(U$4,'4(A) Billing Determinants_ALL'!$B$19:$P$40,6,0)/'4(A) Billing Determinants_ALL'!$G$40*$D28,IF($E28="Distribution Rev.",VLOOKUP(U$4,'4(A) Billing Determinants_ALL'!$B$19:$P$40,8,0)/'4(A) Billing Determinants_ALL'!$I$40*$D28, VLOOKUP(U$4,'4(A) Billing Determinants_ALL'!$B$19:$P$40,3,0)/'4(A) Billing Determinants_ALL'!$D$40*$D28))))),0) -> 0 | V28: =IFERROR(IF(V$4="",0,IF($E28="kWh",VLOOKUP(V$4,'4(A) Billing Determinants_ALL'!$B$19:$P$40,4,0)/'4(A) Billing Determinants_ALL'!$E$40*$D28,IF($E28="kW",VLOOKUP(V$4,'4(A) Billing Determinants_ALL'!$B$19:$P$40,5,0)/'4(A) Billing Determinants_ALL'!$F$40*$D28,IF($E28="Non-RPP kWh",VLOOKUP(V$4,'4(A) Billing Determinants_ALL'!$B$19:$P$40,6,0)/'4(A) Billing Determinants_ALL'!$G$40*$D28,IF($E28="Distribution Rev.",VLOOKUP(V$4,'4(A) Billing Determinants_ALL'!$B$19:$P$40,8,0)/'4(A) Billing Determinants_ALL'!$I$40*$D28, VLOOKUP(V$4,'4(A) Billing Determinants_ALL'!$B$19:$P$40,3,0)/'4(A) Billing Determinants_ALL'!$D$40*$D28))))),0) -> 0 | W28: =IFERROR(IF(W$4="",0,IF($E28="kWh",VLOOKUP(W$4,'4(A) Billing Determinants_ALL'!$B$19:$P$40,4,0)/'4(A) Billing Determinants_ALL'!$E$40*$D28,IF($E28="kW",VLOOKUP(W$4,'4(A) Billing Determinants_ALL'!$B$19:$P$40,5,0)/'4(A) Billing Determinants_ALL'!$F$40*$D28,IF($E28="Non-RPP kWh",VLOOKUP(W$4,'4(A) Billing Determinants_ALL'!$B$19:$P$40,6,0)/'4(A) Billing Determinants_ALL'!$G$40*$D28,IF($E28="Distribution Rev.",VLOOKUP(W$4,'4(A) Billing Determinants_ALL'!$B$19:$P$40,8,0)/'4(A) Billing Determinants_ALL'!$I$40*$D28, VLOOKUP(W$4,'4(A) Billing Determinants_ALL'!$B$19:$P$40,3,0)/'4(A) Billing Determinants_ALL'!$D$40*$D28))))),0) -> 0
B29: Retail Cost Variance Account - STR | C29: 1548 | D29: ='2. 2015 Continuity Schedule'!BM58 -> 6800.4404 | E29: # of Customers | F29: =IFERROR(IF(F$4="",0,IF($E29="kWh",VLOOKUP(F$4,'4(A) Billing Determinants_ALL'!$B$19:$P$40,4,0)/'4(A) Billing Determinants_ALL'!$E$40*$D29,IF($E29="kW",VLOOKUP(F$4,'4(A) Billing Determinants_ALL'!$B$19:$P$40,5,0)/'4(A) Billing Determinants_ALL'!$F$40*$D29,IF($E29="Non-RPP kWh",VLOOKUP(F$4,'4(A) Billing Determinants_ALL'!$B$19:$P$40,6,0)/'4(A) Billing Determinants_ALL'!$G$40*$D29,IF($E29="Distribution Rev.",VLOOKUP(F$4,'4(A) Billing Determinants_ALL'!$B$19:$P$40,8,0)/'4(A) Billing Determinants_ALL'!$I$40*$D29, VLOOKUP(F$4,'4(A) Billing Determinants_ALL'!$B$19:$P$40,3,0)/'4(A) Billing Determinants_ALL'!$D$40*$D29))))),0) -> 5461.430496 | G29: =IFERROR(IF(G$4="",0,IF($E29="kWh",VLOOKUP(G$4,'4(A) Billing Determinants_ALL'!$B$19:$P$40,4,0)/'4(A) Billing Determinants_ALL'!$E$40*$D29,IF($E29="kW",VLOOKUP(G$4,'4(A) Billing Determinants_ALL'!$B$19:$P$40,5,0)/'4(A) Billing Determinants_ALL'!$F$40*$D29,IF($E29="Non-RPP kWh",VLOOKUP(G$4,'4(A) Billing Determinants_ALL'!$B$19:$P$40,6,0)/'4(A) Billing Determinants_ALL'!$G$40*$D29,IF($E29="Distribution Rev.",VLOOKUP(G$4,'4(A) Billing Determinants_ALL'!$B$19:$P$40,8,0)/'4(A) Billing Determinants_ALL'!$I$40*$D29, VLOOKUP(G$4,'4(A) Billing Determinants_ALL'!$B$19:$P$40,3,0)/'4(A) Billing Determinants_ALL'!$D$40*$D29))))),0) -> 348.2451127 | H29: =IFERROR(IF(H$4="",0,IF($E29="kWh",VLOOKUP(H$4,'4(A) Billing Determinants_ALL'!$B$19:$P$40,4,0)/'4(A) Billing Determinants_ALL'!$E$40*$D29,IF($E29="kW",VLOOKUP(H$4,'4(A) Billing Determinants_ALL'!$B$19:$P$40,5,0)/'4(A) Billing Determinants_ALL'!$F$40*$D29,IF($E29="Non-RPP kWh",VLOOKUP(H$4,'4(A) Billing Determinants_ALL'!$B$19:$P$40,6,0)/'4(A) Billing Determinants_ALL'!$G$40*$D29,IF($E29="Distribution Rev.",VLOOKUP(H$4,'4(A) Billing Determinants_ALL'!$B$19:$P$40,8,0)/'4(A) Billing Determinants_ALL'!$I$40*$D29, VLOOKUP(H$4,'4(A) Billing Determinants_ALL'!$B$19:$P$40,3,0)/'4(A) Billing Determinants_ALL'!$D$40*$D29))))),0) -> 57.74957759 | I29: =IFERROR(IF(I$4="",0,IF($E29="kWh",VLOOKUP(I$4,'4(A) Billing Determinants_ALL'!$B$19:$P$40,4,0)/'4(A) Billing Determinants_ALL'!$E$40*$D29,IF($E29="kW",VLOOKUP(I$4,'4(A) Billing Determinants_ALL'!$B$19:$P$40,5,0)/'4(A) Billing Determinants_ALL'!$F$40*$D29,IF($E29="Non-RPP kWh",VLOOKUP(I$4,'4(A) Billing Determinants_ALL'!$B$19:$P$40,6,0)/'4(A) Billing Determinants_ALL'!$G$40*$D29,IF($E29="Distribution Rev.",VLOOKUP(I$4,'4(A) Billing Determinants_ALL'!$B$19:$P$40,8,0)/'4(A) Billing Determinants_ALL'!$I$40*$D29, VLOOKUP(I$4,'4(A) Billing Determinants_ALL'!$B$19:$P$40,3,0)/'4(A) Billing Determinants_ALL'!$D$40*$D29))))),0) -> 4.440156036 | J29: =IFERROR(IF(J$4="",0,IF($E29="kWh",VLOOKUP(J$4,'4(A) Billing Determinants_ALL'!$B$19:$P$40,4,0)/'4(A) Billing Determinants_ALL'!$E$40*$D29,IF($E29="kW",VLOOKUP(J$4,'4(A) Billing Determinants_ALL'!$B$19:$P$40,5,0)/'4(A) Billing Determinants_ALL'!$F$40*$D29,IF($E29="Non-RPP kWh",VLOOKUP(J$4,'4(A) Billing Determinants_ALL'!$B$19:$P$40,6,0)/'4(A) Billing Determinants_ALL'!$G$40*$D29,IF($E29="Distribution Rev.",VLOOKUP(J$4,'4(A) Billing Determinants_ALL'!$B$19:$P$40,8,0)/'4(A) Billing Determinants_ALL'!$I$40*$D29, VLOOKUP(J$4,'4(A) Billing Determinants_ALL'!$B$19:$P$40,3,0)/'4(A) Billing Determinants_ALL'!$D$40*$D29))))),0) -> 0.2324356162 | K29: =IFERROR(IF(K$4="",0,IF($E29="kWh",VLOOKUP(K$4,'4(A) Billing Determinants_ALL'!$B$19:$P$40,4,0)/'4(A) Billing Determinants_ALL'!$E$40*$D29,IF($E29="kW",VLOOKUP(K$4,'4(A) Billing Determinants_ALL'!$B$19:$P$40,5,0)/'4(A) Billing Determinants_ALL'!$F$40*$D29,IF($E29="Non-RPP kWh",VLOOKUP(K$4,'4(A) Billing Determinants_ALL'!$B$19:$P$40,6,0)/'4(A) Billing Determinants_ALL'!$G$40*$D29,IF($E29="Distribution Rev.",VLOOKUP(K$4,'4(A) Billing Determinants_ALL'!$B$19:$P$40,8,0)/'4(A) Billing Determinants_ALL'!$I$40*$D29, VLOOKUP(K$4,'4(A) Billing Determinants_ALL'!$B$19:$P$40,3,0)/'4(A) Billing Determinants_ALL'!$D$40*$D29))))),0) -> 60.49982055 | L29: =IFERROR(IF(L$4="",0,IF($E29="kWh",VLOOKUP(L$4,'4(A) Billing Determinants_ALL'!$B$19:$P$40,4,0)/'4(A) Billing Determinants_ALL'!$E$40*$D29,IF($E29="kW",VLOOKUP(L$4,'4(A) Billing Determinants_ALL'!$B$19:$P$40,5,0)/'4(A) Billing Determinants_ALL'!$F$40*$D29,IF($E29="Non-RPP kWh",VLOOKUP(L$4,'4(A) Billing Determinants_ALL'!$B$19:$P$40,6,0)/'4(A) Billing Determinants_ALL'!$G$40*$D29,IF($E29="Distribution Rev.",VLOOKUP(L$4,'4(A) Billing Determinants_ALL'!$B$19:$P$40,8,0)/'4(A) Billing Determinants_ALL'!$I$40*$D29, VLOOKUP(L$4,'4(A) Billing Determinants_ALL'!$B$19:$P$40,3,0)/'4(A) Billing Determinants_ALL'!$D$40*$D29))))),0) -> 865.2246724 | M29: =IFERROR(IF(M$4="",0,IF($E29="kWh",VLOOKUP(M$4,'4(A) Billing Determinants_ALL'!$B$19:$P$40,4,0)/'4(A) Billing Determinants_ALL'!$E$40*$D29,IF($E29="kW",VLOOKUP(M$4,'4(A) Billing Determinants_ALL'!$B$19:$P$40,5,0)/'4(A) Billing Determinants_ALL'!$F$40*$D29,IF($E29="Non-RPP kWh",VLOOKUP(M$4,'4(A) Billing Determinants_ALL'!$B$19:$P$40,6,0)/'4(A) Billing Determinants_ALL'!$G$40*$D29,IF($E29="Distribution Rev.",VLOOKUP(M$4,'4(A) Billing Determinants_ALL'!$B$19:$P$40,8,0)/'4(A) Billing Determinants_ALL'!$I$40*$D29, VLOOKUP(M$4,'4(A) Billing Determinants_ALL'!$B$19:$P$40,3,0)/'4(A) Billing Determinants_ALL'!$D$40*$D29))))),0) -> 2.618128955 | N29: =IFERROR(IF(N$4="",0,IF($E29="kWh",VLOOKUP(N$4,'4(A) Billing Determinants_ALL'!$B$19:$P$40,4,0)/'4(A) Billing Determinants_ALL'!$E$40*$D29,IF($E29="kW",VLOOKUP(N$4,'4(A) Billing Determinants_ALL'!$B$19:$P$40,5,0)/'4(A) Billing Determinants_ALL'!$F$40*$D29,IF($E29="Non-RPP kWh",VLOOKUP(N$4,'4(A) Billing Determinants_ALL'!$B$19:$P$40,6,0)/'4(A) Billing Determinants_ALL'!$G$40*$D29,IF($E29="Distribution Rev.",VLOOKUP(N$4,'4(A) Billing Determinants_ALL'!$B$19:$P$40,8,0)/'4(A) Billing Determinants_ALL'!$I$40*$D29, VLOOKUP(N$4,'4(A) Billing Determinants_ALL'!$B$19:$P$40,3,0)/'4(A) Billing Determinants_ALL'!$D$40*$D29))))),0) -> 0 | O29: =IFERROR(IF(O$4="",0,IF($E29="kWh",VLOOKUP(O$4,'4(A) Billing Determinants_ALL'!$B$19:$P$40,4,0)/'4(A) Billing Determinants_ALL'!$E$40*$D29,IF($E29="kW",VLOOKUP(O$4,'4(A) Billing Determinants_ALL'!$B$19:$P$40,5,0)/'4(A) Billing Determinants_ALL'!$F$40*$D29,IF($E29="Non-RPP kWh",VLOOKUP(O$4,'4(A) Billing Determinants_ALL'!$B$19:$P$40,6,0)/'4(A) Billing Determinants_ALL'!$G$40*$D29,IF($E29="Distribution Rev.",VLOOKUP(O$4,'4(A) Billing Determinants_ALL'!$B$19:$P$40,8,0)/'4(A) Billing Determinants_ALL'!$I$40*$D29, VLOOKUP(O$4,'4(A) Billing Determinants_ALL'!$B$19:$P$40,3,0)/'4(A) Billing Determinants_ALL'!$D$40*$D29))))),0) -> 0 | P29: =IFERROR(IF(P$4="",0,IF($E29="kWh",VLOOKUP(P$4,'4(A) Billing Determinants_ALL'!$B$19:$P$40,4,0)/'4(A) Billing Determinants_ALL'!$E$40*$D29,IF($E29="kW",VLOOKUP(P$4,'4(A) Billing Determinants_ALL'!$B$19:$P$40,5,0)/'4(A) Billing Determinants_ALL'!$F$40*$D29,IF($E29="Non-RPP kWh",VLOOKUP(P$4,'4(A) Billing Determinants_ALL'!$B$19:$P$40,6,0)/'4(A) Billing Determinants_ALL'!$G$40*$D29,IF($E29="Distribution Rev.",VLOOKUP(P$4,'4(A) Billing Determinants_ALL'!$B$19:$P$40,8,0)/'4(A) Billing Determinants_ALL'!$I$40*$D29, VLOOKUP(P$4,'4(A) Billing Determinants_ALL'!$B$19:$P$40,3,0)/'4(A) Billing Determinants_ALL'!$D$40*$D29))))),0) -> 0 | Q29: =IFERROR(IF(Q$4="",0,IF($E29="kWh",VLOOKUP(Q$4,'4(A) Billing Determinants_ALL'!$B$19:$P$40,4,0)/'4(A) Billing Determinants_ALL'!$E$40*$D29,IF($E29="kW",VLOOKUP(Q$4,'4(A) Billing Determinants_ALL'!$B$19:$P$40,5,0)/'4(A) Billing Determinants_ALL'!$F$40*$D29,IF($E29="Non-RPP kWh",VLOOKUP(Q$4,'4(A) Billing Determinants_ALL'!$B$19:$P$40,6,0)/'4(A) Billing Determinants_ALL'!$G$40*$D29,IF($E29="Distribution Rev.",VLOOKUP(Q$4,'4(A) Billing Determinants_ALL'!$B$19:$P$40,8,0)/'4(A) Billing Determinants_ALL'!$I$40*$D29, VLOOKUP(Q$4,'4(A) Billing Determinants_ALL'!$B$19:$P$40,3,0)/'4(A) Billing Determinants_ALL'!$D$40*$D29))))),0) -> 0 | R29: =IFERROR(IF(R$4="",0,IF($E29="kWh",VLOOKUP(R$4,'4(A) Billing Determinants_ALL'!$B$19:$P$40,4,0)/'4(A) Billing Determinants_ALL'!$E$40*$D29,IF($E29="kW",VLOOKUP(R$4,'4(A) Billing Determinants_ALL'!$B$19:$P$40,5,0)/'4(A) Billing Determinants_ALL'!$F$40*$D29,IF($E29="Non-RPP kWh",VLOOKUP(R$4,'4(A) Billing Determinants_ALL'!$B$19:$P$40,6,0)/'4(A) Billing Determinants_ALL'!$G$40*$D29,IF($E29="Distribution Rev.",VLOOKUP(R$4,'4(A) Billing Determinants_ALL'!$B$19:$P$40,8,0)/'4(A) Billing Determinants_ALL'!$I$40*$D29, VLOOKUP(R$4,'4(A) Billing Determinants_ALL'!$B$19:$P$40,3,0)/'4(A) Billing Determinants_ALL'!$D$40*$D29))))),0) -> 0 | S29: =IFERROR(IF(S$4="",0,IF($E29="kWh",VLOOKUP(S$4,'4(A) Billing Determinants_ALL'!$B$19:$P$40,4,0)/'4(A) Billing Determinants_ALL'!$E$40*$D29,IF($E29="kW",VLOOKUP(S$4,'4(A) Billing Determinants_ALL'!$B$19:$P$40,5,0)/'4(A) Billing Determinants_ALL'!$F$40*$D29,IF($E29="Non-RPP kWh",VLOOKUP(S$4,'4(A) Billing Determinants_ALL'!$B$19:$P$40,6,0)/'4(A) Billing Determinants_ALL'!$G$40*$D29,IF($E29="Distribution Rev.",VLOOKUP(S$4,'4(A) Billing Determinants_ALL'!$B$19:$P$40,8,0)/'4(A) Billing Determinants_ALL'!$I$40*$D29, VLOOKUP(S$4,'4(A) Billing Determinants_ALL'!$B$19:$P$40,3,0)/'4(A) Billing Determinants_ALL'!$D$40*$D29))))),0) -> 0 | T29: =IFERROR(IF(T$4="",0,IF($E29="kWh",VLOOKUP(T$4,'4(A) Billing Determinants_ALL'!$B$19:$P$40,4,0)/'4(A) Billing Determinants_ALL'!$E$40*$D29,IF($E29="kW",VLOOKUP(T$4,'4(A) Billing Determinants_ALL'!$B$19:$P$40,5,0)/'4(A) Billing Determinants_ALL'!$F$40*$D29,IF($E29="Non-RPP kWh",VLOOKUP(T$4,'4(A) Billing Determinants_ALL'!$B$19:$P$40,6,0)/'4(A) Billing Determinants_ALL'!$G$40*$D29,IF($E29="Distribution Rev.",VLOOKUP(T$4,'4(A) Billing Determinants_ALL'!$B$19:$P$40,8,0)/'4(A) Billing Determinants_ALL'!$I$40*$D29, VLOOKUP(T$4,'4(A) Billing Determinants_ALL'!$B$19:$P$40,3,0)/'4(A) Billing Determinants_ALL'!$D$40*$D29))))),0) -> 0 | U29: =IFERROR(IF(U$4="",0,IF($E29="kWh",VLOOKUP(U$4,'4(A) Billing Determinants_ALL'!$B$19:$P$40,4,0)/'4(A) Billing Determinants_ALL'!$E$40*$D29,IF($E29="kW",VLOOKUP(U$4,'4(A) Billing Determinants_ALL'!$B$19:$P$40,5,0)/'4(A) Billing Determinants_ALL'!$F$40*$D29,IF($E29="Non-RPP kWh",VLOOKUP(U$4,'4(A) Billing Determinants_ALL'!$B$19:$P$40,6,0)/'4(A) Billing Determinants_ALL'!$G$40*$D29,IF($E29="Distribution Rev.",VLOOKUP(U$4,'4(A) Billing Determinants_ALL'!$B$19:$P$40,8,0)/'4(A) Billing Determinants_ALL'!$I$40*$D29, VLOOKUP(U$4,'4(A) Billing Determinants_ALL'!$B$19:$P$40,3,0)/'4(A) Billing Determinants_ALL'!$D$40*$D29))))),0) -> 0 | V29: =IFERROR(IF(V$4="",0,IF($E29="kWh",VLOOKUP(V$4,'4(A) Billing Determinants_ALL'!$B$19:$P$40,4,0)/'4(A) Billing Determinants_ALL'!$E$40*$D29,IF($E29="kW",VLOOKUP(V$4,'4(A) Billing Determinants_ALL'!$B$19:$P$40,5,0)/'4(A) Billing Determinants_ALL'!$F$40*$D29,IF($E29="Non-RPP kWh",VLOOKUP(V$4,'4(A) Billing Determinants_ALL'!$B$19:$P$40,6,0)/'4(A) Billing Determinants_ALL'!$G$40*$D29,IF($E29="Distribution Rev.",VLOOKUP(V$4,'4(A) Billing Determinants_ALL'!$B$19:$P$40,8,0)/'4(A) Billing Determinants_ALL'!$I$40*$D29, VLOOKUP(V$4,'4(A) Billing Determinants_ALL'!$B$19:$P$40,3,0)/'4(A) Billing Determinants_ALL'!$D$40*$D29))))),0) -> 0 | W29: =IFERROR(IF(W$4="",0,IF($E29="kWh",VLOOKUP(W$4,'4(A) Billing Determinants_ALL'!$B$19:$P$40,4,0)/'4(A) Billing Determinants_ALL'!$E$40*$D29,IF($E29="kW",VLOOKUP(W$4,'4(A) Billing Determinants_ALL'!$B$19:$P$40,5,0)/'4(A) Billing Determinants_ALL'!$F$40*$D29,IF($E29="Non-RPP kWh",VLOOKUP(W$4,'4(A) Billing Determinants_ALL'!$B$19:$P$40,6,0)/'4(A) Billing Determinants_ALL'!$G$40*$D29,IF($E29="Distribution Rev.",VLOOKUP(W$4,'4(A) Billing Determinants_ALL'!$B$19:$P$40,8,0)/'4(A) Billing Determinants_ALL'!$I$40*$D29, VLOOKUP(W$4,'4(A) Billing Determinants_ALL'!$B$19:$P$40,3,0)/'4(A) Billing Determinants_ALL'!$D$40*$D29))))),0) -> 0
